Workbook

Sheet Lista
A1: Depto | B1: Mpio | D1: Udepto | E1: Filtro | H1: Mpio Unicos | N1: Dpto | O1: mpio | P1: para unicos
A2: =_xlfn.UNIQUE(N2:O5000) -> Sin Info | B2: Sin Info | D2: =_xlfn._xlws.SORT(_xlfn.UNIQUE(A2:A3355),,1) -> 0 | E2: =_xlfn._xlws.FILTER($A$2:$B$4500,$A$2:$A$4500=Visor!$Q$7,"") -> BOGOTÁ, D.C. | F2: BOGOTÁ, D.C. | H2: =_xlfn._xlws.SORT(_xlfn.UNIQUE($F$2:$F$1000),,1) -> BOGOTÁ, D.C. | J2: Conteo | N2: Sin Info | O2: Sin Info | Q2: MES | R2: Febrero
A3: ANTIOQUIA | B3: MEDELLÍN | D3: AMAZONAS | H3: 0 | J3: =COUNTIF(_xlfn.ANCHORARRAY(H2),"<>"&"")-1 -> 1 | N3: Sin Info | O3: Sin Info
A4: BOGOTÁ, D.C. | B4: BOGOTÁ, D.C. | D4: ANTIOQUIA | N4: Sin Info | O4: Sin Info
A5: VALLE DEL CAUCA | B5: CALI | D5: ARAUCA | N5: ANTIOQUIA | O5: MEDELLÍN
A6: TOLIMA | B6: MELGAR | D6: ARCHIPIÉLAGO DE SAN ANDRÉS, PROVIDENCIA Y SANTA CATALINA | N6: BOGOTÁ, D.C. | O6: BOGOTÁ, D.C.
A7: ANTIOQUIA | B7: GUARNE | D7: ATLÁNTICO | N7: BOGOTÁ, D.C. | O7: BOGOTÁ, D.C.
A8: ANTIOQUIA | B8: LA UNIÓN | D8: BOGOTÁ, D.C. | N8: VALLE DEL CAUCA | O8: CALI
A9: SANTANDER | B9: BUCARAMANGA | D9: BOLÍVAR | N9: BOGOTÁ, D.C. | O9: BOGOTÁ, D.C.
A10: ANTIOQUIA | B10: SABANETA | D10: BOYACÁ | N10: VALLE DEL CAUCA | O10: CALI
A11: BOLÍVAR | B11: CARTAGENA | D11: CALDAS | N11: TOLIMA | O11: MELGAR
A12: SANTANDER | B12: AGUADA | D12: CAQUETÁ | N12: ANTIOQUIA | O12: GUARNE
A13: CUNDINAMARCA | B13: CAJICÁ | D13: CASANARE | N13: ANTIOQUIA | O13: MEDELLÍN
A14: HUILA | B14: NEIVA | D14: CAUCA | N14: ANTIOQUIA | O14: LA UNIÓN
A15: QUINDÍO | B15: ARMENIA | D15: CESAR | N15: SANTANDER | O15: BUCARAMANGA
A16: CÓRDOBA | B16: MONTERÍA | D16: CHOCÓ | N16: ANTIOQUIA | O16: SABANETA
A17: ATLÁNTICO | B17: BARRANQUILLA | D17: CÓRDOBA | N17: BOLÍVAR | O17: CARTAGENA
A18: CUNDINAMARCA | B18: CHÍA | D18: CUNDINAMARCA | N18: SANTANDER | O18: AGUADA
A19: META | B19: ACACÍAS | D19: GUAINÍA | N19: CUNDINAMARCA | O19: CAJICÁ
A20: TOLIMA | B20: IBAGUÉ | D20: GUAVIARE | N20: HUILA | O20: NEIVA
A21: CAUCA | B21: SANTANDER DE QUILICHAO | D21: HUILA | N21: ANTIOQUIA | O21: MEDELLÍN
A22: RISARALDA | B22: LA VIRGINIA | D22: LA GUAJIRA | N22: QUINDÍO | O22: ARMENIA
A23: TOLIMA | B23: HONDA | D23: MAGDALENA | N23: CÓRDOBA | O23: MONTERÍA
A24: META | B24: VILLAVICENCIO | D24: META | N24: CÓRDOBA | O24: MONTERÍA
A25: NORTE DE SANTANDER | B25: LOS PATIOS | D25: NARIÑO | N25: SANTANDER | O25: BUCARAMANGA
A26: META | B26: CUMARAL | D26: NORTE DE SANTANDER | N26: ATLÁNTICO | O26: BARRANQUILLA
A27: SANTANDER | B27: ZAPATOCA | D27: PUTUMAYO | N27: CUNDINAMARCA | O27: CHÍA
A28: CUNDINAMARCA | B28: TENJO | D28: QUINDÍO | N28: META | O28: ACACÍAS
A29: MAGDALENA | B29: SANTA MARTA | D29: RISARALDA | N29: SANTANDER | O29: BUCARAMANGA
A30: SANTANDER | B30: FLORIDABLANCA | D30: SANTANDER | N30: TOLIMA | O30: IBAGUÉ
A31: CAUCA | B31: POPAYÁN | D31: Sin Info | N31: ATLÁNTICO | O31: BARRANQUILLA
A32: CUNDINAMARCA | B32: GIRARDOT | D32: SUCRE | N32: CAUCA | O32: SANTANDER DE QUILICHAO
A33: RISARALDA | B33: PEREIRA | D33: TOLIMA | N33: HUILA | O33: NEIVA
A34: ARAUCA | B34: FORTUL | D34: VALLE DEL CAUCA | N34: RISARALDA | O34: LA VIRGINIA
A35: CUNDINAMARCA | B35: FUSAGASUGÁ | D35: VAUPÉS | N35: TOLIMA | O35: HONDA
A36: CUNDINAMARCA | B36: LA VEGA | D36: VICHADA | N36: META | O36: VILLAVICENCIO
A37: CUNDINAMARCA | B37: SOPÓ | D37: 0 | N37: NORTE DE SANTANDER | O37: LOS PATIOS
A38: ANTIOQUIA | B38: JARDÍN | N38: META | O38: CUMARAL
A39: BOYACÁ | B39: SOGAMOSO | N39: SANTANDER | O39: ZAPATOCA
A40: BOYACÁ | B40: DUITAMA | N40: CUNDINAMARCA | O40: TENJO
A41: BOYACÁ | B41: SUTATENZA | N41: MAGDALENA | O41: SANTA MARTA
A42: CÓRDOBA | B42: SAN PELAYO | N42: SANTANDER | O42: FLORIDABLANCA
A43: VALLE DEL CAUCA | B43: TULUÁ | N43: CAUCA | O43: POPAYÁN
A44: CALDAS | B44: MANIZALES | N44: BOLÍVAR | O44: CARTAGENA
A45: TOLIMA | B45: ESPINAL | N45: CUNDINAMARCA | O45: GIRARDOT
A46: CESAR | B46: VALLEDUPAR | N46: RISARALDA | O46: PEREIRA
A47: CUNDINAMARCA | B47: VILLA DE SAN DIEGO DE UBATE | N47: ARAUCA | O47: FORTUL
A48: CUNDINAMARCA | B48: ZIPAQUIRÁ | N48: VALLE DEL CAUCA | O48: CALI
A49: ARCHIPIÉLAGO DE SAN ANDRÉS, PROVIDENCIA Y SANTA CATALINA | B49: SAN ANDRÉS | N49: CUNDINAMARCA | O49: FUSAGASUGÁ
A50: NORTE DE SANTANDER | B50: CÚCUTA | N50: CUNDINAMARCA | O50: LA VEGA
A51: CUNDINAMARCA | B51: TOCAIMA | N51: TOLIMA | O51: IBAGUÉ
A52: CUNDINAMARCA | B52: LA MESA | N52: CUNDINAMARCA | O52: SOPÓ
A53: CALDAS | B53: AGUADAS | N53: ANTIOQUIA | O53: JARDÍN
A54: META | B54: SAN MARTÍN | N54: BOYACÁ | O54: SOGAMOSO
A55: CUNDINAMARCA | B55: VILLETA | N55: BOYACÁ | O55: DUITAMA
A56: BOYACÁ | B56: CHIQUINQUIRÁ | N56: BOYACÁ | O56: SUTATENZA
A57: CASANARE | B57: TAURAMENA | N57: CÓRDOBA | O57: SAN PELAYO
A58: BOYACÁ | B58: PAIPA | N58: VALLE DEL CAUCA | O58: TULUÁ
A59: BOYACÁ | B59: TUNJA | N59: META | O59: VILLAVICENCIO
A60: CUNDINAMARCA | B60: ANAPOIMA | N60: CALDAS | O60: MANIZALES
A61: NARIÑO | B61: PASTO | N61: TOLIMA | O61: ESPINAL
A62: SANTANDER | B62: PUENTE NACIONAL | N62: CESAR | O62: VALLEDUPAR
A63: LA GUAJIRA | B63: RIOHACHA | N63: CUNDINAMARCA | O63: VILLA DE SAN DIEGO DE UBATE
A64: CUNDINAMARCA | B64: LA CALERA | N64: CUNDINAMARCA | O64: ZIPAQUIRÁ
A65: CUNDINAMARCA | B65: AGUA DE DIOS | N65: ARCHIPIÉLAGO DE SAN ANDRÉS, PROVIDENCIA Y SANTA CATALINA | O65: SAN ANDRÉS
A66: CUNDINAMARCA | B66: MOSQUERA | N66: NORTE DE SANTANDER | O66: CÚCUTA
A67: CESAR | B67: AGUACHICA | N67: NORTE DE SANTANDER | O67: CÚCUTA
A68: TOLIMA | B68: VILLARRICA | N68: CUNDINAMARCA | O68: TOCAIMA
A69: CUNDINAMARCA | B69: FACATATIVÁ | N69: CUNDINAMARCA | O69: LA MESA
A70: CUNDINAMARCA | B70: TABIO | N70: CALDAS | O70: AGUADAS
A71: CUNDINAMARCA | B71: SUBACHOQUE | N71: META | O71: SAN MARTÍN
A72: CUNDINAMARCA | B72: GUASCA | N72: CUNDINAMARCA | O72: VILLETA
A73: CAUCA | B73: PIENDAMÓ | N73: BOYACÁ | O73: CHIQUINQUIRÁ
A74: TOLIMA | B74: SUÁREZ | N74: CASANARE | O74: TAURAMENA
A75: CUNDINAMARCA | B75: FUNZA | N75: BOYACÁ | O75: PAIPA
A76: BOYACÁ | B76: GUATEQUE | N76: BOYACÁ | O76: TUNJA
A77: META | B77: GRANADA | N77: CUNDINAMARCA | O77: ANAPOIMA
A78: CALDAS | B78: LA DORADA | N78: NARIÑO | O78: PASTO
A79: SANTANDER | B79: GIRÓN | N79: ANTIOQUIA | O79: SABANETA
A80: SANTANDER | B80: BARRANCABERMEJA | N80: SANTANDER | O80: PUENTE NACIONAL
A81: TOLIMA | B81: ROVIRA | N81: CUNDINAMARCA | O81: CHÍA
A82: CUNDINAMARCA | B82: APULO | N82: LA GUAJIRA | O82: RIOHACHA
A83: VALLE DEL CAUCA | B83: CARTAGO | N83: CUNDINAMARCA | O83: LA CALERA
A84: ANTIOQUIA | B84: ENVIGADO | N84: CUNDINAMARCA | O84: AGUA DE DIOS
A85: ARAUCA | B85: ARAUCA | N85: CUNDINAMARCA | O85: TOCAIMA
A86: VALLE DEL CAUCA | B86: PALMIRA | N86: CUNDINAMARCA | O86: MOSQUERA
A87: SANTANDER | B87: SAN GIL | N87: CESAR | O87: AGUACHICA
A88: SANTANDER | B88: VÉLEZ | N88: TOLIMA | O88: VILLARRICA
A89: ANTIOQUIA | B89: RETIRO | N89: ANTIOQUIA | O89: GUARNE
A90: GUAVIARE | B90: CALAMAR | N90: CUNDINAMARCA | O90: FACATATIVÁ
A91: CUNDINAMARCA | B91: SOACHA | N91: CUNDINAMARCA | O91: TABIO
A92: VALLE DEL CAUCA | B92: SEVILLA | N92: CUNDINAMARCA | O92: SUBACHOQUE
A93: TOLIMA | B93: FLANDES | N93: CUNDINAMARCA | O93: GUASCA
A94: CÓRDOBA | B94: SAHAGÚN | N94: CAUCA | O94: PIENDAMÓ
A95: ANTIOQUIA | B95: PUERTO BERRÍO | N95: TOLIMA | O95: SUÁREZ
A96: VALLE DEL CAUCA | B96: FLORIDA | N96: CUNDINAMARCA | O96: FUNZA
A97: CUNDINAMARCA | B97: COTA | N97: BOYACÁ | O97: GUATEQUE
A98: ATLÁNTICO | B98: SOLEDAD | N98: NORTE DE SANTANDER | O98: CÚCUTA
A99: CUNDINAMARCA | B99: SAN FRANCISCO | N99: META | O99: GRANADA
A100: ANTIOQUIA | B100: RIONEGRO | N100: CALDAS | O100: LA DORADA
A101: CUNDINAMARCA | B101: MADRID | N101: SANTANDER | O101: GIRÓN
A102: SUCRE | B102: SINCELEJO | N102: SANTANDER | O102: BARRANCABERMEJA
A103: CASANARE | B103: PAZ DE ARIPORO | N103: TOLIMA | O103: ROVIRA
A104: QUINDÍO | B104: CALARCA | N104: CUNDINAMARCA | O104: APULO
A105: CUNDINAMARCA | B105: GRANADA | N105: VALLE DEL CAUCA | O105: CARTAGO
A106: CASANARE | B106: MONTERREY | N106: ANTIOQUIA | O106: ENVIGADO
A107: CUNDINAMARCA | B107: ALBÁN | N107: ARAUCA | O107: ARAUCA
A108: VALLE DEL CAUCA | B108: GUADALAJARA DE BUGA | N108: BOYACÁ | O108: TUNJA
A109: CUNDINAMARCA | B109: TOCANCIPÁ | N109: VALLE DEL CAUCA | O109: PALMIRA
A110: ANTIOQUIA | B110: BARBOSA | N110: SANTANDER | O110: SAN GIL
A111: TOLIMA | B111: SANTA ISABEL | N111: SANTANDER | O111: VÉLEZ
A112: BOYACÁ | B112: BOYACÁ | N112: ANTIOQUIA | O112: RETIRO
A113: HUILA | B113: RIVERA | N113: GUAVIARE | O113: CALAMAR
A114: SANTANDER | B114: OIBA | N114: CUNDINAMARCA | O114: SOACHA
A115: CUNDINAMARCA | B115: GUADUAS | N115: VALLE DEL CAUCA | O115: SEVILLA
A116: CUNDINAMARCA | B116: ANOLAIMA | N116: TOLIMA | O116: FLANDES
A117: CUNDINAMARCA | B117: NEMOCÓN | N117: CÓRDOBA | O117: SAHAGÚN
A118: CUNDINAMARCA | B118: SASAIMA | N118: CUNDINAMARCA | O118: MOSQUERA
A119: ANTIOQUIA | B119: BELLO | N119: ANTIOQUIA | O119: PUERTO BERRÍO
A120: VICHADA | B120: CUMARIBO | N120: VALLE DEL CAUCA | O120: FLORIDA
A121: CUNDINAMARCA | B121: TENA | N121: CUNDINAMARCA | O121: COTA
A122: VALLE DEL CAUCA | B122: LA UNIÓN | N122: ATLÁNTICO | O122: SOLEDAD
A123: CUNDINAMARCA | B123: SAN JUAN DE RÍO SECO | N123: CUNDINAMARCA | O123: SAN FRANCISCO
A124: SANTANDER | B124: SABANA DE TORRES | N124: ANTIOQUIA | O124: RIONEGRO
A125: GUAVIARE | B125: SAN JOSÉ DEL GUAVIARE | N125: CUNDINAMARCA | O125: MADRID
A126: CUNDINAMARCA | B126: FOMEQUE | N126: CUNDINAMARCA | O126: MADRID
A127: CUNDINAMARCA | B127: QUEBRADANEGRA | N127: SUCRE | O127: SINCELEJO
A128: CUNDINAMARCA | B128: GUAYABAL DE SIQUIMA | N128: CUNDINAMARCA | O128: FUNZA
A129: CHOCÓ | B129: ACANDÍ | N129: CUNDINAMARCA | O129: ZIPAQUIRÁ
A130: CUNDINAMARCA | B130: SIBATÉ | N130: CASANARE | O130: PAZ DE ARIPORO
A131: BOYACÁ | B131: VILLA DE LEYVA | N131: SUCRE | O131: SINCELEJO
A132: CUNDINAMARCA | B132: EL ROSAL | N132: QUINDÍO | O132: CALARCA
A133: ANTIOQUIA | B133: ARMENIA | N133: CUNDINAMARCA | O133: GRANADA
A134: LA GUAJIRA | B134: MAICAO | N134: CUNDINAMARCA | O134: FUSAGASUGÁ
A135: CASANARE | B135: YOPAL | N135: CUNDINAMARCA | O135: SOACHA
A136: CUNDINAMARCA | B136: CAPARRAPÍ | N136: CASANARE | O136: MONTERREY
A137: CUNDINAMARCA | B137: QUIPILE | N137: CUNDINAMARCA | O137: ALBÁN
A138: VALLE DEL CAUCA | B138: JAMUNDÍ | N138: VALLE DEL CAUCA | O138: GUADALAJARA DE BUGA
A139: CUNDINAMARCA | B139: COGUA | N139: CUNDINAMARCA | O139: FACATATIVÁ
A140: TOLIMA | B140: FRESNO | N140: CUNDINAMARCA | O140: TOCANCIPÁ
A141: RISARALDA | B141: DOSQUEBRADAS | N141: ANTIOQUIA | O141: BARBOSA
A142: CUNDINAMARCA | B142: SESQUILÉ | N142: META | O142: ACACÍAS
A143: CUNDINAMARCA | B143: UBALÁ | N143: TOLIMA | O143: SANTA ISABEL
A144: SANTANDER | B144: PUERTO PARRA | N144: CUNDINAMARCA | O144: ALBÁN
A145: PUTUMAYO | B145: MOCOA | N145: BOYACÁ | O145: BOYACÁ
A146: PUTUMAYO | B146: PUERTO ASÍS | N146: HUILA | O146: RIVERA
A147: CUNDINAMARCA | B147: CHOCONTÁ | N147: RISARALDA | O147: PEREIRA
A148: HUILA | B148: GARZÓN | N148: SANTANDER | O148: OIBA
A149: CUNDINAMARCA | B149: VENECIA | N149: CUNDINAMARCA | O149: GUADUAS
A150: CUNDINAMARCA | B150: RICAURTE | N150: CUNDINAMARCA | O150: FACATATIVÁ
A151: HUILA | B151: LA PLATA | N151: CUNDINAMARCA | O151: ANOLAIMA
A152: CUNDINAMARCA | B152: SUESCA | N152: CUNDINAMARCA | O152: AGUA DE DIOS
A153: BOLÍVAR | B153: EL CARMEN DE BOLÍVAR | N153: CUNDINAMARCA | O153: NEMOCÓN
A154: CASANARE | B154: VILLANUEVA | N154: CUNDINAMARCA | O154: LA VEGA
A155: CUNDINAMARCA | B155: EL COLEGIO | N155: META | O155: SAN MARTÍN
A156: CUNDINAMARCA | B156: VIOTÁ | N156: CUNDINAMARCA | O156: SASAIMA
A157: CUNDINAMARCA | B157: CACHIPAY | N157: CUNDINAMARCA | O157: VILLA DE SAN DIEGO DE UBATE
A158: BOYACÁ | B158: CHIVOR | N158: SANTANDER | O158: BARRANCABERMEJA
A159: TOLIMA | B159: MARIQUITA | N159: BOYACÁ | O159: DUITAMA
A160: CUNDINAMARCA | B160: ARBELÁEZ | N160: ANTIOQUIA | O160: BELLO
A161: CUNDINAMARCA | B161: BELTRÁN | N161: CUNDINAMARCA | O161: AGUA DE DIOS
A162: META | B162: PUERTO LÓPEZ | N162: VICHADA | O162: CUMARIBO
A163: META | B163: PUERTO GAITÁN | N163: BOYACÁ | O163: SOGAMOSO
A164: TOLIMA | B164: AMBALEMA | N164: CUNDINAMARCA | O164: TENA
A165: TOLIMA | B165: LÉRIDA | N165: VALLE DEL CAUCA | O165: LA UNIÓN
A166: NORTE DE SANTANDER | B166: OCAÑA | N166: CUNDINAMARCA | O166: CAJICÁ
A167: BOYACÁ | B167: PUERTO BOYACÁ | N167: CUNDINAMARCA | O167: SAN JUAN DE RÍO SECO
A168: MAGDALENA | B168: GUAMAL | N168: CUNDINAMARCA | O168: ALBÁN
A169: CUNDINAMARCA | B169: BITUIMA | N169: BOYACÁ | O169: SOGAMOSO
A170: TOLIMA | B170: LÍBANO | N170: SANTANDER | O170: SABANA DE TORRES
A171: CUNDINAMARCA | B171: VIANÍ | N171: GUAVIARE | O171: SAN JOSÉ DEL GUAVIARE
A172: META | B172: SAN CARLOS DE GUAROA | N172: CUNDINAMARCA | O172: FOMEQUE
A173: CUNDINAMARCA | B173: BOJACÁ | N173: CUNDINAMARCA | O173: GUADUAS
A174: CUNDINAMARCA | B174: SIMIJACA | N174: CUNDINAMARCA | O174: SOPÓ
A175: TOLIMA | B175: COELLO | N175: CUNDINAMARCA | O175: QUEBRADANEGRA
A176: CAQUETÁ | B176: SAN VICENTE DEL CAGUÁN | N176: CUNDINAMARCA | O176: SASAIMA
A177: SANTANDER | B177: LANDÁZURI | N177: CUNDINAMARCA | O177: GUAYABAL DE SIQUIMA
A178: CUNDINAMARCA | B178: PACHO | N178: CHOCÓ | O178: ACANDÍ
A179: CHOCÓ | B179: QUIBDÓ | N179: CUNDINAMARCA | O179: SIBATÉ
A180: CUNDINAMARCA | B180: GACHANCIPÁ | N180: CUNDINAMARCA | O180: TOCANCIPÁ
A181: CUNDINAMARCA | B181: GUACHETÁ | N181: CUNDINAMARCA | O181: SASAIMA
A182: TOLIMA | B182: ARMERO | N182: CUNDINAMARCA | O182: VILLETA
A183: TOLIMA | B183: VENADILLO | N183: BOYACÁ | O183: VILLA DE LEYVA
A184: CUNDINAMARCA | B184: PUERTO SALGAR | N184: CUNDINAMARCA | O184: EL ROSAL
A185: BOYACÁ | B185: CÓMBITA | N185: CUNDINAMARCA | O185: TENJO
A186: CHOCÓ | B186: BOJAYA | N186: GUAVIARE | O186: SAN JOSÉ DEL GUAVIARE
A187: CUNDINAMARCA | B187: CARMEN DE CARUPA | N187: ANTIOQUIA | O187: ARMENIA
A188: CUNDINAMARCA | B188: UBAQUE | N188: LA GUAJIRA | O188: MAICAO
A189: BOYACÁ | B189: RÁQUIRA | N189: CASANARE | O189: YOPAL
A190: CUNDINAMARCA | B190: MANTA | N190: CUNDINAMARCA | O190: CAPARRAPÍ
A191: PUTUMAYO | B191: SIBUNDOY | N191: VALLE DEL CAUCA | O191: CARTAGO
A192: VALLE DEL CAUCA | B192: YUMBO | N192: CUNDINAMARCA | O192: QUIPILE
A193: CUNDINAMARCA | B193: CUCUNUBÁ | N193: VALLE DEL CAUCA | O193: JAMUNDÍ
A194: CUNDINAMARCA | B194: SUTATAUSA | N194: CUNDINAMARCA | O194: LA MESA
A195: CUNDINAMARCA | B195: SUSA | N195: CUNDINAMARCA | O195: COGUA
A196: CUNDINAMARCA | B196: VILLAPINZÓN | N196: CUNDINAMARCA | O196: ANAPOIMA
A197: CUNDINAMARCA | B197: LENGUAZAQUE | N197: CUNDINAMARCA | O197: ANAPOIMA
A198: CUNDINAMARCA | B198: CHAGUANÍ | N198: CUNDINAMARCA | O198: LA MESA
A199: TOLIMA | B199: CAJAMARCA | N199: CUNDINAMARCA | O199: GIRARDOT
A200: CAUCA | B200: ARGELIA | N200: TOLIMA | O200: FRESNO
... 3259 more rows

Sheet Visor
J3: Informe Mensual de las cotizaciones
AB4: Pg. 1
J5: Fecha de corte: 15 de Abr de 2022
L7: Departamento | Q7: BOGOTÁ, D.C.
L8: Municipio | Q8: BOGOTÁ, D.C.
C10: ="Resumen general mes "&Lista!R2&":" -> Resumen general mes Febrero:
H12: Total | L12: % | M12: Dependientes | Q12: % | R12: Dep.Privados* | V12: % | W12: Independientes | AA12: %
D13: Nacional | H13: =M13+W13 -> 12533420 | M13: =R13+SUMIFS('Cotizantes Mes'!$AK$2:$AK$4997,'Cotizantes Mes'!$I$2:$I$4997,"Dep_No_priv") -> 10360701 | R13: =SUMIFS('Cotizantes Mes'!$AK$2:$AK$4997,'Cotizantes Mes'!$I$2:$I$4997,"Dep_sec_priv") -> 8806844 | W13: =SUMIFS('Cotizantes Mes'!$AK$2:$AK$4997,'Cotizantes Mes'!$I$2:$I$4997,"Independiente") -> 2172719
D14: =PROPER(Q7) -> Bogotá, D.C. | H14: =M14+W14 -> 3773266 | L14: =H14/H13 -> 0.3010563757 | M14: =R14+SUMIFS('Cotizantes Mes'!$CA$2:$CA$4997,'Cotizantes Mes'!$AY$2:$AY$4997,"Dep_No_priv") -> 3107173 | Q14: =M14/M13 -> 0.2998998813 | R14: =SUMIFS('Cotizantes Mes'!$CA$2:$CA$4997,'Cotizantes Mes'!$AY$2:$AY$4997,"Dep_sec_priv") -> 2723787 | V14: =R14/R13 -> 0.309280714 | W14: =SUMIFS('Cotizantes Mes'!$CA$2:$CA$2000,'Cotizantes Mes'!$AY$2:$AY$2000,"Independiente") -> 666093 | AA14: =W14/W13 -> 0.3065711673
D15: =PROPER(Q8) -> Bogotá, D.C. | H15: =M15+W15 -> 3773266 | L15: =H15/H14 -> 1 | M15: =R15+SUMIFS('Cotizantes Mes'!$CA$2:$CA$2000,'Cotizantes Mes'!$AY$2:$AY$2000,"Dep_No_priv",'Cotizantes Mes'!$AX$2:$AX$2000,Visor!$Q$8) -> 3107173 | Q15: =M15/M14 -> 1 | R15: =SUMIFS('Cotizantes Mes'!$CA$2:$CA$2000,'Cotizantes Mes'!$AY$2:$AY$2000,"Dep_sec_priv",'Cotizantes Mes'!$AX$2:$AX$2000,Visor!$Q$8) -> 2723787 | V15: =R15/R14 -> 1 | W15: =SUMIFS('Cotizantes Mes'!$CA$2:$CA$2000,'Cotizantes Mes'!$AY$2:$AY$2000,"Independiente",'Cotizantes Mes'!$AX$2:$AX$2000,Visor!$Q$8) -> 666093 | AA15: =W15/W14 -> 1
C16: *Ubicación basada en la ubicación de los cotizantes
C18: Variaciones mensuales del número de cotizantes
C30: ="Variaciones anuales y mensuales de "&Lista!R2 -> Variaciones anuales y mensuales de Febrero
L32: Dependientes | P32: Dep. Privados | T32: Independientes
L33: ='Cotizantes Mes'!DL5 -> ∆ Anual Feb | N33: ='Cotizantes Mes'!DM5 -> ∆ Mensual Feb | P33: ='Cotizantes Mes'!DN5 -> ∆ Anual Feb | R33: ='Cotizantes Mes'!DO5 -> ∆ Mensual Feb | T33: =L33 -> ∆ Anual Feb | V33: =N33 -> ∆ Mensual Feb
H34: Nacional | L34: =IFERROR('Cotizantes Mes'!DL6,"") -> 0.07315878972 | N34: =IFERROR('Cotizantes Mes'!DM6,"") -> 0.02796745493 | P34: =IFERROR('Cotizantes Mes'!DN6,"") -> 0.07573651452 | R34: =IFERROR('Cotizantes Mes'!DO6,"") -> 0.01652872434 | T34: =IFERROR('Cotizantes Mes'!DP6,"") -> 0.02992135465 | V34: =IFERROR('Cotizantes Mes'!DQ6,"") -> 0.007635460555
H35: =PROPER(Q7) -> Bogotá, D.C. | L35: =IFERROR('Cotizantes Mes'!DL7,"") -> 0.07204337618 | N35: =IFERROR('Cotizantes Mes'!DM7,"") -> 0.02458572044 | P35: =IFERROR('Cotizantes Mes'!DN7,"") -> 0.07707586624 | R35: =IFERROR('Cotizantes Mes'!DO7,"") -> 0.01216137879 | T35: =IFERROR('Cotizantes Mes'!DP7,"") -> -0.02784698171 | V35: =IFERROR('Cotizantes Mes'!DQ7,"") -> -0.01663224376
H36: =PROPER(Q8) -> Bogotá, D.C. | L36: =IFERROR('Cotizantes Mes'!DL8,"") -> 0.07204337618 | N36: =IFERROR('Cotizantes Mes'!DM8,"") -> 0.02458572044 | P36: =IFERROR('Cotizantes Mes'!DN8,"") -> 0.07707586624 | R36: =IFERROR('Cotizantes Mes'!DO8,"") -> 0.01216137879 | T36: =IFERROR('Cotizantes Mes'!DP8,"") -> -0.02784698171 | V36: =IFERROR('Cotizantes Mes'!DQ8,"") -> -0.01663224376
C38: *Ubicación basada en la ubicación de los cotizantes
C39: ="Número de aportantes privados por tamaño mes de "&Lista!R2 -> Número de aportantes privados por tamaño mes de Febrero
I41: Nacional | L41: % | M41: Cotizantes | O41: =PROPER(Q7) -> Bogotá, D.C. | R41: % | S41: Cotizantes | U41: =PROPER(Q8) -> Bogotá, D.C. | X41: % | Y41: Cotizantes
E42: Micro | I42: =COUNTIFS(Tamaño!$G$2:$G$600000,"<=10") -> 407763 | L42: =I42/$I$47 -> 0.8092028886 | M42: =SUMIFS(Tamaño!$G$2:$G$600000,Tamaño!$G$2:$G$600000,"<="&10) -> 1205857 | O42: =COUNTIFS(Tamaño!$S$2:$S$300000,"<=10") -> 128829 | R42: =O42/$O$47 -> 0.819100845 | S42: =SUMIFS(Tamaño!$S$2:$S$300000,Tamaño!$S$2:$S$300000,"<="&10) -> 357802 | U42: =COUNTIFS(Tamaño!$S$2:$S$300000,"<=10",Tamaño!$R$2:$R$300000,Visor!$Q$8) -> 128829 | X42: =U42/$U$47 -> 0.819100845 | Y42: =SUMIFS(Tamaño!$S$2:$S$300000,Tamaño!$S$2:$S$300000,"<="&10,Tamaño!$R$2:$R$300000,Visor!$Q$8) -> 357802
E43: Pequeñas | I43: =COUNTIFS(Tamaño!$G$2:$G$600000,">=11",Tamaño!$G$2:$G$600000,"<=50") -> 72231 | L43: =I43/$I$47 -> 0.1433419262 | M43: =SUMIFS(Tamaño!$G$2:$G$600000,Tamaño!$G$2:$G$600000,">"&10,Tamaño!$G$2:$G$600000,"<="&50) -> 1562547 | O43: =COUNTIFS(Tamaño!$S$2:$S$300000,">=11",Tamaño!$S$2:$S$300000,"<=50") -> 20688 | R43: =O43/$O$47 -> 0.1315352776 | S43: =SUMIFS(Tamaño!$S$2:$S$300000,Tamaño!$S$2:$S$300000,">"&10,Tamaño!$S$2:$S$300000,"<="&50) -> 448763 | U43: =COUNTIFS(Tamaño!$S$2:$S$300000,">=11",Tamaño!$S$2:$S$300000,"<=50",Tamaño!$R$2:$R$300000,Visor!$Q$8) -> 20688 | X43: =U43/$U$47 -> 0.1315352776 | Y43: =SUMIFS(Tamaño!$S$2:$S$300000,Tamaño!$S$2:$S$300000,">"&10,Tamaño!$S$2:$S$300000,"<="&50,Tamaño!$R$2:$R$300000,Visor!$Q$8) -> 448763
E44: Medianas | I44: =COUNTIFS(Tamaño!$G$2:$G$600000,">=51",Tamaño!$G$2:$G$600000,"<=200") -> 18204 | L44: =I44/$I$47 -> 0.03612571367 | M44: =SUMIFS(Tamaño!$G$2:$G$600000,Tamaño!$G$2:$G$600000,">"&50,Tamaño!$G$2:$G$600000,"<="&200) -> 1715271 | O44: =COUNTIFS(Tamaño!$S$2:$S$300000,">=51",Tamaño!$S$2:$S$300000,"<=200") -> 5677 | R44: =O44/$O$47 -> 0.03609463317 | S44: =SUMIFS(Tamaño!$S$2:$S$300000,Tamaño!$S$2:$S$300000,">"&50,Tamaño!$S$2:$S$300000,"<="&200) -> 542366 | U44: =COUNTIFS(Tamaño!$S$2:$S$300000,">=51",Tamaño!$S$2:$S$300000,"<=200",Tamaño!$R$2:$R$300000,Visor!$Q$8) -> 5677 | X44: =U44/$U$47 -> 0.03609463317 | Y44: =SUMIFS(Tamaño!$S$2:$S$300000,Tamaño!$S$2:$S$300000,">"&50,Tamaño!$S$2:$S$300000,"<="&200,Tamaño!$R$2:$R$300000,Visor!$Q$8) -> 542366
E45: Grandes | I45: =COUNTIFS(Tamaño!$G$2:$G$600000,">=201",Tamaño!$G$2:$G$600000,"<=500") -> 3674 | L45: =I45/$I$47 -> 0.007291027908 | M45: =SUMIFS(Tamaño!$G$2:$G$600000,Tamaño!$G$2:$G$600000,">"&200,Tamaño!$G$2:$G$600000,"<="&500) -> 1117236 | O45: =COUNTIFS(Tamaño!$S$2:$S$300000,">=201",Tamaño!$S$2:$S$300000,"<=500") -> 1234 | R45: =O45/$O$47 -> 0.007845830075 | S45: =SUMIFS(Tamaño!$S$2:$S$300000,Tamaño!$S$2:$S$300000,">"&200,Tamaño!$S$2:$S$300000,"<="&500) -> 372585 | U45: =COUNTIFS(Tamaño!$S$2:$S$300000,">=201",Tamaño!$S$2:$S$300000,"<=500",Tamaño!$R$2:$R$300000,Visor!$Q$8) -> 1234 | X45: =U45/$U$47 -> 0.007845830075 | Y45: =SUMIFS(Tamaño!$S$2:$S$300000,Tamaño!$S$2:$S$300000,">"&200,Tamaño!$S$2:$S$300000,"<="&500,Tamaño!$R$2:$R$300000,Visor!$Q$8) -> 372585
E46: Muy Grandes | I46: =COUNTIFS(Tamaño!$G$2:$G$600000,">=501") -> 2035 | L46: =I46/$I$47 -> 0.004038443602 | M46: =SUMIFS(Tamaño!$G$2:$G$600000,Tamaño!$G$2:$G$600000,">"&500) -> 3210086 | O46: =COUNTIFS(Tamaño!$S$2:$S$300000,">=501") -> 853 | R46: =O46/$O$47 -> 0.005423414144 | S46: =SUMIFS(Tamaño!$S$2:$S$300000,Tamaño!$S$2:$S$300000,">"&500) -> 1534467 | U46: =COUNTIFS(Tamaño!$S$2:$S$300000,">=501",Tamaño!$R$2:$R$300000,Visor!$Q$8) -> 853 | X46: =U46/$U$47 -> 0.005423414144 | Y46: =SUMIFS(Tamaño!$S$2:$S$300000,Tamaño!$S$2:$S$300000,">"&500,Tamaño!$R$2:$R$300000,Visor!$Q$8) -> 1534467
E47: Total | I47: =SUM(I42:K46) -> 503907 | L47: =SUM(L42:L46) -> 1 | M47: =SUM(M42:N46) -> 8810997 | O47: =SUM(O42:Q46) -> 157281 | R47: =SUM(R42:R46) -> 1 | S47: =SUM(S42:T46) -> 3255983 | U47: =SUM(U42:W46) -> 157281 | X47: =SUM(X42:X46) -> 1 | Y47: =SUM(Y42:Z46) -> 3255983
C49: *Ubicación basada en la ubicación de los aportantes
K51: =J3 -> Informe Mensual de las cotizaciones | AB51: Pg. 2
K53: =J5 -> Fecha de corte: 15 de Abr de 2022
L55: Departamento | Q55: =Q7 -> BOGOTÁ, D.C.
L56: Municipio | Q56: =Q8 -> BOGOTÁ, D.C.
C57: Resumen por actividades económicas aportantes del sector privado
C59: Actividades económicas | K59: =PROPER(Q7) -> Bogotá, D.C. | S59: =PROPER(Q56) -> Bogotá, D.C.
K60: Apt.Privados | N60: % | O60: Empleados | R60: % | S60: Apt.Privados | V60: % | W60: Empleados | Z60: %
B61: =IF(C61="Total",1,0) -> 0 | C61: =IF(Tamaño!$AP2="",Total,Tamaño!$AP2) -> Act. profecionales cientificas y tecnicas | K61: =Tamaño!AQ2 -> 45365 | N61: =K61/Tamaño!$AQ$24 -> 0.288432805 | O61: =Tamaño!AR2 -> 660142 | R61: =O61/Tamaño!$AR$24 -> 0.2027473731 | S61: =Tamaño!AS2 -> 45365 | V61: =S61/Tamaño!$AS$24 -> 0.288432805 | W61: =Tamaño!AT2 -> 660142 | Z61: =W61/Tamaño!$AT$24 -> 0.2027473731
B62: =IF(C62="Total",1,0) -> 0 | C62: =IF(C61="Total","",IF(Tamaño!$AQ3=0,"Total",Tamaño!$AP3)) -> Comercio y reparacion de vehiculos | K62: =IF(C62="","",IF(C62="Total",K61,Tamaño!$AQ3)) -> 23903 | N62: =IF(C62="Total","",K62/Tamaño!$AQ$24) -> 0.1519763989 | O62: =IF(C62="","",IF(C62="Total",O61,Tamaño!$AR3)) -> 343176 | R62: =IF(C62="Total","",O62/Tamaño!$AR$24) -> 0.1053985847 | S62: =IF(C62="","",IF(C62="Total",SUM($S$61:$U61),Tamaño!$AS3)) -> 23903 | V62: =IF(OR(C61="",C61="Total"),"",IF(C62="Total","",S62/Tamaño!$AS$24)) -> 0.1519763989 | W62: =IF(C62="","",IF(C62="Total",SUM($W$61:$W61),Tamaño!$AT3)) -> 343176 | Z62: =IF(OR(C61="Total",C61=""),"",IF(C62="Total","",W62/Tamaño!$AT$24)) -> 0.1053985847
B63: =IF(C63="Total",1,0) -> 0 | C63: =IF(C62="Total","",IF(Tamaño!$AQ4=0,"Total",Tamaño!$AP4)) -> Industrias manufactureras | K63: =IF(C63="","",IF(C63="Total",SUM(K61:M62),Tamaño!$AQ4)) -> 13630 | N63: =IF(N62="","",IF(C63="Total","",K63/Tamaño!$AQ$24)) -> 0.08666018146 | O63: =IF(C63="","",IF(C63="Total",SUM($O$61:$Q62),Tamaño!$AR4)) -> 261235 | R63: =IF(N62="","",IF(C63="Total","",O63/Tamaño!$AR$24)) -> 0.08023229851 | S63: =IF(C63="","",IF(C63="Total",SUM($S$61:$U62),Tamaño!$AS4)) -> 13630 | V63: =IF(OR(C62="",C62="Total"),"",IF(C63="Total","",S63/Tamaño!$AS$24)) -> 0.08666018146 | W63: =IF(C63="","",IF(C63="Total",SUM($W$61:$W62),Tamaño!$AT4)) -> 261235 | Z63: =IF(OR(C62="Total",C62=""),"",IF(C63="Total","",W63/Tamaño!$AT$24)) -> 0.08023229851
B64: =IF(C64="Total",1,0) -> 0 | C64: =IF(OR(C63="Total",C63=""),"",IF(Tamaño!$AQ5=0,"Total",Tamaño!$AP5)) -> Construcción | K64: =IF(C64="","",IF(C64="Total",SUM(K61:M63),Tamaño!$AQ5)) -> 10809 | N64: =IF(N63="","",IF(C64="Total","",K64/Tamaño!$AQ$24)) -> 0.0687241307 | O64: =IF(C64="","",IF(C64="Total",SUM($O$61:$Q63),Tamaño!$AR5)) -> 219945 | R64: =IF(N63="","",IF(C64="Total","",O64/Tamaño!$AR$24)) -> 0.06755102837 | S64: =IF(C64="","",IF(C64="Total",SUM($S$61:$U63),Tamaño!$AS5)) -> 10809 | V64: =IF(OR(C63="",C63="Total"),"",IF(C64="Total","",S64/Tamaño!$AS$24)) -> 0.0687241307 | W64: =IF(C64="","",IF(C64="Total",SUM($W$61:$W63),Tamaño!$AT5)) -> 219945 | Z64: =IF(OR(C63="Total",C63=""),"",IF(C64="Total","",W64/Tamaño!$AT$24)) -> 0.06755102837
B65: =IF(C65="Total",1,0) -> 0 | C65: =IF(OR(C64="Total",C64=""),"",IF(Tamaño!$AQ6=0,"Total",Tamaño!$AP6)) -> Actividades de servicios administrativos | K65: =IF(C65="","",IF(C65="Total",SUM(K61:M64),Tamaño!$AQ6)) -> 8146 | N65: =IF(N64="","",IF(C65="Total","",K65/Tamaño!$AQ$24)) -> 0.05179265137 | O65: =IF(C65="","",IF(C65="Total",SUM($O$61:$Q64),Tamaño!$AR6)) -> 636284 | R65: =IF(N64="","",IF(C65="Total","",O65/Tamaño!$AR$24)) -> 0.1954199392 | S65: =IF(C65="","",IF(C65="Total",SUM($S$61:$U64),Tamaño!$AS6)) -> 8146 | V65: =IF(OR(C64="",C64="Total"),"",IF(C65="Total","",S65/Tamaño!$AS$24)) -> 0.05179265137 | W65: =IF(C65="","",IF(C65="Total",SUM($W$61:$W64),Tamaño!$AT6)) -> 636284 | Z65: =IF(OR(C64="Total",C64=""),"",IF(C65="Total","",W65/Tamaño!$AT$24)) -> 0.1954199392
B66: =IF(C66="Total",1,0) -> 0 | C66: =IF(OR(C65="Total",C65=""),"",IF(Tamaño!$AQ7=0,"Total",Tamaño!$AP7)) -> Admin. pública y defensa; planes seg. social | K66: =IF(C66="","",IF(C66="Total",SUM(K61:M65),Tamaño!$AQ7)) -> 7524 | N66: =IF(N65="","",IF(C66="Total","",K66/Tamaño!$AQ$24)) -> 0.0478379461 | O66: =IF(C66="","",IF(C66="Total",SUM($O$61:$Q65),Tamaño!$AR7)) -> 78408 | R66: =IF(N65="","",IF(C66="Total","",O66/Tamaño!$AR$24)) -> 0.02408120681 | S66: =IF(C66="","",IF(C66="Total",SUM($S$61:$U65),Tamaño!$AS7)) -> 7524 | V66: =IF(OR(C65="",C65="Total"),"",IF(C66="Total","",S66/Tamaño!$AS$24)) -> 0.0478379461 | W66: =IF(C66="","",IF(C66="Total",SUM($W$61:$W65),Tamaño!$AT7)) -> 78408 | Z66: =IF(OR(C65="Total",C65=""),"",IF(C66="Total","",W66/Tamaño!$AT$24)) -> 0.02408120681
B67: =IF(C67="Total",1,0) -> 0 | C67: =IF(OR(C66="Total",C66=""),"",IF(Tamaño!$AQ8=0,"Total",Tamaño!$AP8)) -> Actividades de los hogares individuales | K67: =IF(C67="","",IF(C67="Total",SUM($K$61:$M66),Tamaño!$AQ8)) -> 7497 | N67: =IF(N66="","",IF(C67="Total","",K67/Tamaño!$AQ$24)) -> 0.04766627883 | O67: =IF(C67="","",IF(C67="Total",SUM($O$61:$Q66),Tamaño!$AR8)) -> 19733 | R67: =IF(N66="","",IF(C67="Total","",O67/Tamaño!$AR$24)) -> 0.006060535328 | S67: =IF(C67="","",IF(C67="Total",SUM($S$61:$U66),Tamaño!$AS8)) -> 7497 | V67: =IF(OR(C66="",C66="Total"),"",IF(C67="Total","",S67/Tamaño!$AS$24)) -> 0.04766627883 | W67: =IF(C67="","",IF(C67="Total",SUM($W$61:$W66),Tamaño!$AT8)) -> 19733 | Z67: =IF(OR(C66="Total",C66=""),"",IF(C67="Total","",W67/Tamaño!$AT$24)) -> 0.006060535328
B68: =IF(C68="Total",1,0) -> 0 | C68: =IF(OR(C67="Total",C67=""),"",IF(Tamaño!$AQ9=0,"Total",Tamaño!$AP9)) -> Información y comunicaciones | K68: =IF(C68="","",IF(C68="Total",SUM($K$61:$M67),Tamaño!$AQ9)) -> 6369 | N68: =IF(N67="","",IF(C68="Total","",K68/Tamaño!$AQ$24)) -> 0.04049440174 | O68: =IF(C68="","",IF(C68="Total",SUM($O$61:$Q67),Tamaño!$AR9)) -> 164369 | R68: =IF(N67="","",IF(C68="Total","",O68/Tamaño!$AR$24)) -> 0.05048214318 | S68: =IF(C68="","",IF(C68="Total",SUM($S$61:$U67),Tamaño!$AS9)) -> 6369 | V68: =IF(OR(C67="",C67="Total"),"",IF(C68="Total","",S68/Tamaño!$AS$24)) -> 0.04049440174 | W68: =IF(C68="","",IF(C68="Total",SUM($W$61:$W67),Tamaño!$AT9)) -> 164369 | Z68: =IF(OR(C67="Total",C67=""),"",IF(C68="Total","",W68/Tamaño!$AT$24)) -> 0.05048214318
B69: =IF(C69="Total",1,0) -> 0 | C69: =IF(OR(C68="Total",C68=""),"",IF(Tamaño!$AQ10=0,"Total",Tamaño!$AP10)) -> Otras actividades de servicios | K69: =IF(C69="","",IF(C69="Total",SUM($K$61:$M68),Tamaño!$AQ10)) -> 6297 | N69: =IF(N68="","",IF(C69="Total","",K69/Tamaño!$AQ$24)) -> 0.04003662235 | O69: =IF(C69="","",IF(C69="Total",SUM($O$61:$Q68),Tamaño!$AR10)) -> 143593 | R69: =IF(N68="","",IF(C69="Total","",O69/Tamaño!$AR$24)) -> 0.04410127448 | S69: =IF(C69="","",IF(C69="Total",SUM($S$61:$U68),Tamaño!$AS10)) -> 6297 | V69: =IF(OR(C68="",C68="Total"),"",IF(C69="Total","",S69/Tamaño!$AS$24)) -> 0.04003662235 | W69: =IF(C69="","",IF(C69="Total",SUM($W$61:$W68),Tamaño!$AT10)) -> 143593 | Z69: =IF(OR(C68="Total",C68=""),"",IF(C69="Total","",W69/Tamaño!$AT$24)) -> 0.04410127448
B70: =IF(C70="Total",1,0) -> 0 | C70: =IF(OR(C69="Total",C69=""),"",IF(Tamaño!$AQ11=0,"Total",Tamaño!$AP11)) -> Transporte y almacenamiento | K70: =IF(C70="","",IF(C70="Total",SUM($K$61:$M69),Tamaño!$AQ11)) -> 5239 | N70: =IF(N69="","",IF(C70="Total","",K70/Tamaño!$AQ$24)) -> 0.03330980856 | O70: =IF(C70="","",IF(C70="Total",SUM($O$61:$Q69),Tamaño!$AR11)) -> 169158 | R70: =IF(N69="","",IF(C70="Total","",O70/Tamaño!$AR$24)) -> 0.05195297396 | S70: =IF(C70="","",IF(C70="Total",SUM($S$61:$U69),Tamaño!$AS11)) -> 5239 | V70: =IF(OR(C69="",C69="Total"),"",IF(C70="Total","",S70/Tamaño!$AS$24)) -> 0.03330980856 | W70: =IF(C70="","",IF(C70="Total",SUM($W$61:$W69),Tamaño!$AT11)) -> 169158 | Z70: =IF(OR(C69="Total",C69=""),"",IF(C70="Total","",W70/Tamaño!$AT$24)) -> 0.05195297396
B71: =IF(C71="Total",1,0) -> 0 | C71: =IF(OR(C70="Total",C70=""),"",IF(Tamaño!$AQ12=0,"Total",Tamaño!$AP12)) -> Actividades inmobiliarias | K71: =IF(C71="","",IF(C71="Total",SUM($K$61:$M70),Tamaño!$AQ12)) -> 4759 | N71: =IF(N70="","",IF(C71="Total","",K71/Tamaño!$AQ$24)) -> 0.03025794597 | O71: =IF(C71="","",IF(C71="Total",SUM($O$61:$Q70),Tamaño!$AR12)) -> 26901 | R71: =IF(N70="","",IF(C71="Total","",O71/Tamaño!$AR$24)) -> 0.008262021024 | S71: =IF(C71="","",IF(C71="Total",SUM($S$61:$U70),Tamaño!$AS12)) -> 4759 | V71: =IF(OR(C70="",C70="Total"),"",IF(C71="Total","",S71/Tamaño!$AS$24)) -> 0.03025794597 | W71: =IF(C71="","",IF(C71="Total",SUM($W$61:$W70),Tamaño!$AT12)) -> 26901 | Z71: =IF(OR(C70="Total",C70=""),"",IF(C71="Total","",W71/Tamaño!$AT$24)) -> 0.008262021024
B72: =IF(C72="Total",1,0) -> 0 | C72: =IF(OR(C71="Total",C71=""),"",IF(Tamaño!$AQ13=0,"Total",Tamaño!$AP13)) -> Act. de atención de la salud humana | K72: =IF(C72="","",IF(C72="Total",SUM($K$61:$M71),Tamaño!$AQ13)) -> 4227 | N72: =IF(N71="","",IF(C72="Total","",K72/Tamaño!$AQ$24)) -> 0.02687546493 | O72: =IF(C72="","",IF(C72="Total",SUM($O$61:$Q71),Tamaño!$AR13)) -> 92224 | R72: =IF(N71="","",IF(C72="Total","",O72/Tamaño!$AR$24)) -> 0.02832447221 | S72: =IF(C72="","",IF(C72="Total",SUM($S$61:$U71),Tamaño!$AS13)) -> 4227 | V72: =IF(OR(C71="",C71="Total"),"",IF(C72="Total","",S72/Tamaño!$AS$24)) -> 0.02687546493 | W72: =IF(C72="","",IF(C72="Total",SUM($W$61:$W71),Tamaño!$AT13)) -> 92224 | Z72: =IF(OR(C71="Total",C71=""),"",IF(C72="Total","",W72/Tamaño!$AT$24)) -> 0.02832447221
B73: =IF(C73="Total",1,0) -> 0 | C73: =IF(OR(C72="Total",C72=""),"",IF(Tamaño!$AQ14=0,"Total",Tamaño!$AP14)) -> Actividades financieras y de seguros | K73: =IF(C73="","",IF(C73="Total",SUM($K$61:$M72),Tamaño!$AQ14)) -> 3081 | N73: =IF(N72="","",IF(C73="Total","",K73/Tamaño!$AQ$24)) -> 0.019589143 | O73: =IF(C73="","",IF(C73="Total",SUM($O$61:$Q72),Tamaño!$AR14)) -> 106143 | R73: =IF(N72="","",IF(C73="Total","",O73/Tamaño!$AR$24)) -> 0.03259937168 | S73: =IF(C73="","",IF(C73="Total",SUM($S$61:$U72),Tamaño!$AS14)) -> 3081 | V73: =IF(OR(C72="",C72="Total"),"",IF(C73="Total","",S73/Tamaño!$AS$24)) -> 0.019589143 | W73: =IF(C73="","",IF(C73="Total",SUM($W$61:$W72),Tamaño!$AT14)) -> 106143 | Z73: =IF(OR(C72="Total",C72=""),"",IF(C73="Total","",W73/Tamaño!$AT$24)) -> 0.03259937168
B74: =IF(C74="Total",1,0) -> 0 | C74: =IF(OR(C73="Total",C73=""),"",IF(Tamaño!$AQ15=0,"Total",Tamaño!$AP15)) -> Alojamiento y servicios de comida | K74: =IF(C74="","",IF(C74="Total",SUM($K$61:$M73),Tamaño!$AQ15)) -> 2936 | N74: =IF(N73="","",IF(C74="Total","",K74/Tamaño!$AQ$24)) -> 0.01866722617 | O74: =IF(C74="","",IF(C74="Total",SUM($O$61:$Q73),Tamaño!$AR15)) -> 82650 | R74: =IF(N73="","",IF(C74="Total","",O74/Tamaño!$AR$24)) -> 0.02538403917 | S74: =IF(C74="","",IF(C74="Total",SUM($S$61:$U73),Tamaño!$AS15)) -> 2936 | V74: =IF(OR(C73="",C73="Total"),"",IF(C74="Total","",S74/Tamaño!$AS$24)) -> 0.01866722617 | W74: =IF(C74="","",IF(C74="Total",SUM($W$61:$W73),Tamaño!$AT15)) -> 82650 | Z74: =IF(OR(C73="Total",C73=""),"",IF(C74="Total","",W74/Tamaño!$AT$24)) -> 0.02538403917
B75: =IF(C75="Total",1,0) -> 0 | C75: =IF(OR(C74="Total",C74=""),"",IF(Tamaño!$AQ16=0,"Total",Tamaño!$AP16)) -> Educación | K75: =IF(C75="","",IF(C75="Total",SUM($K$61:$M74),Tamaño!$AQ16)) -> 2891 | N75: =IF(N74="","",IF(C75="Total","",K75/Tamaño!$AQ$24)) -> 0.01838111406 | O75: =IF(C75="","",IF(C75="Total",SUM($O$61:$Q74),Tamaño!$AR16)) -> 111843 | R75: =IF(N74="","",IF(C75="Total","",O75/Tamaño!$AR$24)) -> 0.03434999507 | S75: =IF(C75="","",IF(C75="Total",SUM($S$61:$U74),Tamaño!$AS16)) -> 2891 | V75: =IF(OR(C74="",C74="Total"),"",IF(C75="Total","",S75/Tamaño!$AS$24)) -> 0.01838111406 | W75: =IF(C75="","",IF(C75="Total",SUM($W$61:$W74),Tamaño!$AT16)) -> 111843 | Z75: =IF(OR(C74="Total",C74=""),"",IF(C75="Total","",W75/Tamaño!$AT$24)) -> 0.03434999507
B76: =IF(C76="Total",1,0) -> 0 | C76: =IF(OR(C75="Total",C75=""),"",IF(Tamaño!$AQ17=0,"Total",Tamaño!$AP17)) -> Agricultura, ganadería, caza | K76: =IF(C76="","",IF(C76="Total",SUM($K$61:$M75),Tamaño!$AQ17)) -> 2207 | N76: =IF(N75="","",IF(C76="Total","",K76/Tamaño!$AQ$24)) -> 0.01403220987 | O76: =IF(C76="","",IF(C76="Total",SUM($O$61:$Q75),Tamaño!$AR17)) -> 56184 | R76: =IF(N75="","",IF(C76="Total","",O76/Tamaño!$AR$24)) -> 0.01725561835 | S76: =IF(C76="","",IF(C76="Total",SUM($S$61:$U75),Tamaño!$AS17)) -> 2207 | V76: =IF(OR(C75="",C75="Total"),"",IF(C76="Total","",S76/Tamaño!$AS$24)) -> 0.01403220987 | W76: =IF(C76="","",IF(C76="Total",SUM($W$61:$W75),Tamaño!$AT17)) -> 56184 | Z76: =IF(OR(C75="Total",C75=""),"",IF(C76="Total","",W76/Tamaño!$AT$24)) -> 0.01725561835
B77: =IF(C77="Total",1,0) -> 0 | C77: =IF(OR(C76="Total",C76=""),"",IF(Tamaño!$AQ18=0,"Total",Tamaño!$AP18)) -> Act artísticas y de entretenimiento | K77: =IF(C77="","",IF(C77="Total",SUM($K$61:$M76),Tamaño!$AQ18)) -> 1256 | N77: =IF(N76="","",IF(C77="Total","",K77/Tamaño!$AQ$24)) -> 0.00798570711 | O77: =IF(C77="","",IF(C77="Total",SUM($O$61:$Q76),Tamaño!$AR18)) -> 39440 | R77: =IF(N76="","",IF(C77="Total","",O77/Tamaño!$AR$24)) -> 0.01211308536 | S77: =IF(C77="","",IF(C77="Total",SUM($S$61:$U76),Tamaño!$AS18)) -> 1256 | V77: =IF(OR(C76="",C76="Total"),"",IF(C77="Total","",S77/Tamaño!$AS$24)) -> 0.00798570711 | W77: =IF(C77="","",IF(C77="Total",SUM($W$61:$W76),Tamaño!$AT18)) -> 39440 | Z77: =IF(OR(C76="Total",C76=""),"",IF(C77="Total","",W77/Tamaño!$AT$24)) -> 0.01211308536
B78: =IF(C78="Total",1,0) -> 0 | C78: =IF(OR(C77="Total",C77=""),"",IF(Tamaño!$AQ19=0,"Total",Tamaño!$AP19)) -> Distribución de agua; gestión de desechos | K78: =IF(C78="","",IF(C78="Total",SUM($K$61:$M77),Tamaño!$AQ19)) -> 472 | N78: =IF(N77="","",IF(C78="Total","",K78/Tamaño!$AQ$24)) -> 0.003000998213 | O78: =IF(C78="","",IF(C78="Total",SUM($O$61:$Q77),Tamaño!$AR19)) -> 12688 | R78: =IF(N77="","",IF(C78="Total","",O78/Tamaño!$AR$24)) -> 0.003896826243 | S78: =IF(C78="","",IF(C78="Total",SUM($S$61:$U77),Tamaño!$AS19)) -> 472 | V78: =IF(OR(C77="",C77="Total"),"",IF(C78="Total","",S78/Tamaño!$AS$24)) -> 0.003000998213 | W78: =IF(C78="","",IF(C78="Total",SUM($W$61:$W77),Tamaño!$AT19)) -> 12688 | Z78: =IF(OR(C77="Total",C77=""),"",IF(C78="Total","",W78/Tamaño!$AT$24)) -> 0.003896826243
B79: =IF(C79="Total",1,0) -> 0 | C79: =IF(OR(C78="Total",C78=""),"",IF(Tamaño!$AQ20=0,"Total",Tamaño!$AP20)) -> Explotación de minas y canteras | K79: =IF(C79="","",IF(C79="Total",SUM($K$61:$M78),Tamaño!$AQ20)) -> 425 | N79: =IF(N78="","",IF(C79="Total","",K79/Tamaño!$AQ$24)) -> 0.002702170001 | O79: =IF(C79="","",IF(C79="Total",SUM($O$61:$Q78),Tamaño!$AR20)) -> 25463 | R79: =IF(N78="","",IF(C79="Total","",O79/Tamaño!$AR$24)) -> 0.007820372527 | S79: =IF(C79="","",IF(C79="Total",SUM($S$61:$U78),Tamaño!$AS20)) -> 425 | V79: =IF(OR(C78="",C78="Total"),"",IF(C79="Total","",S79/Tamaño!$AS$24)) -> 0.002702170001 | W79: =IF(C79="","",IF(C79="Total",SUM($W$61:$W78),Tamaño!$AT20)) -> 25463 | Z79: =IF(OR(C78="Total",C78=""),"",IF(C79="Total","",W79/Tamaño!$AT$24)) -> 0.007820372527
B80: =IF(C80="Total",1,0) -> 0 | C80: =IF(OR(C79="Total",C79=""),"",IF(Tamaño!$AQ21=0,"Total",Tamaño!$AP21)) -> Suministro de electricidad, gas y vapor | K80: =IF(C80="","",IF(C80="Total",SUM($K$61:$M79),Tamaño!$AQ21)) -> 158 | N80: =IF(N79="","",IF(C80="Total","",K80/Tamaño!$AQ$24)) -> 0.001004571436 | O80: =IF(C80="","",IF(C80="Total",SUM($O$61:$Q79),Tamaño!$AR21)) -> 4182 | R80: =IF(N79="","",IF(C80="Total","",O80/Tamaño!$AR$24)) -> 0.00128440474 | S80: =IF(C80="","",IF(C80="Total",SUM($S$61:$U79),Tamaño!$AS21)) -> 158 | V80: =IF(OR(C79="",C79="Total"),"",IF(C80="Total","",S80/Tamaño!$AS$24)) -> 0.001004571436 | W80: =IF(C80="","",IF(C80="Total",SUM($W$61:$W79),Tamaño!$AT21)) -> 4182 | Z80: =IF(OR(C79="Total",C79=""),"",IF(C80="Total","",W80/Tamaño!$AT$24)) -> 0.00128440474
B81: =IF(C81="Total",1,0) -> 0 | C81: =IF(OR(C80="Total",C80=""),"",IF(Tamaño!$AQ22=0,"Total",Tamaño!$AP22)) -> Organizaciones y entidades extraterritoriales | K81: =IF(C81="","",IF(C81="Total",SUM($K$61:$M80),Tamaño!$AQ22)) -> 90 | N81: =IF(N80="","",IF(C81="Total","",K81/Tamaño!$AQ$24)) -> 0.0005722242356 | O81: =IF(C81="","",IF(C81="Total",SUM($O$61:$Q80),Tamaño!$AR22)) -> 2222 | R81: =IF(N80="","",IF(C81="Total","",O81/Tamaño!$AR$24)) -> 0.0006824359955 | S81: =IF(C81="","",IF(C81="Total",SUM($S$61:$U80),Tamaño!$AS22)) -> 90 | V81: =IF(OR(C80="",C80="Total"),"",IF(C81="Total","",S81/Tamaño!$AS$24)) -> 0.0005722242356 | W81: =IF(C81="","",IF(C81="Total",SUM($W$61:$W80),Tamaño!$AT22)) -> 2222 | Z81: =IF(OR(C80="Total",C80=""),"",IF(C81="Total","",W81/Tamaño!$AT$24)) -> 0.0006824359955
B82: =IF(C82="Total",1,0) -> 1 | C82: =IF(OR(C81="Total",C81=""),"",IF(Tamaño!$AQ23=0,"Total",Tamaño!$AP23)) -> Total | K82: =IF(C82="","",IF(C82="Total",SUM($K$61:$M81),Tamaño!$AQ23)) -> 157281 | N82: =IF(N81="","",IF(C82="Total","",K82/Tamaño!$AQ$24)) ->  | O82: =IF(C82="","",IF(C82="Total",SUM($O$61:$Q81),Tamaño!$AR23)) -> 3255983 | R82: =IF(N81="","",IF(C82="Total","",O82/Tamaño!$AR$24)) ->  | S82: =IF(C82="","",IF(C82="Total",SUM($S$61:$U81),Tamaño!$AS23)) -> 157281 | V82: =IF(OR(C81="",C81="Total"),"",IF(C82="Total","",S82/Tamaño!$AS$24)) ->  | W82: =IF(C82="","",IF(C82="Total",SUM($W$61:$W81),Tamaño!$AT23)) -> 3255983 | Z82: =IF(OR(C81="Total",C81=""),"",IF(C82="Total","",W82/Tamaño!$AT$24)) -> 
C83: *Ubicación basada en la ubicación de los aportantes
D85: Resumen por actividades económicas de los independientes
F87: Actividades económicas | N87: =PROPER(Q55) -> Bogotá, D.C. | R87: % | T87: =PROPER(Q8) -> Bogotá, D.C. | X87: %
F89: =IF(Tamaño!$BT2="",Total,Tamaño!$BT2) -> Act. profecionales cientificas y tecnicas | N89: =Tamaño!BU2 -> 195960 | R89: =N89/Tamaño!$BU$25 -> 0.2941931532 | T89: =Tamaño!BV2 -> 195960 | X89: =T89/Tamaño!$BV$25 -> 0.2941931532
F90: =IF(F89="Total","",IF(Tamaño!$BU3=0,"Total",Tamaño!$BT3)) -> Actividades de servicios administrativos | N90: =IF(F90="","",IF(F90="Total",N89,Tamaño!$BU3)) -> 96870 | R90: =IF(F90="Total","",N90/Tamaño!$BU$25) -> 0.1454301426 | T90: =IF(F90="","",IF(F90="Total",SUM($T$89:$T89),Tamaño!$BV3)) -> 96870 | X90: =IF(F90="Total","",T90/Tamaño!$BV$25) -> 0.1454301426
F91: =IF(F90="Total","",IF(Tamaño!$BU4=0,"Total",Tamaño!$BT4)) -> Comercio y reparacion de vehiculos | N91: =IF(F91="","",IF(F91="Total",SUM($N$89:$N90),Tamaño!$BU4)) -> 51367 | R91: =IF(R90="","",IF(F91="Total","",N91/Tamaño!$BU$25)) -> 0.07711685906 | T91: =IF(F91="","",IF(F91="Total",SUM($T$89:$T90),Tamaño!$BV4)) -> 51367 | X91: =IF(X90="","",IF(F91="Total","",T91/Tamaño!$BV$25)) -> 0.07711685906
F92: =IF(OR(F91="Total",F91=""),"",IF(Tamaño!$BU5=0,"Total",Tamaño!$BT5)) -> Act. de atención de la salud humana | N92: =IF(F92="","",IF(F92="Total",SUM($N$89:$N91),Tamaño!$BU5)) -> 50302 | R92: =IF(R91="","",IF(F92="Total","",N92/Tamaño!$BU$25)) -> 0.07551798322 | T92: =IF(F92="","",IF(F92="Total",SUM($T$89:$T91),Tamaño!$BV5)) -> 50302 | X92: =IF(X91="","",IF(F92="Total","",T92/Tamaño!$BV$25)) -> 0.07551798322
F93: =IF(OR(F92="Total",F92=""),"",IF(Tamaño!$BU6=0,"Total",Tamaño!$BT6)) -> Educación | N93: =IF(F93="","",IF(F93="Total",SUM($N$89:$N92),Tamaño!$BU6)) -> 44838 | R93: =IF(R92="","",IF(F93="Total","",N93/Tamaño!$BU$25)) -> 0.06731492449 | T93: =IF(F93="","",IF(F93="Total",SUM($T$89:$T92),Tamaño!$BV6)) -> 44838 | X93: =IF(X92="","",IF(F93="Total","",T93/Tamaño!$BV$25)) -> 0.06731492449
F94: =IF(OR(F93="Total",F93=""),"",IF(Tamaño!$BU7=0,"Total",Tamaño!$BT7)) -> Otras actividades de servicios | N94: =IF(F94="","",IF(F94="Total",SUM($N$89:$N93),Tamaño!$BU7)) -> 41800 | R94: =IF(R93="","",IF(F94="Total","",N94/Tamaño!$BU$25)) -> 0.06275399982 | T94: =IF(F94="","",IF(F94="Total",SUM($T$89:$T93),Tamaño!$BV7)) -> 41800 | X94: =IF(X93="","",IF(F94="Total","",T94/Tamaño!$BV$25)) -> 0.06275399982
F95: =IF(OR(F94="Total",F94=""),"",IF(Tamaño!$BU8=0,"Total",Tamaño!$BT8)) -> Transporte y almacenamiento | N95: =IF(F95="","",IF(F95="Total",SUM($N$89:$N94),Tamaño!$BU8)) -> 38650 | R95: =IF(R94="","",IF(F95="Total","",N95/Tamaño!$BU$25)) -> 0.05802493045 | T95: =IF(F95="","",IF(F95="Total",SUM($T$89:$T94),Tamaño!$BV8)) -> 38650 | X95: =IF(X94="","",IF(F95="Total","",T95/Tamaño!$BV$25)) -> 0.05802493045
F96: =IF(OR(F95="Total",F95=""),"",IF(Tamaño!$BU9=0,"Total",Tamaño!$BT9)) -> Industrias manufactureras | N96: =IF(F96="","",IF(F96="Total",SUM($N$89:$N95),Tamaño!$BU9)) -> 21102 | R96: =IF(R95="","",IF(F96="Total","",N96/Tamaño!$BU$25)) -> 0.03168026086 | T96: =IF(F96="","",IF(F96="Total",SUM($T$89:$T95),Tamaño!$BV9)) -> 21102 | X96: =IF(X95="","",IF(F96="Total","",T96/Tamaño!$BV$25)) -> 0.03168026086
F97: =IF(OR(F96="Total",F96=""),"",IF(Tamaño!$BU10=0,"Total",Tamaño!$BT10)) -> Actividades inmobiliarias | N97: =IF(F97="","",IF(F97="Total",SUM($N$89:$N96),Tamaño!$BU10)) -> 20573 | R97: =IF(R96="","",IF(F97="Total","",N97/Tamaño!$BU$25)) -> 0.03088607747 | T97: =IF(F97="","",IF(F97="Total",SUM($T$89:$T96),Tamaño!$BV10)) -> 20573 | X97: =IF(X96="","",IF(F97="Total","",T97/Tamaño!$BV$25)) -> 0.03088607747
F98: =IF(OR(F97="Total",F97=""),"",IF(Tamaño!$BU11=0,"Total",Tamaño!$BT11)) -> Información y comunicaciones | N98: =IF(F98="","",IF(F98="Total",SUM($N$89:$N97),Tamaño!$BU11)) -> 17720 | R98: =IF(R97="","",IF(F98="Total","",N98/Tamaño!$BU$25)) -> 0.02660289179 | T98: =IF(F98="","",IF(F98="Total",SUM($T$89:$T97),Tamaño!$BV11)) -> 17720 | X98: =IF(X97="","",IF(F98="Total","",T98/Tamaño!$BV$25)) -> 0.02660289179
F99: =IF(OR(F98="Total",F98=""),"",IF(Tamaño!$BU12=0,"Total",Tamaño!$BT12)) -> Admin. pública y defensa; planes seg. social | N99: =IF(F99="","",IF(F99="Total",SUM($N$89:$N98),Tamaño!$BU12)) -> 17594 | R99: =IF(R98="","",IF(F99="Total","",N99/Tamaño!$BU$25)) -> 0.02641372901 | T99: =IF(F99="","",IF(F99="Total",SUM($T$89:$T98),Tamaño!$BV12)) -> 17594 | X99: =IF(X98="","",IF(F99="Total","",T99/Tamaño!$BV$25)) -> 0.02641372901
F100: =IF(OR(F99="Total",F99=""),"",IF(Tamaño!$BU13=0,"Total",Tamaño!$BT13)) -> Construcción | N100: =IF(F100="","",IF(F100="Total",SUM($N$89:$N99),Tamaño!$BU13)) -> 16328 | R100: =IF(R99="","",IF(F100="Total","",N100/Tamaño!$BU$25)) -> 0.02451309352 | T100: =IF(F100="","",IF(F100="Total",SUM($T$89:$T99),Tamaño!$BV13)) -> 16328 | X100: =IF(X99="","",IF(F100="Total","",T100/Tamaño!$BV$25)) -> 0.02451309352
F101: =IF(OR(F100="Total",F100=""),"",IF(Tamaño!$BU14=0,"Total",Tamaño!$BT14)) -> Act artísticas y de entretenimiento | N101: =IF(F101="","",IF(F101="Total",SUM($N$89:$N100),Tamaño!$BU14)) -> 12477 | R101: =IF(R100="","",IF(F101="Total","",N101/Tamaño!$BU$25)) -> 0.01873161856 | T101: =IF(F101="","",IF(F101="Total",SUM($T$89:$T100),Tamaño!$BV14)) -> 12477 | X101: =IF(X100="","",IF(F101="Total","",T101/Tamaño!$BV$25)) -> 0.01873161856
F102: =IF(OR(F101="Total",F101=""),"",IF(Tamaño!$BU15=0,"Total",Tamaño!$BT15)) -> Otras | N102: =IF(F102="","",IF(F102="Total",SUM($N$89:$N101),Tamaño!$BU15)) -> 11969 | R102: =IF(R101="","",IF(F102="Total","",N102/Tamaño!$BU$25)) -> 0.01796896229 | T102: =IF(F102="","",IF(F102="Total",SUM($T$89:$T101),Tamaño!$BV15)) -> 11969 | X102: =IF(X101="","",IF(F102="Total","",T102/Tamaño!$BV$25)) -> 0.01796896229
F103: =IF(OR(F102="Total",F102=""),"",IF(Tamaño!$BU16=0,"Total",Tamaño!$BT16)) -> Alojamiento y servicios de comida | N103: =IF(F103="","",IF(F103="Total",SUM($N$89:$N102),Tamaño!$BU16)) -> 10518 | R103: =IF(R102="","",IF(F103="Total","",N103/Tamaño!$BU$25)) -> 0.0157905878 | T103: =IF(F103="","",IF(F103="Total",SUM($T$89:$T102),Tamaño!$BV16)) -> 10518 | X103: =IF(X102="","",IF(F103="Total","",T103/Tamaño!$BV$25)) -> 0.0157905878
F104: =IF(OR(F103="Total",F103=""),"",IF(Tamaño!$BU17=0,"Total",Tamaño!$BT17)) -> Agricultura, ganadería, caza | N104: =IF(F104="","",IF(F104="Total",SUM($N$89:$N103),Tamaño!$BU17)) -> 6498 | R104: =IF(R103="","",IF(F104="Total","",N104/Tamaño!$BU$25)) -> 0.009755394517 | T104: =IF(F104="","",IF(F104="Total",SUM($T$89:$T103),Tamaño!$BV17)) -> 6498 | X104: =IF(X103="","",IF(F104="Total","",T104/Tamaño!$BV$25)) -> 0.009755394517
F105: =IF(OR(F104="Total",F104=""),"",IF(Tamaño!$BU18=0,"Total",Tamaño!$BT18)) -> Actividades financieras y de seguros | N105: =IF(F105="","",IF(F105="Total",SUM($N$89:$N104),Tamaño!$BU18)) -> 4841 | R105: =IF(R104="","",IF(F105="Total","",N105/Tamaño!$BU$25)) -> 0.007267753902 | T105: =IF(F105="","",IF(F105="Total",SUM($T$89:$T104),Tamaño!$BV18)) -> 4841 | X105: =IF(X104="","",IF(F105="Total","",T105/Tamaño!$BV$25)) -> 0.007267753902
F106: =IF(OR(F105="Total",F105=""),"",IF(Tamaño!$BU19=0,"Total",Tamaño!$BT19)) -> Actividades de los hogares individuales | N106: =IF(F106="","",IF(F106="Total",SUM($N$89:$N105),Tamaño!$BU19)) -> 4549 | R106: =IF(R105="","",IF(F106="Total","",N106/Tamaño!$BU$25)) -> 0.006829376679 | T106: =IF(F106="","",IF(F106="Total",SUM($T$89:$T105),Tamaño!$BV19)) -> 4549 | X106: =IF(X105="","",IF(F106="Total","",T106/Tamaño!$BV$25)) -> 0.006829376679
F107: =IF(OR(F106="Total",F106=""),"",IF(Tamaño!$BU20=0,"Total",Tamaño!$BT20)) -> Distribución de agua; gestión de desechos | N107: =IF(F107="","",IF(F107="Total",SUM($N$89:$N106),Tamaño!$BU20)) -> 1324 | R107: =IF(R106="","",IF(F107="Total","",N107/Tamaño!$BU$25)) -> 0.001987710425 | T107: =IF(F107="","",IF(F107="Total",SUM($T$89:$T106),Tamaño!$BV20)) -> 1324 | X107: =IF(X106="","",IF(F107="Total","",T107/Tamaño!$BV$25)) -> 0.001987710425
F108: =IF(OR(F107="Total",F107=""),"",IF(Tamaño!$BU21=0,"Total",Tamaño!$BT21)) -> Explotación de minas y canteras | N108: =IF(F108="","",IF(F108="Total",SUM($N$89:$N107),Tamaño!$BU21)) -> 535 | R108: =IF(R107="","",IF(F108="Total","",N108/Tamaño!$BU$25)) -> 0.000803191146 | T108: =IF(F108="","",IF(F108="Total",SUM($T$89:$T107),Tamaño!$BV21)) -> 535 | X108: =IF(X107="","",IF(F108="Total","",T108/Tamaño!$BV$25)) -> 0.000803191146
F109: =IF(OR(F108="Total",F108=""),"",IF(Tamaño!$BU22=0,"Total",Tamaño!$BT22)) -> Organizaciones y entidades extraterritoriales | N109: =IF(F109="","",IF(F109="Total",SUM($N$89:$N108),Tamaño!$BU22)) -> 212 | R109: =IF(R108="","",IF(F109="Total","",N109/Tamaño!$BU$25)) -> 0.0003182738747 | T109: =IF(F109="","",IF(F109="Total",SUM($T$89:$T108),Tamaño!$BV22)) -> 212 | X109: =IF(X108="","",IF(F109="Total","",T109/Tamaño!$BV$25)) -> 0.0003182738747
F110: =IF(OR(F109="Total",F109=""),"",IF(Tamaño!$BU23=0,"Total",Tamaño!$BT23)) -> Suministro de electricidad, gas y vapor | N110: =IF(F110="","",IF(F110="Total",SUM($N$89:$N109),Tamaño!$BU23)) -> 66 | R110: =IF(R109="","",IF(F110="Total","",N110/Tamaño!$BU$25)) -> 9.908526287e-05 | T110: =IF(F110="","",IF(F110="Total",SUM($T$89:$T109),Tamaño!$BV23)) -> 66 | X110: =IF(X109="","",IF(F110="Total","",T110/Tamaño!$BV$25)) -> 9.908526287e-05
F111: =IF(OR(F110="Total",F110=""),"",IF(Tamaño!$BU24=0,"Total",Tamaño!$BT24)) -> Total | N111: =IF(F111="","",IF(F111="Total",SUM($N$89:$N110),Tamaño!$BU24)) -> 666093 | R111: =IF(R110="","",IF(F111="Total","",N111/Tamaño!$BU$25)) ->  | T111: =IF(F111="","",IF(F111="Total",SUM($T$89:$T110),Tamaño!$BV24)) -> 666093 | X111: =IF(X110="","",IF(F111="Total","",T111/Tamaño!$BV$25)) -> 
C112: *Ubicación basada en la ubicación de los cotizantes
K114: =K51 -> Informe Mensual de las cotizaciones | AB114: Pg. 2
K116: =K53 -> Fecha de corte: 15 de Abr de 2022
L118: Departamento | Q118: =Q55 -> BOGOTÁ, D.C.
L119: Municipio | Q119: =Q56 -> BOGOTÁ, D.C.
D120: ="Resumen por edad y sexo para "&PROPER(Q7) -> Resumen por edad y sexo para Bogotá, D.C.
J122: =PROPER(Q7) -> Bogotá, D.C.
F123: Edad | J123: Dependiente Privados | S123: Independientes
J124: Hombres | M124: Mujeres | P124: No Identificado | S124: Hombres | V124: Mujeres | Y124: No Identificado
F125: 15-20 | J125: =SUMIFS('Edad y sexo'!$F$2:$F$5000,'Edad y sexo'!$B$2:$B$5000,Visor!$Q$7,'Edad y sexo'!$C$2:$C$5000,"M",'Edad y sexo'!$D$2:$D$5000,Visor!$F125,'Edad y sexo'!$E$2:$E$5000,"Dep_sec_priv") -> 14774 | M125: =SUMIFS('Edad y sexo'!$F$2:$F$5000,'Edad y sexo'!$B$2:$B$5000,Visor!$Q$7,'Edad y sexo'!$C$2:$C$5000,"F",'Edad y sexo'!$D$2:$D$5000,Visor!$F125,'Edad y sexo'!$E$2:$E$5000,"Dep_sec_priv") -> 12076 | P125: =SUMIFS('Edad y sexo'!$F$2:$F$5000,'Edad y sexo'!$B$2:$B$5000,Visor!$Q$7,'Edad y sexo'!$C$2:$C$5000,"NI",'Edad y sexo'!$D$2:$D$5000,Visor!$F125,'Edad y sexo'!$E$2:$E$5000,"Dep_sec_priv") -> 0 | S125: =SUMIFS('Edad y sexo'!$F$2:$F$5000,'Edad y sexo'!$B$2:$B$5000,Visor!$Q$7,'Edad y sexo'!$C$2:$C$5000,"M",'Edad y sexo'!$D$2:$D$5000,Visor!$F125,'Edad y sexo'!$E$2:$E$5000,"Independiente") -> 789 | V125: =SUMIFS('Edad y sexo'!$F$2:$F$5000,'Edad y sexo'!$B$2:$B$5000,Visor!$Q$7,'Edad y sexo'!$C$2:$C$5000,"F",'Edad y sexo'!$D$2:$D$5000,Visor!$F125,'Edad y sexo'!$E$2:$E$5000,"Independiente") -> 564 | Y125: =SUMIFS('Edad y sexo'!$F$2:$F$5000,'Edad y sexo'!$B$2:$B$5000,Visor!$Q$7,'Edad y sexo'!$C$2:$C$5000,"NI",'Edad y sexo'!$D$2:$D$5000,Visor!$F125,'Edad y sexo'!$E$2:$E$5000,"Independiente") -> 0
F126: 20-25 | J126: =SUMIFS('Edad y sexo'!$F$2:$F$5000,'Edad y sexo'!$B$2:$B$5000,Visor!$Q$7,'Edad y sexo'!$C$2:$C$5000,"M",'Edad y sexo'!$D$2:$D$5000,Visor!$F126,'Edad y sexo'!$E$2:$E$5000,"Dep_sec_priv") -> 167220 | M126: =SUMIFS('Edad y sexo'!$F$2:$F$5000,'Edad y sexo'!$B$2:$B$5000,Visor!$Q$7,'Edad y sexo'!$C$2:$C$5000,"F",'Edad y sexo'!$D$2:$D$5000,Visor!$F126,'Edad y sexo'!$E$2:$E$5000,"Dep_sec_priv") -> 144677 | P126: =SUMIFS('Edad y sexo'!$F$2:$F$5000,'Edad y sexo'!$B$2:$B$5000,Visor!$Q$7,'Edad y sexo'!$C$2:$C$5000,"NI",'Edad y sexo'!$D$2:$D$5000,Visor!$F126,'Edad y sexo'!$E$2:$E$5000,"Dep_sec_priv") -> 0 | S126: =SUMIFS('Edad y sexo'!$F$2:$F$5000,'Edad y sexo'!$B$2:$B$5000,Visor!$Q$7,'Edad y sexo'!$C$2:$C$5000,"M",'Edad y sexo'!$D$2:$D$5000,Visor!$F126,'Edad y sexo'!$E$2:$E$5000,"Independiente") -> 10064 | V126: =SUMIFS('Edad y sexo'!$F$2:$F$5000,'Edad y sexo'!$B$2:$B$5000,Visor!$Q$7,'Edad y sexo'!$C$2:$C$5000,"F",'Edad y sexo'!$D$2:$D$5000,Visor!$F126,'Edad y sexo'!$E$2:$E$5000,"Independiente") -> 10609 | Y126: =SUMIFS('Edad y sexo'!$F$2:$F$5000,'Edad y sexo'!$B$2:$B$5000,Visor!$Q$7,'Edad y sexo'!$C$2:$C$5000,"NI",'Edad y sexo'!$D$2:$D$5000,Visor!$F126,'Edad y sexo'!$E$2:$E$5000,"Independiente") -> 0
F127: 25-30 | J127: =SUMIFS('Edad y sexo'!$F$2:$F$5000,'Edad y sexo'!$B$2:$B$5000,Visor!$Q$7,'Edad y sexo'!$C$2:$C$5000,"M",'Edad y sexo'!$D$2:$D$5000,Visor!$F127,'Edad y sexo'!$E$2:$E$5000,"Dep_sec_priv") -> 259924 | M127: =SUMIFS('Edad y sexo'!$F$2:$F$5000,'Edad y sexo'!$B$2:$B$5000,Visor!$Q$7,'Edad y sexo'!$C$2:$C$5000,"F",'Edad y sexo'!$D$2:$D$5000,Visor!$F127,'Edad y sexo'!$E$2:$E$5000,"Dep_sec_priv") -> 238178 | P127: =SUMIFS('Edad y sexo'!$F$2:$F$5000,'Edad y sexo'!$B$2:$B$5000,Visor!$Q$7,'Edad y sexo'!$C$2:$C$5000,"NI",'Edad y sexo'!$D$2:$D$5000,Visor!$F127,'Edad y sexo'!$E$2:$E$5000,"Dep_sec_priv") -> 0 | S127: =SUMIFS('Edad y sexo'!$F$2:$F$5000,'Edad y sexo'!$B$2:$B$5000,Visor!$Q$7,'Edad y sexo'!$C$2:$C$5000,"M",'Edad y sexo'!$D$2:$D$5000,Visor!$F127,'Edad y sexo'!$E$2:$E$5000,"Independiente") -> 26934 | V127: =SUMIFS('Edad y sexo'!$F$2:$F$5000,'Edad y sexo'!$B$2:$B$5000,Visor!$Q$7,'Edad y sexo'!$C$2:$C$5000,"F",'Edad y sexo'!$D$2:$D$5000,Visor!$F127,'Edad y sexo'!$E$2:$E$5000,"Independiente") -> 31015 | Y127: =SUMIFS('Edad y sexo'!$F$2:$F$5000,'Edad y sexo'!$B$2:$B$5000,Visor!$Q$7,'Edad y sexo'!$C$2:$C$5000,"NI",'Edad y sexo'!$D$2:$D$5000,Visor!$F127,'Edad y sexo'!$E$2:$E$5000,"Independiente") -> 0
F128: 30-35 | J128: =SUMIFS('Edad y sexo'!$F$2:$F$5000,'Edad y sexo'!$B$2:$B$5000,Visor!$Q$7,'Edad y sexo'!$C$2:$C$5000,"M",'Edad y sexo'!$D$2:$D$5000,Visor!$F128,'Edad y sexo'!$E$2:$E$5000,"Dep_sec_priv") -> 240428 | M128: =SUMIFS('Edad y sexo'!$F$2:$F$5000,'Edad y sexo'!$B$2:$B$5000,Visor!$Q$7,'Edad y sexo'!$C$2:$C$5000,"F",'Edad y sexo'!$D$2:$D$5000,Visor!$F128,'Edad y sexo'!$E$2:$E$5000,"Dep_sec_priv") -> 218677 | P128: =SUMIFS('Edad y sexo'!$F$2:$F$5000,'Edad y sexo'!$B$2:$B$5000,Visor!$Q$7,'Edad y sexo'!$C$2:$C$5000,"NI",'Edad y sexo'!$D$2:$D$5000,Visor!$F128,'Edad y sexo'!$E$2:$E$5000,"Dep_sec_priv") -> 0 | S128: =SUMIFS('Edad y sexo'!$F$2:$F$5000,'Edad y sexo'!$B$2:$B$5000,Visor!$Q$7,'Edad y sexo'!$C$2:$C$5000,"M",'Edad y sexo'!$D$2:$D$5000,Visor!$F128,'Edad y sexo'!$E$2:$E$5000,"Independiente") -> 33324 | V128: =SUMIFS('Edad y sexo'!$F$2:$F$5000,'Edad y sexo'!$B$2:$B$5000,Visor!$Q$7,'Edad y sexo'!$C$2:$C$5000,"F",'Edad y sexo'!$D$2:$D$5000,Visor!$F128,'Edad y sexo'!$E$2:$E$5000,"Independiente") -> 36272 | Y128: =SUMIFS('Edad y sexo'!$F$2:$F$5000,'Edad y sexo'!$B$2:$B$5000,Visor!$Q$7,'Edad y sexo'!$C$2:$C$5000,"NI",'Edad y sexo'!$D$2:$D$5000,Visor!$F128,'Edad y sexo'!$E$2:$E$5000,"Independiente") -> 0
F129: 35-40 | J129: =SUMIFS('Edad y sexo'!$F$2:$F$5000,'Edad y sexo'!$B$2:$B$5000,Visor!$Q$7,'Edad y sexo'!$C$2:$C$5000,"M",'Edad y sexo'!$D$2:$D$5000,Visor!$F129,'Edad y sexo'!$E$2:$E$5000,"Dep_sec_priv") -> 201489 | M129: =SUMIFS('Edad y sexo'!$F$2:$F$5000,'Edad y sexo'!$B$2:$B$5000,Visor!$Q$7,'Edad y sexo'!$C$2:$C$5000,"F",'Edad y sexo'!$D$2:$D$5000,Visor!$F129,'Edad y sexo'!$E$2:$E$5000,"Dep_sec_priv") -> 184493 | P129: =SUMIFS('Edad y sexo'!$F$2:$F$5000,'Edad y sexo'!$B$2:$B$5000,Visor!$Q$7,'Edad y sexo'!$C$2:$C$5000,"NI",'Edad y sexo'!$D$2:$D$5000,Visor!$F129,'Edad y sexo'!$E$2:$E$5000,"Dep_sec_priv") -> 0 | S129: =SUMIFS('Edad y sexo'!$F$2:$F$5000,'Edad y sexo'!$B$2:$B$5000,Visor!$Q$7,'Edad y sexo'!$C$2:$C$5000,"M",'Edad y sexo'!$D$2:$D$5000,Visor!$F129,'Edad y sexo'!$E$2:$E$5000,"Independiente") -> 35141 | V129: =SUMIFS('Edad y sexo'!$F$2:$F$5000,'Edad y sexo'!$B$2:$B$5000,Visor!$Q$7,'Edad y sexo'!$C$2:$C$5000,"F",'Edad y sexo'!$D$2:$D$5000,Visor!$F129,'Edad y sexo'!$E$2:$E$5000,"Independiente") -> 36440 | Y129: =SUMIFS('Edad y sexo'!$F$2:$F$5000,'Edad y sexo'!$B$2:$B$5000,Visor!$Q$7,'Edad y sexo'!$C$2:$C$5000,"NI",'Edad y sexo'!$D$2:$D$5000,Visor!$F129,'Edad y sexo'!$E$2:$E$5000,"Independiente") -> 0
F130: 40-45 | J130: =SUMIFS('Edad y sexo'!$F$2:$F$5000,'Edad y sexo'!$B$2:$B$5000,Visor!$Q$7,'Edad y sexo'!$C$2:$C$5000,"M",'Edad y sexo'!$D$2:$D$5000,Visor!$F130,'Edad y sexo'!$E$2:$E$5000,"Dep_sec_priv") -> 172539 | M130: =SUMIFS('Edad y sexo'!$F$2:$F$5000,'Edad y sexo'!$B$2:$B$5000,Visor!$Q$7,'Edad y sexo'!$C$2:$C$5000,"F",'Edad y sexo'!$D$2:$D$5000,Visor!$F130,'Edad y sexo'!$E$2:$E$5000,"Dep_sec_priv") -> 157468 | P130: =SUMIFS('Edad y sexo'!$F$2:$F$5000,'Edad y sexo'!$B$2:$B$5000,Visor!$Q$7,'Edad y sexo'!$C$2:$C$5000,"NI",'Edad y sexo'!$D$2:$D$5000,Visor!$F130,'Edad y sexo'!$E$2:$E$5000,"Dep_sec_priv") -> 0 | S130: =SUMIFS('Edad y sexo'!$F$2:$F$5000,'Edad y sexo'!$B$2:$B$5000,Visor!$Q$7,'Edad y sexo'!$C$2:$C$5000,"M",'Edad y sexo'!$D$2:$D$5000,Visor!$F130,'Edad y sexo'!$E$2:$E$5000,"Independiente") -> 36528 | V130: =SUMIFS('Edad y sexo'!$F$2:$F$5000,'Edad y sexo'!$B$2:$B$5000,Visor!$Q$7,'Edad y sexo'!$C$2:$C$5000,"F",'Edad y sexo'!$D$2:$D$5000,Visor!$F130,'Edad y sexo'!$E$2:$E$5000,"Independiente") -> 36418 | Y130: =SUMIFS('Edad y sexo'!$F$2:$F$5000,'Edad y sexo'!$B$2:$B$5000,Visor!$Q$7,'Edad y sexo'!$C$2:$C$5000,"NI",'Edad y sexo'!$D$2:$D$5000,Visor!$F130,'Edad y sexo'!$E$2:$E$5000,"Independiente") -> 0
F131: 45-50 | J131: =SUMIFS('Edad y sexo'!$F$2:$F$5000,'Edad y sexo'!$B$2:$B$5000,Visor!$Q$7,'Edad y sexo'!$C$2:$C$5000,"M",'Edad y sexo'!$D$2:$D$5000,Visor!$F131,'Edad y sexo'!$E$2:$E$5000,"Dep_sec_priv") -> 130189 | M131: =SUMIFS('Edad y sexo'!$F$2:$F$5000,'Edad y sexo'!$B$2:$B$5000,Visor!$Q$7,'Edad y sexo'!$C$2:$C$5000,"F",'Edad y sexo'!$D$2:$D$5000,Visor!$F131,'Edad y sexo'!$E$2:$E$5000,"Dep_sec_priv") -> 116666 | P131: =SUMIFS('Edad y sexo'!$F$2:$F$5000,'Edad y sexo'!$B$2:$B$5000,Visor!$Q$7,'Edad y sexo'!$C$2:$C$5000,"NI",'Edad y sexo'!$D$2:$D$5000,Visor!$F131,'Edad y sexo'!$E$2:$E$5000,"Dep_sec_priv") -> 0 | S131: =SUMIFS('Edad y sexo'!$F$2:$F$5000,'Edad y sexo'!$B$2:$B$5000,Visor!$Q$7,'Edad y sexo'!$C$2:$C$5000,"M",'Edad y sexo'!$D$2:$D$5000,Visor!$F131,'Edad y sexo'!$E$2:$E$5000,"Independiente") -> 33131 | V131: =SUMIFS('Edad y sexo'!$F$2:$F$5000,'Edad y sexo'!$B$2:$B$5000,Visor!$Q$7,'Edad y sexo'!$C$2:$C$5000,"F",'Edad y sexo'!$D$2:$D$5000,Visor!$F131,'Edad y sexo'!$E$2:$E$5000,"Independiente") -> 31463 | Y131: =SUMIFS('Edad y sexo'!$F$2:$F$5000,'Edad y sexo'!$B$2:$B$5000,Visor!$Q$7,'Edad y sexo'!$C$2:$C$5000,"NI",'Edad y sexo'!$D$2:$D$5000,Visor!$F131,'Edad y sexo'!$E$2:$E$5000,"Independiente") -> 0
F132: 50-55 | J132: =SUMIFS('Edad y sexo'!$F$2:$F$5000,'Edad y sexo'!$B$2:$B$5000,Visor!$Q$7,'Edad y sexo'!$C$2:$C$5000,"M",'Edad y sexo'!$D$2:$D$5000,Visor!$F132,'Edad y sexo'!$E$2:$E$5000,"Dep_sec_priv") -> 109650 | M132: =SUMIFS('Edad y sexo'!$F$2:$F$5000,'Edad y sexo'!$B$2:$B$5000,Visor!$Q$7,'Edad y sexo'!$C$2:$C$5000,"F",'Edad y sexo'!$D$2:$D$5000,Visor!$F132,'Edad y sexo'!$E$2:$E$5000,"Dep_sec_priv") -> 89909 | P132: =SUMIFS('Edad y sexo'!$F$2:$F$5000,'Edad y sexo'!$B$2:$B$5000,Visor!$Q$7,'Edad y sexo'!$C$2:$C$5000,"NI",'Edad y sexo'!$D$2:$D$5000,Visor!$F132,'Edad y sexo'!$E$2:$E$5000,"Dep_sec_priv") -> 0 | S132: =SUMIFS('Edad y sexo'!$F$2:$F$5000,'Edad y sexo'!$B$2:$B$5000,Visor!$Q$7,'Edad y sexo'!$C$2:$C$5000,"M",'Edad y sexo'!$D$2:$D$5000,Visor!$F132,'Edad y sexo'!$E$2:$E$5000,"Independiente") -> 33939 | V132: =SUMIFS('Edad y sexo'!$F$2:$F$5000,'Edad y sexo'!$B$2:$B$5000,Visor!$Q$7,'Edad y sexo'!$C$2:$C$5000,"F",'Edad y sexo'!$D$2:$D$5000,Visor!$F132,'Edad y sexo'!$E$2:$E$5000,"Independiente") -> 31376 | Y132: =SUMIFS('Edad y sexo'!$F$2:$F$5000,'Edad y sexo'!$B$2:$B$5000,Visor!$Q$7,'Edad y sexo'!$C$2:$C$5000,"NI",'Edad y sexo'!$D$2:$D$5000,Visor!$F132,'Edad y sexo'!$E$2:$E$5000,"Independiente") -> 0
F133: 55-60 | J133: =SUMIFS('Edad y sexo'!$F$2:$F$5000,'Edad y sexo'!$B$2:$B$5000,Visor!$Q$7,'Edad y sexo'!$C$2:$C$5000,"M",'Edad y sexo'!$D$2:$D$5000,Visor!$F133,'Edad y sexo'!$E$2:$E$5000,"Dep_sec_priv") -> 86404 | M133: =SUMIFS('Edad y sexo'!$F$2:$F$5000,'Edad y sexo'!$B$2:$B$5000,Visor!$Q$7,'Edad y sexo'!$C$2:$C$5000,"F",'Edad y sexo'!$D$2:$D$5000,Visor!$F133,'Edad y sexo'!$E$2:$E$5000,"Dep_sec_priv") -> 59188 | P133: =SUMIFS('Edad y sexo'!$F$2:$F$5000,'Edad y sexo'!$B$2:$B$5000,Visor!$Q$7,'Edad y sexo'!$C$2:$C$5000,"NI",'Edad y sexo'!$D$2:$D$5000,Visor!$F133,'Edad y sexo'!$E$2:$E$5000,"Dep_sec_priv") -> 0 | S133: =SUMIFS('Edad y sexo'!$F$2:$F$5000,'Edad y sexo'!$B$2:$B$5000,Visor!$Q$7,'Edad y sexo'!$C$2:$C$5000,"M",'Edad y sexo'!$D$2:$D$5000,Visor!$F133,'Edad y sexo'!$E$2:$E$5000,"Independiente") -> 36981 | V133: =SUMIFS('Edad y sexo'!$F$2:$F$5000,'Edad y sexo'!$B$2:$B$5000,Visor!$Q$7,'Edad y sexo'!$C$2:$C$5000,"F",'Edad y sexo'!$D$2:$D$5000,Visor!$F133,'Edad y sexo'!$E$2:$E$5000,"Independiente") -> 33192 | Y133: =SUMIFS('Edad y sexo'!$F$2:$F$5000,'Edad y sexo'!$B$2:$B$5000,Visor!$Q$7,'Edad y sexo'!$C$2:$C$5000,"NI",'Edad y sexo'!$D$2:$D$5000,Visor!$F133,'Edad y sexo'!$E$2:$E$5000,"Independiente") -> 0
F134: 60-65 | J134: =SUMIFS('Edad y sexo'!$F$2:$F$5000,'Edad y sexo'!$B$2:$B$5000,Visor!$Q$7,'Edad y sexo'!$C$2:$C$5000,"M",'Edad y sexo'!$D$2:$D$5000,Visor!$F134,'Edad y sexo'!$E$2:$E$5000,"Dep_sec_priv") -> 48299 | M134: =SUMIFS('Edad y sexo'!$F$2:$F$5000,'Edad y sexo'!$B$2:$B$5000,Visor!$Q$7,'Edad y sexo'!$C$2:$C$5000,"F",'Edad y sexo'!$D$2:$D$5000,Visor!$F134,'Edad y sexo'!$E$2:$E$5000,"Dep_sec_priv") -> 22171 | P134: =SUMIFS('Edad y sexo'!$F$2:$F$5000,'Edad y sexo'!$B$2:$B$5000,Visor!$Q$7,'Edad y sexo'!$C$2:$C$5000,"NI",'Edad y sexo'!$D$2:$D$5000,Visor!$F134,'Edad y sexo'!$E$2:$E$5000,"Dep_sec_priv") -> 0 | S134: =SUMIFS('Edad y sexo'!$F$2:$F$5000,'Edad y sexo'!$B$2:$B$5000,Visor!$Q$7,'Edad y sexo'!$C$2:$C$5000,"M",'Edad y sexo'!$D$2:$D$5000,Visor!$F134,'Edad y sexo'!$E$2:$E$5000,"Independiente") -> 32528 | V134: =SUMIFS('Edad y sexo'!$F$2:$F$5000,'Edad y sexo'!$B$2:$B$5000,Visor!$Q$7,'Edad y sexo'!$C$2:$C$5000,"F",'Edad y sexo'!$D$2:$D$5000,Visor!$F134,'Edad y sexo'!$E$2:$E$5000,"Independiente") -> 27332 | Y134: =SUMIFS('Edad y sexo'!$F$2:$F$5000,'Edad y sexo'!$B$2:$B$5000,Visor!$Q$7,'Edad y sexo'!$C$2:$C$5000,"NI",'Edad y sexo'!$D$2:$D$5000,Visor!$F134,'Edad y sexo'!$E$2:$E$5000,"Independiente") -> 0
F135: 65-70 | J135: =SUMIFS('Edad y sexo'!$F$2:$F$5000,'Edad y sexo'!$B$2:$B$5000,Visor!$Q$7,'Edad y sexo'!$C$2:$C$5000,"M",'Edad y sexo'!$D$2:$D$5000,Visor!$F135,'Edad y sexo'!$E$2:$E$5000,"Dep_sec_priv") -> 14556 | M135: =SUMIFS('Edad y sexo'!$F$2:$F$5000,'Edad y sexo'!$B$2:$B$5000,Visor!$Q$7,'Edad y sexo'!$C$2:$C$5000,"F",'Edad y sexo'!$D$2:$D$5000,Visor!$F135,'Edad y sexo'!$E$2:$E$5000,"Dep_sec_priv") -> 8217 | P135: =SUMIFS('Edad y sexo'!$F$2:$F$5000,'Edad y sexo'!$B$2:$B$5000,Visor!$Q$7,'Edad y sexo'!$C$2:$C$5000,"NI",'Edad y sexo'!$D$2:$D$5000,Visor!$F135,'Edad y sexo'!$E$2:$E$5000,"Dep_sec_priv") -> 0 | S135: =SUMIFS('Edad y sexo'!$F$2:$F$5000,'Edad y sexo'!$B$2:$B$5000,Visor!$Q$7,'Edad y sexo'!$C$2:$C$5000,"M",'Edad y sexo'!$D$2:$D$5000,Visor!$F135,'Edad y sexo'!$E$2:$E$5000,"Independiente") -> 21190 | V135: =SUMIFS('Edad y sexo'!$F$2:$F$5000,'Edad y sexo'!$B$2:$B$5000,Visor!$Q$7,'Edad y sexo'!$C$2:$C$5000,"F",'Edad y sexo'!$D$2:$D$5000,Visor!$F135,'Edad y sexo'!$E$2:$E$5000,"Independiente") -> 21013 | Y135: =SUMIFS('Edad y sexo'!$F$2:$F$5000,'Edad y sexo'!$B$2:$B$5000,Visor!$Q$7,'Edad y sexo'!$C$2:$C$5000,"NI",'Edad y sexo'!$D$2:$D$5000,Visor!$F135,'Edad y sexo'!$E$2:$E$5000,"Independiente") -> 0
F136: 70-75 | J136: =SUMIFS('Edad y sexo'!$F$2:$F$5000,'Edad y sexo'!$B$2:$B$5000,Visor!$Q$7,'Edad y sexo'!$C$2:$C$5000,"M",'Edad y sexo'!$D$2:$D$5000,Visor!$F136,'Edad y sexo'!$E$2:$E$5000,"Dep_sec_priv") -> 4895 | M136: =SUMIFS('Edad y sexo'!$F$2:$F$5000,'Edad y sexo'!$B$2:$B$5000,Visor!$Q$7,'Edad y sexo'!$C$2:$C$5000,"F",'Edad y sexo'!$D$2:$D$5000,Visor!$F136,'Edad y sexo'!$E$2:$E$5000,"Dep_sec_priv") -> 2913 | P136: =SUMIFS('Edad y sexo'!$F$2:$F$5000,'Edad y sexo'!$B$2:$B$5000,Visor!$Q$7,'Edad y sexo'!$C$2:$C$5000,"NI",'Edad y sexo'!$D$2:$D$5000,Visor!$F136,'Edad y sexo'!$E$2:$E$5000,"Dep_sec_priv") -> 0 | S136: =SUMIFS('Edad y sexo'!$F$2:$F$5000,'Edad y sexo'!$B$2:$B$5000,Visor!$Q$7,'Edad y sexo'!$C$2:$C$5000,"M",'Edad y sexo'!$D$2:$D$5000,Visor!$F136,'Edad y sexo'!$E$2:$E$5000,"Independiente") -> 12348 | V136: =SUMIFS('Edad y sexo'!$F$2:$F$5000,'Edad y sexo'!$B$2:$B$5000,Visor!$Q$7,'Edad y sexo'!$C$2:$C$5000,"F",'Edad y sexo'!$D$2:$D$5000,Visor!$F136,'Edad y sexo'!$E$2:$E$5000,"Independiente") -> 14343 | Y136: =SUMIFS('Edad y sexo'!$F$2:$F$5000,'Edad y sexo'!$B$2:$B$5000,Visor!$Q$7,'Edad y sexo'!$C$2:$C$5000,"NI",'Edad y sexo'!$D$2:$D$5000,Visor!$F136,'Edad y sexo'!$E$2:$E$5000,"Independiente") -> 0
F137: 75-80 | J137: =SUMIFS('Edad y sexo'!$F$2:$F$5000,'Edad y sexo'!$B$2:$B$5000,Visor!$Q$7,'Edad y sexo'!$C$2:$C$5000,"M",'Edad y sexo'!$D$2:$D$5000,Visor!$F137,'Edad y sexo'!$E$2:$E$5000,"Dep_sec_priv") -> 1698 | M137: =SUMIFS('Edad y sexo'!$F$2:$F$5000,'Edad y sexo'!$B$2:$B$5000,Visor!$Q$7,'Edad y sexo'!$C$2:$C$5000,"F",'Edad y sexo'!$D$2:$D$5000,Visor!$F137,'Edad y sexo'!$E$2:$E$5000,"Dep_sec_priv") -> 1092 | P137: =SUMIFS('Edad y sexo'!$F$2:$F$5000,'Edad y sexo'!$B$2:$B$5000,Visor!$Q$7,'Edad y sexo'!$C$2:$C$5000,"NI",'Edad y sexo'!$D$2:$D$5000,Visor!$F137,'Edad y sexo'!$E$2:$E$5000,"Dep_sec_priv") -> 0 | S137: =SUMIFS('Edad y sexo'!$F$2:$F$5000,'Edad y sexo'!$B$2:$B$5000,Visor!$Q$7,'Edad y sexo'!$C$2:$C$5000,"M",'Edad y sexo'!$D$2:$D$5000,Visor!$F137,'Edad y sexo'!$E$2:$E$5000,"Independiente") -> 6437 | V137: =SUMIFS('Edad y sexo'!$F$2:$F$5000,'Edad y sexo'!$B$2:$B$5000,Visor!$Q$7,'Edad y sexo'!$C$2:$C$5000,"F",'Edad y sexo'!$D$2:$D$5000,Visor!$F137,'Edad y sexo'!$E$2:$E$5000,"Independiente") -> 10511 | Y137: =SUMIFS('Edad y sexo'!$F$2:$F$5000,'Edad y sexo'!$B$2:$B$5000,Visor!$Q$7,'Edad y sexo'!$C$2:$C$5000,"NI",'Edad y sexo'!$D$2:$D$5000,Visor!$F137,'Edad y sexo'!$E$2:$E$5000,"Independiente") -> 0
F138: Más de 80 años | J138: =SUMIFS('Edad y sexo'!$F$2:$F$5000,'Edad y sexo'!$B$2:$B$5000,Visor!$Q$7,'Edad y sexo'!$C$2:$C$5000,"M",'Edad y sexo'!$D$2:$D$5000,Visor!$F138,'Edad y sexo'!$E$2:$E$5000,"Dep_sec_priv") -> 1511 | M138: =SUMIFS('Edad y sexo'!$F$2:$F$5000,'Edad y sexo'!$B$2:$B$5000,Visor!$Q$7,'Edad y sexo'!$C$2:$C$5000,"F",'Edad y sexo'!$D$2:$D$5000,Visor!$F138,'Edad y sexo'!$E$2:$E$5000,"Dep_sec_priv") -> 1058 | P138: =SUMIFS('Edad y sexo'!$F$2:$F$5000,'Edad y sexo'!$B$2:$B$5000,Visor!$Q$7,'Edad y sexo'!$C$2:$C$5000,"NI",'Edad y sexo'!$D$2:$D$5000,Visor!$F138,'Edad y sexo'!$E$2:$E$5000,"Dep_sec_priv") -> 0 | S138: =SUMIFS('Edad y sexo'!$F$2:$F$5000,'Edad y sexo'!$B$2:$B$5000,Visor!$Q$7,'Edad y sexo'!$C$2:$C$5000,"M",'Edad y sexo'!$D$2:$D$5000,Visor!$F138,'Edad y sexo'!$E$2:$E$5000,"Independiente") -> 7338 | V138: =SUMIFS('Edad y sexo'!$F$2:$F$5000,'Edad y sexo'!$B$2:$B$5000,Visor!$Q$7,'Edad y sexo'!$C$2:$C$5000,"F",'Edad y sexo'!$D$2:$D$5000,Visor!$F138,'Edad y sexo'!$E$2:$E$5000,"Independiente") -> 16956 | Y138: =SUMIFS('Edad y sexo'!$F$2:$F$5000,'Edad y sexo'!$B$2:$B$5000,Visor!$Q$7,'Edad y sexo'!$C$2:$C$5000,"NI",'Edad y sexo'!$D$2:$D$5000,Visor!$F138,'Edad y sexo'!$E$2:$E$5000,"Independiente") -> 0
F139: No identificado | J139: =SUMIFS('Edad y sexo'!$F$2:$F$5000,'Edad y sexo'!$B$2:$B$5000,Visor!$Q$7,'Edad y sexo'!$C$2:$C$5000,"M",'Edad y sexo'!$D$2:$D$5000,"NI",'Edad y sexo'!$E$2:$E$5000,"Dep_sec_priv") -> 68 | M139: =SUMIFS('Edad y sexo'!$F$2:$F$5000,'Edad y sexo'!$B$2:$B$5000,Visor!$Q$7,'Edad y sexo'!$C$2:$C$5000,"F",'Edad y sexo'!$D$2:$D$5000,"NI",'Edad y sexo'!$E$2:$E$5000,"Dep_sec_priv") -> 50 | P139: =SUMIFS('Edad y sexo'!$F$2:$F$5000,'Edad y sexo'!$B$2:$B$5000,Visor!$Q$7,'Edad y sexo'!$C$2:$C$5000,"NI",'Edad y sexo'!$D$2:$D$5000,"NI",'Edad y sexo'!$E$2:$E$5000,"Dep_sec_priv") -> 13310 | S139: =SUMIFS('Edad y sexo'!$F$2:$F$5000,'Edad y sexo'!$B$2:$B$5000,Visor!$Q$7,'Edad y sexo'!$C$2:$C$5000,"M",'Edad y sexo'!$D$2:$D$5000,"NI",'Edad y sexo'!$E$2:$E$5000,"Independiente") -> 8 | V139: =SUMIFS('Edad y sexo'!$F$2:$F$5000,'Edad y sexo'!$B$2:$B$5000,Visor!$Q$7,'Edad y sexo'!$C$2:$C$5000,"F",'Edad y sexo'!$D$2:$D$5000,"NI",'Edad y sexo'!$E$2:$E$5000,"Independiente") -> 4 | Y139: =SUMIFS('Edad y sexo'!$F$2:$F$5000,'Edad y sexo'!$B$2:$B$5000,Visor!$Q$7,'Edad y sexo'!$C$2:$C$5000,"NI",'Edad y sexo'!$D$2:$D$5000,"NI",'Edad y sexo'!$E$2:$E$5000,"Independiente") -> 1905
F140: Total | J140: =SUM(J125:L139) -> 1453644 | M140: =SUM(M125:O139) -> 1256833 | P140: =SUM(P125:R139) -> 13310 | S140: =SUM(S125:U139) -> 326680 | V140: =SUM(V125:X139) -> 337508 | Y140: =SUM(Y125:AA139) -> 1905
C142: *Ubicación basada en la ubicación de los cotizantes
B146: Piramided dependientes privados | P146: Piramided independientes
C168: *Ubicación basada en la ubicación de los cotizantes
L175: =J3 -> Informe Mensual de las cotizaciones
L177: =K53 -> Fecha de corte: 15 de Abr de 2022 | AB177: Pg. 4
L179: Departamento | Q179: =Q55 -> BOGOTÁ, D.C.
L180: Municipio | Q180: =Q56 -> BOGOTÁ, D.C.
C182: ="Resumen municipal "&Q179&":" -> Resumen municipal BOGOTÁ, D.C.:
B185: =Q179 -> BOGOTÁ, D.C.
B186: Municipio | H186: Apt.Privados | L186: % | M186: Dep.Privados (Ubicación del aportante) | Q186: % | R186: Dep.Privados (Ubicación del cotizante) | V186: % | W186: Independientes | AA186: %
A187: =IF(AND(B188="",B186<>"",B187<>""),1,0) -> 1 | B187: =IF(Tamaño!BF2=0,"",PROPER(Tamaño!BF2)) -> Bogotá, D.C. | H187: =IF(B187="","",Tamaño!BG2) -> 157281 | L187: =H187/SUM($H$187:$K$212) -> 1 | M187: =IF(B187="","",Tamaño!BJ2) -> 3255983 | Q187: =M187/SUM($M$187:$P$212) -> 1 | R187: =IF(B187="","",Tamaño!BH2) -> 2723787 | V187: =R187/SUM($R$187:$U$212) -> 1 | W187: =IF(B187="","",Tamaño!BI2) -> 666093 | AA187: =W187/SUM($W$187:$Z$212) -> 1
A188: 0 | B188: =IF(OR(B187="",Tamaño!BF3=0),"",PROPER(Tamaño!BF3)) ->  | H188: =IF(B188="","",Tamaño!BG3) ->  | L188: =IF(H188="","",H188/SUM($H$187:$K$212)) ->  | M188: =IF(B188="","",Tamaño!BJ3) ->  | Q188: =IF(H188="","",M188/SUM($M$187:$P$212)) ->  | R188: =IF(B188="","",Tamaño!BH3) ->  | V188: =IF(R188="","",R188/SUM($R$187:$U$212)) ->  | W188: =IF(B188="","",Tamaño!BI3) ->  | AA188: =IF(W188="","",W188/SUM($W$187:$Z$212)) -> 
A189: 0 | B189: =IF(OR(B188="",Tamaño!BF4=0),"",PROPER(Tamaño!BF4)) ->  | H189: =IF(B189="","",Tamaño!BG4) ->  | L189: =IF(H189="","",H189/SUM($H$187:$K$212)) ->  | M189: =IF(B189="","",Tamaño!BJ4) ->  | Q189: =IF(H189="","",M189/SUM($M$187:$P$212)) ->  | R189: =IF(B189="","",Tamaño!BH4) ->  | W189: =IF(B189="","",Tamaño!BI4) -> 
A190: 0 | B190: =IF(OR(B189="",Tamaño!BF5=0),"",PROPER(Tamaño!BF5)) ->  | H190: =IF(B190="","",Tamaño!BG5) ->  | M190: =IF(B190="","",Tamaño!BJ5) ->  | R190: =IF(B190="","",Tamaño!BH5) ->  | W190: =IF(B190="","",Tamaño!BI5) -> 
A191: 0 | B191: =IF(OR(B190="",Tamaño!BF6=0),"",PROPER(Tamaño!BF6)) ->  | H191: =IF(B191="","",Tamaño!BG6) ->  | M191: =IF(B191="","",Tamaño!BJ6) ->  | R191: =IF(B191="","",Tamaño!BH6) ->  | W191: =IF(B191="","",Tamaño!BI6) -> 
A192: 0 | B192: =IF(OR(B191="",Tamaño!BF7=0),"",PROPER(Tamaño!BF7)) ->  | H192: =IF(B192="","",Tamaño!BG7) ->  | M192: =IF(B192="","",Tamaño!BJ7) ->  | R192: =IF(B192="","",Tamaño!BH7) ->  | W192: =IF(B192="","",Tamaño!BI7) -> 
A193: =IF(AND(B194="",B192<>"",B193<>""),1,0) -> 0 | B193: =IF(OR(B192="",Tamaño!BF8=0),"",PROPER(Tamaño!BF8)) ->  | H193: =IF(B193="","",Tamaño!BG8) ->  | M193: =IF(B193="","",Tamaño!BJ8) ->  | R193: =IF(B193="","",Tamaño!BH8) ->  | W193: =IF(B193="","",Tamaño!BI8) -> 
A194: 0 | B194: =IF(OR(B193="",Tamaño!BF9=0),"",PROPER(Tamaño!BF9)) ->  | H194: =IF(B194="","",Tamaño!BG9) ->  | M194: =IF(B194="","",Tamaño!BJ9) ->  | R194: =IF(B194="","",Tamaño!BH9) ->  | W194: =IF(B194="","",Tamaño!BI9) -> 
A195: 0 | B195: =IF(OR(B194="",Tamaño!BF10=0),"",PROPER(Tamaño!BF10)) ->  | H195: =IF(B195="","",Tamaño!BG10) ->  | M195: =IF(B195="","",Tamaño!BJ10) ->  | R195: =IF(B195="","",Tamaño!BH10) ->  | W195: =IF(B195="","",Tamaño!BI10) -> 
A196: 0 | B196: =IF(OR(B195="",Tamaño!BF11=0),"",PROPER(Tamaño!BF11)) ->  | H196: =IF(B196="","",Tamaño!BG11) ->  | M196: =IF(B196="","",Tamaño!BJ11) ->  | R196: =IF(B196="","",Tamaño!BH11) ->  | W196: =IF(B196="","",Tamaño!BI11) -> 
A197: 0 | B197: =IF(OR(B196="",Tamaño!BF12=0),"",PROPER(Tamaño!BF12)) ->  | H197: =IF(B197="","",Tamaño!BG12) ->  | M197: =IF(B197="","",Tamaño!BJ12) ->  | R197: =IF(B197="","",Tamaño!BH12) ->  | W197: =IF(B197="","",Tamaño!BI12) -> 
A198: 0 | B198: =IF(OR(B197="",Tamaño!BF13=0),"",PROPER(Tamaño!BF13)) ->  | H198: =IF(B198="","",Tamaño!BG13) ->  | M198: =IF(B198="","",Tamaño!BJ13) ->  | R198: =IF(B198="","",Tamaño!BH13) ->  | W198: =IF(B198="","",Tamaño!BI13) -> 
A199: 0 | B199: =IF(OR(B198="",Tamaño!BF14=0),"",PROPER(Tamaño!BF14)) ->  | H199: =IF(B199="","",Tamaño!BG14) ->  | M199: =IF(B199="","",Tamaño!BJ14) ->  | R199: =IF(B199="","",Tamaño!BH14) ->  | W199: =IF(B199="","",Tamaño!BI14) -> 
A200: 0 | B200: =IF(OR(B199="",Tamaño!BF15=0),"",PROPER(Tamaño!BF15)) ->  | H200: =IF(B200="","",Tamaño!BG15) ->  | M200: =IF(B200="","",Tamaño!BJ15) ->  | R200: =IF(B200="","",Tamaño!BH15) ->  | W200: =IF(B200="","",Tamaño!BI15) -> 
A201: 0 | B201: =IF(OR(B200="",Tamaño!BF16=0),"",PROPER(Tamaño!BF16)) ->  | H201: =IF(B201="","",Tamaño!BG16) ->  | M201: =IF(B201="","",Tamaño!BJ16) ->  | R201: =IF(B201="","",Tamaño!BH16) ->  | W201: =IF(B201="","",Tamaño!BI16) -> 
A202: 0 | B202: =IF(OR(B201="",Tamaño!BF17=0),"",PROPER(Tamaño!BF17)) ->  | H202: =IF(B202="","",Tamaño!BG17) ->  | M202: =IF(B202="","",Tamaño!BJ17) ->  | R202: =IF(B202="","",Tamaño!BH17) ->  | W202: =IF(B202="","",Tamaño!BI17) -> 
A203: 0 | B203: =IF(OR(B202="",Tamaño!BF18=0),"",PROPER(Tamaño!BF18)) ->  | H203: =IF(B203="","",Tamaño!BG18) ->  | M203: =IF(B203="","",Tamaño!BJ18) ->  | R203: =IF(B203="","",Tamaño!BH18) ->  | W203: =IF(B203="","",Tamaño!BI18) -> 
A204: 0 | B204: =IF(OR(B203="",Tamaño!BF19=0),"",PROPER(Tamaño!BF19)) ->  | H204: =IF(B204="","",Tamaño!BG19) ->  | M204: =IF(B204="","",Tamaño!BJ19) ->  | R204: =IF(B204="","",Tamaño!BH19) ->  | W204: =IF(B204="","",Tamaño!BI19) -> 
A205: 0 | B205: =IF(OR(B204="",Tamaño!BF20=0),"",PROPER(Tamaño!BF20)) ->  | H205: =IF(B205="","",Tamaño!BG20) ->  | M205: =IF(B205="","",Tamaño!BJ20) ->  | R205: =IF(B205="","",Tamaño!BH20) ->  | W205: =IF(B205="","",Tamaño!BI20) -> 
A206: 0 | B206: =IF(OR(B205="",Tamaño!BF21=0),"",PROPER(Tamaño!BF21)) ->  | H206: =IF(B206="","",Tamaño!BG21) ->  | M206: =IF(B206="","",Tamaño!BJ21) ->  | R206: =IF(B206="","",Tamaño!BH21) ->  | W206: =IF(B206="","",Tamaño!BI21) -> 
A207: 0 | B207: =IF(OR(B206="",Tamaño!BF22=0),"",PROPER(Tamaño!BF22)) ->  | H207: =IF(B207="","",Tamaño!BG22) ->  | M207: =IF(B207="","",Tamaño!BJ22) ->  | R207: =IF(B207="","",Tamaño!BH22) ->  | W207: =IF(B207="","",Tamaño!BI22) -> 
A208: 0 | B208: =IF(OR(B207="",Tamaño!BF23=0),"",PROPER(Tamaño!BF23)) ->  | H208: =IF(B208="","",Tamaño!BG23) ->  | M208: =IF(B208="","",Tamaño!BJ23) ->  | R208: =IF(B208="","",Tamaño!BH23) ->  | W208: =IF(B208="","",Tamaño!BI23) -> 
A209: 0 | B209: =IF(OR(B208="",Tamaño!BF24=0),"",PROPER(Tamaño!BF24)) ->  | H209: =IF(B209="","",Tamaño!BG24) ->  | M209: =IF(B209="","",Tamaño!BJ24) ->  | R209: =IF(B209="","",Tamaño!BH24) ->  | W209: =IF(B209="","",Tamaño!BI24) -> 
A210: 0 | B210: =IF(OR(B209="",Tamaño!BF25=0),"",PROPER(Tamaño!BF25)) ->  | H210: =IF(B210="","",Tamaño!BG25) ->  | M210: =IF(B210="","",Tamaño!BJ25) ->  | R210: =IF(B210="","",Tamaño!BH25) ->  | W210: =IF(B210="","",Tamaño!BI25) -> 
A211: 0 | B211: =IF(OR(B210="",Tamaño!BF26=0),"",PROPER(Tamaño!BF26)) ->  | H211: =IF(B211="","",Tamaño!BG26) ->  | M211: =IF(B211="","",Tamaño!BJ26) ->  | R211: =IF(B211="","",Tamaño!BH26) ->  | W211: =IF(B211="","",Tamaño!BI26) -> 
B212: =IF(Lista!J3>25,"Otros","") ->  | H212: =IF(B212="Otros",SUM(Tamaño!$BG$27:$BG$150),"") ->  | M212: =IF(B212="","",Tamaño!BJ27) ->  | R212: =IF(B212="Otros",R14-SUM(R187:U211),"") ->  | W212: =IF(B212="Otros",W14-SUM(W187:Z211),"") -> 
C213: *Para la columna de Apt.Privados y Dep.Privados/Apt se usa la ubicación del aportante, para las demas columnas la ubicación del cotizante
C215: ="Resumen de las novedades Dep.Privados e Independientes mes "&Lista!R2 -> Resumen de las novedades Dep.Privados e Independientes mes Febrero
C230: *Ubicación basada en la ubicación de los cotizantes
C231: * Nota: Corresponden a los asociados a aportantes del sector privado, es decir los tipos de cotizantes 1, 2 o 22

Sheet Cotizantes Mes
A1: Divipola | B1: Llave | C1: Tipologia | D1: Depto | E1: Mpio | F1: Mpio_0 | G1: Depto_Nom | H1: Mpio_Nom | I1: Tipologia_MES | J1: Ingresos_MES | K1: Retiros_MES | L1: Total_relaciones_laborales_1_20 | M1: Total_relaciones_laborales_2_20 | N1: Total_relaciones_laborales_3_20 | O1: Total_relaciones_laborales_4_20 | P1: Total_relaciones_laborales_5_20 | Q1: Total_relaciones_laborales_6_20 | R1: Total_relaciones_laborales_7_20 | S1: Total_relaciones_laborales_8_20 | T1: Total_relaciones_laborales_9_20 | U1: Total_relaciones_laborales_10_20 | V1: Total_relaciones_laborales_11_20 | W1: Total_relaciones_laborales_12_20 | X1: Total_relaciones_laborales_1_21 | Y1: Total_relaciones_laborales_2_21 | Z1: Total_relaciones_laborales_3_21 | AA1: Total_relaciones_laborales_4_21 | AB1: Total_relaciones_laborales_5_21 | AC1: Total_relaciones_laborales_6_21 | AD1: Total_relaciones_laborales_7_21 | AE1: Total_relaciones_laborales_8_21 | AF1: Total_relaciones_laborales_9_21 | AG1: Total_relaciones_laborales_10_21 | AH1: Total_relaciones_laborales_11_21 | AI1: Total_relaciones_laborales_12_21 | AJ1: Total_relaciones_laborales_1_22 | AK1: Total_relaciones_laborales_2_22 | AQ1: =A1 -> Divipola | AR1: =B1 -> Llave | AS1: Tipologia | AT1: Depto | AU1: Mpio | AV1: Mpio_0 | AW1: Depto_Nom | AX1: Mpio_Nom | AY1: Tipologia_MES | AZ1: Ingresos_MES | BA1: Retiros_MES | BB1: =L1 -> Total_relaciones_laborales_1_20 | BC1: =M1 -> Total_relaciones_laborales_2_20 | BD1: =N1 -> Total_relaciones_laborales_3_20 | BE1: =O1 -> Total_relaciones_laborales_4_20 | BF1: =P1 -> Total_relaciones_laborales_5_20 | BG1: =Q1 -> Total_relaciones_laborales_6_20 | BH1: =R1 -> Total_relaciones_laborales_7_20 | BI1: =S1 -> Total_relaciones_laborales_8_20 | BJ1: =T1 -> Total_relaciones_laborales_9_20 | BK1: =U1 -> Total_relaciones_laborales_10_20 | BL1: =V1 -> Total_relaciones_laborales_11_20 | BM1: =W1 -> Total_relaciones_laborales_12_20 | BN1: =X1 -> Total_relaciones_laborales_1_21 | BO1: =Y1 -> Total_relaciones_laborales_2_21 | BP1: =Z1 -> Total_relaciones_laborales_3_21 | BQ1: =AA1 -> Total_relaciones_laborales_4_21 | BR1: =AB1 -> Total_relaciones_laborales_5_21 | BS1: =AC1 -> Total_relaciones_laborales_6_21 | BT1: =AD1 -> Total_relaciones_laborales_7_21 | BU1: =AE1 -> Total_relaciones_laborales_8_21 | BV1: =AF1 -> Total_relaciones_laborales_9_21 | BW1: =AG1 -> Total_relaciones_laborales_10_21 | BX1: =AH1 -> Total_relaciones_laborales_11_21 | BY1: =AI1 -> Total_relaciones_laborales_12_21 | BZ1: =AJ1 -> Total_relaciones_laborales_1_22 | CA1: =AK1 -> Total_relaciones_laborales_2_22
A2: Sin Info | B2: Sin Info1 | C2: 1 | D2: Sin Info | E2: Sin Info | F2: Sin Info | G2: Sin Info | H2: Sin Info | I2: Dep_No_priv | J2: 0 | K2: 0 | L2: 1 | M2: 6 | N2: 5 | O2: 5 | P2: 5 | Q2: 6 | R2: 5 | S2: 6 | T2: 4 | U2: 8 | V2: 7 | W2: 8 | X2: 8 | Y2: 8 | Z2: 10 | AA2: 8 | AB2: 8 | AC2: 8 | AD2: 9 | AE2: 8 | AF2: 7 | AG2: 9 | AH2: 9 | AI2: 16 | AJ2: 2 | AK2: 1 | AL2: =IF(SUM(L2:AK2)=0,"VERDADERO","FALSO") -> FALSO | AQ2: =_xlfn._xlws.FILTER($A$2:$AK$4991,$G$2:$G$4991=Visor!$Q$7,"") -> 11001 | AR2: 110011 | AS2: 1 | AT2: 11 | AU2: 1 | AV2: 001 | AW2: BOGOTÁ, D.C. | AX2: BOGOTÁ, D.C. | AY2: Dep_No_priv | AZ2: 49971 | BA2: 22121 | BB2: 349925 | BC2: 388578 | BD2: 390336 | BE2: 366391 | BF2: 377018 | BG2: 365113 | BH2: 393434 | BI2: 414216 | BJ2: 423320 | BK2: 419557 | BL2: 397621 | BM2: 335303 | BN2: 328118 | BO2: 369493 | BP2: 377968 | BQ2: 399235 | BR2: 409019 | BS2: 402654 | BT2: 402812 | BU2: 418580 | BV2: 429790 | BW2: 434455 | BX2: 433668 | BY2: 352871 | BZ2: 341554 | CA2: 383386
A3: Sin Info | B3: Sin Info2 | C3: 2 | D3: Sin Info | E3: Sin Info | F3: Sin Info | G3: Sin Info | H3: Sin Info | I3: Dep_sec_priv | J3: 246 | K3: 108 | L3: 1005 | M3: 1154 | N3: 430 | O3: 319 | P3: 411 | Q3: 379 | R3: 432 | S3: 430 | T3: 427 | U3: 437 | V3: 348 | W3: 480 | X3: 447 | Y3: 416 | Z3: 483 | AA3: 447 | AB3: 359 | AC3: 398 | AD3: 413 | AE3: 419 | AF3: 512 | AG3: 524 | AH3: 533 | AI3: 523 | AJ3: 568 | AK3: 503 | AL3: =IF(SUM(L3:AK3)=0,"VERDADERO","FALSO") -> FALSO | AQ3: 11001 | AR3: 110012 | AS3: 2 | AT3: 11 | AU3: 1 | AV3: 001 | AW3: BOGOTÁ, D.C. | AX3: BOGOTÁ, D.C. | AY3: Dep_sec_priv | AZ3: 283793 | BA3: 211661 | BB3: 2608367 | BC3: 2653625 | BD3: 2623928 | BE3: 2445431 | BF3: 2417376 | BG3: 2406018 | BH3: 2420741 | BI3: 2420448 | BJ3: 2456538 | BK3: 2482384 | BL3: 2514563 | BM3: 2503844 | BN3: 2484264 | BO3: 2528872 | BP3: 2558050 | BQ3: 2569675 | BR3: 2568671 | BS3: 2584027 | BT3: 2605936 | BU3: 2644117 | BV3: 2678746 | BW3: 2709277 | BX3: 2735363 | BY3: 2706713 | BZ3: 2691060 | CA3: 2723787 | CH3: ="Variaciones de "&PROPER(Visor!$Q$7) -> Variaciones de Bogotá, D.C.
A4: Sin Info | B4: Sin Info3 | C4: 3 | D4: Sin Info | E4: Sin Info | F4: Sin Info | G4: Sin Info | H4: Sin Info | I4: Independiente | J4: 687 | K4: 262 | L4: 20599 | M4: 20971 | N4: 20838 | O4: 20728 | P4: 20858 | Q4: 20957 | R4: 21118 | S4: 21260 | T4: 21058 | U4: 21127 | V4: 21219 | W4: 21256 | X4: 21665 | Y4: 21919 | Z4: 22122 | AA4: 22138 | AB4: 22337 | AC4: 22535 | AD4: 22753 | AE4: 22965 | AF4: 23347 | AG4: 23449 | AH4: 23266 | AI4: 23353 | AJ4: 23207 | AK4: 22509 | AL4: FALSO | AQ4: 11001 | AR4: 110013 | AS4: 3 | AT4: 11 | AU4: 1 | AV4: 001 | AW4: BOGOTÁ, D.C. | AX4: BOGOTÁ, D.C. | AY4: Independiente | AZ4: 56240 | BA4: 41383 | BB4: 702940 | BC4: 709921 | BD4: 699774 | BE4: 670216 | BF4: 673567 | BG4: 681898 | BH4: 688078 | BI4: 689196 | BJ4: 697814 | BK4: 702839 | BL4: 707137 | BM4: 703812 | BN4: 680833 | BO4: 685173 | BP4: 692937 | BQ4: 693753 | BR4: 694430 | BS4: 697914 | BT4: 700347 | BU4: 703286 | BV4: 707392 | BW4: 709640 | BX4: 709702 | BY4: 700470 | BZ4: 677359 | CA4: 666093 | CH4: 2020-02-01 | CI4: 2020-03-01 | CJ4: 2020-04-01 | CK4: 2020-05-01 | CL4: 2020-06-01 | CM4: 2020-07-01 | CN4: 2020-08-01 | CO4: 2020-09-01 | CP4: 2020-10-01 | CQ4: 2020-11-01 | CR4: 2020-12-01 | CS4: 2021-01-01 | CT4: 2021-02-01 | CU4: 2021-03-01 | CV4: 2021-04-01 | CW4: 2021-05-01 | CX4: 2021-06-01 | CY4: 2021-07-01 | CZ4: 2021-08-01 | DA4: 2021-09-01 | DB4: 2021-10-01 | DC4: 2021-11-01 | DD4: 2021-12-01 | DE4: 2022-01-01 | DF4: 2022-02-01 | DL4: Dependientes | DN4: Dep. Privados | DP4: Independientes
A5: 5001 | B5: 50011 | C5: 1 | D5: 5 | E5: 1 | F5: 001 | G5: ANTIOQUIA | H5: MEDELLÍN | I5: Dep_No_priv | J5: 30943 | K5: 10551 | L5: 138096 | M5: 156236 | N5: 163947 | O5: 147557 | P5: 148288 | Q5: 153758 | R5: 157160 | S5: 162898 | T5: 164544 | U5: 157491 | V5: 151945 | W5: 141286 | X5: 135825 | Y5: 151273 | Z5: 159681 | AA5: 158918 | AB5: 162451 | AC5: 162277 | AD5: 158676 | AE5: 170561 | AF5: 177827 | AG5: 180171 | AH5: 174580 | AI5: 147184 | AJ5: 140743 | AK5: 160002 | AL5: FALSO | CG5: Independientes | CH5: =IFERROR(SUMIFS(BC$2:BC$600,$AS$2:$AS$600,3)/SUMIFS(BB$2:BB$600,$AS$2:$AS$600,3)-1,"") -> 0.009931146328 | CI5: =IFERROR(SUMIFS(BD$2:BD$600,$AS$2:$AS$600,3)/SUMIFS(BC$2:BC$600,$AS$2:$AS$600,3)-1,"") -> -0.01429313966 | CJ5: -0.04223935156 | CK5: 0.004999880635 | CL5: 0.01236848005 | CM5: 0.009062939032 | CN5: 0.001624815791 | CO5: 0.01250442545 | CP5: 0.007201059308 | CQ5: 0.006115198502 | CR5: -0.004702059148 | CS5: -0.03264934386 | CT5: 0.006374544125 | CU5: 0.01133144476 | CV5: 0.001177596232 | CW5: 0.000975851636 | CX5: 0.005017064355 | CY5: 0.003486102872 | CZ5: 0.004196491168 | DA5: 0.005838307602 | DB5: 0.003177870261 | DC5: 8.736824305e-05 | DD5: -0.01300827671 | DE5: -0.03299356147 | DF5: -0.01663224376 | DL5: ="∆ Anual "&MID(Lista!$R$2,1,3) -> ∆ Anual Feb | DM5: ="∆ Mensual "&MID(Lista!$R$2,1,3) -> ∆ Mensual Feb | DN5: ="∆ Anual "&MID(Lista!$R$2,1,3) -> ∆ Anual Feb | DO5: ="∆ Mensual "&MID(Lista!$R$2,1,3) -> ∆ Mensual Feb | DP5: ="∆ Anual "&MID(Lista!$R$2,1,3) -> ∆ Anual Feb | DQ5: ="∆ Mensual "&MID(Lista!$R$2,1,3) -> ∆ Mensual Feb
A6: 11001 | B6: 110011 | C6: 1 | D6: 11 | E6: 1 | F6: 001 | G6: BOGOTÁ, D.C. | H6: BOGOTÁ, D.C. | I6: Dep_No_priv | J6: 49971 | K6: 22121 | L6: 349925 | M6: 388578 | N6: 390336 | O6: 366391 | P6: 377018 | Q6: 365113 | R6: 393434 | S6: 414216 | T6: 423320 | U6: 419557 | V6: 397621 | W6: 335303 | X6: 328118 | Y6: 369493 | Z6: 377968 | AA6: 399235 | AB6: 409019 | AC6: 402654 | AD6: 402812 | AE6: 418580 | AF6: 429790 | AG6: 434455 | AH6: 433668 | AI6: 352871 | AJ6: 341554 | AK6: 383386 | AL6: FALSO | CG6: Dependientes | CH6: =IFERROR((SUMIFS(BC$2:BC$600,$AS$2:$AS$600,2)+SUMIFS(BC$2:BC$600,$AS$2:$AS$600,1))/(SUMIFS(BB$2:BB$600,$AS$2:$AS$600,2)+SUMIFS(BB$2:BB$600,$AS$2:$AS$600,1))-1,"") -> 0.028364678 | CI6: =IFERROR((SUMIFS(BD$2:BD$600,$AS$2:$AS$600,2)+SUMIFS(BD$2:BD$600,$AS$2:$AS$600,1))/(SUMIFS(BC$2:BC$600,$AS$2:$AS$600,2)+SUMIFS(BC$2:BC$600,$AS$2:$AS$600,1))-1,"") -> -0.009183805288 | CJ6: -0.0671613369 | CK6: -0.006198116381 | CL6: -0.008324881889 | CM6: 0.015533008 | CN6: 0.007280641751 | CO6: 0.01594333579 | CP6: 0.007668086413 | CQ6: 0.003529706496 | CR6: -0.02507980265 | CS6: -0.009427127232 | CT6: 0.03057301604 | CU6: 0.01299111741 | CV6: 0.01120292859 | CW6: 0.002957314301 | CX6: 0.003019454678 | CY6: 0.007388469006 | CZ6: 0.01793071404 | DA6: 0.01496687397 | DB6: 0.01132237169 | DC6: 0.008047441703 | DD6: -0.03453642454 | DE6: -0.008814923859 | DF6: 0.02458572044 | DK6: Nacional | DL6: =(SUMIFS($AK$2:$AK$4997,$C$2:$C$4997,2)+SUMIFS($AK$2:$AK$4997,$C$2:$C$4997,1))/(SUMIFS($Y$2:$Y$4997,$C$2:$C$4997,2)+SUMIFS($Y$2:$Y$4997,$C$2:$C$4997,1))-1 -> 0.07315878972 | DM6: =(SUMIFS($AK$2:$AK$4997,$C$2:$C$4997,2)+SUMIFS($AK$2:$AK$4997,$C$2:$C$4997,1))/(SUMIFS($AJ$2:$AJ$4997,$C$2:$C$4997,2)+SUMIFS($AJ$2:$AJ$4997,$C$2:$C$4997,1))-1 -> 0.02796745493 | DN6: =SUMIFS($AK$2:$AK$4997,$C$2:$C$4997,2)/SUMIFS($Y$2:$Y$4997,$C$2:$C$4997,2)-1 -> 0.07573651452 | DO6: =SUMIFS($AK$2:$AK$4997,$C$2:$C$4997,2)/SUMIFS($AJ$2:$AJ$4997,$C$2:$C$4997,2)-1 -> 0.01652872434 | DP6: =SUMIFS($AK$2:$AK$4997,$C$2:$C$4997,3)/SUMIFS($Y$2:$Y$4997,$C$2:$C$4997,3)-1 -> 0.02992135465 | DQ6: =SUMIFS($AK$2:$AK$4997,$C$2:$C$4997,3)/SUMIFS($AJ$2:$AJ$4997,$C$2:$C$4997,3)-1 -> 0.007635460555
A7: 11001 | B7: 110012 | C7: 2 | D7: 11 | E7: 1 | F7: 001 | G7: BOGOTÁ, D.C. | H7: BOGOTÁ, D.C. | I7: Dep_sec_priv | J7: 283793 | K7: 211661 | L7: 2608367 | M7: 2653625 | N7: 2623928 | O7: 2445431 | P7: 2417376 | Q7: 2406018 | R7: 2420741 | S7: 2420448 | T7: 2456538 | U7: 2482384 | V7: 2514563 | W7: 2503844 | X7: 2484264 | Y7: 2528872 | Z7: 2558050 | AA7: 2569675 | AB7: 2568671 | AC7: 2584027 | AD7: 2605936 | AE7: 2644117 | AF7: 2678746 | AG7: 2709277 | AH7: 2735363 | AI7: 2706713 | AJ7: 2691060 | AK7: 2723787 | AL7: FALSO | CG7: Dep.Privados | CH7: =IFERROR(SUMIFS(BC$2:BC$600,$AS$2:$AS$600,2)/SUMIFS(BB$2:BB$600,$AS$2:$AS$600,2)-1,"") -> 0.01735108595 | CI7: =IFERROR(SUMIFS(BD$2:BD$600,$AS$2:$AS$600,2)/SUMIFS(BC$2:BC$600,$AS$2:$AS$600,2)-1,"") -> -0.01119110651 | CJ7: -0.06802663793 | CK7: -0.01147241529 | CL7: -0.004698482983 | CM7: 0.006119239341 | CN7: -0.0001210373187 | CO7: 0.01491046286 | CP7: 0.01052131089 | CQ7: 0.01296294208 | CR7: -0.004262768521 | CS7: -0.007819976005 | CT7: 0.01795622365 | CU7: 0.01153795052 | CV7: 0.004544477239 | CW7: -0.0003907108876 | CX7: 0.005978188721 | CY7: 0.008478626578 | CZ7: 0.01465154939 | DA7: 0.01309662167 | DB7: 0.01139749719 | DC7: 0.009628399016 | DD7: -0.01047392979 | DE7: -0.005783029084 | DF7: 0.01216137879 | DK7: =PROPER(Visor!Q7) -> Bogotá, D.C. | DL7: =(SUMIFS($CA$2:$CA$700,$AS$2:$AS$700,2)+SUMIFS($CA$2:$CA$700,$AS$2:$AS$700,1))/(SUMIFS($BO$2:$BO$700,$AS$2:$AS$700,2)+SUMIFS($BO$2:$BO$700,$AS$2:$AS$700,1))-1 -> 0.07204337618 | DM7: =(SUMIFS($CA$2:$CA$700,$AS$2:$AS$700,2)+SUMIFS($CA$2:$CA$700,$AS$2:$AS$700,1))/(SUMIFS($BZ$2:$BZ$700,$AS$2:$AS$700,2)+SUMIFS($BZ$2:$BZ$700,$AS$2:$AS$700,1))-1 -> 0.02458572044 | DN7: =SUMIFS($CA$2:$CA$700,$AS$2:$AS$700,2)/SUMIFS($BO$2:$BO$700,$AS$2:$AS$700,2)-1 -> 0.07707586624 | DO7: =SUMIFS($CA$2:$CA$700,$AS$2:$AS$700,2)/SUMIFS($BZ$2:$BZ$700,$AS$2:$AS$700,2)-1 -> 0.01216137879 | DP7: =SUMIFS($CA$2:$CA$700,$AS$2:$AS$700,3)/SUMIFS($BO$2:$BO$700,$AS$2:$AS$700,3)-1 -> -0.02784698171 | DQ7: =SUMIFS($CA$2:$CA$700,$AS$2:$AS$700,3)/SUMIFS($BZ$2:$BZ$700,$AS$2:$AS$700,3)-1 -> -0.01663224376
A8: 76001 | B8: 760013 | C8: 3 | D8: 76 | E8: 1 | F8: 001 | G8: VALLE DEL CAUCA | H8: CALI | I8: Independiente | J8: 9049 | K8: 4171 | L8: 130757 | M8: 132752 | N8: 132561 | O8: 129040 | P8: 129194 | Q8: 130418 | R8: 132464 | S8: 133450 | T8: 134746 | U8: 136212 | V8: 138263 | W8: 137293 | X8: 129063 | Y8: 131866 | Z8: 134108 | AA8: 134737 | AB8: 133670 | AC8: 134050 | AD8: 135331 | AE8: 137920 | AF8: 138748 | AG8: 139511 | AH8: 142056 | AI8: 140608 | AJ8: 133321 | AK8: 133580 | AL8: FALSO | DK8: =PROPER(Visor!Q8) -> Bogotá, D.C. | DL8: =(SUMIFS($CA$2:$CA$700,$AX$2:$AX$700,Visor!$Q$8,'Cotizantes Mes'!$AS$2:$AS$700,2)+SUMIFS($CA$2:$CA$700,$AX$2:$AX$700,Visor!$Q$8,'Cotizantes Mes'!$AS$2:$AS$700,1))/(SUMIFS($BO$2:$BO$700,$AX$2:$AX$700,Visor!$Q$8,'Cotizantes Mes'!$AS$2:$AS$700,2)+SUMIFS($BO$2:$BO$700,$AX$2:$AX$700,Visor!$Q$8,'Cotizantes Mes'!$AS$2:$AS$700,1))-1 -> 0.07204337618 | DM8: =(SUMIFS($CA$2:$CA$700,$AS$2:$AS$700,2,$AX$2:$AX$700,Visor!$Q$8)+SUMIFS($CA$2:$CA$700,$AS$2:$AS$700,1,$AX$2:$AX$700,Visor!$Q$8))/(SUMIFS($BZ$2:$BZ$700,$AS$2:$AS$700,2,$AX$2:$AX$700,Visor!$Q$8)+SUMIFS($BZ$2:$BZ$700,$AS$2:$AS$700,1,$AX$2:$AX$700,Visor!$Q$8))-1 -> 0.02458572044 | DN8: =SUMIFS($CA$2:$CA$700,$AX$2:$AX$700,Visor!$Q$8,'Cotizantes Mes'!$AS$2:$AS$700,2)/SUMIFS($BO$2:$BO$700,$AX$2:$AX$700,Visor!$Q$8,'Cotizantes Mes'!$AS$2:$AS$700,2)-1 -> 0.07707586624 | DO8: =SUMIFS($CA$2:$CA$700,$AS$2:$AS$700,2,$AX$2:$AX$700,Visor!$Q$8)/SUMIFS($BZ$2:$BZ$700,$AS$2:$AS$700,2,$AX$2:$AX$700,Visor!$Q$8)-1 -> 0.01216137879 | DP8: =SUMIFS($CA$2:$CA$700,$AX$2:$AX$700,Visor!$Q$8,'Cotizantes Mes'!$AS$2:$AS$700,3)/SUMIFS($BO$2:$BO$700,$AX$2:$AX$700,Visor!$Q$8,'Cotizantes Mes'!$AS$2:$AS$700,3)-1 -> -0.02784698171 | DQ8: =SUMIFS($CA$2:$CA$700,$AS$2:$AS$700,3,$AX$2:$AX$700,Visor!$Q$8)/SUMIFS($BZ$2:$BZ$700,$AS$2:$AS$700,3,$AX$2:$AX$700,Visor!$Q$8)-1 -> -0.01663224376
A9: 11001 | B9: 110013 | C9: 3 | D9: 11 | E9: 1 | F9: 001 | G9: BOGOTÁ, D.C. | H9: BOGOTÁ, D.C. | I9: Independiente | J9: 56240 | K9: 41383 | L9: 702940 | M9: 709921 | N9: 699774 | O9: 670216 | P9: 673567 | Q9: 681898 | R9: 688078 | S9: 689196 | T9: 697814 | U9: 702839 | V9: 707137 | W9: 703812 | X9: 680833 | Y9: 685173 | Z9: 692937 | AA9: 693753 | AB9: 694430 | AC9: 697914 | AD9: 700347 | AE9: 703286 | AF9: 707392 | AG9: 709640 | AH9: 709702 | AI9: 700470 | AJ9: 677359 | AK9: 666093 | AL9: FALSO
A10: 76001 | B10: 760011 | C10: 1 | D10: 76 | E10: 1 | F10: 001 | G10: VALLE DEL CAUCA | H10: CALI | I10: Dep_No_priv | J10: 15429 | K10: 5057 | L10: 81774 | M10: 91558 | N10: 95334 | O10: 79092 | P10: 77688 | Q10: 75858 | R10: 80438 | S10: 88812 | T10: 94617 | U10: 95168 | V10: 92481 | W10: 81040 | X10: 71405 | Y10: 84428 | Z10: 85840 | AA10: 87973 | AB10: 86754 | AC10: 81850 | AD10: 76818 | AE10: 96128 | AF10: 98779 | AG10: 101251 | AH10: 102962 | AI10: 86082 | AJ10: 78779 | AK10: 89014 | AL10: FALSO
A11: 73449 | B11: 734493 | C11: 3 | D11: 73 | E11: 449 | F11: 449 | G11: TOLIMA | H11: MELGAR | I11: Independiente | J11: 221 | K11: 78 | L11: 963 | M11: 1105 | N11: 1186 | O11: 1166 | P11: 1167 | Q11: 1184 | R11: 1167 | S11: 1211 | T11: 1273 | U11: 1285 | V11: 1290 | W11: 1275 | X11: 1100 | Y11: 1317 | Z11: 1347 | AA11: 1352 | AB11: 1369 | AC11: 1338 | AD11: 1374 | AE11: 1393 | AF11: 1360 | AG11: 1365 | AH11: 1410 | AI11: 1384 | AJ11: 1337 | AK11: 1441 | AL11: FALSO
A12: 5318 | B12: 53182 | C12: 2 | D12: 5 | E12: 318 | F12: 318 | G12: ANTIOQUIA | H12: GUARNE | I12: Dep_sec_priv | J12: 841 | K12: 667 | L12: 7067 | M12: 7109 | N12: 7401 | O12: 7152 | P12: 7187 | Q12: 7149 | R12: 7168 | S12: 7196 | T12: 7410 | U12: 7609 | V12: 7752 | W12: 7938 | X12: 7967 | Y12: 8134 | Z12: 8353 | AA12: 8560 | AB12: 8664 | AC12: 8686 | AD12: 8821 | AE12: 8944 | AF12: 8789 | AG12: 8960 | AH12: 9042 | AI12: 9028 | AJ12: 9031 | AK12: 9107 | AL12: FALSO | CH12: ="Variaciones de "&PROPER(Visor!Q8) -> Variaciones de Bogotá, D.C.
A13: 5001 | B13: 50012 | C13: 2 | D13: 5 | E13: 1 | F13: 001 | G13: ANTIOQUIA | H13: MEDELLÍN | I13: Dep_sec_priv | J13: 106088 | K13: 84486 | L13: 1094445 | M13: 1107180 | N13: 1093233 | O13: 1011385 | P13: 1009410 | Q13: 1012761 | R13: 1018893 | S13: 1022077 | T13: 1042526 | U13: 1060282 | V13: 1072957 | W13: 1068897 | X13: 1055629 | Y13: 1077769 | Z13: 1092066 | AA13: 1090930 | AB13: 1093865 | AC13: 1101017 | AD13: 1113715 | AE13: 1128751 | AF13: 1141812 | AG13: 1149562 | AH13: 1159817 | AI13: 1143378 | AJ13: 1133866 | AK13: 1147967 | AL13: FALSO | CH13: =CH4 -> 2020-02-01 | CI13: =CI4 -> 2020-03-01 | CJ13: 2020-04-01 | CK13: 2020-05-01 | CL13: 2020-06-01 | CM13: 2020-07-01 | CN13: 2020-08-01 | CO13: 2020-09-01 | CP13: 2020-10-01 | CQ13: 2020-11-01 | CR13: 2020-12-01 | CS13: 2021-01-01 | CT13: 2021-02-01 | CU13: 2021-03-01 | CV13: 2021-04-01 | CW13: 2021-05-01 | CX13: 2021-06-01 | CY13: 2021-07-01 | CZ13: 2021-08-01 | DA13: 2021-09-01 | DB13: 2021-10-01 | DC13: 2021-11-01 | DD13: 2021-12-01 | DE13: 2022-01-01 | DF13: 2022-02-01
A14: 5400 | B14: 54002 | C14: 2 | D14: 5 | E14: 400 | F14: 400 | G14: ANTIOQUIA | H14: LA UNIÓN | I14: Dep_sec_priv | J14: 172 | K14: 186 | L14: 1892 | M14: 1937 | N14: 1902 | O14: 1735 | P14: 1729 | Q14: 1730 | R14: 1788 | S14: 1827 | T14: 1864 | U14: 1859 | V14: 1866 | W14: 1824 | X14: 1824 | Y14: 1891 | Z14: 1923 | AA14: 1944 | AB14: 1863 | AC14: 1884 | AD14: 1911 | AE14: 1933 | AF14: 1951 | AG14: 2025 | AH14: 2076 | AI14: 2105 | AJ14: 2189 | AK14: 2186 | AL14: FALSO | CG14: Independientes | CH14: =IFERROR(SUMIFS(BC$2:BC$500,$AS$2:$AS$500,3,$AX$2:$AX$500,Visor!$Q$8)/SUMIFS(BB$2:BB$500,$AS$2:$AS$500,3,$AX$2:$AX$500,Visor!$Q$8)-1,"") -> 0.009931146328 | CI14: =IFERROR(SUMIFS(BD$2:BD$500,$AS$2:$AS$500,3,$AX$2:$AX$500,Visor!$Q$8)/SUMIFS(BC$2:BC$500,$AS$2:$AS$500,3,$AX$2:$AX$500,Visor!$Q$8)-1,"") -> -0.01429313966 | CJ14: =IFERROR(SUMIFS(BE$2:BE$500,$AS$2:$AS$500,3,$AX$2:$AX$500,Visor!$Q$8)/SUMIFS(BD$2:BD$500,$AS$2:$AS$500,3,$AX$2:$AX$500,Visor!$Q$8)-1,"") -> -0.04223935156 | CK14: =IFERROR(SUMIFS(BF$2:BF$500,$AS$2:$AS$500,3,$AX$2:$AX$500,Visor!$Q$8)/SUMIFS(BE$2:BE$500,$AS$2:$AS$500,3,$AX$2:$AX$500,Visor!$Q$8)-1,"") -> 0.004999880635 | CL14: =IFERROR(SUMIFS(BG$2:BG$500,$AS$2:$AS$500,3,$AX$2:$AX$500,Visor!$Q$8)/SUMIFS(BF$2:BF$500,$AS$2:$AS$500,3,$AX$2:$AX$500,Visor!$Q$8)-1,"") -> 0.01236848005 | CM14: =IFERROR(SUMIFS(BH$2:BH$500,$AS$2:$AS$500,3,$AX$2:$AX$500,Visor!$Q$8)/SUMIFS(BG$2:BG$500,$AS$2:$AS$500,3,$AX$2:$AX$500,Visor!$Q$8)-1,"") -> 0.009062939032 | CN14: =IFERROR(SUMIFS(BI$2:BI$500,$AS$2:$AS$500,3,$AX$2:$AX$500,Visor!$Q$8)/SUMIFS(BH$2:BH$500,$AS$2:$AS$500,3,$AX$2:$AX$500,Visor!$Q$8)-1,"") -> 0.001624815791 | CO14: =IFERROR(SUMIFS(BJ$2:BJ$500,$AS$2:$AS$500,3,$AX$2:$AX$500,Visor!$Q$8)/SUMIFS(BI$2:BI$500,$AS$2:$AS$500,3,$AX$2:$AX$500,Visor!$Q$8)-1,"") -> 0.01250442545 | CP14: =IFERROR(SUMIFS(BK$2:BK$500,$AS$2:$AS$500,3,$AX$2:$AX$500,Visor!$Q$8)/SUMIFS(BJ$2:BJ$500,$AS$2:$AS$500,3,$AX$2:$AX$500,Visor!$Q$8)-1,"") -> 0.007201059308 | CQ14: =IFERROR(SUMIFS(BL$2:BL$500,$AS$2:$AS$500,3,$AX$2:$AX$500,Visor!$Q$8)/SUMIFS(BK$2:BK$500,$AS$2:$AS$500,3,$AX$2:$AX$500,Visor!$Q$8)-1,"") -> 0.006115198502 | CR14: =IFERROR(SUMIFS(BM$2:BM$500,$AS$2:$AS$500,3,$AX$2:$AX$500,Visor!$Q$8)/SUMIFS(BL$2:BL$500,$AS$2:$AS$500,3,$AX$2:$AX$500,Visor!$Q$8)-1,"") -> -0.004702059148 | CS14: =IFERROR(SUMIFS(BN$2:BN$500,$AS$2:$AS$500,3,$AX$2:$AX$500,Visor!$Q$8)/SUMIFS(BM$2:BM$500,$AS$2:$AS$500,3,$AX$2:$AX$500,Visor!$Q$8)-1,"") -> -0.03264934386 | CT14: =IFERROR(SUMIFS(BO$2:BO$500,$AS$2:$AS$500,3,$AX$2:$AX$500,Visor!$Q$8)/SUMIFS(BN$2:BN$500,$AS$2:$AS$500,3,$AX$2:$AX$500,Visor!$Q$8)-1,"") -> 0.006374544125 | CU14: =IFERROR(SUMIFS(BP$2:BP$500,$AS$2:$AS$500,3,$AX$2:$AX$500,Visor!$Q$8)/SUMIFS(BO$2:BO$500,$AS$2:$AS$500,3,$AX$2:$AX$500,Visor!$Q$8)-1,"") -> 0.01133144476 | CV14: =IFERROR(SUMIFS(BQ$2:BQ$500,$AS$2:$AS$500,3,$AX$2:$AX$500,Visor!$Q$8)/SUMIFS(BP$2:BP$500,$AS$2:$AS$500,3,$AX$2:$AX$500,Visor!$Q$8)-1,"") -> 0.001177596232 | CW14: =IFERROR(SUMIFS(BR$2:BR$500,$AS$2:$AS$500,3,$AX$2:$AX$500,Visor!$Q$8)/SUMIFS(BQ$2:BQ$500,$AS$2:$AS$500,3,$AX$2:$AX$500,Visor!$Q$8)-1,"") -> 0.000975851636 | CX14: =IFERROR(SUMIFS(BS$2:BS$500,$AS$2:$AS$500,3,$AX$2:$AX$500,Visor!$Q$8)/SUMIFS(BR$2:BR$500,$AS$2:$AS$500,3,$AX$2:$AX$500,Visor!$Q$8)-1,"") -> 0.005017064355 | CY14: =IFERROR(SUMIFS(BT$2:BT$500,$AS$2:$AS$500,3,$AX$2:$AX$500,Visor!$Q$8)/SUMIFS(BS$2:BS$500,$AS$2:$AS$500,3,$AX$2:$AX$500,Visor!$Q$8)-1,"") -> 0.003486102872 | CZ14: =IFERROR(SUMIFS(BU$2:BU$500,$AS$2:$AS$500,3,$AX$2:$AX$500,Visor!$Q$8)/SUMIFS(BT$2:BT$500,$AS$2:$AS$500,3,$AX$2:$AX$500,Visor!$Q$8)-1,"") -> 0.004196491168 | DA14: =IFERROR(SUMIFS(BV$2:BV$500,$AS$2:$AS$500,3,$AX$2:$AX$500,Visor!$Q$8)/SUMIFS(BU$2:BU$500,$AS$2:$AS$500,3,$AX$2:$AX$500,Visor!$Q$8)-1,"") -> 0.005838307602 | DB14: =IFERROR(SUMIFS(BW$2:BW$500,$AS$2:$AS$500,3,$AX$2:$AX$500,Visor!$Q$8)/SUMIFS(BV$2:BV$500,$AS$2:$AS$500,3,$AX$2:$AX$500,Visor!$Q$8)-1,"") -> 0.003177870261 | DC14: =IFERROR(SUMIFS(BX$2:BX$500,$AS$2:$AS$500,3,$AX$2:$AX$500,Visor!$Q$8)/SUMIFS(BW$2:BW$500,$AS$2:$AS$500,3,$AX$2:$AX$500,Visor!$Q$8)-1,"") -> 8.736824305e-05 | DD14: =IFERROR(SUMIFS(BY$2:BY$500,$AS$2:$AS$500,3,$AX$2:$AX$500,Visor!$Q$8)/SUMIFS(BX$2:BX$500,$AS$2:$AS$500,3,$AX$2:$AX$500,Visor!$Q$8)-1,"") -> -0.01300827671 | DE14: =IFERROR(SUMIFS(BZ$2:BZ$500,$AS$2:$AS$500,3,$AX$2:$AX$500,Visor!$Q$8)/SUMIFS(BY$2:BY$500,$AS$2:$AS$500,3,$AX$2:$AX$500,Visor!$Q$8)-1,"") -> -0.03299356147 | DF14: =IFERROR(SUMIFS(CA$2:CA$500,$AS$2:$AS$500,3,$AX$2:$AX$500,Visor!$Q$8)/SUMIFS(BZ$2:BZ$500,$AS$2:$AS$500,3,$AX$2:$AX$500,Visor!$Q$8)-1,"") -> -0.01663224376
A15: 68001 | B15: 680013 | C15: 3 | D15: 68 | E15: 1 | F15: 001 | G15: SANTANDER | H15: BUCARAMANGA | I15: Independiente | J15: 3973 | K15: 2057 | L15: 61203 | M15: 61938 | N15: 61334 | O15: 59117 | P15: 59055 | Q15: 59849 | R15: 60156 | S15: 60169 | T15: 60581 | U15: 61429 | V15: 61810 | W15: 62124 | X15: 58901 | Y15: 59753 | Z15: 60624 | AA15: 60826 | AB15: 61051 | AC15: 61418 | AD15: 61565 | AE15: 61543 | AF15: 62033 | AG15: 62434 | AH15: 62826 | AI15: 62103 | AJ15: 60176 | AK15: 59807 | AL15: FALSO | CG15: Dependientes | CH15: =IFERROR((SUMIFS(BC$2:BC$500,$AS$2:$AS$500,2,$AX$2:$AX$500,Visor!$Q$8)+SUMIFS(BC$2:BC$500,$AS$2:$AS$500,1,$AX$2:$AX$500,Visor!$Q$8))/(SUMIFS(BB$2:BB$500,$AS$2:$AS$500,2,$AX$2:$AX$500,Visor!$Q$8)+SUMIFS(BB$2:BB$500,$AS$2:$AS$500,1,$AX$2:$AX$500,Visor!$Q$8))-1,"") -> 0.028364678 | CI15: =IFERROR((SUMIFS(BD$2:BD$500,$AS$2:$AS$500,2,$AX$2:$AX$500,Visor!$Q$8)+SUMIFS(BD$2:BD$500,$AS$2:$AS$500,1,$AX$2:$AX$500,Visor!$Q$8))/(SUMIFS(BC$2:BC$500,$AS$2:$AS$500,2,$AX$2:$AX$500,Visor!$Q$8)+SUMIFS(BC$2:BC$500,$AS$2:$AS$500,1,$AX$2:$AX$500,Visor!$Q$8))-1,"") -> -0.009183805288 | CJ15: =IFERROR((SUMIFS(BE$2:BE$500,$AS$2:$AS$500,2,$AX$2:$AX$500,Visor!$Q$8)+SUMIFS(BE$2:BE$500,$AS$2:$AS$500,1,$AX$2:$AX$500,Visor!$Q$8))/(SUMIFS(BD$2:BD$500,$AS$2:$AS$500,2,$AX$2:$AX$500,Visor!$Q$8)+SUMIFS(BD$2:BD$500,$AS$2:$AS$500,1,$AX$2:$AX$500,Visor!$Q$8))-1,"") -> -0.0671613369 | CK15: =IFERROR((SUMIFS(BF$2:BF$500,$AS$2:$AS$500,2,$AX$2:$AX$500,Visor!$Q$8)+SUMIFS(BF$2:BF$500,$AS$2:$AS$500,1,$AX$2:$AX$500,Visor!$Q$8))/(SUMIFS(BE$2:BE$500,$AS$2:$AS$500,2,$AX$2:$AX$500,Visor!$Q$8)+SUMIFS(BE$2:BE$500,$AS$2:$AS$500,1,$AX$2:$AX$500,Visor!$Q$8))-1,"") -> -0.006198116381 | CL15: =IFERROR((SUMIFS(BG$2:BG$500,$AS$2:$AS$500,2,$AX$2:$AX$500,Visor!$Q$8)+SUMIFS(BG$2:BG$500,$AS$2:$AS$500,1,$AX$2:$AX$500,Visor!$Q$8))/(SUMIFS(BF$2:BF$500,$AS$2:$AS$500,2,$AX$2:$AX$500,Visor!$Q$8)+SUMIFS(BF$2:BF$500,$AS$2:$AS$500,1,$AX$2:$AX$500,Visor!$Q$8))-1,"") -> -0.008324881889 | CM15: =IFERROR((SUMIFS(BH$2:BH$500,$AS$2:$AS$500,2,$AX$2:$AX$500,Visor!$Q$8)+SUMIFS(BH$2:BH$500,$AS$2:$AS$500,1,$AX$2:$AX$500,Visor!$Q$8))/(SUMIFS(BG$2:BG$500,$AS$2:$AS$500,2,$AX$2:$AX$500,Visor!$Q$8)+SUMIFS(BG$2:BG$500,$AS$2:$AS$500,1,$AX$2:$AX$500,Visor!$Q$8))-1,"") -> 0.015533008 | CN15: =IFERROR((SUMIFS(BI$2:BI$500,$AS$2:$AS$500,2,$AX$2:$AX$500,Visor!$Q$8)+SUMIFS(BI$2:BI$500,$AS$2:$AS$500,1,$AX$2:$AX$500,Visor!$Q$8))/(SUMIFS(BH$2:BH$500,$AS$2:$AS$500,2,$AX$2:$AX$500,Visor!$Q$8)+SUMIFS(BH$2:BH$500,$AS$2:$AS$500,1,$AX$2:$AX$500,Visor!$Q$8))-1,"") -> 0.007280641751 | CO15: =IFERROR((SUMIFS(BJ$2:BJ$500,$AS$2:$AS$500,2,$AX$2:$AX$500,Visor!$Q$8)+SUMIFS(BJ$2:BJ$500,$AS$2:$AS$500,1,$AX$2:$AX$500,Visor!$Q$8))/(SUMIFS(BI$2:BI$500,$AS$2:$AS$500,2,$AX$2:$AX$500,Visor!$Q$8)+SUMIFS(BI$2:BI$500,$AS$2:$AS$500,1,$AX$2:$AX$500,Visor!$Q$8))-1,"") -> 0.01594333579 | CP15: =IFERROR((SUMIFS(BK$2:BK$500,$AS$2:$AS$500,2,$AX$2:$AX$500,Visor!$Q$8)+SUMIFS(BK$2:BK$500,$AS$2:$AS$500,1,$AX$2:$AX$500,Visor!$Q$8))/(SUMIFS(BJ$2:BJ$500,$AS$2:$AS$500,2,$AX$2:$AX$500,Visor!$Q$8)+SUMIFS(BJ$2:BJ$500,$AS$2:$AS$500,1,$AX$2:$AX$500,Visor!$Q$8))-1,"") -> 0.007668086413 | CQ15: =IFERROR((SUMIFS(BL$2:BL$500,$AS$2:$AS$500,2,$AX$2:$AX$500,Visor!$Q$8)+SUMIFS(BL$2:BL$500,$AS$2:$AS$500,1,$AX$2:$AX$500,Visor!$Q$8))/(SUMIFS(BK$2:BK$500,$AS$2:$AS$500,2,$AX$2:$AX$500,Visor!$Q$8)+SUMIFS(BK$2:BK$500,$AS$2:$AS$500,1,$AX$2:$AX$500,Visor!$Q$8))-1,"") -> 0.003529706496 | CR15: =IFERROR((SUMIFS(BM$2:BM$500,$AS$2:$AS$500,2,$AX$2:$AX$500,Visor!$Q$8)+SUMIFS(BM$2:BM$500,$AS$2:$AS$500,1,$AX$2:$AX$500,Visor!$Q$8))/(SUMIFS(BL$2:BL$500,$AS$2:$AS$500,2,$AX$2:$AX$500,Visor!$Q$8)+SUMIFS(BL$2:BL$500,$AS$2:$AS$500,1,$AX$2:$AX$500,Visor!$Q$8))-1,"") -> -0.02507980265 | CS15: =IFERROR((SUMIFS(BN$2:BN$500,$AS$2:$AS$500,2,$AX$2:$AX$500,Visor!$Q$8)+SUMIFS(BN$2:BN$500,$AS$2:$AS$500,1,$AX$2:$AX$500,Visor!$Q$8))/(SUMIFS(BM$2:BM$500,$AS$2:$AS$500,2,$AX$2:$AX$500,Visor!$Q$8)+SUMIFS(BM$2:BM$500,$AS$2:$AS$500,1,$AX$2:$AX$500,Visor!$Q$8))-1,"") -> -0.009427127232 | CT15: =IFERROR((SUMIFS(BO$2:BO$500,$AS$2:$AS$500,2,$AX$2:$AX$500,Visor!$Q$8)+SUMIFS(BO$2:BO$500,$AS$2:$AS$500,1,$AX$2:$AX$500,Visor!$Q$8))/(SUMIFS(BN$2:BN$500,$AS$2:$AS$500,2,$AX$2:$AX$500,Visor!$Q$8)+SUMIFS(BN$2:BN$500,$AS$2:$AS$500,1,$AX$2:$AX$500,Visor!$Q$8))-1,"") -> 0.03057301604 | CU15: =IFERROR((SUMIFS(BP$2:BP$500,$AS$2:$AS$500,2,$AX$2:$AX$500,Visor!$Q$8)+SUMIFS(BP$2:BP$500,$AS$2:$AS$500,1,$AX$2:$AX$500,Visor!$Q$8))/(SUMIFS(BO$2:BO$500,$AS$2:$AS$500,2,$AX$2:$AX$500,Visor!$Q$8)+SUMIFS(BO$2:BO$500,$AS$2:$AS$500,1,$AX$2:$AX$500,Visor!$Q$8))-1,"") -> 0.01299111741 | CV15: =IFERROR((SUMIFS(BQ$2:BQ$500,$AS$2:$AS$500,2,$AX$2:$AX$500,Visor!$Q$8)+SUMIFS(BQ$2:BQ$500,$AS$2:$AS$500,1,$AX$2:$AX$500,Visor!$Q$8))/(SUMIFS(BP$2:BP$500,$AS$2:$AS$500,2,$AX$2:$AX$500,Visor!$Q$8)+SUMIFS(BP$2:BP$500,$AS$2:$AS$500,1,$AX$2:$AX$500,Visor!$Q$8))-1,"") -> 0.01120292859 | CW15: =IFERROR((SUMIFS(BR$2:BR$500,$AS$2:$AS$500,2,$AX$2:$AX$500,Visor!$Q$8)+SUMIFS(BR$2:BR$500,$AS$2:$AS$500,1,$AX$2:$AX$500,Visor!$Q$8))/(SUMIFS(BQ$2:BQ$500,$AS$2:$AS$500,2,$AX$2:$AX$500,Visor!$Q$8)+SUMIFS(BQ$2:BQ$500,$AS$2:$AS$500,1,$AX$2:$AX$500,Visor!$Q$8))-1,"") -> 0.002957314301 | CX15: =IFERROR((SUMIFS(BS$2:BS$500,$AS$2:$AS$500,2,$AX$2:$AX$500,Visor!$Q$8)+SUMIFS(BS$2:BS$500,$AS$2:$AS$500,1,$AX$2:$AX$500,Visor!$Q$8))/(SUMIFS(BR$2:BR$500,$AS$2:$AS$500,2,$AX$2:$AX$500,Visor!$Q$8)+SUMIFS(BR$2:BR$500,$AS$2:$AS$500,1,$AX$2:$AX$500,Visor!$Q$8))-1,"") -> 0.003019454678 | CY15: =IFERROR((SUMIFS(BT$2:BT$500,$AS$2:$AS$500,2,$AX$2:$AX$500,Visor!$Q$8)+SUMIFS(BT$2:BT$500,$AS$2:$AS$500,1,$AX$2:$AX$500,Visor!$Q$8))/(SUMIFS(BS$2:BS$500,$AS$2:$AS$500,2,$AX$2:$AX$500,Visor!$Q$8)+SUMIFS(BS$2:BS$500,$AS$2:$AS$500,1,$AX$2:$AX$500,Visor!$Q$8))-1,"") -> 0.007388469006 | CZ15: =IFERROR((SUMIFS(BU$2:BU$500,$AS$2:$AS$500,2,$AX$2:$AX$500,Visor!$Q$8)+SUMIFS(BU$2:BU$500,$AS$2:$AS$500,1,$AX$2:$AX$500,Visor!$Q$8))/(SUMIFS(BT$2:BT$500,$AS$2:$AS$500,2,$AX$2:$AX$500,Visor!$Q$8)+SUMIFS(BT$2:BT$500,$AS$2:$AS$500,1,$AX$2:$AX$500,Visor!$Q$8))-1,"") -> 0.01793071404 | DA15: =IFERROR((SUMIFS(BV$2:BV$500,$AS$2:$AS$500,2,$AX$2:$AX$500,Visor!$Q$8)+SUMIFS(BV$2:BV$500,$AS$2:$AS$500,1,$AX$2:$AX$500,Visor!$Q$8))/(SUMIFS(BU$2:BU$500,$AS$2:$AS$500,2,$AX$2:$AX$500,Visor!$Q$8)+SUMIFS(BU$2:BU$500,$AS$2:$AS$500,1,$AX$2:$AX$500,Visor!$Q$8))-1,"") -> 0.01496687397 | DB15: =IFERROR((SUMIFS(BW$2:BW$500,$AS$2:$AS$500,2,$AX$2:$AX$500,Visor!$Q$8)+SUMIFS(BW$2:BW$500,$AS$2:$AS$500,1,$AX$2:$AX$500,Visor!$Q$8))/(SUMIFS(BV$2:BV$500,$AS$2:$AS$500,2,$AX$2:$AX$500,Visor!$Q$8)+SUMIFS(BV$2:BV$500,$AS$2:$AS$500,1,$AX$2:$AX$500,Visor!$Q$8))-1,"") -> 0.01132237169 | DC15: =IFERROR((SUMIFS(BX$2:BX$500,$AS$2:$AS$500,2,$AX$2:$AX$500,Visor!$Q$8)+SUMIFS(BX$2:BX$500,$AS$2:$AS$500,1,$AX$2:$AX$500,Visor!$Q$8))/(SUMIFS(BW$2:BW$500,$AS$2:$AS$500,2,$AX$2:$AX$500,Visor!$Q$8)+SUMIFS(BW$2:BW$500,$AS$2:$AS$500,1,$AX$2:$AX$500,Visor!$Q$8))-1,"") -> 0.008047441703 | DD15: =IFERROR((SUMIFS(BY$2:BY$500,$AS$2:$AS$500,2,$AX$2:$AX$500,Visor!$Q$8)+SUMIFS(BY$2:BY$500,$AS$2:$AS$500,1,$AX$2:$AX$500,Visor!$Q$8))/(SUMIFS(BX$2:BX$500,$AS$2:$AS$500,2,$AX$2:$AX$500,Visor!$Q$8)+SUMIFS(BX$2:BX$500,$AS$2:$AS$500,1,$AX$2:$AX$500,Visor!$Q$8))-1,"") -> -0.03453642454 | DE15: =IFERROR((SUMIFS(BZ$2:BZ$500,$AS$2:$AS$500,2,$AX$2:$AX$500,Visor!$Q$8)+SUMIFS(BZ$2:BZ$500,$AS$2:$AS$500,1,$AX$2:$AX$500,Visor!$Q$8))/(SUMIFS(BY$2:BY$500,$AS$2:$AS$500,2,$AX$2:$AX$500,Visor!$Q$8)+SUMIFS(BY$2:BY$500,$AS$2:$AS$500,1,$AX$2:$AX$500,Visor!$Q$8))-1,"") -> -0.008814923859 | DF15: =IFERROR((SUMIFS(CA$2:CA$500,$AS$2:$AS$500,2,$AX$2:$AX$500,Visor!$Q$8)+SUMIFS(CA$2:CA$500,$AS$2:$AS$500,1,$AX$2:$AX$500,Visor!$Q$8))/(SUMIFS(BZ$2:BZ$500,$AS$2:$AS$500,2,$AX$2:$AX$500,Visor!$Q$8)+SUMIFS(BZ$2:BZ$500,$AS$2:$AS$500,1,$AX$2:$AX$500,Visor!$Q$8))-1,"") -> 0.02458572044
A16: 5631 | B16: 56312 | C16: 2 | D16: 5 | E16: 631 | F16: 631 | G16: ANTIOQUIA | H16: SABANETA | I16: Dep_sec_priv | J16: 2254 | K16: 1676 | L16: 21316 | M16: 21669 | N16: 21588 | O16: 20083 | P16: 19937 | Q16: 19781 | R16: 19952 | S16: 20406 | T16: 20788 | U16: 21224 | V16: 22120 | W16: 21856 | X16: 21776 | Y16: 22115 | Z16: 22477 | AA16: 22434 | AB16: 22373 | AC16: 22258 | AD16: 22653 | AE16: 23052 | AF16: 23644 | AG16: 24101 | AH16: 24193 | AI16: 23812 | AJ16: 23691 | AK16: 24280 | AL16: FALSO | CG16: Dep.Privados | CH16: =IFERROR(SUMIFS(BC$2:BC$500,$AS$2:$AS$500,2,$AX$2:$AX$500,Visor!$Q$8)/SUMIFS(BB$2:BB$500,$AS$2:$AS$500,2,$AX$2:$AX$500,Visor!$Q$8)-1,"") -> 0.01735108595 | CI16: =IFERROR(SUMIFS(BD$2:BD$500,$AS$2:$AS$500,2,$AX$2:$AX$500,Visor!$Q$8)/SUMIFS(BC$2:BC$500,$AS$2:$AS$500,2,$AX$2:$AX$500,Visor!$Q$8)-1,"") -> -0.01119110651 | CJ16: =IFERROR(SUMIFS(BE$2:BE$500,$AS$2:$AS$500,2,$AX$2:$AX$500,Visor!$Q$8)/SUMIFS(BD$2:BD$500,$AS$2:$AS$500,2,$AX$2:$AX$500,Visor!$Q$8)-1,"") -> -0.06802663793 | CK16: =IFERROR(SUMIFS(BF$2:BF$500,$AS$2:$AS$500,2,$AX$2:$AX$500,Visor!$Q$8)/SUMIFS(BE$2:BE$500,$AS$2:$AS$500,2,$AX$2:$AX$500,Visor!$Q$8)-1,"") -> -0.01147241529 | CL16: =IFERROR(SUMIFS(BG$2:BG$500,$AS$2:$AS$500,2,$AX$2:$AX$500,Visor!$Q$8)/SUMIFS(BF$2:BF$500,$AS$2:$AS$500,2,$AX$2:$AX$500,Visor!$Q$8)-1,"") -> -0.004698482983 | CM16: =IFERROR(SUMIFS(BH$2:BH$500,$AS$2:$AS$500,2,$AX$2:$AX$500,Visor!$Q$8)/SUMIFS(BG$2:BG$500,$AS$2:$AS$500,2,$AX$2:$AX$500,Visor!$Q$8)-1,"") -> 0.006119239341 | CN16: =IFERROR(SUMIFS(BI$2:BI$500,$AS$2:$AS$500,2,$AX$2:$AX$500,Visor!$Q$8)/SUMIFS(BH$2:BH$500,$AS$2:$AS$500,2,$AX$2:$AX$500,Visor!$Q$8)-1,"") -> -0.0001210373187 | CO16: =IFERROR(SUMIFS(BJ$2:BJ$500,$AS$2:$AS$500,2,$AX$2:$AX$500,Visor!$Q$8)/SUMIFS(BI$2:BI$500,$AS$2:$AS$500,2,$AX$2:$AX$500,Visor!$Q$8)-1,"") -> 0.01491046286 | CP16: =IFERROR(SUMIFS(BK$2:BK$500,$AS$2:$AS$500,2,$AX$2:$AX$500,Visor!$Q$8)/SUMIFS(BJ$2:BJ$500,$AS$2:$AS$500,2,$AX$2:$AX$500,Visor!$Q$8)-1,"") -> 0.01052131089 | CQ16: =IFERROR(SUMIFS(BL$2:BL$500,$AS$2:$AS$500,2,$AX$2:$AX$500,Visor!$Q$8)/SUMIFS(BK$2:BK$500,$AS$2:$AS$500,2,$AX$2:$AX$500,Visor!$Q$8)-1,"") -> 0.01296294208 | CR16: =IFERROR(SUMIFS(BM$2:BM$500,$AS$2:$AS$500,2,$AX$2:$AX$500,Visor!$Q$8)/SUMIFS(BL$2:BL$500,$AS$2:$AS$500,2,$AX$2:$AX$500,Visor!$Q$8)-1,"") -> -0.004262768521 | CS16: =IFERROR(SUMIFS(BN$2:BN$500,$AS$2:$AS$500,2,$AX$2:$AX$500,Visor!$Q$8)/SUMIFS(BM$2:BM$500,$AS$2:$AS$500,2,$AX$2:$AX$500,Visor!$Q$8)-1,"") -> -0.007819976005 | CT16: =IFERROR(SUMIFS(BO$2:BO$500,$AS$2:$AS$500,2,$AX$2:$AX$500,Visor!$Q$8)/SUMIFS(BN$2:BN$500,$AS$2:$AS$500,2,$AX$2:$AX$500,Visor!$Q$8)-1,"") -> 0.01795622365 | CU16: =IFERROR(SUMIFS(BP$2:BP$500,$AS$2:$AS$500,2,$AX$2:$AX$500,Visor!$Q$8)/SUMIFS(BO$2:BO$500,$AS$2:$AS$500,2,$AX$2:$AX$500,Visor!$Q$8)-1,"") -> 0.01153795052 | CV16: =IFERROR(SUMIFS(BQ$2:BQ$500,$AS$2:$AS$500,2,$AX$2:$AX$500,Visor!$Q$8)/SUMIFS(BP$2:BP$500,$AS$2:$AS$500,2,$AX$2:$AX$500,Visor!$Q$8)-1,"") -> 0.004544477239 | CW16: =IFERROR(SUMIFS(BR$2:BR$500,$AS$2:$AS$500,2,$AX$2:$AX$500,Visor!$Q$8)/SUMIFS(BQ$2:BQ$500,$AS$2:$AS$500,2,$AX$2:$AX$500,Visor!$Q$8)-1,"") -> -0.0003907108876 | CX16: =IFERROR(SUMIFS(BS$2:BS$500,$AS$2:$AS$500,2,$AX$2:$AX$500,Visor!$Q$8)/SUMIFS(BR$2:BR$500,$AS$2:$AS$500,2,$AX$2:$AX$500,Visor!$Q$8)-1,"") -> 0.005978188721 | CY16: =IFERROR(SUMIFS(BT$2:BT$500,$AS$2:$AS$500,2,$AX$2:$AX$500,Visor!$Q$8)/SUMIFS(BS$2:BS$500,$AS$2:$AS$500,2,$AX$2:$AX$500,Visor!$Q$8)-1,"") -> 0.008478626578 | CZ16: =IFERROR(SUMIFS(BU$2:BU$500,$AS$2:$AS$500,2,$AX$2:$AX$500,Visor!$Q$8)/SUMIFS(BT$2:BT$500,$AS$2:$AS$500,2,$AX$2:$AX$500,Visor!$Q$8)-1,"") -> 0.01465154939 | DA16: =IFERROR(SUMIFS(BV$2:BV$500,$AS$2:$AS$500,2,$AX$2:$AX$500,Visor!$Q$8)/SUMIFS(BU$2:BU$500,$AS$2:$AS$500,2,$AX$2:$AX$500,Visor!$Q$8)-1,"") -> 0.01309662167 | DB16: =IFERROR(SUMIFS(BW$2:BW$500,$AS$2:$AS$500,2,$AX$2:$AX$500,Visor!$Q$8)/SUMIFS(BV$2:BV$500,$AS$2:$AS$500,2,$AX$2:$AX$500,Visor!$Q$8)-1,"") -> 0.01139749719 | DC16: =IFERROR(SUMIFS(BX$2:BX$500,$AS$2:$AS$500,2,$AX$2:$AX$500,Visor!$Q$8)/SUMIFS(BW$2:BW$500,$AS$2:$AS$500,2,$AX$2:$AX$500,Visor!$Q$8)-1,"") -> 0.009628399016 | DD16: =IFERROR(SUMIFS(BY$2:BY$500,$AS$2:$AS$500,2,$AX$2:$AX$500,Visor!$Q$8)/SUMIFS(BX$2:BX$500,$AS$2:$AS$500,2,$AX$2:$AX$500,Visor!$Q$8)-1,"") -> -0.01047392979 | DE16: =IFERROR(SUMIFS(BZ$2:BZ$500,$AS$2:$AS$500,2,$AX$2:$AX$500,Visor!$Q$8)/SUMIFS(BY$2:BY$500,$AS$2:$AS$500,2,$AX$2:$AX$500,Visor!$Q$8)-1,"") -> -0.005783029084 | DF16: =IFERROR(SUMIFS(CA$2:CA$500,$AS$2:$AS$500,2,$AX$2:$AX$500,Visor!$Q$8)/SUMIFS(BZ$2:BZ$500,$AS$2:$AS$500,2,$AX$2:$AX$500,Visor!$Q$8)-1,"") -> 0.01216137879
A17: 13001 | B17: 130012 | C17: 2 | D17: 13 | E17: 1 | F17: 001 | G17: BOLÍVAR | H17: CARTAGENA | I17: Dep_sec_priv | J17: 24787 | K17: 16607 | L17: 212984 | M17: 215648 | N17: 212090 | O17: 192503 | P17: 190347 | Q17: 187729 | R17: 186192 | S17: 186988 | T17: 188796 | U17: 192470 | V17: 196494 | W17: 198740 | X17: 193980 | Y17: 200196 | Z17: 206086 | AA17: 205035 | AB17: 203438 | AC17: 204971 | AD17: 207709 | AE17: 211604 | AF17: 215895 | AG17: 219730 | AH17: 222348 | AI17: 222053 | AJ17: 219143 | AK17: 223286 | AL17: FALSO
A18: 68013 | B18: 680132 | C18: 2 | D18: 68 | E18: 13 | F18: 013 | G18: SANTANDER | H18: AGUADA | I18: Dep_sec_priv | J18: 40 | K18: 22 | L18: 888 | M18: 1713 | N18: 841 | O18: 791 | P18: 713 | Q18: 782 | R18: 833 | S18: 709 | T18: 716 | U18: 703 | V18: 842 | W18: 1014 | X18: 982 | Y18: 982 | Z18: 1883 | AA18: 757 | AB18: 779 | AC18: 1645 | AD18: 708 | AE18: 742 | AF18: 962 | AG18: 1385 | AH18: 373 | AI18: 472 | AJ18: 399 | AK18: 380 | AL18: FALSO
A19: 25126 | B19: 251263 | C19: 3 | D19: 25 | E19: 126 | F19: 126 | G19: CUNDINAMARCA | H19: CAJICÁ | I19: Independiente | J19: 408 | K19: 234 | L19: 4443 | M19: 4545 | N19: 4610 | O19: 4427 | P19: 4458 | Q19: 4558 | R19: 4714 | S19: 4751 | T19: 4909 | U19: 5038 | V19: 5057 | W19: 5041 | X19: 4981 | Y19: 5159 | Z19: 5261 | AA19: 5351 | AB19: 5405 | AC19: 5441 | AD19: 5464 | AE19: 5545 | AF19: 5614 | AG19: 5652 | AH19: 5678 | AI19: 5624 | AJ19: 5532 | AK19: 5598 | AL19: FALSO
A20: 41001 | B20: 410013 | C20: 3 | D20: 41 | E20: 1 | F20: 001 | G20: HUILA | H20: NEIVA | I20: Independiente | J20: 1990 | K20: 954 | L20: 20337 | M20: 21016 | N20: 20992 | O20: 20204 | P20: 20287 | Q20: 20600 | R20: 20987 | S20: 21392 | T20: 21901 | U20: 22276 | V20: 22583 | W20: 22256 | X20: 20707 | Y20: 21726 | Z20: 22161 | AA20: 22476 | AB20: 22437 | AC20: 22616 | AD20: 22852 | AE20: 23022 | AF20: 23168 | AG20: 23387 | AH20: 23509 | AI20: 23095 | AJ20: 22505 | AK20: 22578 | AL20: FALSO
A21: 5001 | B21: 50013 | C21: 3 | D21: 5 | E21: 1 | F21: 001 | G21: ANTIOQUIA | H21: MEDELLÍN | I21: Independiente | J21: 12542 | K21: 6536 | L21: 193259 | M21: 195042 | N21: 193308 | O21: 185615 | P21: 186401 | Q21: 189463 | R21: 191192 | S21: 192906 | T21: 195416 | U21: 197717 | V21: 199628 | W21: 198483 | X21: 193519 | Y21: 195100 | Z21: 196983 | AA21: 197624 | AB21: 198432 | AC21: 199052 | AD21: 199179 | AE21: 201305 | AF21: 202620 | AG21: 203211 | AH21: 204250 | AI21: 201323 | AJ21: 194847 | AK21: 193859 | AL21: FALSO
A22: 63001 | B22: 630013 | C22: 3 | D22: 63 | E22: 1 | F22: 001 | G22: QUINDÍO | H22: ARMENIA | I22: Independiente | J22: 1465 | K22: 730 | L22: 22518 | M22: 23405 | N22: 23332 | O22: 22482 | P22: 22366 | Q22: 22306 | R22: 22220 | S22: 22369 | T22: 22602 | U22: 22894 | V22: 23541 | W22: 23342 | X22: 22074 | Y22: 23082 | Z22: 23380 | AA22: 23456 | AB22: 23399 | AC22: 23554 | AD22: 23631 | AE22: 23713 | AF22: 23986 | AG22: 24149 | AH22: 24242 | AI22: 23732 | AJ22: 24390 | AK22: 24274 | AL22: FALSO
A23: 23001 | B23: 230012 | C23: 2 | D23: 23 | E23: 1 | F23: 001 | G23: CÓRDOBA | H23: MONTERÍA | I23: Dep_sec_priv | J23: 8127 | K23: 4833 | L23: 69702 | M23: 72007 | N23: 73611 | O23: 69001 | P23: 70744 | Q23: 70783 | R23: 70773 | S23: 71057 | T23: 71998 | U23: 73257 | V23: 74681 | W23: 74310 | X23: 68926 | Y23: 70501 | Z23: 72195 | AA23: 72723 | AB23: 73710 | AC23: 74708 | AD23: 75165 | AE23: 76280 | AF23: 78509 | AG23: 79174 | AH23: 81369 | AI23: 80780 | AJ23: 75776 | AK23: 77541 | AL23: FALSO
A24: 23001 | B24: 230013 | C24: 3 | D24: 23 | E24: 1 | F24: 001 | G24: CÓRDOBA | H24: MONTERÍA | I24: Independiente | J24: 1695 | K24: 789 | L24: 15780 | M24: 16248 | N24: 16210 | O24: 15565 | P24: 15560 | Q24: 15731 | R24: 15956 | S24: 16141 | T24: 16428 | U24: 16745 | V24: 17049 | W24: 16555 | X24: 15467 | Y24: 16133 | Z24: 16770 | AA24: 17025 | AB24: 17270 | AC24: 17468 | AD24: 17613 | AE24: 17812 | AF24: 17934 | AG24: 18122 | AH24: 18168 | AI24: 17484 | AJ24: 16369 | AK24: 16713 | AL24: FALSO
A25: 68001 | B25: 680012 | C25: 2 | D25: 68 | E25: 1 | F25: 001 | G25: SANTANDER | H25: BUCARAMANGA | I25: Dep_sec_priv | J25: 26731 | K25: 19466 | L25: 242271 | M25: 248724 | N25: 247656 | O25: 224551 | P25: 222116 | Q25: 224781 | R25: 226420 | S25: 227915 | T25: 231298 | U25: 234370 | V25: 238293 | W25: 237014 | X25: 231570 | Y25: 238511 | Z25: 241688 | AA25: 242360 | AB25: 241647 | AC25: 245226 | AD25: 248258 | AE25: 251784 | AF25: 252888 | AG25: 254231 | AH25: 258235 | AI25: 254551 | AJ25: 250861 | AK25: 253536 | AL25: FALSO
A26: 8001 | B26: 80013 | C26: 3 | D26: 8 | E26: 1 | F26: 001 | G26: ATLÁNTICO | H26: BARRANQUILLA | I26: Independiente | J26: 7237 | K26: 3706 | L26: 61739 | M26: 63134 | N26: 63178 | O26: 68149 | P26: 67822 | Q26: 62585 | R26: 62835 | S26: 63437 | T26: 64661 | U26: 65723 | V26: 66180 | W26: 64126 | X26: 60987 | Y26: 61972 | Z26: 63937 | AA26: 65526 | AB26: 66685 | AC26: 67128 | AD26: 67116 | AE26: 67726 | AF26: 68224 | AG26: 68473 | AH26: 68503 | AI26: 65159 | AJ26: 62434 | AK26: 63823 | AL26: FALSO
A27: 25175 | B27: 251753 | C27: 3 | D27: 25 | E27: 175 | F27: 175 | G27: CUNDINAMARCA | H27: CHÍA | I27: Independiente | J27: 530 | K27: 343 | L27: 10171 | M27: 10210 | N27: 10093 | O27: 9797 | P27: 9866 | Q27: 10049 | R27: 10156 | S27: 10154 | T27: 10252 | U27: 10392 | V27: 10510 | W27: 10563 | X27: 10330 | Y27: 10518 | Z27: 10732 | AA27: 10810 | AB27: 10912 | AC27: 10915 | AD27: 11001 | AE27: 11009 | AF27: 11066 | AG27: 11085 | AH27: 11027 | AI27: 11054 | AJ27: 10804 | AK27: 10531 | AL27: FALSO
A28: 50006 | B28: 500063 | C28: 3 | D28: 50 | E28: 6 | F28: 006 | G28: META | H28: ACACÍAS | I28: Independiente | J28: 204 | K28: 86 | L28: 2440 | M28: 2507 | N28: 2502 | O28: 2385 | P28: 2360 | Q28: 2421 | R28: 2401 | S28: 2443 | T28: 2465 | U28: 2536 | V28: 2546 | W28: 2577 | X28: 2399 | Y28: 2476 | Z28: 2540 | AA28: 2582 | AB28: 2641 | AC28: 2656 | AD28: 2741 | AE28: 2717 | AF28: 2732 | AG28: 2718 | AH28: 2710 | AI28: 2704 | AJ28: 2624 | AK28: 2580 | AL28: FALSO | CG28: Novedades | CH28: Privados | CJ28: Independientes | CN28: Privados | CP28: Independientes
A29: 68001 | B29: 680011 | C29: 1 | D29: 68 | E29: 1 | F29: 001 | G29: SANTANDER | H29: BUCARAMANGA | I29: Dep_No_priv | J29: 9890 | K29: 2976 | L29: 36344 | M29: 42583 | N29: 44926 | O29: 35326 | P29: 36383 | Q29: 46282 | R29: 33671 | S29: 36751 | T29: 38674 | U29: 46674 | V29: 41293 | W29: 38402 | X29: 30924 | Y29: 38511 | Z29: 41393 | AA29: 42687 | AB29: 44031 | AC29: 43982 | AD29: 49396 | AE29: 54122 | AF29: 54634 | AG29: 55233 | AH29: 64761 | AI29: 37671 | AJ29: 34474 | AK29: 41324 | AL29: FALSO | CH29: Ingresos | CI29: Retiros | CJ29: Ingresos | CK29: Retiros | CN29: Ingresos | CO29: Retiros | CP29: Ingresos | CQ29: Retiros
A30: 73001 | B30: 730013 | C30: 3 | D30: 73 | E30: 1 | F30: 001 | G30: TOLIMA | H30: IBAGUÉ | I30: Independiente | J30: 2876 | K30: 1535 | L30: 29323 | M30: 29804 | N30: 29791 | O30: 29117 | P30: 29273 | Q30: 29773 | R30: 29904 | S30: 30158 | T30: 30484 | U30: 31172 | V30: 31690 | W30: 31375 | X30: 29138 | Y30: 30199 | Z30: 30918 | AA30: 31209 | AB30: 31561 | AC30: 31912 | AD30: 32403 | AE30: 32766 | AF30: 33107 | AG30: 33437 | AH30: 33503 | AI30: 32700 | AJ30: 31645 | AK30: 31936 | AL30: FALSO | CG30: =Visor!$Q$7 -> BOGOTÁ, D.C. | CH30: =SUMIFS($AZ$2:$AZ$500,$AY$2:$AY$500,"Dep_sec_priv") -> 283793 | CI30: =SUMIFS($BA$2:$BA$500,$AY$2:$AY$500,"Dep_sec_priv") -> 211661 | CJ30: =SUMIFS($AZ$2:$AZ$500,$AY$2:$AY$500,"Independiente") -> 56240 | CK30: =SUMIFS($BA$2:$BA$500,$AY$2:$AY$500,"Independiente") -> 41383 | CM30: =Visor!$Q$7 -> BOGOTÁ, D.C. | CN30: =CH30/CH$30 -> 1 | CO30: 1 | CP30: 1 | CQ30: 1
A31: 8001 | B31: 80012 | C31: 2 | D31: 8 | E31: 1 | F31: 001 | G31: ATLÁNTICO | H31: BARRANQUILLA | I31: Dep_sec_priv | J31: 42079 | K31: 34559 | L31: 388944 | M31: 393728 | N31: 391258 | O31: 362261 | P31: 363664 | Q31: 366545 | R31: 369682 | S31: 369868 | T31: 374228 | U31: 378826 | V31: 381751 | W31: 380244 | X31: 374006 | Y31: 381647 | Z31: 389510 | AA31: 390454 | AB31: 392785 | AC31: 397973 | AD31: 402965 | AE31: 408734 | AF31: 413267 | AG31: 417875 | AH31: 421832 | AI31: 418877 | AJ31: 409048 | AK31: 412984 | AL31: FALSO | CG31: =Visor!$Q$8 -> BOGOTÁ, D.C. | CH31: =SUMIFS($AZ$2:$AZ$500,$AY$2:$AY$500,"Dep_sec_priv",$AX$2:$AX$500,Visor!$Q$8) -> 283793 | CI31: =SUMIFS($BA$2:$BA$500,$AY$2:$AY$500,"Dep_sec_priv",$AX$2:$AX$500,Visor!$Q$8) -> 211661 | CJ31: =SUMIFS($AZ$2:$AZ$500,$AY$2:$AY$500,"Independiente",$AX$2:$AX$500,Visor!$Q$8) -> 56240 | CK31: =SUMIFS($BA$2:$BA$500,$AY$2:$AY$500,"Independiente",$AX$2:$AX$500,Visor!$Q$8) -> 41383 | CM31: =Visor!$Q$8 -> BOGOTÁ, D.C. | CN31: 1 | CO31: 1 | CP31: 1 | CQ31: 1
A32: 19698 | B32: 196982 | C32: 2 | D32: 19 | E32: 698 | F32: 698 | G32: CAUCA | H32: SANTANDER DE QUILICHAO | I32: Dep_sec_priv | J32: 1180 | K32: 442 | L32: 7032 | M32: 7997 | N32: 8081 | O32: 7657 | P32: 7515 | Q32: 7394 | R32: 7535 | S32: 7765 | T32: 7762 | U32: 7882 | V32: 7689 | W32: 7721 | X32: 6759 | Y32: 7641 | Z32: 7779 | AA32: 7876 | AB32: 7654 | AC32: 7834 | AD32: 8153 | AE32: 8102 | AF32: 8184 | AG32: 8196 | AH32: 8273 | AI32: 8042 | AJ32: 7110 | AK32: 7779 | AL32: FALSO
A33: 41001 | B33: 410012 | C33: 2 | D33: 41 | E33: 1 | F33: 001 | G33: HUILA | H33: NEIVA | I33: Dep_sec_priv | J33: 9978 | K33: 7130 | L33: 73459 | M33: 75967 | N33: 74671 | O33: 67159 | P33: 67090 | Q33: 67441 | R33: 68382 | S33: 69093 | T33: 70940 | U33: 72270 | V33: 73666 | W33: 72553 | X33: 69852 | Y33: 72313 | Z33: 73343 | AA33: 73875 | AB33: 72380 | AC33: 73749 | AD33: 75403 | AE33: 77655 | AF33: 78555 | AG33: 79384 | AH33: 80416 | AI33: 79437 | AJ33: 77443 | AK33: 79482 | AL33: FALSO
A34: 66400 | B34: 664002 | C34: 2 | D34: 66 | E34: 400 | F34: 400 | G34: RISARALDA | H34: LA VIRGINIA | I34: Dep_sec_priv | J34: 291 | K34: 168 | L34: 2794 | M34: 2773 | N34: 2852 | O34: 2750 | P34: 2863 | Q34: 2780 | R34: 2803 | S34: 2870 | T34: 2864 | U34: 2908 | V34: 2962 | W34: 2785 | X34: 2698 | Y34: 2700 | Z34: 2864 | AA34: 2878 | AB34: 2873 | AC34: 2920 | AD34: 2818 | AE34: 2810 | AF34: 2904 | AG34: 3027 | AH34: 3192 | AI34: 3085 | AJ34: 2976 | AK34: 3059 | AL34: FALSO
A35: 73349 | B35: 733493 | C35: 3 | D35: 73 | E35: 349 | F35: 349 | G35: TOLIMA | H35: HONDA | I35: Independiente | J35: 65 | K35: 24 | L35: 968 | M35: 993 | N35: 1000 | O35: 976 | P35: 987 | Q35: 1021 | R35: 1032 | S35: 1027 | T35: 1026 | U35: 1038 | V35: 1036 | W35: 1051 | X35: 965 | Y35: 992 | Z35: 994 | AA35: 995 | AB35: 993 | AC35: 1009 | AD35: 1039 | AE35: 1028 | AF35: 1051 | AG35: 1064 | AH35: 1059 | AI35: 1034 | AJ35: 987 | AK35: 992 | AL35: FALSO
A36: 50001 | B36: 500013 | C36: 3 | D36: 50 | E36: 1 | F36: 001 | G36: META | H36: VILLAVICENCIO | I36: Independiente | J36: 2423 | K36: 1133 | L36: 25813 | M36: 26360 | N36: 26173 | O36: 24700 | P36: 24855 | Q36: 25468 | R36: 25808 | S36: 26073 | T36: 26761 | U36: 27365 | V36: 27644 | W36: 27502 | X36: 25191 | Y36: 26398 | Z36: 27243 | AA36: 27688 | AB36: 27619 | AC36: 27781 | AD36: 28171 | AE36: 28665 | AF36: 28885 | AG36: 29069 | AH36: 29270 | AI36: 28677 | AJ36: 27517 | AK36: 27445 | AL36: FALSO
A37: 54405 | B37: 544052 | C37: 2 | D37: 54 | E37: 405 | F37: 405 | G37: NORTE DE SANTANDER | H37: LOS PATIOS | I37: Dep_sec_priv | J37: 333 | K37: 173 | L37: 2227 | M37: 2270 | N37: 2251 | O37: 2189 | P37: 2377 | Q37: 2446 | R37: 2598 | S37: 2534 | T37: 2505 | U37: 2397 | V37: 2372 | W37: 2264 | X37: 2361 | Y37: 2477 | Z37: 2532 | AA37: 2579 | AB37: 2713 | AC37: 2719 | AD37: 2821 | AE37: 2859 | AF37: 2868 | AG37: 2831 | AH37: 2905 | AI37: 2781 | AJ37: 2767 | AK37: 2846 | AL37: FALSO
A38: 50226 | B38: 502263 | C38: 3 | D38: 50 | E38: 226 | F38: 226 | G38: META | H38: CUMARAL | I38: Independiente | J38: 88 | K38: 68 | L38: 462 | M38: 556 | N38: 567 | O38: 502 | P38: 496 | Q38: 515 | R38: 498 | S38: 530 | T38: 582 | U38: 596 | V38: 601 | W38: 597 | X38: 507 | Y38: 573 | Z38: 592 | AA38: 594 | AB38: 631 | AC38: 647 | AD38: 640 | AE38: 638 | AF38: 639 | AG38: 648 | AH38: 659 | AI38: 637 | AJ38: 630 | AK38: 658 | AL38: FALSO
A39: 68895 | B39: 688953 | C39: 3 | D39: 68 | E39: 895 | F39: 895 | G39: SANTANDER | H39: ZAPATOCA | I39: Independiente | J39: 10 | K39: 2 | L39: 223 | M39: 226 | N39: 226 | O39: 220 | P39: 226 | Q39: 229 | R39: 224 | S39: 227 | T39: 230 | U39: 231 | V39: 238 | W39: 236 | X39: 227 | Y39: 228 | Z39: 231 | AA39: 237 | AB39: 241 | AC39: 249 | AD39: 244 | AE39: 241 | AF39: 242 | AG39: 248 | AH39: 252 | AI39: 248 | AJ39: 248 | AK39: 246 | AL39: FALSO
A40: 25799 | B40: 257993 | C40: 3 | D40: 25 | E40: 799 | F40: 799 | G40: CUNDINAMARCA | H40: TENJO | I40: Independiente | J40: 53 | K40: 42 | L40: 1081 | M40: 1131 | N40: 1148 | O40: 1141 | P40: 1150 | Q40: 1147 | R40: 1177 | S40: 1196 | T40: 1199 | U40: 1217 | V40: 1209 | W40: 1209 | X40: 1178 | Y40: 1204 | Z40: 1270 | AA40: 1295 | AB40: 1284 | AC40: 1293 | AD40: 1304 | AE40: 1333 | AF40: 1335 | AG40: 1316 | AH40: 1289 | AI40: 1277 | AJ40: 1302 | AK40: 1288 | AL40: FALSO
A41: 47001 | B41: 470013 | C41: 3 | D41: 47 | E41: 1 | F41: 001 | G41: MAGDALENA | H41: SANTA MARTA | I41: Independiente | J41: 2511 | K41: 650 | L41: 18679 | M41: 19345 | N41: 20022 | O41: 19281 | P41: 19273 | Q41: 19372 | R41: 19398 | S41: 19462 | T41: 19873 | U41: 19923 | V41: 20488 | W41: 19850 | X41: 18279 | Y41: 19127 | Z41: 20291 | AA41: 20938 | AB41: 21071 | AC41: 21205 | AD41: 21068 | AE41: 21328 | AF41: 21672 | AG41: 21904 | AH41: 21969 | AI41: 21032 | AJ41: 19114 | AK41: 20119 | AL41: FALSO | CH41: Privs Feb 21 | CI41: Privs Ene 22 | CJ41: Privs Feb 22 | CK41: Ind Feb 21 | CL41: Ind Ene 22 | CM41: Ind Feb 22
A42: 68276 | B42: 682763 | C42: 3 | D42: 68 | E42: 276 | F42: 276 | G42: SANTANDER | H42: FLORIDABLANCA | I42: Independiente | J42: 1151 | K42: 475 | L42: 8324 | M42: 8627 | N42: 8681 | O42: 8586 | P42: 8749 | Q42: 8919 | R42: 9093 | S42: 9099 | T42: 9329 | U42: 9595 | V42: 9657 | W42: 9766 | X42: 8901 | Y42: 9204 | Z42: 9534 | AA42: 9733 | AB42: 9788 | AC42: 9921 | AD42: 10033 | AE42: 10123 | AF42: 10252 | AG42: 10270 | AH42: 10435 | AI42: 10349 | AJ42: 10102 | AK42: 10560 | AL42: FALSO | CG42: AMAZONAS | CH42: =SUMIFS($Y$2:$Y$5000,$G$2:$G$5000,$CG42,$I$2:$I$5000,"Dep_sec_priv") -> 16332 | CI42: =SUMIFS($AJ$2:$AJ$5000,$G$2:$G$5000,$CG42,$I$2:$I$5000,"Dep_sec_priv") -> 16365 | CJ42: =SUMIFS($AK$2:$AK$5000,$G$2:$G$5000,$CG42,$I$2:$I$5000,"Dep_sec_priv") -> 16488 | CK42: =SUMIFS($Y$2:$Y$5000,$G$2:$G$5000,$CG42,$I$2:$I$5000,"Independiente") -> 3145 | CL42: =SUMIFS($AJ$2:$AJ$5000,$G$2:$G$5000,$CG42,$I$2:$I$5000,"Independiente") -> 3654 | CM42: =SUMIFS($AK$2:$AK$5000,$G$2:$G$5000,$CG42,$I$2:$I$5000,"Independiente") -> 3531
A43: 19001 | B43: 190013 | C43: 3 | D43: 19 | E43: 1 | F43: 001 | G43: CAUCA | H43: POPAYÁN | I43: Independiente | J43: 2034 | K43: 950 | L43: 17639 | M43: 19165 | N43: 19413 | O43: 18503 | P43: 18103 | Q43: 18337 | R43: 18657 | S43: 18995 | T43: 19507 | U43: 20209 | V43: 20331 | W43: 19665 | X43: 17629 | Y43: 18733 | Z43: 19348 | AA43: 19587 | AB43: 19387 | AC43: 19674 | AD43: 20025 | AE43: 20293 | AF43: 20611 | AG43: 20940 | AH43: 20995 | AI43: 20645 | AJ43: 19133 | AK43: 19674 | AL43: FALSO | CG43: ANTIOQUIA | CH43: =SUMIFS($Y$2:$Y$5000,$G$2:$G$5000,$CG43,$I$2:$I$5000,"Dep_sec_priv") -> 1518359 | CI43: =SUMIFS($AJ$2:$AJ$5000,$G$2:$G$5000,$CG43,$I$2:$I$5000,"Dep_sec_priv") -> 1598205 | CJ43: =SUMIFS($AK$2:$AK$5000,$G$2:$G$5000,$CG43,$I$2:$I$5000,"Dep_sec_priv") -> 1618298 | CK43: =SUMIFS($Y$2:$Y$5000,$G$2:$G$5000,$CG43,$I$2:$I$5000,"Independiente") -> 306237 | CL43: =SUMIFS($AJ$2:$AJ$5000,$G$2:$G$5000,$CG43,$I$2:$I$5000,"Independiente") -> 315634 | CM43: =SUMIFS($AK$2:$AK$5000,$G$2:$G$5000,$CG43,$I$2:$I$5000,"Independiente") -> 318277
A44: 13001 | B44: 130013 | C44: 3 | D44: 13 | E44: 1 | F44: 001 | G44: BOLÍVAR | H44: CARTAGENA | I44: Independiente | J44: 4560 | K44: 2567 | L44: 39448 | M44: 40980 | N44: 40029 | O44: 37017 | P44: 37187 | Q44: 37360 | R44: 37639 | S44: 37821 | T44: 38584 | U44: 39624 | V44: 40806 | W44: 39099 | X44: 36955 | Y44: 38689 | Z44: 39914 | AA44: 40587 | AB44: 40851 | AC44: 40955 | AD44: 41021 | AE44: 41167 | AF44: 41806 | AG44: 42420 | AH44: 42781 | AI44: 39796 | AJ44: 39610 | AK44: 39616 | AL44: FALSO | CG44: ARAUCA | CH44: 46942 | CI44: 46343 | CJ44: 48180 | CK44: 8627 | CL44: 8720 | CM44: 8449
A45: 25307 | B45: 253073 | C45: 3 | D45: 25 | E45: 307 | F45: 307 | G45: CUNDINAMARCA | H45: GIRARDOT | I45: Independiente | J45: 573 | K45: 332 | L45: 5493 | M45: 5792 | N45: 5845 | O45: 5668 | P45: 5585 | Q45: 5513 | R45: 5634 | S45: 5580 | T45: 5643 | U45: 5717 | V45: 5816 | W45: 5783 | X45: 5231 | Y45: 5453 | Z45: 5575 | AA45: 5672 | AB45: 5810 | AC45: 5895 | AD45: 5983 | AE45: 6027 | AF45: 6157 | AG45: 6100 | AH45: 6053 | AI45: 5955 | AJ45: 5866 | AK45: 5912 | AL45: FALSO | CG45: ARCHIPIÉLAGO DE SAN ANDRÉS, PROVIDENCIA Y SANTA CATALINA | CH45: 46583 | CI45: 48119 | CJ45: 46568 | CK45: 6252 | CL45: 6717 | CM45: 7197
A46: 66001 | B46: 660013 | C46: 3 | D46: 66 | E46: 1 | F46: 001 | G46: RISARALDA | H46: PEREIRA | I46: Independiente | J46: 2346 | K46: 1115 | L46: 38597 | M46: 39101 | N46: 39137 | O46: 38135 | P46: 39833 | Q46: 39563 | R46: 39372 | S46: 39075 | T46: 39343 | U46: 39962 | V46: 40466 | W46: 40096 | X46: 38257 | Y46: 38969 | Z46: 39571 | AA46: 39462 | AB46: 39298 | AC46: 39578 | AD46: 39849 | AE46: 40074 | AF46: 40465 | AG46: 40790 | AH46: 40865 | AI46: 40144 | AJ46: 39273 | AK46: 38788 | AL46: FALSO | CG46: ATLÁNTICO | CH46: 411627 | CI46: 443107 | CJ46: 447920 | CK46: 73014 | CL46: 74539 | CM46: 77396
A47: 81300 | B47: 813002 | C47: 2 | D47: 81 | E47: 300 | F47: 300 | G47: ARAUCA | H47: FORTUL | I47: Dep_sec_priv | J47: 3862 | K47: 3158 | L47: 15155 | M47: 15500 | N47: 15912 | O47: 17747 | P47: 19084 | Q47: 20561 | R47: 21626 | S47: 24171 | T47: 24071 | U47: 24258 | V47: 24796 | W47: 24889 | X47: 24778 | Y47: 22304 | Z47: 22312 | AA47: 22093 | AB47: 21701 | AC47: 23335 | AD47: 23699 | AE47: 24033 | AF47: 24109 | AG47: 24789 | AH47: 24834 | AI47: 24800 | AJ47: 24643 | AK47: 25095 | AL47: FALSO | CG47: BOGOTÁ, D.C. | CH47: 2528872 | CI47: 2691060 | CJ47: 2723787 | CK47: 685173 | CL47: 677359 | CM47: 666093
A48: 76001 | B48: 760012 | C48: 2 | D48: 76 | E48: 1 | F48: 001 | G48: VALLE DEL CAUCA | H48: CALI | I48: Dep_sec_priv | J48: 58672 | K48: 46237 | L48: 655962 | M48: 670182 | N48: 662966 | O48: 613791 | P48: 612050 | Q48: 612236 | R48: 615138 | S48: 616563 | T48: 627311 | U48: 634620 | V48: 641958 | W48: 643547 | X48: 624883 | Y48: 638200 | Z48: 645699 | AA48: 646934 | AB48: 627767 | AC48: 631885 | AD48: 643657 | AE48: 656242 | AF48: 667536 | AG48: 670077 | AH48: 677605 | AI48: 670490 | AJ48: 656572 | AK48: 664785 | AL48: FALSO | CG48: BOLÍVAR | CH48: 217341 | CI48: 237744 | CJ48: 244440 | CK48: 46131 | CL48: 47900 | CM48: 49023
A49: 25290 | B49: 252903 | C49: 3 | D49: 25 | E49: 290 | F49: 290 | G49: CUNDINAMARCA | H49: FUSAGASUGÁ | I49: Independiente | J49: 513 | K49: 310 | L49: 8126 | M49: 8298 | N49: 8281 | O49: 8137 | P49: 8160 | Q49: 8281 | R49: 8302 | S49: 8316 | T49: 8444 | U49: 8510 | V49: 8623 | W49: 8420 | X49: 8203 | Y49: 8394 | Z49: 8558 | AA49: 8587 | AB49: 8589 | AC49: 8687 | AD49: 8718 | AE49: 8764 | AF49: 8798 | AG49: 8842 | AH49: 8824 | AI49: 8719 | AJ49: 8490 | AK49: 8447 | AL49: FALSO | CG49: BOYACÁ | CH49: 130511 | CI49: 134765 | CJ49: 138578 | CK49: 47915 | CL49: 48770 | CM49: 49357
A50: 25402 | B50: 254023 | C50: 3 | D50: 25 | E50: 402 | F50: 402 | G50: CUNDINAMARCA | H50: LA VEGA | I50: Independiente | J50: 25 | K50: 20 | L50: 620 | M50: 651 | N50: 650 | O50: 646 | P50: 647 | Q50: 663 | R50: 683 | S50: 678 | T50: 686 | U50: 687 | V50: 689 | W50: 673 | X50: 684 | Y50: 725 | Z50: 729 | AA50: 731 | AB50: 729 | AC50: 716 | AD50: 707 | AE50: 713 | AF50: 707 | AG50: 699 | AH50: 701 | AI50: 705 | AJ50: 691 | AK50: 679 | AL50: FALSO | CG50: CALDAS | CH50: 140380 | CI50: 151071 | CJ50: 153465 | CK50: 42609 | CL50: 44766 | CM50: 44758
A51: 73001 | B51: 730012 | C51: 2 | D51: 73 | E51: 1 | F51: 001 | G51: TOLIMA | H51: IBAGUÉ | I51: Dep_sec_priv | J51: 13230 | K51: 10420 | L51: 112407 | M51: 116116 | N51: 114459 | O51: 103137 | P51: 104146 | Q51: 106043 | R51: 107763 | S51: 109053 | T51: 109746 | U51: 112115 | V51: 113126 | W51: 111557 | X51: 109044 | Y51: 112109 | Z51: 113478 | AA51: 114081 | AB51: 113959 | AC51: 116028 | AD51: 116955 | AE51: 119184 | AF51: 120249 | AG51: 120934 | AH51: 121722 | AI51: 119942 | AJ51: 116886 | AK51: 117080 | AL51: FALSO | CG51: CAQUETÁ | CH51: 23610 | CI51: 24194 | CJ51: 23012 | CK51: 10780 | CL51: 11197 | CM51: 11428
A52: 25758 | B52: 257583 | C52: 3 | D52: 25 | E52: 758 | F52: 758 | G52: CUNDINAMARCA | H52: SOPÓ | I52: Independiente | J52: 225 | K52: 95 | L52: 1656 | M52: 1726 | N52: 1780 | O52: 1719 | P52: 1757 | Q52: 1771 | R52: 1798 | S52: 1813 | T52: 1849 | U52: 1844 | V52: 1855 | W52: 1748 | X52: 1688 | Y52: 1828 | Z52: 1873 | AA52: 1868 | AB52: 1882 | AC52: 1860 | AD52: 1879 | AE52: 1911 | AF52: 1891 | AG52: 1894 | AH52: 1887 | AI52: 1822 | AJ52: 1813 | AK52: 1885 | AL52: FALSO | CG52: CASANARE | CH52: 61140 | CI52: 63701 | CJ52: 65315 | CK52: 16220 | CL52: 17577 | CM52: 18121
A53: 5364 | B53: 53642 | C53: 2 | D53: 5 | E53: 364 | F53: 364 | G53: ANTIOQUIA | H53: JARDÍN | I53: Dep_sec_priv | J53: 83 | K53: 108 | L53: 880 | M53: 853 | N53: 807 | O53: 801 | P53: 839 | Q53: 855 | R53: 854 | S53: 823 | T53: 817 | U53: 906 | V53: 967 | W53: 1001 | X53: 1051 | Y53: 1022 | Z53: 971 | AA53: 1048 | AB53: 1093 | AC53: 1111 | AD53: 1098 | AE53: 1148 | AF53: 1099 | AG53: 1199 | AH53: 1216 | AI53: 1177 | AJ53: 1187 | AK53: 1185 | AL53: FALSO | CG53: CAUCA | CH53: 93068 | CI53: 92917 | CJ53: 96924 | CK53: 29069 | CL53: 29486 | CM53: 30953
A54: 15759 | B54: 157593 | C54: 3 | D54: 15 | E54: 759 | F54: 759 | G54: BOYACÁ | H54: SOGAMOSO | I54: Independiente | J54: 477 | K54: 266 | L54: 7688 | M54: 7917 | N54: 7956 | O54: 7645 | P54: 7658 | Q54: 7763 | R54: 7819 | S54: 7883 | T54: 7937 | U54: 8059 | V54: 8188 | W54: 8125 | X54: 7656 | Y54: 7913 | Z54: 8084 | AA54: 8122 | AB54: 8232 | AC54: 8299 | AD54: 8255 | AE54: 8242 | AF54: 8349 | AG54: 8417 | AH54: 8432 | AI54: 8335 | AJ54: 7787 | AK54: 7668 | AL54: FALSO | CG54: CESAR | CH54: 95059 | CI54: 101284 | CJ54: 105591 | CK54: 26397 | CL54: 28033 | CM54: 28302
A55: 15238 | B55: 152383 | C55: 3 | D55: 15 | E55: 238 | F55: 238 | G55: BOYACÁ | H55: DUITAMA | I55: Independiente | J55: 476 | K55: 227 | L55: 8020 | M55: 8217 | N55: 8211 | O55: 7937 | P55: 7933 | Q55: 7970 | R55: 8055 | S55: 8074 | T55: 8142 | U55: 8248 | V55: 8343 | W55: 8228 | X55: 7951 | Y55: 8027 | Z55: 8152 | AA55: 8208 | AB55: 8217 | AC55: 8246 | AD55: 8349 | AE55: 8302 | AF55: 8377 | AG55: 8512 | AH55: 8546 | AI55: 8330 | AJ55: 8005 | AK55: 7908 | AL55: FALSO | CG55: CHOCÓ | CH55: 70747 | CI55: 72308 | CJ55: 74518 | CK55: 7976 | CL55: 7584 | CM55: 9641
A56: 15778 | B56: 157783 | C56: 3 | D56: 15 | E56: 778 | F56: 778 | G56: BOYACÁ | H56: SUTATENZA | I56: Independiente | J56: 7 | K56: 2 | L56: 40 | M56: 45 | N56: 49 | O56: 45 | P56: 42 | Q56: 44 | R56: 38 | S56: 42 | T56: 43 | U56: 44 | V56: 52 | W56: 41 | X56: 37 | Y56: 48 | Z56: 52 | AA56: 52 | AB56: 49 | AC56: 52 | AD56: 50 | AE56: 50 | AF56: 52 | AG56: 52 | AH56: 49 | AI56: 49 | AJ56: 45 | AK56: 49 | AL56: FALSO | CG56: CÓRDOBA | CH56: 96892 | CI56: 104290 | CJ56: 107788 | CK56: 26603 | CL56: 27865 | CM56: 28671
A57: 23686 | B57: 236863 | C57: 3 | D57: 23 | E57: 686 | F57: 686 | G57: CÓRDOBA | H57: SAN PELAYO | I57: Independiente | J57: 52 | K57: 12 | L57: 141 | M57: 158 | N57: 150 | O57: 178 | P57: 196 | Q57: 205 | R57: 215 | S57: 212 | T57: 234 | U57: 245 | V57: 252 | W57: 220 | X57: 230 | Y57: 255 | Z57: 253 | AA57: 271 | AB57: 278 | AC57: 282 | AD57: 296 | AE57: 311 | AF57: 305 | AG57: 323 | AH57: 314 | AI57: 269 | AJ57: 320 | AK57: 347 | AL57: FALSO | CG57: CUNDINAMARCA | CH57: 338244 | CI57: 362186 | CJ57: 369391 | CK57: 101371 | CL57: 108425 | CM57: 110367
A58: 76834 | B58: 768343 | C58: 3 | D58: 76 | E58: 834 | F58: 834 | G58: VALLE DEL CAUCA | H58: TULUÁ | I58: Independiente | J58: 734 | K58: 277 | L58: 8063 | M58: 8302 | N58: 8365 | O58: 8159 | P58: 8164 | Q58: 8218 | R58: 8212 | S58: 8344 | T58: 8588 | U58: 8703 | V58: 8812 | W58: 8746 | X58: 8038 | Y58: 8516 | Z58: 8689 | AA58: 8698 | AB58: 8643 | AC58: 8864 | AD58: 8656 | AE58: 8910 | AF58: 9059 | AG58: 9112 | AH58: 9229 | AI58: 9120 | AJ58: 8757 | AK58: 8989 | AL58: FALSO | CG58: GUAINÍA | CH58: 8951 | CI58: 14122 | CJ58: 14279 | CK58: 1185 | CL58: 1398 | CM58: 1645
A59: 50001 | B59: 500012 | C59: 2 | D59: 50 | E59: 1 | F59: 001 | G59: META | H59: VILLAVICENCIO | I59: Dep_sec_priv | J59: 15936 | K59: 12163 | L59: 117558 | M59: 121697 | N59: 120728 | O59: 107358 | P59: 104579 | Q59: 105170 | R59: 106872 | S59: 107156 | T59: 108852 | U59: 110318 | V59: 112733 | W59: 111013 | X59: 109019 | Y59: 112697 | Z59: 114973 | AA59: 116488 | AB59: 115632 | AC59: 117286 | AD59: 118842 | AE59: 121286 | AF59: 123615 | AG59: 124571 | AH59: 125386 | AI59: 122632 | AJ59: 119463 | AK59: 123092 | AL59: FALSO | CG59: GUAVIARE | CH59: 9128 | CI59: 12180 | CJ59: 13564 | CK59: 3307 | CL59: 3419 | CM59: 3602
A60: 17001 | B60: 170013 | C60: 3 | D60: 17 | E60: 1 | F60: 001 | G60: CALDAS | H60: MANIZALES | I60: Independiente | J60: 1892 | K60: 1102 | L60: 28244 | M60: 28458 | N60: 28329 | O60: 27648 | P60: 27634 | Q60: 27749 | R60: 27980 | S60: 28007 | T60: 28171 | U60: 28574 | V60: 28957 | W60: 28747 | X60: 27912 | Y60: 28365 | Z60: 28761 | AA60: 29198 | AB60: 29414 | AC60: 29621 | AD60: 29747 | AE60: 30225 | AF60: 30453 | AG60: 30683 | AH60: 30744 | AI60: 29834 | AJ60: 29494 | AK60: 29194 | AL60: FALSO | CG60: HUILA | CH60: 95819 | CI60: 101114 | CJ60: 105091 | CK60: 37982 | CL60: 40316 | CM60: 40765
A61: 73268 | B61: 732683 | C61: 3 | D61: 73 | E61: 268 | F61: 268 | G61: TOLIMA | H61: ESPINAL | I61: Independiente | J61: 461 | K61: 104 | L61: 2320 | M61: 2650 | N61: 2752 | O61: 2728 | P61: 2674 | Q61: 2628 | R61: 2548 | S61: 2665 | T61: 2651 | U61: 2841 | V61: 2857 | W61: 2858 | X61: 2428 | Y61: 2724 | Z61: 2856 | AA61: 2887 | AB61: 2890 | AC61: 2871 | AD61: 2847 | AE61: 2835 | AF61: 3106 | AG61: 3129 | AH61: 3094 | AI61: 2995 | AJ61: 2829 | AK61: 3069 | AL61: FALSO | CG61: LA GUAJIRA | CH61: 49647 | CI61: 50051 | CJ61: 54819 | CK61: 13109 | CL61: 13043 | CM61: 15134
A62: 20001 | B62: 200013 | C62: 3 | D62: 20 | E62: 1 | F62: 001 | G62: CESAR | H62: VALLEDUPAR | I62: Independiente | J62: 1176 | K62: 586 | L62: 16477 | M62: 16999 | N62: 17546 | O62: 17017 | P62: 17057 | Q62: 17164 | R62: 17226 | S62: 17288 | T62: 17616 | U62: 18165 | V62: 18405 | W62: 17646 | X62: 15817 | Y62: 16513 | Z62: 17350 | AA62: 17633 | AB62: 17745 | AC62: 17749 | AD62: 17863 | AE62: 17992 | AF62: 18078 | AG62: 18424 | AH62: 18531 | AI62: 17852 | AJ62: 17280 | AK62: 17012 | AL62: FALSO | CG62: MAGDALENA | CH62: 102960 | CI62: 111617 | CJ62: 113480 | CK62: 27425 | CL62: 27075 | CM62: 29435
A63: 25843 | B63: 258433 | C63: 3 | D63: 25 | E63: 843 | F63: 843 | G63: CUNDINAMARCA | H63: VILLA DE SAN DIEGO DE UBATE | I63: Independiente | J63: 152 | K63: 61 | L63: 2033 | M63: 2052 | N63: 2114 | O63: 2073 | P63: 2068 | Q63: 2085 | R63: 2081 | S63: 2078 | T63: 2080 | U63: 2132 | V63: 2159 | W63: 2105 | X63: 2022 | Y63: 2077 | Z63: 2128 | AA63: 2181 | AB63: 2183 | AC63: 2194 | AD63: 2220 | AE63: 2230 | AF63: 2298 | AG63: 2307 | AH63: 2325 | AI63: 2300 | AJ63: 2284 | AK63: 2283 | AL63: FALSO | CG63: META | CH63: 150393 | CI63: 163762 | CJ63: 168912 | CK63: 37078 | CL63: 39458 | CM63: 39708
A64: 25899 | B64: 258993 | C64: 3 | D64: 25 | E64: 899 | F64: 899 | G64: CUNDINAMARCA | H64: ZIPAQUIRÁ | I64: Independiente | J64: 634 | K64: 273 | L64: 6728 | M64: 6840 | N64: 7164 | O64: 6569 | P64: 6743 | Q64: 6691 | R64: 6795 | S64: 6838 | T64: 6865 | U64: 7006 | V64: 7050 | W64: 6975 | X64: 6800 | Y64: 7013 | Z64: 7202 | AA64: 7281 | AB64: 7373 | AC64: 7519 | AD64: 7574 | AE64: 7584 | AF64: 7620 | AG64: 7643 | AH64: 7606 | AI64: 7579 | AJ64: 7473 | AK64: 7500 | AL64: FALSO | CG64: NARIÑO | CH64: 94699 | CI64: 94795 | CJ64: 96796 | CK64: 41094 | CL64: 41811 | CM64: 43516
A65: 88001 | B65: 880013 | C65: 3 | D65: 88 | E65: 1 | F65: 001 | G65: ARCHIPIÉLAGO DE SAN ANDRÉS, PROVIDENCIA Y SANTA CATALINA | H65: SAN ANDRÉS | I65: Independiente | J65: 437 | K65: 107 | L65: 5462 | M65: 5524 | N65: 5451 | O65: 5340 | P65: 5457 | Q65: 5657 | R65: 5645 | S65: 5667 | T65: 5781 | U65: 5780 | V65: 5921 | W65: 5684 | X65: 4936 | Y65: 5122 | Z65: 5402 | AA65: 5661 | AB65: 5586 | AC65: 5592 | AD65: 5505 | AE65: 5562 | AF65: 5635 | AG65: 5939 | AH65: 6122 | AI65: 5607 | AJ65: 5322 | AK65: 5704 | AL65: FALSO | CG65: SANTANDER | CH65: 348606 | CI65: 364190 | CJ65: 370727 | CK65: 103480 | CL65: 107351 | CM65: 108991
A66: 54001 | B66: 540011 | C66: 1 | D66: 54 | E66: 1 | F66: 001 | G66: NORTE DE SANTANDER | H66: CÚCUTA | I66: Dep_No_priv | J66: 3559 | K66: 2266 | L66: 19600 | M66: 26153 | N66: 29403 | O66: 23533 | P66: 21871 | Q66: 23324 | R66: 21103 | S66: 22073 | T66: 24066 | U66: 24988 | V66: 24403 | W66: 22446 | X66: 18585 | Y66: 20994 | Z66: 23094 | AA66: 24289 | AB66: 22944 | AC66: 23094 | AD66: 22750 | AE66: 27880 | AF66: 29640 | AG66: 29515 | AH66: 28734 | AI66: 24117 | AJ66: 21097 | AK66: 23589 | AL66: FALSO | CG66: PUTUMAYO | CH66: 20021 | CI66: 20098 | CJ66: 21447 | CK66: 9063 | CL66: 10022 | CM66: 10321
A67: 54001 | B67: 540013 | C67: 3 | D67: 54 | E67: 1 | F67: 001 | G67: NORTE DE SANTANDER | H67: CÚCUTA | I67: Independiente | J67: 2591 | K67: 1415 | L67: 30101 | M67: 30863 | N67: 31072 | O67: 30207 | P67: 30134 | Q67: 30325 | R67: 30408 | S67: 30768 | T67: 31279 | U67: 32056 | V67: 32380 | W67: 31643 | X67: 29825 | Y67: 30290 | Z67: 31457 | AA67: 31039 | AB67: 31990 | AC67: 32263 | AD67: 32625 | AE67: 33114 | AF67: 33583 | AG67: 33705 | AH67: 34043 | AI67: 33371 | AJ67: 31942 | AK67: 31952 | AL67: =IF(SUM(L67:AK67)=0,"VERDADERO","FALSO") -> FALSO | CG67: QUINDÍO | CH67: 76237 | CI67: 82719 | CJ67: 83099 | CK67: 28341 | CL67: 30440 | CM67: 30348
A68: 25815 | B68: 258152 | C68: 2 | D68: 25 | E68: 815 | F68: 815 | G68: CUNDINAMARCA | H68: TOCAIMA | I68: Dep_sec_priv | J68: 54 | K68: 65 | L68: 477 | M68: 478 | N68: 453 | O68: 534 | P68: 471 | Q68: 492 | R68: 515 | S68: 520 | T68: 530 | U68: 594 | V68: 603 | W68: 638 | X68: 669 | Y68: 670 | Z68: 666 | AA68: 687 | AB68: 678 | AC68: 680 | AD68: 701 | AE68: 712 | AF68: 718 | AG68: 743 | AH68: 760 | AI68: 758 | AJ68: 763 | AK68: 781 | AL68: FALSO | CG68: RISARALDA | CH68: 168020 | CI68: 178916 | CJ68: 182442 | CK68: 49945 | CL68: 51489 | CM68: 51285
A69: 25386 | B69: 253863 | C69: 3 | D69: 25 | E69: 386 | F69: 386 | G69: CUNDINAMARCA | H69: LA MESA | I69: Independiente | J69: 128 | K69: 63 | L69: 1539 | M69: 1568 | N69: 1583 | O69: 1567 | P69: 1606 | Q69: 1670 | R69: 1679 | S69: 1649 | T69: 1692 | U69: 1730 | V69: 1731 | W69: 1702 | X69: 1688 | Y69: 1724 | Z69: 1750 | AA69: 1828 | AB69: 1840 | AC69: 1843 | AD69: 1860 | AE69: 1857 | AF69: 1866 | AG69: 1842 | AH69: 1868 | AI69: 1839 | AJ69: 1748 | AK69: 1767 | AL69: FALSO | CG69: NORTE DE SANTANDER | CH69: 141984 | CI69: 151518 | CJ69: 154686 | CK69: 43264 | CL69: 45591 | CM69: 46039
A70: 17013 | B70: 170133 | C70: 3 | D70: 17 | E70: 13 | F70: 013 | G70: CALDAS | H70: AGUADAS | I70: Independiente | J70: 37 | K70: 14 | L70: 517 | M70: 538 | N70: 551 | O70: 536 | P70: 560 | Q70: 567 | R70: 589 | S70: 602 | T70: 612 | U70: 620 | V70: 623 | W70: 619 | X70: 619 | Y70: 643 | Z70: 635 | AA70: 636 | AB70: 656 | AC70: 643 | AD70: 657 | AE70: 664 | AF70: 678 | AG70: 688 | AH70: 713 | AI70: 709 | AJ70: 687 | AK70: 701 | AL70: FALSO | CG70: SUCRE | CH70: 46057 | CI70: 47100 | CJ70: 48791 | CK70: 14943 | CL70: 16036 | CM70: 15852
A71: 50689 | B71: 506893 | C71: 3 | D71: 50 | E71: 689 | F71: 689 | G71: META | H71: SAN MARTÍN | I71: Independiente | J71: 102 | K71: 50 | L71: 550 | M71: 591 | N71: 606 | O71: 615 | P71: 599 | Q71: 604 | R71: 624 | S71: 627 | T71: 632 | U71: 629 | V71: 661 | W71: 630 | X71: 543 | Y71: 595 | Z71: 631 | AA71: 642 | AB71: 681 | AC71: 687 | AD71: 679 | AE71: 711 | AF71: 759 | AG71: 746 | AH71: 805 | AI71: 746 | AJ71: 722 | AK71: 754 | AL71: FALSO | CG71: TOLIMA | CH71: 139455 | CI71: 144058 | CJ71: 145779 | CK71: 46241 | CL71: 48135 | CM71: 49083
A72: 25875 | B72: 258753 | C72: 3 | D72: 25 | E72: 875 | F72: 875 | G72: CUNDINAMARCA | H72: VILLETA | I72: Independiente | J72: 77 | K72: 39 | L72: 2034 | M72: 2045 | N72: 2043 | O72: 2009 | P72: 2042 | Q72: 2045 | R72: 2067 | S72: 2091 | T72: 2087 | U72: 2117 | V72: 2126 | W72: 2115 | X72: 2114 | Y72: 2114 | Z72: 2144 | AA72: 2181 | AB72: 2181 | AC72: 2200 | AD72: 2204 | AE72: 2182 | AF72: 2204 | AG72: 2167 | AH72: 2175 | AI72: 2132 | AJ72: 2101 | AK72: 2035 | AL72: FALSO | CG72: VALLE DEL CAUCA | CH72: 827661 | CI72: 853223 | CJ72: 863386 | CK72: 190897 | CL72: 196478 | CM72: 199464
A73: 15176 | B73: 151763 | C73: 3 | D73: 15 | E73: 176 | F73: 176 | G73: BOYACÁ | H73: CHIQUINQUIRÁ | I73: Independiente | J73: 232 | K73: 116 | L73: 2756 | M73: 2881 | N73: 2938 | O73: 2788 | P73: 2766 | Q73: 2788 | R73: 2860 | S73: 2921 | T73: 2948 | U73: 2981 | V73: 2985 | W73: 2984 | X73: 2785 | Y73: 2823 | Z73: 2917 | AA73: 2925 | AB73: 2961 | AC73: 2989 | AD73: 3049 | AE73: 3029 | AF73: 3084 | AG73: 3129 | AH73: 3086 | AI73: 3017 | AJ73: 2843 | AK73: 2839 | AL73: FALSO | CG73: VAUPÉS | CH73: 2381 | CI73: 2357 | CJ73: 2290 | CK73: 879 | CL73: 900 | CM73: 1283
A74: 85410 | B74: 854103 | C74: 3 | D74: 85 | E74: 410 | F74: 410 | G74: CASANARE | H74: TAURAMENA | I74: Independiente | J74: 97 | K74: 40 | L74: 554 | M74: 612 | N74: 601 | O74: 547 | P74: 579 | Q74: 603 | R74: 625 | S74: 623 | T74: 649 | U74: 672 | V74: 707 | W74: 706 | X74: 579 | Y74: 640 | Z74: 676 | AA74: 694 | AB74: 702 | AC74: 697 | AD74: 731 | AE74: 728 | AF74: 762 | AG74: 758 | AH74: 762 | AI74: 791 | AJ74: 703 | AK74: 713 | AL74: FALSO | CG74: VICHADA | CH74: 68662 | CI74: 83598 | CJ74: 86490 | CK74: 1926 | CL74: 1860 | CM74: 2175
A75: 15516 | B75: 155163 | C75: 3 | D75: 15 | E75: 516 | F75: 516 | G75: BOYACÁ | H75: PAIPA | I75: Independiente | J75: 100 | K75: 45 | L75: 1050 | M75: 1141 | N75: 1148 | O75: 1101 | P75: 1093 | Q75: 1141 | R75: 1167 | S75: 1178 | T75: 1212 | U75: 1238 | V75: 1253 | W75: 1269 | X75: 1199 | Y75: 1270 | Z75: 1292 | AA75: 1315 | AB75: 1347 | AC75: 1349 | AD75: 1383 | AE75: 1390 | AF75: 1404 | AG75: 1423 | AH75: 1425 | AI75: 1397 | AJ75: 1359 | AK75: 1348 | AL75: FALSO | CG75: Sin Info | CH75: 416 | CI75: 568 | CJ75: 503 | CK75: 21919 | CL75: 23207 | CM75: 22509
A76: 15001 | B76: 150012 | C76: 2 | D76: 15 | E76: 1 | F76: 001 | G76: BOYACÁ | H76: TUNJA | I76: Dep_sec_priv | J76: 6255 | K76: 3588 | L76: 48807 | M76: 50636 | N76: 51404 | O76: 45488 | P76: 45002 | Q76: 45985 | R76: 46105 | S76: 46612 | T76: 47904 | U76: 48460 | V76: 49283 | W76: 48208 | X76: 47117 | Y76: 48677 | Z76: 49255 | AA76: 49547 | AB76: 49256 | AC76: 49061 | AD76: 50084 | AE76: 51169 | AF76: 51722 | AG76: 51815 | AH76: 53978 | AI76: 52330 | AJ76: 50053 | AK76: 52168 | AL76: FALSO
A77: 25035 | B77: 250353 | C77: 3 | D77: 25 | E77: 35 | F77: 035 | G77: CUNDINAMARCA | H77: ANAPOIMA | I77: Independiente | J77: 44 | K77: 21 | L77: 526 | M77: 538 | N77: 564 | O77: 545 | P77: 538 | Q77: 536 | R77: 544 | S77: 558 | T77: 574 | U77: 571 | V77: 581 | W77: 573 | X77: 603 | Y77: 621 | Z77: 624 | AA77: 628 | AB77: 636 | AC77: 649 | AD77: 634 | AE77: 636 | AF77: 651 | AG77: 637 | AH77: 631 | AI77: 602 | AJ77: 628 | AK77: 635 | AL77: FALSO
A78: 52001 | B78: 520013 | C78: 3 | D78: 52 | E78: 1 | F78: 001 | G78: NARIÑO | H78: PASTO | I78: Independiente | J78: 2235 | K78: 1094 | L78: 20651 | M78: 21976 | N78: 22145 | O78: 21164 | P78: 21202 | Q78: 21538 | R78: 21839 | S78: 22203 | T78: 22661 | U78: 23100 | V78: 23408 | W78: 22964 | X78: 20924 | Y78: 22209 | Z78: 22835 | AA78: 22937 | AB78: 22996 | AC78: 22934 | AD78: 22990 | AE78: 23422 | AF78: 23697 | AG78: 24236 | AH78: 24582 | AI78: 23843 | AJ78: 22344 | AK78: 22335 | AL78: FALSO
A79: 5631 | B79: 56313 | C79: 3 | D79: 5 | E79: 631 | F79: 631 | G79: ANTIOQUIA | H79: SABANETA | I79: Independiente | J79: 549 | K79: 280 | L79: 4838 | M79: 5313 | N79: 5486 | O79: 5468 | P79: 5644 | Q79: 5727 | R79: 5736 | S79: 5926 | T79: 6089 | U79: 6254 | V79: 6390 | W79: 6351 | X79: 6058 | Y79: 6326 | Z79: 6462 | AA79: 6470 | AB79: 6570 | AC79: 6646 | AD79: 6694 | AE79: 6804 | AF79: 6889 | AG79: 6897 | AH79: 7004 | AI79: 7006 | AJ79: 7051 | AK79: 7189 | AL79: FALSO
A80: 68572 | B80: 685723 | C80: 3 | D80: 68 | E80: 572 | F80: 572 | G80: SANTANDER | H80: PUENTE NACIONAL | I80: Independiente | J80: 40 | K80: 7 | L80: 297 | M80: 326 | N80: 331 | O80: 325 | P80: 337 | Q80: 336 | R80: 330 | S80: 338 | T80: 341 | U80: 352 | V80: 335 | W80: 339 | X80: 302 | Y80: 318 | Z80: 345 | AA80: 349 | AB80: 344 | AC80: 360 | AD80: 374 | AE80: 377 | AF80: 368 | AG80: 370 | AH80: 371 | AI80: 376 | AJ80: 348 | AK80: 374 | AL80: FALSO
A81: 25175 | B81: 251752 | C81: 2 | D81: 25 | E81: 175 | F81: 175 | G81: CUNDINAMARCA | H81: CHÍA | I81: Dep_sec_priv | J81: 3154 | K81: 2265 | L81: 26912 | M81: 26982 | N81: 26144 | O81: 24140 | P81: 24594 | Q81: 24396 | R81: 24655 | S81: 24061 | T81: 24724 | U81: 25114 | V81: 24502 | W81: 24021 | X81: 24366 | Y81: 25731 | Z81: 25274 | AA81: 26112 | AB81: 26209 | AC81: 25834 | AD81: 25742 | AE81: 26435 | AF81: 26711 | AG81: 26573 | AH81: 27083 | AI81: 25860 | AJ81: 26491 | AK81: 27105 | AL81: FALSO
A82: 44001 | B82: 440013 | C82: 3 | D82: 44 | E82: 1 | F82: 001 | G82: LA GUAJIRA | H82: RIOHACHA | I82: Independiente | J82: 1722 | K82: 371 | L82: 5443 | M82: 5829 | N82: 7885 | O82: 9452 | P82: 9437 | Q82: 9463 | R82: 9724 | S82: 9800 | T82: 9954 | U82: 10123 | V82: 10226 | W82: 9575 | X82: 5585 | Y82: 5960 | Z82: 7885 | AA82: 8918 | AB82: 9441 | AC82: 9575 | AD82: 9788 | AE82: 9972 | AF82: 10083 | AG82: 10199 | AH82: 10327 | AI82: 9859 | AJ82: 5893 | AK82: 7166 | AL82: FALSO
A83: 25377 | B83: 253773 | C83: 3 | D83: 25 | E83: 377 | F83: 377 | G83: CUNDINAMARCA | H83: LA CALERA | I83: Independiente | J83: 101 | K83: 44 | L83: 1566 | M83: 1623 | N83: 1664 | O83: 1630 | P83: 1666 | Q83: 1678 | R83: 1703 | S83: 1711 | T83: 1721 | U83: 1757 | V83: 1798 | W83: 1794 | X83: 1704 | Y83: 1790 | Z83: 1816 | AA83: 1834 | AB83: 1845 | AC83: 1850 | AD83: 1867 | AE83: 1876 | AF83: 1909 | AG83: 1921 | AH83: 1899 | AI83: 1941 | AJ83: 1926 | AK83: 1871 | AL83: FALSO
A84: 25001 | B84: 250013 | C84: 3 | D84: 25 | E84: 1 | F84: 001 | G84: CUNDINAMARCA | H84: AGUA DE DIOS | I84: Independiente | J84: 84 | K84: 22 | L84: 663 | M84: 680 | N84: 605 | O84: 600 | P84: 573 | Q84: 568 | R84: 567 | S84: 561 | T84: 574 | U84: 580 | V84: 574 | W84: 552 | X84: 524 | Y84: 530 | Z84: 608 | AA84: 611 | AB84: 592 | AC84: 601 | AD84: 633 | AE84: 642 | AF84: 650 | AG84: 653 | AH84: 644 | AI84: 646 | AJ84: 606 | AK84: 645 | AL84: FALSO
A85: 25815 | B85: 258153 | C85: 3 | D85: 25 | E85: 815 | F85: 815 | G85: CUNDINAMARCA | H85: TOCAIMA | I85: Independiente | J85: 58 | K85: 14 | L85: 256 | M85: 275 | N85: 287 | O85: 288 | P85: 296 | Q85: 292 | R85: 297 | S85: 319 | T85: 356 | U85: 360 | V85: 359 | W85: 345 | X85: 333 | Y85: 368 | Z85: 372 | AA85: 375 | AB85: 398 | AC85: 403 | AD85: 388 | AE85: 405 | AF85: 392 | AG85: 409 | AH85: 414 | AI85: 402 | AJ85: 355 | AK85: 402 | AL85: FALSO
A86: 25473 | B86: 254733 | C86: 3 | D86: 25 | E86: 473 | F86: 473 | G86: CUNDINAMARCA | H86: MOSQUERA | I86: Independiente | J86: 369 | K86: 165 | L86: 3566 | M86: 3788 | N86: 3876 | O86: 3767 | P86: 3844 | Q86: 3894 | R86: 3988 | S86: 4060 | T86: 4177 | U86: 4295 | V86: 4363 | W86: 4380 | X86: 4218 | Y86: 4377 | Z86: 4516 | AA86: 4581 | AB86: 4656 | AC86: 4707 | AD86: 4795 | AE86: 4853 | AF86: 4948 | AG86: 4985 | AH86: 5025 | AI86: 4941 | AJ86: 4906 | AK86: 4987 | AL86: FALSO
A87: 20011 | B87: 200113 | C87: 3 | D87: 20 | E87: 11 | F87: 011 | G87: CESAR | H87: AGUACHICA | I87: Independiente | J87: 361 | K87: 129 | L87: 2736 | M87: 2862 | N87: 3015 | O87: 2949 | P87: 3162 | Q87: 3166 | R87: 3471 | S87: 3313 | T87: 3408 | U87: 3526 | V87: 3515 | W87: 3480 | X87: 3057 | Y87: 2928 | Z87: 3015 | AA87: 3017 | AB87: 3058 | AC87: 3110 | AD87: 3099 | AE87: 3174 | AF87: 3163 | AG87: 3200 | AH87: 3185 | AI87: 3119 | AJ87: 2970 | AK87: 3135 | AL87: FALSO
A88: 73873 | B88: 738733 | C88: 3 | D88: 73 | E88: 873 | F88: 873 | G88: TOLIMA | H88: VILLARRICA | I88: Independiente | J88: 14 | K88: 1 | L88: 45 | M88: 61 | N88: 67 | O88: 64 | P88: 67 | Q88: 65 | R88: 67 | S88: 71 | T88: 69 | U88: 75 | V88: 67 | W88: 62 | X88: 46 | Y88: 68 | Z88: 77 | AA88: 80 | AB88: 82 | AC88: 87 | AD88: 85 | AE88: 85 | AF88: 86 | AG88: 85 | AH88: 86 | AI88: 86 | AJ88: 69 | AK88: 85 | AL88: FALSO
A89: 5318 | B89: 53183 | C89: 3 | D89: 5 | E89: 318 | F89: 318 | G89: ANTIOQUIA | H89: GUARNE | I89: Independiente | J89: 186 | K89: 66 | L89: 1241 | M89: 1346 | N89: 1367 | O89: 1376 | P89: 1407 | Q89: 1440 | R89: 1477 | S89: 1508 | T89: 1554 | U89: 1602 | V89: 1638 | W89: 1558 | X89: 1463 | Y89: 1537 | Z89: 1610 | AA89: 1641 | AB89: 1676 | AC89: 1711 | AD89: 1752 | AE89: 1798 | AF89: 1849 | AG89: 1870 | AH89: 1897 | AI89: 1847 | AJ89: 1772 | AK89: 1872 | AL89: FALSO
A90: 25269 | B90: 252693 | C90: 3 | D90: 25 | E90: 269 | F90: 269 | G90: CUNDINAMARCA | H90: FACATATIVÁ | I90: Independiente | J90: 461 | K90: 179 | L90: 4784 | M90: 4846 | N90: 4814 | O90: 4735 | P90: 4735 | Q90: 4767 | R90: 4926 | S90: 4952 | T90: 5014 | U90: 5041 | V90: 5084 | W90: 4986 | X90: 4808 | Y90: 5001 | Z90: 5098 | AA90: 5175 | AB90: 5211 | AC90: 5266 | AD90: 5263 | AE90: 5254 | AF90: 5333 | AG90: 5357 | AH90: 5395 | AI90: 5171 | AJ90: 5085 | AK90: 5170 | AL90: FALSO
A91: 25785 | B91: 257853 | C91: 3 | D91: 25 | E91: 785 | F91: 785 | G91: CUNDINAMARCA | H91: TABIO | I91: Independiente | J91: 86 | K91: 38 | L91: 1078 | M91: 1109 | N91: 1102 | O91: 1096 | P91: 1089 | Q91: 1092 | R91: 1149 | S91: 1158 | T91: 1185 | U91: 1152 | V91: 1151 | W91: 1147 | X91: 1111 | Y91: 1133 | Z91: 1152 | AA91: 1154 | AB91: 1156 | AC91: 1146 | AD91: 1143 | AE91: 1152 | AF91: 1156 | AG91: 1195 | AH91: 1182 | AI91: 1150 | AJ91: 1132 | AK91: 1174 | AL91: FALSO
A92: 25769 | B92: 257693 | C92: 3 | D92: 25 | E92: 769 | F92: 769 | G92: CUNDINAMARCA | H92: SUBACHOQUE | I92: Independiente | J92: 12 | K92: 7 | L92: 693 | M92: 693 | N92: 686 | O92: 683 | P92: 680 | Q92: 696 | R92: 687 | S92: 695 | T92: 692 | U92: 694 | V92: 700 | W92: 700 | X92: 700 | Y92: 707 | Z92: 709 | AA92: 713 | AB92: 711 | AC92: 727 | AD92: 724 | AE92: 724 | AF92: 730 | AG92: 721 | AH92: 700 | AI92: 697 | AJ92: 696 | AK92: 673 | AL92: FALSO
A93: 25322 | B93: 253222 | C93: 2 | D93: 25 | E93: 322 | F93: 322 | G93: CUNDINAMARCA | H93: GUASCA | I93: Dep_sec_priv | J93: 188 | K93: 148 | L93: 1534 | M93: 1538 | N93: 1524 | O93: 1710 | P93: 1420 | Q93: 1422 | R93: 1443 | S93: 1414 | T93: 1373 | U93: 1374 | V93: 1364 | W93: 1360 | X93: 1363 | Y93: 1386 | Z93: 1369 | AA93: 1396 | AB93: 1403 | AC93: 1659 | AD93: 1672 | AE93: 1678 | AF93: 1750 | AG93: 1908 | AH93: 1923 | AI93: 1862 | AJ93: 1796 | AK93: 1828 | AL93: FALSO
A94: 19548 | B94: 195483 | C94: 3 | D94: 19 | E94: 548 | F94: 548 | G94: CAUCA | H94: PIENDAMÓ | I94: Independiente | J94: 66 | K94: 10 | L94: 505 | M94: 589 | N94: 647 | O94: 638 | P94: 633 | Q94: 646 | R94: 663 | S94: 684 | T94: 699 | U94: 697 | V94: 717 | W94: 696 | X94: 495 | Y94: 644 | Z94: 658 | AA94: 673 | AB94: 694 | AC94: 715 | AD94: 732 | AE94: 730 | AF94: 752 | AG94: 758 | AH94: 761 | AI94: 729 | AJ94: 618 | AK94: 656 | AL94: FALSO
A95: 73770 | B95: 737703 | C95: 3 | D95: 73 | E95: 770 | F95: 770 | G95: TOLIMA | H95: SUÁREZ | I95: Independiente | J95: 20 | K95: 5 | L95: 56 | M95: 65 | N95: 63 | O95: 61 | P95: 63 | Q95: 57 | R95: 56 | S95: 55 | T95: 59 | U95: 55 | V95: 58 | W95: 62 | X95: 47 | Y95: 59 | Z95: 60 | AA95: 62 | AB95: 62 | AC95: 60 | AD95: 64 | AE95: 67 | AF95: 65 | AG95: 66 | AH95: 68 | AI95: 64 | AJ95: 56 | AK95: 71 | AL95: FALSO
A96: 25286 | B96: 252863 | C96: 3 | D96: 25 | E96: 286 | F96: 286 | G96: CUNDINAMARCA | H96: FUNZA | I96: Independiente | J96: 416 | K96: 161 | L96: 3337 | M96: 3452 | N96: 3669 | O96: 3567 | P96: 3665 | Q96: 3818 | R96: 3873 | S96: 4002 | T96: 4089 | U96: 4251 | V96: 4323 | W96: 4112 | X96: 4080 | Y96: 4308 | Z96: 4300 | AA96: 4409 | AB96: 4452 | AC96: 4543 | AD96: 4623 | AE96: 4698 | AF96: 4712 | AG96: 4794 | AH96: 4792 | AI96: 4504 | AJ96: 4642 | AK96: 4821 | AL96: FALSO
A97: 15322 | B97: 153223 | C97: 3 | D97: 15 | E97: 322 | F97: 322 | G97: BOYACÁ | H97: GUATEQUE | I97: Independiente | J97: 14 | K97: 19 | L97: 369 | M97: 399 | N97: 404 | O97: 405 | P97: 397 | Q97: 392 | R97: 398 | S97: 410 | T97: 408 | U97: 419 | V97: 430 | W97: 421 | X97: 404 | Y97: 413 | Z97: 423 | AA97: 411 | AB97: 397 | AC97: 395 | AD97: 402 | AE97: 398 | AF97: 403 | AG97: 397 | AH97: 394 | AI97: 392 | AJ97: 380 | AK97: 367 | AL97: FALSO
A98: 54001 | B98: 540012 | C98: 2 | D98: 54 | E98: 1 | F98: 001 | G98: NORTE DE SANTANDER | H98: CÚCUTA | I98: Dep_sec_priv | J98: 14679 | K98: 9712 | L98: 112991 | M98: 115403 | N98: 115626 | O98: 105382 | P98: 106736 | Q98: 108622 | R98: 108794 | S98: 110948 | T98: 112111 | U98: 113287 | V98: 115127 | W98: 113857 | X98: 110276 | Y98: 117217 | Z98: 119825 | AA98: 120689 | AB98: 120421 | AC98: 121700 | AD98: 124185 | AE98: 126434 | AF98: 127698 | AG98: 129658 | AH98: 132237 | AI98: 129731 | AJ98: 125648 | AK98: 128452 | AL98: FALSO
A99: 50313 | B99: 503133 | C99: 3 | D99: 50 | E99: 313 | F99: 313 | G99: META | H99: GRANADA | I99: Independiente | J99: 210 | K99: 76 | L99: 2041 | M99: 2348 | N99: 2349 | O99: 2273 | P99: 2264 | Q99: 2230 | R99: 2252 | S99: 2272 | T99: 2358 | U99: 2430 | V99: 2185 | W99: 2151 | X99: 1845 | Y99: 2068 | Z99: 2116 | AA99: 2116 | AB99: 2148 | AC99: 2191 | AD99: 2192 | AE99: 2250 | AF99: 2279 | AG99: 2277 | AH99: 2312 | AI99: 2237 | AJ99: 2110 | AK99: 2183 | AL99: FALSO
A100: 17380 | B100: 173803 | C100: 3 | D100: 17 | E100: 380 | F100: 380 | G100: CALDAS | H100: LA DORADA | I100: Independiente | J100: 337 | K100: 136 | L100: 3077 | M100: 3246 | N100: 3222 | O100: 3152 | P100: 3151 | Q100: 3120 | R100: 3161 | S100: 3233 | T100: 3278 | U100: 3333 | V100: 3376 | W100: 3346 | X100: 3068 | Y100: 3213 | Z100: 3294 | AA100: 3306 | AB100: 3359 | AC100: 3397 | AD100: 3413 | AE100: 3439 | AF100: 3565 | AG100: 3646 | AH100: 3675 | AI100: 3577 | AJ100: 3498 | AK100: 3559 | AL100: FALSO
A101: 68307 | B101: 683073 | C101: 3 | D101: 68 | E101: 307 | F101: 307 | G101: SANTANDER | H101: GIRÓN | I101: Independiente | J101: 510 | K101: 182 | L101: 3066 | M101: 3142 | N101: 3145 | O101: 3047 | P101: 3011 | Q101: 3100 | R101: 3079 | S101: 3155 | T101: 3165 | U101: 3304 | V101: 3339 | W101: 3276 | X101: 3056 | Y101: 3186 | Z101: 3267 | AA101: 3319 | AB101: 3350 | AC101: 3493 | AD101: 3578 | AE101: 3571 | AF101: 3642 | AG101: 3685 | AH101: 3604 | AI101: 3532 | AJ101: 3518 | AK101: 3802 | AL101: FALSO
A102: 68081 | B102: 680813 | C102: 3 | D102: 68 | E102: 81 | F102: 081 | G102: SANTANDER | H102: BARRANCABERMEJA | I102: Independiente | J102: 1364 | K102: 321 | L102: 6354 | M102: 6593 | N102: 6688 | O102: 6434 | P102: 6417 | Q102: 6469 | R102: 6836 | S102: 6879 | T102: 7042 | U102: 7286 | V102: 7613 | W102: 7576 | X102: 5950 | Y102: 6388 | Z102: 6686 | AA102: 6789 | AB102: 7048 | AC102: 7319 | AD102: 7491 | AE102: 7592 | AF102: 7792 | AG102: 7895 | AH102: 7985 | AI102: 7834 | AJ102: 7119 | AK102: 8072 | AL102: FALSO
A103: 73624 | B103: 736243 | C103: 3 | D103: 73 | E103: 624 | F103: 624 | G103: TOLIMA | H103: ROVIRA | I103: Independiente | J103: 28 | K103: 4 | L103: 193 | M103: 195 | N103: 197 | O103: 181 | P103: 186 | Q103: 195 | R103: 201 | S103: 202 | T103: 214 | U103: 216 | V103: 195 | W103: 188 | X103: 181 | Y103: 191 | Z103: 213 | AA103: 206 | AB103: 217 | AC103: 216 | AD103: 217 | AE103: 217 | AF103: 217 | AG103: 223 | AH103: 224 | AI103: 212 | AJ103: 214 | AK103: 228 | AL103: FALSO
A104: 25599 | B104: 255993 | C104: 3 | D104: 25 | E104: 599 | F104: 599 | G104: CUNDINAMARCA | H104: APULO | I104: Independiente | J104: 15 | K104: 2 | L104: 176 | M104: 182 | N104: 185 | O104: 184 | P104: 184 | Q104: 177 | R104: 183 | S104: 180 | T104: 188 | U104: 178 | V104: 176 | W104: 168 | X104: 182 | Y104: 181 | Z104: 183 | AA104: 183 | AB104: 185 | AC104: 185 | AD104: 181 | AE104: 190 | AF104: 190 | AG104: 195 | AH104: 197 | AI104: 211 | AJ104: 194 | AK104: 204 | AL104: FALSO
A105: 76147 | B105: 761473 | C105: 3 | D105: 76 | E105: 147 | F105: 147 | G105: VALLE DEL CAUCA | H105: CARTAGO | I105: Independiente | J105: 426 | K105: 154 | L105: 6748 | M105: 6847 | N105: 6826 | O105: 6616 | P105: 6597 | Q105: 6562 | R105: 6519 | S105: 6505 | T105: 6585 | U105: 6665 | V105: 6697 | W105: 6604 | X105: 6432 | Y105: 6520 | Z105: 6682 | AA105: 6676 | AB105: 6649 | AC105: 6631 | AD105: 6613 | AE105: 6706 | AF105: 6755 | AG105: 6747 | AH105: 6806 | AI105: 6677 | AJ105: 6579 | AK105: 6551 | AL105: FALSO
A106: 5266 | B106: 52663 | C106: 3 | D106: 5 | E106: 266 | F106: 266 | G106: ANTIOQUIA | H106: ENVIGADO | I106: Independiente | J106: 927 | K106: 490 | L106: 13198 | M106: 13545 | N106: 13736 | O106: 13540 | P106: 13683 | Q106: 13884 | R106: 14146 | S106: 14364 | T106: 14651 | U106: 14870 | V106: 15086 | W106: 15194 | X106: 15036 | Y106: 15480 | Z106: 15761 | AA106: 15850 | AB106: 15927 | AC106: 16154 | AD106: 16222 | AE106: 16394 | AF106: 16563 | AG106: 16753 | AH106: 16899 | AI106: 16770 | AJ106: 16489 | AK106: 16440 | AL106: FALSO
A107: 81001 | B107: 810013 | C107: 3 | D107: 81 | E107: 1 | F107: 001 | G107: ARAUCA | H107: ARAUCA | I107: Independiente | J107: 460 | K107: 200 | L107: 4034 | M107: 4525 | N107: 4603 | O107: 4332 | P107: 4276 | Q107: 4254 | R107: 4405 | S107: 4434 | T107: 4559 | U107: 4740 | V107: 4747 | W107: 4704 | X107: 4269 | Y107: 4569 | Z107: 4793 | AA107: 4915 | AB107: 4949 | AC107: 4968 | AD107: 5186 | AE107: 5054 | AF107: 4677 | AG107: 4731 | AH107: 4727 | AI107: 4502 | AJ107: 4320 | AK107: 4202 | AL107: FALSO
A108: 15001 | B108: 150013 | C108: 3 | D108: 15 | E108: 1 | F108: 001 | G108: BOYACÁ | H108: TUNJA | I108: Independiente | J108: 1959 | K108: 834 | L108: 15502 | M108: 16196 | N108: 16112 | O108: 15528 | P108: 15834 | Q108: 16102 | R108: 16283 | S108: 16493 | T108: 16801 | U108: 17064 | V108: 17410 | W108: 16965 | X108: 15596 | Y108: 16236 | Z108: 16891 | AA108: 17092 | AB108: 17098 | AC108: 17395 | AD108: 17528 | AE108: 17509 | AF108: 17688 | AG108: 17941 | AH108: 18105 | AI108: 17622 | AJ108: 16330 | AK108: 16607 | AL108: FALSO
A109: 76520 | B109: 765203 | C109: 3 | D109: 76 | E109: 520 | F109: 520 | G109: VALLE DEL CAUCA | H109: PALMIRA | I109: Independiente | J109: 840 | K109: 391 | L109: 14318 | M109: 14406 | N109: 14348 | O109: 14116 | P109: 14177 | Q109: 14197 | R109: 14135 | S109: 14254 | T109: 14511 | U109: 14591 | V109: 14776 | W109: 14665 | X109: 13999 | Y109: 14180 | Z109: 14417 | AA109: 14398 | AB109: 14332 | AC109: 14421 | AD109: 14622 | AE109: 14766 | AF109: 14926 | AG109: 14813 | AH109: 14938 | AI109: 14828 | AJ109: 14257 | AK109: 14276 | AL109: FALSO
A110: 68679 | B110: 686793 | C110: 3 | D110: 68 | E110: 679 | F110: 679 | G110: SANTANDER | H110: SAN GIL | I110: Independiente | J110: 304 | K110: 152 | L110: 4222 | M110: 4279 | N110: 4309 | O110: 4161 | P110: 4126 | Q110: 4198 | R110: 4237 | S110: 4260 | T110: 4303 | U110: 4442 | V110: 4496 | W110: 4504 | X110: 4001 | Y110: 4237 | Z110: 4404 | AA110: 4482 | AB110: 4546 | AC110: 4626 | AD110: 4651 | AE110: 4619 | AF110: 4690 | AG110: 4714 | AH110: 4727 | AI110: 4620 | AJ110: 4663 | AK110: 4632 | AL110: FALSO
A111: 68861 | B111: 688613 | C111: 3 | D111: 68 | E111: 861 | F111: 861 | G111: SANTANDER | H111: VÉLEZ | I111: Independiente | J111: 41 | K111: 17 | L111: 849 | M111: 876 | N111: 869 | O111: 842 | P111: 834 | Q111: 857 | R111: 848 | S111: 854 | T111: 864 | U111: 872 | V111: 898 | W111: 888 | X111: 821 | Y111: 861 | Z111: 881 | AA111: 898 | AB111: 914 | AC111: 904 | AD111: 913 | AE111: 912 | AF111: 914 | AG111: 901 | AH111: 908 | AI111: 878 | AJ111: 862 | AK111: 874 | AL111: FALSO
A112: 5607 | B112: 56073 | C112: 3 | D112: 5 | E112: 607 | F112: 607 | G112: ANTIOQUIA | H112: RETIRO | I112: Independiente | J112: 110 | K112: 30 | L112: 1043 | M112: 1097 | N112: 1103 | O112: 1085 | P112: 1120 | Q112: 1142 | R112: 1172 | S112: 1192 | T112: 1242 | U112: 1263 | V112: 1280 | W112: 1272 | X112: 1262 | Y112: 1312 | Z112: 1339 | AA112: 1365 | AB112: 1397 | AC112: 1420 | AD112: 1452 | AE112: 1467 | AF112: 1448 | AG112: 1469 | AH112: 1495 | AI112: 1505 | AJ112: 1493 | AK112: 1520 | AL112: FALSO
A113: 95015 | B113: 950151 | C113: 1 | D113: 95 | E113: 15 | F113: 015 | G113: GUAVIARE | H113: CALAMAR | I113: Dep_No_priv | J113: 3 | K113: 2 | L113: 139 | M113: 143 | N113: 142 | O113: 147 | P113: 112 | Q113: 145 | R113: 144 | S113: 140 | T113: 148 | U113: 144 | V113: 142 | W113: 141 | X113: 139 | Y113: 138 | Z113: 142 | AA113: 139 | AB113: 145 | AC113: 146 | AD113: 146 | AE113: 146 | AF113: 150 | AG113: 145 | AH113: 157 | AI113: 158 | AJ113: 157 | AK113: 155 | AL113: FALSO
A114: 25754 | B114: 257543 | C114: 3 | D114: 25 | E114: 754 | F114: 754 | G114: CUNDINAMARCA | H114: SOACHA | I114: Independiente | J114: 1087 | K114: 471 | L114: 7385 | M114: 7641 | N114: 7850 | O114: 7765 | P114: 7910 | Q114: 8094 | R114: 8348 | S114: 8507 | T114: 8881 | U114: 9167 | V114: 9428 | W114: 9345 | X114: 8894 | Y114: 9311 | Z114: 9834 | AA114: 10003 | AB114: 10209 | AC114: 10471 | AD114: 10706 | AE114: 10947 | AF114: 11163 | AG114: 11324 | AH114: 11378 | AI114: 11110 | AJ114: 11036 | AK114: 11470 | AL114: FALSO
A115: 76736 | B115: 767362 | C115: 2 | D115: 76 | E115: 736 | F115: 736 | G115: VALLE DEL CAUCA | H115: SEVILLA | I115: Dep_sec_priv | J115: 186 | K115: 159 | L115: 1609 | M115: 1654 | N115: 1689 | O115: 1666 | P115: 1728 | Q115: 1698 | R115: 1709 | S115: 1796 | T115: 1858 | U115: 1751 | V115: 1734 | W115: 1768 | X115: 1766 | Y115: 1861 | Z115: 1871 | AA115: 1854 | AB115: 1952 | AC115: 1970 | AD115: 2022 | AE115: 2082 | AF115: 2145 | AG115: 2221 | AH115: 2262 | AI115: 2215 | AJ115: 2145 | AK115: 2170 | AL115: FALSO
A116: 73275 | B116: 732753 | C116: 3 | D116: 73 | E116: 275 | F116: 275 | G116: TOLIMA | H116: FLANDES | I116: Independiente | J116: 49 | K116: 31 | L116: 414 | M116: 475 | N116: 471 | O116: 460 | P116: 469 | Q116: 464 | R116: 492 | S116: 502 | T116: 499 | U116: 518 | V116: 532 | W116: 535 | X116: 489 | Y116: 556 | Z116: 570 | AA116: 575 | AB116: 600 | AC116: 600 | AD116: 592 | AE116: 581 | AF116: 553 | AG116: 538 | AH116: 541 | AI116: 522 | AJ116: 549 | AK116: 554 | AL116: FALSO
A117: 23660 | B117: 236601 | C117: 1 | D117: 23 | E117: 660 | F117: 660 | G117: CÓRDOBA | H117: SAHAGÚN | I117: Dep_No_priv | J117: 48 | K117: 30 | L117: 1257 | M117: 1263 | N117: 1267 | O117: 1258 | P117: 1280 | Q117: 1317 | R117: 1311 | S117: 1373 | T117: 1379 | U117: 1409 | V117: 1355 | W117: 1308 | X117: 1352 | Y117: 1328 | Z117: 1342 | AA117: 1313 | AB117: 1333 | AC117: 1319 | AD117: 1338 | AE117: 1325 | AF117: 1320 | AG117: 1285 | AH117: 1305 | AI117: 1327 | AJ117: 1346 | AK117: 1337 | AL117: FALSO
A118: 25473 | B118: 254732 | C118: 2 | D118: 25 | E118: 473 | F118: 473 | G118: CUNDINAMARCA | H118: MOSQUERA | I118: Dep_sec_priv | J118: 2778 | K118: 2327 | L118: 16859 | M118: 17430 | N118: 17023 | O118: 15579 | P118: 15389 | Q118: 15041 | R118: 15708 | S118: 15773 | T118: 16059 | U118: 16354 | V118: 16682 | W118: 15949 | X118: 17076 | Y118: 17535 | Z118: 17343 | AA118: 18334 | AB118: 17927 | AC118: 17378 | AD118: 17861 | AE118: 17965 | AF118: 18542 | AG118: 18768 | AH118: 19040 | AI118: 18525 | AJ118: 19498 | AK118: 19610 | AL118: FALSO
A119: 5579 | B119: 55793 | C119: 3 | D119: 5 | E119: 579 | F119: 579 | G119: ANTIOQUIA | H119: PUERTO BERRÍO | I119: Independiente | J119: 64 | K119: 30 | L119: 735 | M119: 772 | N119: 806 | O119: 800 | P119: 817 | Q119: 828 | R119: 848 | S119: 850 | T119: 858 | U119: 914 | V119: 1057 | W119: 1033 | X119: 764 | Y119: 794 | Z119: 861 | AA119: 936 | AB119: 982 | AC119: 972 | AD119: 1016 | AE119: 1034 | AF119: 1048 | AG119: 983 | AH119: 1115 | AI119: 1072 | AJ119: 992 | AK119: 1017 | AL119: FALSO
A120: 76275 | B120: 762752 | C120: 2 | D120: 76 | E120: 275 | F120: 275 | G120: VALLE DEL CAUCA | H120: FLORIDA | I120: Dep_sec_priv | J120: 472 | K120: 342 | L120: 2488 | M120: 2555 | N120: 2662 | O120: 2392 | P120: 2691 | Q120: 2449 | R120: 2407 | S120: 2418 | T120: 2508 | U120: 2655 | V120: 2745 | W120: 2562 | X120: 2569 | Y120: 2617 | Z120: 2576 | AA120: 2598 | AB120: 2263 | AC120: 2357 | AD120: 2432 | AE120: 2402 | AF120: 2545 | AG120: 2678 | AH120: 2667 | AI120: 2403 | AJ120: 2512 | AK120: 2620 | AL120: FALSO
A121: 25214 | B121: 252142 | C121: 2 | D121: 25 | E121: 214 | F121: 214 | G121: CUNDINAMARCA | H121: COTA | I121: Dep_sec_priv | J121: 1733 | K121: 1008 | L121: 13446 | M121: 13859 | N121: 13908 | O121: 12771 | P121: 12300 | Q121: 12589 | R121: 12767 | S121: 12940 | T121: 13206 | U121: 13636 | V121: 13744 | W121: 13694 | X121: 14668 | Y121: 13933 | Z121: 14220 | AA121: 14481 | AB121: 14327 | AC121: 14511 | AD121: 14652 | AE121: 14730 | AF121: 15141 | AG121: 14909 | AH121: 15761 | AI121: 15530 | AJ121: 15712 | AK121: 16195 | AL121: FALSO
A122: 8758 | B122: 87583 | C122: 3 | D122: 8 | E122: 758 | F122: 758 | G122: ATLÁNTICO | H122: SOLEDAD | I122: Independiente | J122: 831 | K122: 419 | L122: 3697 | M122: 4027 | N122: 4286 | O122: 4315 | P122: 4392 | Q122: 4475 | R122: 4482 | S122: 4692 | T122: 4841 | U122: 4898 | V122: 4929 | W122: 4579 | X122: 4038 | Y122: 4368 | Z122: 4860 | AA122: 5078 | AB122: 5224 | AC122: 5236 | AD122: 5289 | AE122: 5207 | AF122: 5344 | AG122: 5422 | AH122: 5375 | AI122: 4986 | AJ122: 4905 | AK122: 5294 | AL122: FALSO
A123: 25658 | B123: 256583 | C123: 3 | D123: 25 | E123: 658 | F123: 658 | G123: CUNDINAMARCA | H123: SAN FRANCISCO | I123: Independiente | J123: 16 | K123: 9 | L123: 179 | M123: 217 | N123: 218 | O123: 209 | P123: 231 | Q123: 239 | R123: 235 | S123: 231 | T123: 262 | U123: 262 | V123: 272 | W123: 273 | X123: 274 | Y123: 290 | Z123: 282 | AA123: 295 | AB123: 281 | AC123: 288 | AD123: 292 | AE123: 289 | AF123: 298 | AG123: 293 | AH123: 292 | AI123: 273 | AJ123: 283 | AK123: 286 | AL123: FALSO
A124: 5615 | B124: 56153 | C124: 3 | D124: 5 | E124: 615 | F124: 615 | G124: ANTIOQUIA | H124: RIONEGRO | I124: Independiente | J124: 526 | K124: 224 | L124: 9261 | M124: 9409 | N124: 9392 | O124: 9006 | P124: 8864 | Q124: 9010 | R124: 9135 | S124: 9373 | T124: 9486 | U124: 9649 | V124: 9709 | W124: 9627 | X124: 9453 | Y124: 9531 | Z124: 9793 | AA124: 9972 | AB124: 10016 | AC124: 10089 | AD124: 10178 | AE124: 10318 | AF124: 10350 | AG124: 10443 | AH124: 10487 | AI124: 10297 | AJ124: 10148 | AK124: 10093 | AL124: FALSO
A125: 25430 | B125: 254302 | C125: 2 | D125: 25 | E125: 430 | F125: 430 | G125: CUNDINAMARCA | H125: MADRID | I125: Dep_sec_priv | J125: 2444 | K125: 2601 | L125: 14568 | M125: 14514 | N125: 13826 | O125: 12083 | P125: 12922 | Q125: 12961 | R125: 13035 | S125: 13426 | T125: 13591 | U125: 14172 | V125: 14346 | W125: 14209 | X125: 15160 | Y125: 14895 | Z125: 14806 | AA125: 15618 | AB125: 14865 | AC125: 14541 | AD125: 15080 | AE125: 15343 | AF125: 15492 | AG125: 16134 | AH125: 16376 | AI125: 16410 | AJ125: 18148 | AK125: 17713 | AL125: FALSO
A126: 25430 | B126: 254303 | C126: 3 | D126: 25 | E126: 430 | F126: 430 | G126: CUNDINAMARCA | H126: MADRID | I126: Independiente | J126: 304 | K126: 120 | L126: 2993 | M126: 3202 | N126: 3236 | O126: 3233 | P126: 3268 | Q126: 3286 | R126: 3398 | S126: 3468 | T126: 3572 | U126: 3662 | V126: 3705 | W126: 3707 | X126: 3412 | Y126: 3556 | Z126: 3747 | AA126: 3842 | AB126: 3874 | AC126: 3941 | AD126: 3986 | AE126: 4052 | AF126: 4112 | AG126: 4185 | AH126: 4195 | AI126: 4122 | AJ126: 3940 | AK126: 4015 | AL126: FALSO
A127: 70001 | B127: 700012 | C127: 2 | D127: 70 | E127: 1 | F127: 001 | G127: SUCRE | H127: SINCELEJO | I127: Dep_sec_priv | J127: 4210 | K127: 2421 | L127: 36450 | M127: 37820 | N127: 38019 | O127: 35380 | P127: 36444 | Q127: 36089 | R127: 36610 | S127: 36652 | T127: 36956 | U127: 37720 | V127: 38127 | W127: 37685 | X127: 35705 | Y127: 36774 | Z127: 37899 | AA127: 39276 | AB127: 37718 | AC127: 37982 | AD127: 38291 | AE127: 38546 | AF127: 39469 | AG127: 39157 | AH127: 39915 | AI127: 39395 | AJ127: 37070 | AK127: 37691 | AL127: FALSO
A128: 25286 | B128: 252862 | C128: 2 | D128: 25 | E128: 286 | F128: 286 | G128: CUNDINAMARCA | H128: FUNZA | I128: Dep_sec_priv | J128: 3390 | K128: 2857 | L128: 17995 | M128: 18183 | N128: 17490 | O128: 16082 | P128: 16065 | Q128: 15936 | R128: 16901 | S128: 17256 | T128: 17365 | U128: 17745 | V128: 17946 | W128: 17574 | X128: 18455 | Y128: 18910 | Z128: 19054 | AA128: 19676 | AB128: 19165 | AC128: 19327 | AD128: 19359 | AE128: 19754 | AF128: 20177 | AG128: 21411 | AH128: 21753 | AI128: 21484 | AJ128: 21813 | AK128: 22220 | AL128: FALSO
A129: 25899 | B129: 258992 | C129: 2 | D129: 25 | E129: 899 | F129: 899 | G129: CUNDINAMARCA | H129: ZIPAQUIRÁ | I129: Dep_sec_priv | J129: 2313 | K129: 1812 | L129: 17340 | M129: 17845 | N129: 17701 | O129: 16361 | P129: 16462 | Q129: 16700 | R129: 17025 | S129: 17064 | T129: 17256 | U129: 17659 | V129: 17647 | W129: 17677 | X129: 17850 | Y129: 18452 | Z129: 18475 | AA129: 18712 | AB129: 18170 | AC129: 18566 | AD129: 18942 | AE129: 18991 | AF129: 19183 | AG129: 19356 | AH129: 19375 | AI129: 18608 | AJ129: 18921 | AK129: 19288 | AL129: FALSO
A130: 85250 | B130: 852503 | C130: 3 | D130: 85 | E130: 250 | F130: 250 | G130: CASANARE | H130: PAZ DE ARIPORO | I130: Independiente | J130: 105 | K130: 26 | L130: 509 | M130: 543 | N130: 578 | O130: 564 | P130: 555 | Q130: 562 | R130: 581 | S130: 590 | T130: 580 | U130: 619 | V130: 615 | W130: 592 | X130: 487 | Y130: 572 | Z130: 617 | AA130: 657 | AB130: 645 | AC130: 660 | AD130: 664 | AE130: 689 | AF130: 707 | AG130: 722 | AH130: 726 | AI130: 704 | AJ130: 668 | AK130: 706 | AL130: FALSO
A131: 70001 | B131: 700013 | C131: 3 | D131: 70 | E131: 1 | F131: 001 | G131: SUCRE | H131: SINCELEJO | I131: Independiente | J131: 1175 | K131: 493 | L131: 11038 | M131: 12018 | N131: 12071 | O131: 11679 | P131: 11690 | Q131: 11534 | R131: 11597 | S131: 11638 | T131: 11772 | U131: 11958 | V131: 12092 | W131: 11701 | X131: 10428 | Y131: 11069 | Z131: 11570 | AA131: 11728 | AB131: 11731 | AC131: 11817 | AD131: 11978 | AE131: 12050 | AF131: 12115 | AG131: 12259 | AH131: 12269 | AI131: 11881 | AJ131: 11427 | AK131: 11155 | AL131: =IF(SUM(L131:AK131)=0,"VERDADERO","FALSO") -> FALSO
A132: 63130 | B132: 631303 | C132: 3 | D132: 63 | E132: 130 | F132: 130 | G132: QUINDÍO | H132: CALARCA | I132: Independiente | J132: 103 | K132: 54 | L132: 1333 | M132: 1410 | N132: 1412 | O132: 1406 | P132: 1420 | Q132: 1388 | R132: 1396 | S132: 1440 | T132: 1450 | U132: 1503 | V132: 1582 | W132: 1595 | X132: 1447 | Y132: 1572 | Z132: 1622 | AA132: 1626 | AB132: 1634 | AC132: 1663 | AD132: 1650 | AE132: 1686 | AF132: 1745 | AG132: 1799 | AH132: 1814 | AI132: 1789 | AJ132: 1777 | AK132: 1732 | AL132: FALSO
A133: 25312 | B133: 253122 | C133: 2 | D133: 25 | E133: 312 | F133: 312 | G133: CUNDINAMARCA | H133: GRANADA | I133: Dep_sec_priv | J133: 55 | K133: 31 | L133: 155 | M133: 167 | N133: 166 | O133: 179 | P133: 187 | Q133: 197 | R133: 186 | S133: 159 | T133: 159 | U133: 166 | V133: 184 | W133: 191 | X133: 198 | Y133: 191 | Z133: 204 | AA133: 221 | AB133: 230 | AC133: 225 | AD133: 210 | AE133: 227 | AF133: 230 | AG133: 237 | AH133: 233 | AI133: 241 | AJ133: 259 | AK133: 309 | AL133: FALSO
A134: 25290 | B134: 252902 | C134: 2 | D134: 25 | E134: 290 | F134: 290 | G134: CUNDINAMARCA | H134: FUSAGASUGÁ | I134: Dep_sec_priv | J134: 1854 | K134: 1225 | L134: 12743 | M134: 13262 | N134: 13340 | O134: 12344 | P134: 12466 | Q134: 12717 | R134: 12894 | S134: 12795 | T134: 13323 | U134: 13513 | V134: 13887 | W134: 13730 | X134: 13667 | Y134: 14379 | Z134: 14560 | AA134: 14685 | AB134: 14818 | AC134: 14925 | AD134: 15140 | AE134: 15404 | AF134: 15672 | AG134: 15248 | AH134: 15220 | AI134: 15169 | AJ134: 14976 | AK134: 15247 | AL134: FALSO
A135: 25754 | B135: 257542 | C135: 2 | D135: 25 | E135: 754 | F135: 754 | G135: CUNDINAMARCA | H135: SOACHA | I135: Dep_sec_priv | J135: 3429 | K135: 1313 | L135: 16126 | M135: 17151 | N135: 16597 | O135: 15408 | P135: 15507 | Q135: 15541 | R135: 15567 | S135: 15889 | T135: 16534 | U135: 16726 | V135: 16982 | W135: 15548 | X135: 15137 | Y135: 16962 | Z135: 17484 | AA135: 17804 | AB135: 17394 | AC135: 17554 | AD135: 17775 | AE135: 18169 | AF135: 18499 | AG135: 18704 | AH135: 18915 | AI135: 17520 | AJ135: 17191 | AK135: 19257 | AL135: FALSO
A136: 85162 | B136: 851623 | C136: 3 | D136: 85 | E136: 162 | F136: 162 | G136: CASANARE | H136: MONTERREY | I136: Independiente | J136: 61 | K136: 24 | L136: 455 | M136: 496 | N136: 506 | O136: 494 | P136: 497 | Q136: 518 | R136: 531 | S136: 528 | T136: 547 | U136: 557 | V136: 563 | W136: 578 | X136: 438 | Y136: 513 | Z136: 555 | AA136: 549 | AB136: 559 | AC136: 562 | AD136: 574 | AE136: 591 | AF136: 583 | AG136: 620 | AH136: 639 | AI136: 609 | AJ136: 571 | AK136: 573 | AL136: FALSO
A137: 25019 | B137: 250193 | C137: 3 | D137: 25 | E137: 19 | F137: 019 | G137: CUNDINAMARCA | H137: ALBÁN | I137: Independiente | J137: 12 | K137: 3 | L137: 119 | M137: 115 | N137: 121 | O137: 117 | P137: 112 | Q137: 119 | R137: 113 | S137: 115 | T137: 114 | U137: 122 | V137: 123 | W137: 123 | X137: 125 | Y137: 132 | Z137: 129 | AA137: 128 | AB137: 128 | AC137: 128 | AD137: 142 | AE137: 142 | AF137: 148 | AG137: 144 | AH137: 146 | AI137: 146 | AJ137: 138 | AK137: 142 | AL137: FALSO
A138: 76111 | B138: 761113 | C138: 3 | D138: 76 | E138: 111 | F138: 111 | G138: VALLE DEL CAUCA | H138: GUADALAJARA DE BUGA | I138: Independiente | J138: 503 | K138: 113 | L138: 5201 | M138: 5379 | N138: 5514 | O138: 5445 | P138: 5429 | Q138: 5468 | R138: 5497 | S138: 5586 | T138: 5705 | U138: 5802 | V138: 5842 | W138: 5802 | X138: 5213 | Y138: 5443 | Z138: 5687 | AA138: 5793 | AB138: 5778 | AC138: 5812 | AD138: 5812 | AE138: 5904 | AF138: 5983 | AG138: 6026 | AH138: 6070 | AI138: 5933 | AJ138: 5725 | AK138: 5773 | AL138: FALSO
A139: 25269 | B139: 252692 | C139: 2 | D139: 25 | E139: 269 | F139: 269 | G139: CUNDINAMARCA | H139: FACATATIVÁ | I139: Dep_sec_priv | J139: 3290 | K139: 4049 | L139: 25242 | M139: 24379 | N139: 23226 | O139: 22485 | P139: 21965 | Q139: 21657 | R139: 22095 | S139: 22134 | T139: 22797 | U139: 23401 | V139: 23821 | W139: 24463 | X139: 26530 | Y139: 25807 | Z139: 25326 | AA139: 27371 | AB139: 25943 | AC139: 24830 | AD139: 25233 | AE139: 25460 | AF139: 25400 | AG139: 26022 | AH139: 26694 | AI139: 26208 | AJ139: 28504 | AK139: 27651 | AL139: FALSO
A140: 25817 | B140: 258173 | C140: 3 | D140: 25 | E140: 817 | F140: 817 | G140: CUNDINAMARCA | H140: TOCANCIPÁ | I140: Independiente | J140: 245 | K140: 113 | L140: 1171 | M140: 1257 | N140: 1321 | O140: 1246 | P140: 1258 | Q140: 1274 | R140: 1310 | S140: 1304 | T140: 1369 | U140: 1420 | V140: 1455 | W140: 1498 | X140: 1318 | Y140: 1402 | Z140: 1487 | AA140: 1500 | AB140: 1551 | AC140: 1566 | AD140: 1616 | AE140: 1602 | AF140: 1623 | AG140: 1641 | AH140: 1674 | AI140: 1657 | AJ140: 1620 | AK140: 1667 | AL140: FALSO
A141: 5079 | B141: 50792 | C141: 2 | D141: 5 | E141: 79 | F141: 079 | G141: ANTIOQUIA | H141: BARBOSA | I141: Dep_sec_priv | J141: 312 | K141: 261 | L141: 4097 | M141: 4200 | N141: 4285 | O141: 4044 | P141: 4119 | Q141: 4274 | R141: 4315 | S141: 4330 | T141: 4371 | U141: 4336 | V141: 4377 | W141: 4267 | X141: 4204 | Y141: 4263 | Z141: 4120 | AA141: 4000 | AB141: 3931 | AC141: 3932 | AD141: 4031 | AE141: 4022 | AF141: 3863 | AG141: 3937 | AH141: 4145 | AI141: 3977 | AJ141: 3832 | AK141: 3819 | AL141: FALSO
A142: 50006 | B142: 500062 | C142: 2 | D142: 50 | E142: 6 | F142: 006 | G142: META | H142: ACACÍAS | I142: Dep_sec_priv | J142: 1834 | K142: 1633 | L142: 12623 | M142: 12737 | N142: 12389 | O142: 11032 | P142: 10944 | Q142: 10716 | R142: 10605 | S142: 10080 | T142: 10200 | U142: 10694 | V142: 10656 | W142: 10649 | X142: 10356 | Y142: 10532 | Z142: 11244 | AA142: 11204 | AB142: 11147 | AC142: 11474 | AD142: 11628 | AE142: 11788 | AF142: 12138 | AG142: 12483 | AH142: 13275 | AI142: 12825 | AJ142: 12665 | AK142: 12981 | AL142: FALSO
A143: 73686 | B143: 736861 | C143: 1 | D143: 73 | E143: 686 | F143: 686 | G143: TOLIMA | H143: SANTA ISABEL | I143: Dep_No_priv | J143: 3 | K143: 4 | L143: 134 | M143: 129 | N143: 134 | O143: 136 | P143: 136 | Q143: 138 | R143: 137 | S143: 142 | T143: 138 | U143: 137 | V143: 134 | W143: 136 | X143: 134 | Y143: 134 | Z143: 139 | AA143: 139 | AB143: 152 | AC143: 206 | AD143: 208 | AE143: 208 | AF143: 210 | AG143: 209 | AH143: 172 | AI143: 150 | AJ143: 143 | AK143: 146 | AL143: FALSO
A144: 25019 | B144: 250192 | C144: 2 | D144: 25 | E144: 19 | F144: 019 | G144: CUNDINAMARCA | H144: ALBÁN | I144: Dep_sec_priv | J144: 30 | K144: 27 | L144: 443 | M144: 442 | N144: 411 | O144: 372 | P144: 357 | Q144: 356 | R144: 382 | S144: 379 | T144: 385 | U144: 374 | V144: 388 | W144: 384 | X144: 366 | Y144: 383 | Z144: 354 | AA144: 374 | AB144: 371 | AC144: 388 | AD144: 366 | AE144: 367 | AF144: 369 | AG144: 376 | AH144: 368 | AI144: 376 | AJ144: 356 | AK144: 340 | AL144: FALSO
A145: 15104 | B145: 151042 | C145: 2 | D145: 15 | E145: 104 | F145: 104 | G145: BOYACÁ | H145: BOYACÁ | I145: Dep_sec_priv | J145: 380 | K145: 283 | L145: 4173 | M145: 4363 | N145: 4315 | O145: 3880 | P145: 4138 | Q145: 4233 | R145: 3740 | S145: 3451 | T145: 3470 | U145: 3700 | V145: 3825 | W145: 3878 | X145: 3792 | Y145: 3652 | Z145: 3642 | AA145: 3908 | AB145: 3562 | AC145: 3879 | AD145: 3987 | AE145: 4211 | AF145: 3687 | AG145: 3656 | AH145: 4117 | AI145: 3739 | AJ145: 4168 | AK145: 4105 | AL145: FALSO
A146: 41615 | B146: 416152 | C146: 2 | D146: 41 | E146: 615 | F146: 615 | G146: HUILA | H146: RIVERA | I146: Dep_sec_priv | J146: 301 | K146: 201 | L146: 966 | M146: 1089 | N146: 1131 | O146: 1049 | P146: 1041 | Q146: 1044 | R146: 1044 | S146: 1102 | T146: 1117 | U146: 1157 | V146: 1143 | W146: 1091 | X146: 1489 | Y146: 1507 | Z146: 1615 | AA146: 1610 | AB146: 1577 | AC146: 1664 | AD146: 1654 | AE146: 1129 | AF146: 1651 | AG146: 1682 | AH146: 1676 | AI146: 1633 | AJ146: 1676 | AK146: 1825 | AL146: FALSO
A147: 66001 | B147: 660012 | C147: 2 | D147: 66 | E147: 1 | F147: 001 | G147: RISARALDA | H147: PEREIRA | I147: Dep_sec_priv | J147: 16336 | K147: 12614 | L147: 140850 | M147: 143521 | N147: 141941 | O147: 129416 | P147: 129719 | Q147: 130518 | R147: 132862 | S147: 133572 | T147: 135520 | U147: 136909 | V147: 137950 | W147: 137649 | X147: 135466 | Y147: 138426 | Z147: 139804 | AA147: 141036 | AB147: 138376 | AC147: 139859 | AD147: 141845 | AE147: 144824 | AF147: 147252 | AG147: 149006 | AH147: 150559 | AI147: 149534 | AJ147: 147514 | AK147: 150013 | AL147: FALSO
A148: 68500 | B148: 685002 | C148: 2 | D148: 68 | E148: 500 | F148: 500 | G148: SANTANDER | H148: OIBA | I148: Dep_sec_priv | J148: 67 | K148: 47 | L148: 366 | M148: 471 | N148: 505 | O148: 429 | P148: 419 | Q148: 435 | R148: 456 | S148: 505 | T148: 626 | U148: 659 | V148: 631 | W148: 601 | X148: 594 | Y148: 670 | Z148: 687 | AA148: 670 | AB148: 689 | AC148: 689 | AD148: 686 | AE148: 644 | AF148: 643 | AG148: 630 | AH148: 581 | AI148: 535 | AJ148: 509 | AK148: 533 | AL148: FALSO
A149: 25320 | B149: 253203 | C149: 3 | D149: 25 | E149: 320 | F149: 320 | G149: CUNDINAMARCA | H149: GUADUAS | I149: Independiente | J149: 73 | K149: 15 | L149: 680 | M149: 695 | N149: 697 | O149: 692 | P149: 691 | Q149: 696 | R149: 695 | S149: 697 | T149: 778 | U149: 799 | V149: 799 | W149: 801 | X149: 753 | Y149: 787 | Z149: 805 | AA149: 812 | AB149: 819 | AC149: 830 | AD149: 827 | AE149: 830 | AF149: 842 | AG149: 851 | AH149: 854 | AI149: 893 | AJ149: 780 | AK149: 799 | AL149: FALSO
A150: 25269 | B150: 252691 | C150: 1 | D150: 25 | E150: 269 | F150: 269 | G150: CUNDINAMARCA | H150: FACATATIVÁ | I150: Dep_No_priv | J150: 259 | K150: 186 | L150: 3348 | M150: 3343 | N150: 3336 | O150: 3262 | P150: 3267 | Q150: 3202 | R150: 3413 | S150: 3363 | T150: 3512 | U150: 3520 | V150: 3530 | W150: 3508 | X150: 3473 | Y150: 3486 | Z150: 3484 | AA150: 3511 | AB150: 3564 | AC150: 3525 | AD150: 3525 | AE150: 3598 | AF150: 3610 | AG150: 3641 | AH150: 3623 | AI150: 3552 | AJ150: 3302 | AK150: 3633 | AL150: FALSO
A151: 25040 | B151: 250402 | C151: 2 | D151: 25 | E151: 40 | F151: 040 | G151: CUNDINAMARCA | H151: ANOLAIMA | I151: Dep_sec_priv | J151: 50 | K151: 22 | L151: 365 | M151: 383 | N151: 388 | O151: 383 | P151: 371 | Q151: 388 | R151: 395 | S151: 383 | T151: 411 | U151: 451 | V151: 425 | W151: 424 | X151: 346 | Y151: 380 | Z151: 409 | AA151: 394 | AB151: 380 | AC151: 408 | AD151: 416 | AE151: 417 | AF151: 410 | AG151: 412 | AH151: 419 | AI151: 403 | AJ151: 399 | AK151: 440 | AL151: FALSO
A152: 25001 | B152: 250011 | C152: 1 | D152: 25 | E152: 1 | F152: 001 | G152: CUNDINAMARCA | H152: AGUA DE DIOS | I152: Dep_No_priv | J152: 290 | K152: 154 | L152: 2730 | M152: 2572 | N152: 2454 | O152: 2859 | P152: 2308 | Q152: 2334 | R152: 2284 | S152: 2472 | T152: 2547 | U152: 2650 | V152: 2763 | W152: 2474 | X152: 2398 | Y152: 2417 | Z152: 2451 | AA152: 2659 | AB152: 2774 | AC152: 2707 | AD152: 2929 | AE152: 2854 | AF152: 2881 | AG152: 3409 | AH152: 3648 | AI152: 2642 | AJ152: 2591 | AK152: 2763 | AL152: FALSO
A153: 25486 | B153: 254862 | C153: 2 | D153: 25 | E153: 486 | F153: 486 | G153: CUNDINAMARCA | H153: NEMOCÓN | I153: Dep_sec_priv | J153: 253 | K153: 290 | L153: 1397 | M153: 1320 | N153: 1313 | O153: 1326 | P153: 1301 | Q153: 1320 | R153: 1266 | S153: 1188 | T153: 1282 | U153: 1331 | V153: 1279 | W153: 1283 | X153: 1394 | Y153: 1469 | Z153: 1380 | AA153: 1479 | AB153: 1294 | AC153: 1312 | AD153: 1320 | AE153: 1396 | AF153: 1511 | AG153: 1554 | AH153: 1552 | AI153: 1465 | AJ153: 1875 | AK153: 1926 | AL153: FALSO
A154: 25402 | B154: 254022 | C154: 2 | D154: 25 | E154: 402 | F154: 402 | G154: CUNDINAMARCA | H154: LA VEGA | I154: Dep_sec_priv | J154: 61 | K154: 62 | L154: 762 | M154: 741 | N154: 765 | O154: 710 | P154: 719 | Q154: 762 | R154: 743 | S154: 749 | T154: 749 | U154: 770 | V154: 777 | W154: 737 | X154: 732 | Y154: 731 | Z154: 735 | AA154: 739 | AB154: 761 | AC154: 732 | AD154: 748 | AE154: 768 | AF154: 778 | AG154: 851 | AH154: 854 | AI154: 843 | AJ154: 887 | AK154: 809 | AL154: FALSO
A155: 50689 | B155: 506891 | C155: 1 | D155: 50 | E155: 689 | F155: 689 | G155: META | H155: SAN MARTÍN | I155: Dep_No_priv | J155: 13 | K155: 14 | L155: 479 | M155: 473 | N155: 477 | O155: 475 | P155: 480 | Q155: 493 | R155: 517 | S155: 516 | T155: 506 | U155: 518 | V155: 480 | W155: 454 | X155: 412 | Y155: 413 | Z155: 432 | AA155: 438 | AB155: 434 | AC155: 436 | AD155: 440 | AE155: 440 | AF155: 461 | AG155: 439 | AH155: 472 | AI155: 463 | AJ155: 445 | AK155: 437 | AL155: FALSO
A156: 25718 | B156: 257182 | C156: 2 | D156: 25 | E156: 718 | F156: 718 | G156: CUNDINAMARCA | H156: SASAIMA | I156: Dep_sec_priv | J156: 32 | K156: 10 | L156: 534 | M156: 520 | N156: 548 | O156: 513 | P156: 468 | Q156: 477 | R156: 515 | S156: 513 | T156: 508 | U156: 485 | V156: 493 | W156: 476 | X156: 446 | Y156: 445 | Z156: 449 | AA156: 448 | AB156: 433 | AC156: 440 | AD156: 457 | AE156: 471 | AF156: 481 | AG156: 468 | AH156: 464 | AI156: 474 | AJ156: 464 | AK156: 469 | AL156: FALSO
A157: 25843 | B157: 258432 | C157: 2 | D157: 25 | E157: 843 | F157: 843 | G157: CUNDINAMARCA | H157: VILLA DE SAN DIEGO DE UBATE | I157: Dep_sec_priv | J157: 759 | K157: 535 | L157: 5479 | M157: 5706 | N157: 5684 | O157: 5356 | P157: 5376 | Q157: 5759 | R157: 5829 | S157: 5606 | T157: 5595 | U157: 5740 | V157: 5739 | W157: 5807 | X157: 5914 | Y157: 6119 | Z157: 6347 | AA157: 6498 | AB157: 6541 | AC157: 6606 | AD157: 6638 | AE157: 6787 | AF157: 6906 | AG157: 6780 | AH157: 6783 | AI157: 6525 | AJ157: 6584 | AK157: 6678 | AL157: FALSO
A158: 68081 | B158: 680812 | C158: 2 | D158: 68 | E158: 81 | F158: 081 | G158: SANTANDER | H158: BARRANCABERMEJA | I158: Dep_sec_priv | J158: 5290 | K158: 3732 | L158: 34262 | M158: 36722 | N158: 36555 | O158: 31019 | P158: 30047 | Q158: 30800 | R158: 32041 | S158: 32762 | T158: 34363 | U158: 35323 | V158: 35438 | W158: 35020 | X158: 33817 | Y158: 35426 | Z158: 34417 | AA158: 33916 | AB158: 34272 | AC158: 34394 | AD158: 35146 | AE158: 37172 | AF158: 37957 | AG158: 37863 | AH158: 38020 | AI158: 36605 | AJ158: 34895 | AK158: 35914 | AL158: FALSO
A159: 15238 | B159: 152382 | C159: 2 | D159: 15 | E159: 238 | F159: 238 | G159: BOYACÁ | H159: DUITAMA | I159: Dep_sec_priv | J159: 2208 | K159: 1479 | L159: 18249 | M159: 18795 | N159: 18595 | O159: 17039 | P159: 17160 | Q159: 17345 | R159: 17192 | S159: 17151 | T159: 17533 | U159: 18153 | V159: 18416 | W159: 18267 | X159: 18144 | Y159: 18650 | Z159: 18813 | AA159: 18934 | AB159: 18615 | AC159: 19141 | AD159: 18510 | AE159: 18938 | AF159: 19125 | AG159: 19286 | AH159: 19614 | AI159: 19362 | AJ159: 19184 | AK159: 19164 | AL159: FALSO
A160: 5088 | B160: 50883 | C160: 3 | D160: 5 | E160: 88 | F160: 088 | G160: ANTIOQUIA | H160: BELLO | I160: Independiente | J160: 1057 | K160: 429 | L160: 9375 | M160: 9661 | N160: 9802 | O160: 9921 | P160: 10066 | Q160: 10256 | R160: 10473 | S160: 10688 | T160: 11048 | U160: 11389 | V160: 11680 | W160: 11521 | X160: 10700 | Y160: 11176 | Z160: 11610 | AA160: 11780 | AB160: 12053 | AC160: 12202 | AD160: 12301 | AE160: 12472 | AF160: 12606 | AG160: 12763 | AH160: 13029 | AI160: 12696 | AJ160: 12551 | AK160: 12723 | AL160: FALSO
A161: 25001 | B161: 250012 | C161: 2 | D161: 25 | E161: 1 | F161: 001 | G161: CUNDINAMARCA | H161: AGUA DE DIOS | I161: Dep_sec_priv | J161: 7024 | K161: 4895 | L161: 54403 | M161: 56423 | N161: 52676 | O161: 50637 | P161: 48594 | Q161: 51232 | R161: 50371 | S161: 51679 | T161: 54528 | U161: 55834 | V161: 52308 | W161: 55615 | X161: 51081 | Y161: 53231 | Z161: 56667 | AA161: 62109 | AB161: 62942 | AC161: 57333 | AD161: 59327 | AE161: 60229 | AF161: 63469 | AG161: 58192 | AH161: 57813 | AI161: 53934 | AJ161: 54951 | AK161: 56672 | AL161: FALSO
A162: 99773 | B162: 997732 | C162: 2 | D162: 99 | E162: 773 | F162: 773 | G162: VICHADA | H162: CUMARIBO | I162: Dep_sec_priv | J162: 3100 | K162: 4155 | L162: 17758 | M162: 20633 | N162: 20044 | O162: 16642 | P162: 18219 | Q162: 19008 | R162: 19514 | S162: 19374 | T162: 19884 | U162: 20309 | V162: 20801 | W162: 20254 | X162: 20446 | Y162: 20889 | Z162: 21982 | AA162: 22509 | AB162: 21542 | AC162: 22657 | AD162: 22604 | AE162: 22969 | AF162: 23370 | AG162: 23659 | AH162: 23885 | AI162: 23096 | AJ162: 22525 | AK162: 22484 | AL162: FALSO
A163: 15759 | B163: 157592 | C163: 2 | D163: 15 | E163: 759 | F163: 759 | G163: BOYACÁ | H163: SOGAMOSO | I163: Dep_sec_priv | J163: 2014 | K163: 1521 | L163: 16706 | M163: 17243 | N163: 17130 | O163: 15198 | P163: 15443 | Q163: 15694 | R163: 15701 | S163: 15923 | T163: 16246 | U163: 16476 | V163: 16588 | W163: 16657 | X163: 16425 | Y163: 17014 | Z163: 17069 | AA163: 17073 | AB163: 16919 | AC163: 17367 | AD163: 17372 | AE163: 17425 | AF163: 17865 | AG163: 17794 | AH163: 18196 | AI163: 17532 | AJ163: 17242 | AK163: 17548 | AL163: FALSO
A164: 25797 | B164: 257973 | C164: 3 | D164: 25 | E164: 797 | F164: 797 | G164: CUNDINAMARCA | H164: TENA | I164: Independiente | J164: 19 | K164: 7 | L164: 151 | M164: 160 | N164: 173 | O164: 171 | P164: 170 | Q164: 175 | R164: 170 | S164: 165 | T164: 162 | U164: 168 | V164: 195 | W164: 170 | X164: 166 | Y164: 179 | Z164: 188 | AA164: 201 | AB164: 206 | AC164: 205 | AD164: 210 | AE164: 207 | AF164: 205 | AG164: 213 | AH164: 221 | AI164: 230 | AJ164: 226 | AK164: 230 | AL164: FALSO
A165: 76400 | B165: 764003 | C165: 3 | D165: 76 | E165: 400 | F165: 400 | G165: VALLE DEL CAUCA | H165: LA UNIÓN | I165: Independiente | J165: 41 | K165: 21 | L165: 968 | M165: 990 | N165: 1006 | O165: 1003 | P165: 935 | Q165: 911 | R165: 940 | S165: 939 | T165: 950 | U165: 972 | V165: 1000 | W165: 971 | X165: 952 | Y165: 990 | Z165: 1016 | AA165: 1022 | AB165: 1041 | AC165: 999 | AD165: 1029 | AE165: 1059 | AF165: 1055 | AG165: 1024 | AH165: 1019 | AI165: 1018 | AJ165: 1013 | AK165: 1015 | AL165: FALSO
A166: 25126 | B166: 251262 | C166: 2 | D166: 25 | E166: 126 | F166: 126 | G166: CUNDINAMARCA | H166: CAJICÁ | I166: Dep_sec_priv | J166: 1922 | K166: 1254 | L166: 12844 | M166: 13260 | N166: 13187 | O166: 12345 | P166: 12476 | Q166: 12670 | R166: 12854 | S166: 12794 | T166: 12977 | U166: 12986 | V166: 12958 | W166: 12949 | X166: 13248 | Y166: 13729 | Z166: 13656 | AA166: 13668 | AB166: 13873 | AC166: 14091 | AD166: 14404 | AE166: 14792 | AF166: 15092 | AG166: 15477 | AH166: 15627 | AI166: 15166 | AJ166: 15279 | AK166: 15521 | AL166: FALSO
A167: 25662 | B167: 256623 | C167: 3 | D167: 25 | E167: 662 | F167: 662 | G167: CUNDINAMARCA | H167: SAN JUAN DE RÍO SECO | I167: Independiente | J167: 11 | K167: 3 | L167: 146 | M167: 161 | N167: 164 | O167: 175 | P167: 178 | Q167: 178 | R167: 180 | S167: 174 | T167: 193 | U167: 198 | V167: 210 | W167: 203 | X167: 192 | Y167: 207 | Z167: 213 | AA167: 222 | AB167: 222 | AC167: 224 | AD167: 225 | AE167: 232 | AF167: 229 | AG167: 234 | AH167: 232 | AI167: 235 | AJ167: 220 | AK167: 217 | AL167: FALSO
A168: 25019 | B168: 250191 | C168: 1 | D168: 25 | E168: 19 | F168: 019 | G168: CUNDINAMARCA | H168: ALBÁN | I168: Dep_No_priv | J168: 2 | K168: 0 | L168: 112 | M168: 114 | N168: 109 | O168: 106 | P168: 150 | Q168: 153 | R168: 152 | S168: 153 | T168: 152 | U168: 150 | V168: 151 | W168: 106 | X168: 106 | Y168: 95 | Z168: 95 | AA168: 95 | AB168: 136 | AC168: 135 | AD168: 136 | AE168: 141 | AF168: 141 | AG168: 141 | AH168: 143 | AI168: 106 | AJ168: 103 | AK168: 102 | AL168: FALSO
A169: 15759 | B169: 157591 | C169: 1 | D169: 15 | E169: 759 | F169: 759 | G169: BOYACÁ | H169: SOGAMOSO | I169: Dep_No_priv | J169: 752 | K169: 212 | L169: 2760 | M169: 5074 | N169: 5125 | O169: 4724 | P169: 2303 | Q169: 2420 | R169: 2470 | S169: 2687 | T169: 2915 | U169: 2891 | V169: 2773 | W169: 2537 | X169: 2644 | Y169: 2457 | Z169: 2710 | AA169: 2731 | AB169: 2704 | AC169: 2733 | AD169: 2781 | AE169: 2928 | AF169: 4868 | AG169: 5050 | AH169: 4973 | AI169: 2918 | AJ169: 2607 | AK169: 3168 | AL169: FALSO
A170: 68655 | B170: 686552 | C170: 2 | D170: 68 | E170: 655 | F170: 655 | G170: SANTANDER | H170: SABANA DE TORRES | I170: Dep_sec_priv | J170: 624 | K170: 488 | L170: 3553 | M170: 3721 | N170: 3721 | O170: 3286 | P170: 3299 | Q170: 3386 | R170: 3485 | S170: 3242 | T170: 3284 | U170: 3276 | V170: 3276 | W170: 3172 | X170: 3176 | Y170: 3217 | Z170: 3270 | AA170: 3406 | AB170: 3318 | AC170: 3402 | AD170: 3339 | AE170: 3328 | AF170: 3256 | AG170: 3368 | AH170: 3351 | AI170: 3341 | AJ170: 3463 | AK170: 3560 | AL170: FALSO
A171: 95001 | B171: 950012 | C171: 2 | D171: 95 | E171: 1 | F171: 001 | G171: GUAVIARE | H171: SAN JOSÉ DEL GUAVIARE | I171: Dep_sec_priv | J171: 1941 | K171: 1254 | L171: 5030 | M171: 5637 | N171: 5701 | O171: 5051 | P171: 5414 | Q171: 5738 | R171: 6269 | S171: 6466 | T171: 6158 | U171: 6203 | V171: 6320 | W171: 6320 | X171: 6073 | Y171: 6400 | Z171: 6958 | AA171: 6770 | AB171: 6673 | AC171: 7075 | AD171: 7229 | AE171: 7509 | AF171: 8172 | AG171: 8328 | AH171: 9020 | AI171: 9055 | AJ171: 9265 | AK171: 10399 | AL171: FALSO
A172: 25279 | B172: 252792 | C172: 2 | D172: 25 | E172: 279 | F172: 279 | G172: CUNDINAMARCA | H172: FOMEQUE | I172: Dep_sec_priv | J172: 97 | K172: 44 | L172: 795 | M172: 818 | N172: 829 | O172: 780 | P172: 808 | Q172: 811 | R172: 834 | S172: 832 | T172: 875 | U172: 896 | V172: 855 | W172: 803 | X172: 808 | Y172: 807 | Z172: 752 | AA172: 771 | AB172: 751 | AC172: 752 | AD172: 754 | AE172: 768 | AF172: 791 | AG172: 783 | AH172: 707 | AI172: 725 | AJ172: 701 | AK172: 735 | AL172: FALSO
A173: 25320 | B173: 253202 | C173: 2 | D173: 25 | E173: 320 | F173: 320 | G173: CUNDINAMARCA | H173: GUADUAS | I173: Dep_sec_priv | J173: 184 | K173: 125 | L173: 1493 | M173: 1510 | N173: 1452 | O173: 1328 | P173: 1269 | Q173: 1288 | R173: 1278 | S173: 1284 | T173: 1319 | U173: 1374 | V173: 1415 | W173: 1399 | X173: 1414 | Y173: 1487 | Z173: 1486 | AA173: 1393 | AB173: 1384 | AC173: 1331 | AD173: 1216 | AE173: 1172 | AF173: 1174 | AG173: 1134 | AH173: 1172 | AI173: 1111 | AJ173: 1101 | AK173: 1144 | AL173: FALSO
A174: 25758 | B174: 257582 | C174: 2 | D174: 25 | E174: 758 | F174: 758 | G174: CUNDINAMARCA | H174: SOPÓ | I174: Dep_sec_priv | J174: 373 | K174: 281 | L174: 3561 | M174: 3638 | N174: 3443 | O174: 3227 | P174: 3342 | Q174: 3276 | R174: 3303 | S174: 3273 | T174: 3402 | U174: 3439 | V174: 3458 | W174: 3428 | X174: 3518 | Y174: 3604 | Z174: 3587 | AA174: 3801 | AB174: 3633 | AC174: 3569 | AD174: 3557 | AE174: 3616 | AF174: 3592 | AG174: 3635 | AH174: 3682 | AI174: 3705 | AJ174: 4170 | AK174: 4270 | AL174: FALSO
A175: 25592 | B175: 255923 | C175: 3 | D175: 25 | E175: 592 | F175: 592 | G175: CUNDINAMARCA | H175: QUEBRADANEGRA | I175: Independiente | J175: 3 | K175: 1 | L175: 75 | M175: 80 | N175: 84 | O175: 84 | P175: 80 | Q175: 80 | R175: 77 | S175: 80 | T175: 84 | U175: 83 | V175: 84 | W175: 82 | X175: 77 | Y175: 87 | Z175: 87 | AA175: 95 | AB175: 93 | AC175: 94 | AD175: 96 | AE175: 94 | AF175: 105 | AG175: 106 | AH175: 96 | AI175: 89 | AJ175: 96 | AK175: 92 | AL175: FALSO
A176: 25718 | B176: 257181 | C176: 1 | D176: 25 | E176: 718 | F176: 718 | G176: CUNDINAMARCA | H176: SASAIMA | I176: Dep_No_priv | J176: 9 | K176: 1 | L176: 191 | M176: 186 | N176: 183 | O176: 178 | P176: 184 | Q176: 236 | R176: 233 | S176: 345 | T176: 282 | U176: 286 | V176: 335 | W176: 175 | X176: 172 | Y176: 176 | Z176: 174 | AA176: 177 | AB176: 215 | AC176: 212 | AD176: 212 | AE176: 217 | AF176: 212 | AG176: 281 | AH176: 180 | AI176: 178 | AJ176: 172 | AK176: 179 | AL176: FALSO
A177: 25328 | B177: 253283 | C177: 3 | D177: 25 | E177: 328 | F177: 328 | G177: CUNDINAMARCA | H177: GUAYABAL DE SIQUIMA | I177: Independiente | J177: 18 | K177: 1 | L177: 68 | M177: 71 | N177: 74 | O177: 72 | P177: 77 | Q177: 80 | R177: 78 | S177: 86 | T177: 89 | U177: 96 | V177: 97 | W177: 94 | X177: 82 | Y177: 96 | Z177: 100 | AA177: 108 | AB177: 105 | AC177: 105 | AD177: 108 | AE177: 108 | AF177: 106 | AG177: 109 | AH177: 112 | AI177: 109 | AJ177: 96 | AK177: 111 | AL177: FALSO
A178: 27006 | B178: 270062 | C178: 2 | D178: 27 | E178: 6 | F178: 006 | G178: CHOCÓ | H178: ACANDÍ | I178: Dep_sec_priv | J178: 365 | K178: 661 | L178: 4252 | M178: 4632 | N178: 4329 | O178: 3880 | P178: 3859 | Q178: 4201 | R178: 4766 | S178: 4667 | T178: 4861 | U178: 4860 | V178: 5869 | W178: 4687 | X178: 4560 | Y178: 4899 | Z178: 5056 | AA178: 5153 | AB178: 5261 | AC178: 5292 | AD178: 5237 | AE178: 5249 | AF178: 6035 | AG178: 5143 | AH178: 5195 | AI178: 4877 | AJ178: 5021 | AK178: 4954 | AL178: FALSO
A179: 25740 | B179: 257403 | C179: 3 | D179: 25 | E179: 740 | F179: 740 | G179: CUNDINAMARCA | H179: SIBATÉ | I179: Independiente | J179: 306 | K179: 22 | L179: 561 | M179: 747 | N179: 795 | O179: 756 | P179: 769 | Q179: 770 | R179: 796 | S179: 759 | T179: 790 | U179: 1025 | V179: 1077 | W179: 1110 | X179: 890 | Y179: 985 | Z179: 884 | AA179: 945 | AB179: 967 | AC179: 1011 | AD179: 1025 | AE179: 937 | AF179: 953 | AG179: 959 | AH179: 946 | AI179: 915 | AJ179: 751 | AK179: 1018 | AL179: FALSO
A180: 25817 | B180: 258172 | C180: 2 | D180: 25 | E180: 817 | F180: 817 | G180: CUNDINAMARCA | H180: TOCANCIPÁ | I180: Dep_sec_priv | J180: 1631 | K180: 1385 | L180: 12220 | M180: 12381 | N180: 11988 | O180: 11050 | P180: 10845 | Q180: 10744 | R180: 11002 | S180: 11140 | T180: 11298 | U180: 11408 | V180: 11741 | W180: 11634 | X180: 12188 | Y180: 12831 | Z180: 12946 | AA180: 13196 | AB180: 13060 | AC180: 12966 | AD180: 13184 | AE180: 13205 | AF180: 13339 | AG180: 14200 | AH180: 13762 | AI180: 13735 | AJ180: 14278 | AK180: 14454 | AL180: FALSO
A181: 25718 | B181: 257183 | C181: 3 | D181: 25 | E181: 718 | F181: 718 | G181: CUNDINAMARCA | H181: SASAIMA | I181: Independiente | J181: 18 | K181: 5 | L181: 231 | M181: 233 | N181: 228 | O181: 230 | P181: 243 | Q181: 239 | R181: 231 | S181: 240 | T181: 249 | U181: 242 | V181: 248 | W181: 247 | X181: 227 | Y181: 233 | Z181: 242 | AA181: 240 | AB181: 246 | AC181: 275 | AD181: 276 | AE181: 280 | AF181: 284 | AG181: 375 | AH181: 380 | AI181: 371 | AJ181: 367 | AK181: 368 | AL181: FALSO
A182: 25875 | B182: 258752 | C182: 2 | D182: 25 | E182: 875 | F182: 875 | G182: CUNDINAMARCA | H182: VILLETA | I182: Dep_sec_priv | J182: 386 | K182: 245 | L182: 2024 | M182: 2030 | N182: 2091 | O182: 1854 | P182: 1964 | Q182: 1998 | R182: 2016 | S182: 1995 | T182: 2041 | U182: 2163 | V182: 2189 | W182: 2161 | X182: 2180 | Y182: 2376 | Z182: 2380 | AA182: 2458 | AB182: 2528 | AC182: 2466 | AD182: 2431 | AE182: 2423 | AF182: 2457 | AG182: 2534 | AH182: 2469 | AI182: 2444 | AJ182: 2377 | AK182: 2517 | AL182: FALSO
A183: 15407 | B183: 154072 | C183: 2 | D183: 15 | E183: 407 | F183: 407 | G183: BOYACÁ | H183: VILLA DE LEYVA | I183: Dep_sec_priv | J183: 165 | K183: 112 | L183: 1357 | M183: 1420 | N183: 1399 | O183: 1192 | P183: 1163 | Q183: 1151 | R183: 1099 | S183: 1114 | T183: 1173 | U183: 1217 | V183: 1273 | W183: 1233 | X183: 1288 | Y183: 1323 | Z183: 1375 | AA183: 1419 | AB183: 1413 | AC183: 1433 | AD183: 1450 | AE183: 1491 | AF183: 1509 | AG183: 1579 | AH183: 1641 | AI183: 1614 | AJ183: 1565 | AK183: 1571 | AL183: FALSO
A184: 25260 | B184: 252602 | C184: 2 | D184: 25 | E184: 260 | F184: 260 | G184: CUNDINAMARCA | H184: EL ROSAL | I184: Dep_sec_priv | J184: 332 | K184: 251 | L184: 2312 | M184: 2344 | N184: 2120 | O184: 2032 | P184: 1981 | Q184: 2029 | R184: 2049 | S184: 1951 | T184: 1987 | U184: 2007 | V184: 2029 | W184: 1999 | X184: 2013 | Y184: 2223 | Z184: 2318 | AA184: 2330 | AB184: 2375 | AC184: 2351 | AD184: 2325 | AE184: 2203 | AF184: 2363 | AG184: 2407 | AH184: 2407 | AI184: 2349 | AJ184: 2416 | AK184: 2398 | AL184: FALSO
A185: 25799 | B185: 257992 | C185: 2 | D185: 25 | E185: 799 | F185: 799 | G185: CUNDINAMARCA | H185: TENJO | I185: Dep_sec_priv | J185: 623 | K185: 367 | L185: 6071 | M185: 6318 | N185: 6335 | O185: 6030 | P185: 6092 | Q185: 5857 | R185: 5992 | S185: 6040 | T185: 6083 | U185: 5859 | V185: 6008 | W185: 5996 | X185: 5798 | Y185: 6070 | Z185: 6088 | AA185: 6073 | AB185: 6086 | AC185: 6210 | AD185: 6231 | AE185: 6290 | AF185: 6017 | AG185: 6330 | AH185: 6478 | AI185: 6404 | AJ185: 6106 | AK185: 6450 | AL185: FALSO
A186: 95001 | B186: 950011 | C186: 1 | D186: 95 | E186: 1 | F186: 001 | G186: GUAVIARE | H186: SAN JOSÉ DEL GUAVIARE | I186: Dep_No_priv | J186: 351 | K186: 126 | L186: 2601 | M186: 2501 | N186: 2654 | O186: 2604 | P186: 2660 | Q186: 2582 | R186: 2661 | S186: 2716 | T186: 2727 | U186: 2681 | V186: 2682 | W186: 2505 | X186: 2390 | Y186: 2470 | Z186: 2543 | AA186: 2629 | AB186: 3218 | AC186: 3985 | AD186: 4039 | AE186: 4111 | AF186: 4192 | AG186: 4123 | AH186: 4164 | AI186: 2689 | AJ186: 2583 | AK186: 2654 | AL186: FALSO
A187: 5059 | B187: 50592 | C187: 2 | D187: 5 | E187: 59 | F187: 059 | G187: ANTIOQUIA | H187: ARMENIA | I187: Dep_sec_priv | J187: 16 | K187: 9 | L187: 221 | M187: 201 | N187: 160 | O187: 162 | P187: 160 | Q187: 172 | R187: 171 | S187: 179 | T187: 170 | U187: 162 | V187: 166 | W187: 171 | X187: 160 | Y187: 163 | Z187: 188 | AA187: 174 | AB187: 201 | AC187: 186 | AD187: 228 | AE187: 307 | AF187: 263 | AG187: 285 | AH187: 310 | AI187: 297 | AJ187: 184 | AK187: 166 | AL187: FALSO
A188: 44430 | B188: 444301 | C188: 1 | D188: 44 | E188: 430 | F188: 430 | G188: LA GUAJIRA | H188: MAICAO | I188: Dep_No_priv | J188: 99 | K188: 46 | L188: 2831 | M188: 2890 | N188: 2913 | O188: 2889 | P188: 2924 | Q188: 2983 | R188: 2985 | S188: 3099 | T188: 3171 | U188: 3171 | V188: 3030 | W188: 2961 | X188: 2852 | Y188: 2849 | Z188: 2931 | AA188: 3153 | AB188: 3169 | AC188: 3151 | AD188: 3038 | AE188: 3122 | AF188: 3137 | AG188: 3103 | AH188: 3104 | AI188: 3021 | AJ188: 3038 | AK188: 3034 | AL188: FALSO
A189: 85001 | B189: 850012 | C189: 2 | D189: 85 | E189: 1 | F189: 001 | G189: CASANARE | H189: YOPAL | I189: Dep_sec_priv | J189: 5530 | K189: 4401 | L189: 45333 | M189: 48669 | N189: 47160 | O189: 39178 | P189: 40134 | Q189: 39088 | R189: 40070 | S189: 40242 | T189: 40795 | U189: 40377 | V189: 40775 | W189: 40267 | X189: 39634 | Y189: 41762 | Z189: 43186 | AA189: 43350 | AB189: 42419 | AC189: 42473 | AD189: 42916 | AE189: 43756 | AF189: 44376 | AG189: 45511 | AH189: 45637 | AI189: 44760 | AJ189: 43432 | AK189: 44150 | AL189: FALSO
A190: 25148 | B190: 251482 | C190: 2 | D190: 25 | E190: 148 | F190: 148 | G190: CUNDINAMARCA | H190: CAPARRAPÍ | I190: Dep_sec_priv | J190: 15 | K190: 12 | L190: 146 | M190: 138 | N190: 134 | O190: 116 | P190: 121 | Q190: 128 | R190: 104 | S190: 123 | T190: 158 | U190: 175 | V190: 176 | W190: 139 | X190: 118 | Y190: 125 | Z190: 98 | AA190: 99 | AB190: 120 | AC190: 105 | AD190: 106 | AE190: 117 | AF190: 130 | AG190: 141 | AH190: 143 | AI190: 157 | AJ190: 139 | AK190: 132 | AL190: FALSO
A191: 76147 | B191: 761472 | C191: 2 | D191: 76 | E191: 147 | F191: 147 | G191: VALLE DEL CAUCA | H191: CARTAGO | I191: Dep_sec_priv | J191: 1684 | K191: 1219 | L191: 16471 | M191: 16898 | N191: 16858 | O191: 15742 | P191: 15835 | Q191: 15751 | R191: 15888 | S191: 16066 | T191: 16121 | U191: 16313 | V191: 16650 | W191: 16565 | X191: 16442 | Y191: 16917 | Z191: 17287 | AA191: 17239 | AB191: 16666 | AC191: 16963 | AD191: 17121 | AE191: 17385 | AF191: 17483 | AG191: 17587 | AH191: 17394 | AI191: 17014 | AJ191: 16882 | AK191: 17403 | AL191: FALSO
A192: 25596 | B192: 255961 | C192: 1 | D192: 25 | E192: 596 | F192: 596 | G192: CUNDINAMARCA | H192: QUIPILE | I192: Dep_No_priv | J192: 0 | K192: 1 | L192: 101 | M192: 102 | N192: 103 | O192: 97 | P192: 96 | Q192: 142 | R192: 138 | S192: 139 | T192: 143 | U192: 120 | V192: 121 | W192: 80 | X192: 80 | Y192: 80 | Z192: 77 | AA192: 78 | AB192: 95 | AC192: 95 | AD192: 93 | AE192: 114 | AF192: 116 | AG192: 116 | AH192: 117 | AI192: 88 | AJ192: 86 | AK192: 84 | AL192: FALSO
A193: 76364 | B193: 763643 | C193: 3 | D193: 76 | E193: 364 | F193: 364 | G193: VALLE DEL CAUCA | H193: JAMUNDÍ | I193: Independiente | J193: 295 | K193: 135 | L193: 2920 | M193: 2991 | N193: 3093 | O193: 3034 | P193: 3059 | Q193: 3041 | R193: 3049 | S193: 3193 | T193: 3311 | U193: 3452 | V193: 3636 | W193: 3589 | X193: 3452 | Y193: 3619 | Z193: 3743 | AA193: 3791 | AB193: 3750 | AC193: 3785 | AD193: 3856 | AE193: 4023 | AF193: 4186 | AG193: 4220 | AH193: 4342 | AI193: 4213 | AJ193: 4253 | AK193: 4286 | AL193: FALSO
A194: 25386 | B194: 253862 | C194: 2 | D194: 25 | E194: 386 | F194: 386 | G194: CUNDINAMARCA | H194: LA MESA | I194: Dep_sec_priv | J194: 300 | K194: 273 | L194: 1799 | M194: 1875 | N194: 1768 | O194: 1574 | P194: 1776 | Q194: 1741 | R194: 1704 | S194: 1737 | T194: 1778 | U194: 1776 | V194: 1749 | W194: 1756 | X194: 1814 | Y194: 1969 | Z194: 2011 | AA194: 2056 | AB194: 2006 | AC194: 2133 | AD194: 2200 | AE194: 2249 | AF194: 2277 | AG194: 2271 | AH194: 2269 | AI194: 2134 | AJ194: 2226 | AK194: 2230 | AL194: FALSO
A195: 25200 | B195: 252001 | C195: 1 | D195: 25 | E195: 200 | F195: 200 | G195: CUNDINAMARCA | H195: COGUA | I195: Dep_No_priv | J195: 25 | K195: 10 | L195: 815 | M195: 806 | N195: 796 | O195: 747 | P195: 772 | Q195: 894 | R195: 1002 | S195: 1010 | T195: 1011 | U195: 998 | V195: 992 | W195: 757 | X195: 757 | Y195: 768 | Z195: 781 | AA195: 713 | AB195: 949 | AC195: 954 | AD195: 970 | AE195: 982 | AF195: 983 | AG195: 990 | AH195: 964 | AI195: 806 | AJ195: 798 | AK195: 792 | AL195: =IF(SUM(L195:AK195)=0,"VERDADERO","FALSO") -> FALSO
A196: 25035 | B196: 250352 | C196: 2 | D196: 25 | E196: 35 | F196: 035 | G196: CUNDINAMARCA | H196: ANAPOIMA | I196: Dep_sec_priv | J196: 143 | K196: 120 | L196: 1750 | M196: 1803 | N196: 1760 | O196: 1510 | P196: 1515 | Q196: 1522 | R196: 1561 | S196: 1627 | T196: 1673 | U196: 1713 | V196: 1714 | W196: 1731 | X196: 1776 | Y196: 1799 | Z196: 1843 | AA196: 1820 | AB196: 1831 | AC196: 1818 | AD196: 1777 | AE196: 1758 | AF196: 1805 | AG196: 1773 | AH196: 1827 | AI196: 1813 | AJ196: 1833 | AK196: 1813 | AL196: FALSO
A197: 25035 | B197: 250351 | C197: 1 | D197: 25 | E197: 35 | F197: 035 | G197: CUNDINAMARCA | H197: ANAPOIMA | I197: Dep_No_priv | J197: 24 | K197: 12 | L197: 364 | M197: 373 | N197: 376 | O197: 366 | P197: 359 | Q197: 427 | R197: 425 | S197: 384 | T197: 401 | U197: 452 | V197: 454 | W197: 402 | X197: 406 | Y197: 411 | Z197: 403 | AA197: 402 | AB197: 404 | AC197: 411 | AD197: 416 | AE197: 421 | AF197: 423 | AG197: 405 | AH197: 412 | AI197: 415 | AJ197: 401 | AK197: 417 | AL197: FALSO
A198: 25386 | B198: 253861 | C198: 1 | D198: 25 | E198: 386 | F198: 386 | G198: CUNDINAMARCA | H198: LA MESA | I198: Dep_No_priv | J198: 44 | K198: 22 | L198: 513 | M198: 532 | N198: 523 | O198: 503 | P198: 710 | Q198: 691 | R198: 686 | S198: 691 | T198: 702 | U198: 711 | V198: 713 | W198: 495 | X198: 500 | Y198: 516 | Z198: 529 | AA198: 600 | AB198: 744 | AC198: 783 | AD198: 725 | AE198: 750 | AF198: 734 | AG198: 740 | AH198: 774 | AI198: 565 | AJ198: 528 | AK198: 554 | AL198: FALSO
A199: 25307 | B199: 253072 | C199: 2 | D199: 25 | E199: 307 | F199: 307 | G199: CUNDINAMARCA | H199: GIRARDOT | I199: Dep_sec_priv | J199: 1983 | K199: 2159 | L199: 17299 | M199: 17966 | N199: 17874 | O199: 15401 | P199: 15887 | Q199: 16434 | R199: 16524 | S199: 21299 | T199: 17187 | U199: 22449 | V199: 22909 | W199: 18249 | X199: 18387 | Y199: 18525 | Z199: 19032 | AA199: 19236 | AB199: 19398 | AC199: 24348 | AD199: 24465 | AE199: 20333 | AF199: 20685 | AG199: 20114 | AH199: 20313 | AI199: 19752 | AJ199: 19274 | AK199: 19520 | AL199: FALSO
A200: 73283 | B200: 732833 | C200: 3 | D200: 73 | E200: 283 | F200: 283 | G200: TOLIMA | H200: FRESNO | I200: Independiente | J200: 56 | K200: 24 | L200: 647 | M200: 683 | N200: 686 | O200: 594 | P200: 592 | Q200: 622 | R200: 655 | S200: 648 | T200: 683 | U200: 725 | V200: 748 | W200: 715 | X200: 653 | Y200: 682 | Z200: 622 | AA200: 632 | AB200: 638 | AC200: 637 | AD200: 649 | AE200: 641 | AF200: 678 | AG200: 672 | AH200: 662 | AI200: 651 | AJ200: 623 | AK200: 655 | AL200: FALSO
... 2050 more rows

Sheet Tamaño
A1: codigo_depto_Max_Max | B1: codigo_ciudad_Max_Max | C1: Mpio0 | D1: Divipola | E1: Depto | F1: Mpio | G1: Total_cotizantes | H1: codigo_actividad_economica_Max_Max | I1: CIIU | J1: Nombre Corto | M1: codigo_depto_Max_Max | N1: codigo_ciudad_Max_Max | O1: Mpio0 | P1: Divipola | Q1: Depto | R1: Mpio | S1: Total_cotizantes | T1: codigo_actividad_economica_Max_Max | U1: CIIU | V1: Nombre Corto | Z1: Nacional | AA1: =PROPER(Visor!$Q$7) -> Bogotá, D.C. | AB1: =PROPER(Visor!$Q$8) -> Bogotá, D.C. | AQ1: Apt | AR1: Emp | AS1: Apt_Mpio | AT1: Emp_Mpio | BA1: Unicos mpio | BG1: Apt | BH1: Privados | BI1: Independientes | BJ1: Privados/Apt | BQ1: =Visor!Q7 -> BOGOTÁ, D.C. | BR1: =Visor!Q8 -> BOGOTÁ, D.C. | BU1: =BQ1 -> BOGOTÁ, D.C. | BV1: =BR1 -> BOGOTÁ, D.C.
A2: 66 | B2: 170 | C2: 170 | D2: 66170 | E2: RISARALDA | F2: DOSQUEBRADAS | G2: 1 | H2: 8414 | I2: O | J2: Admin. pública y defensa; planes seg. social | M2: =_xlfn._xlws.FILTER($A$2:$J$600000,$E$2:$E$600000=Visor!$Q$7,) -> 11 | N2: 1 | O2: 001 | P2: 11001 | Q2: BOGOTÁ, D.C. | R2: BOGOTÁ, D.C. | S2: 1 | T2: 7490 | U2: M | V2: Act. profecionales cientificas y tecnicas | Y2: Micro de 1 | Z2: =COUNTIFS($G$2:$G$600000,"=1") -> 157027 | AA2: =COUNTIFS($S$2:$S$300000,"=1") -> 56547 | AB2: =COUNTIFS($S$2:$S$300000,"=1",$R$2:$R$300000,Visor!$Q$8) -> 56547 | AE2: Agricultura, ganadería, caza | AF2: A | AG2: Agricultura, ganadería, caza | AM2: Agricultura, ganadería, caza | AN2: =COUNTIFS($U$2:$U$300000,$AF2) -> 2207 | AP2: =_xlfn._xlws.SORT(AM2:AN23,2,-1,) -> Act. profecionales cientificas y tecnicas | AQ2: 45365 | AR2: =SUMIFS($S$2:$S$600000,$V$2:$V$600000,$AP2) -> 660142 | AS2: =COUNTIFS($V$2:$V$600000,$AP2,$R$2:$R$600000,Visor!$Q$8) -> 45365 | AT2: =SUMIFS($G$2:$G$600000,$E$2:$E$600000,Visor!$Q$7,Tamaño!$F$2:$F$600000,Visor!$Q$8,Tamaño!$J$2:$J$600000,Tamaño!$AP2) -> 660142 | BA2: =_xlfn.UNIQUE(Lista!$F$2:$F$5000) -> BOGOTÁ, D.C. | BB2: =COUNTIFS($R$2:$R$300000,BA2) -> 157281 | BF2: =_xlfn._xlws.SORT($BA$2:$BB$150,2,-1) -> BOGOTÁ, D.C. | BG2: 157281 | BH2: =SUMIFS('Cotizantes Mes'!$CA$2:$CA$500,'Cotizantes Mes'!$AY$2:$AY$500,"Dep_sec_priv",'Cotizantes Mes'!$AX$2:$AX$500,Tamaño!BF2) -> 2723787 | BI2: =SUMIFS('Cotizantes Mes'!$CA$2:$CA$500,'Cotizantes Mes'!$AX$2:$AX$500,Tamaño!BF2,'Cotizantes Mes'!$AY$2:$AY$500,"Independiente") -> 666093 | BJ2: =SUMIFS($G$2:$G$600000,$F$2:$F$600000,BF2,$E$2:$E$600000,Visor!$Q$7) -> 3255983 | BP2: Agricultura, ganadería, caza | BQ2: =SUMIFS('Actividades Independientes'!$X$2:$X$4000,'Actividades Independientes'!$W$2:$W$4000,Tamaño!BP2,'Actividades Independientes'!$S$2:$S$4000,Visor!$Q$7) -> 6498 | BR2: =SUMIFS('Actividades Independientes'!$X$2:$X$4000,'Actividades Independientes'!$W$2:$W$4000,Tamaño!BP2,'Actividades Independientes'!$S$2:$S$4000,Visor!$Q$7,'Actividades Independientes'!$T$2:$T$4000,Visor!$Q$8) -> 6498 | BT2: =_xlfn._xlws.SORT(BP2:BR23,2,-1) -> Act. profecionales cientificas y tecnicas | BU2: 195960 | BV2: 195960
A3: 66 | B3: 1 | C3: 001 | D3: 66001 | E3: RISARALDA | F3: PEREIRA | G3: 2 | H3: 4520 | I3: G | J3: Comercio y reparacion de vehiculos | M3: 11 | N3: 1 | O3: 001 | P3: 11001 | Q3: BOGOTÁ, D.C. | R3: BOGOTÁ, D.C. | S3: 4 | T3: 4761 | U3: G | V3: Comercio y reparacion de vehiculos | Y3: Micro 2-10 | Z3: =COUNTIFS($G$2:$G$600000,">=2",$G$2:$G$600000,"<=10") -> 250736 | AA3: =COUNTIFS($S$2:$S$300000,">=2",$S$2:$S$300000,"<=10") -> 72282 | AB3: =COUNTIFS($S$2:$S$300000,">=2",$S$2:$S$300000,"<=10",$R$2:$R$300000,Visor!$Q$8) -> 72282 | AE3: Explotación de minas y canteras | AF3: B | AG3: Explotación de minas y canteras | AM3: Explotación de minas y canteras | AN3: =COUNTIFS($U$2:$U$300000,$AF3) -> 425 | AP3: Comercio y reparacion de vehiculos | AQ3: 23903 | AR3: =SUMIFS($S$2:$S$600000,$V$2:$V$600000,$AP3) -> 343176 | AS3: =COUNTIFS($V$2:$V$600000,$AP3,$R$2:$R$600000,Visor!$Q$8) -> 23903 | AT3: =SUMIFS($G$2:$G$600000,$E$2:$E$600000,Visor!$Q$7,Tamaño!$F$2:$F$600000,Visor!$Q$8,Tamaño!$J$2:$J$600000,Tamaño!$AP3) -> 343176 | BA3: 0 | BB3: =COUNTIFS($R$2:$R$300000,BA3) -> 0 | BF3: 0 | BG3: 0 | BH3: =SUMIFS('Cotizantes Mes'!$CA$2:$CA$500,'Cotizantes Mes'!$AY$2:$AY$500,"Dep_sec_priv",'Cotizantes Mes'!$AX$2:$AX$500,Tamaño!BF3) -> 0 | BI3: =SUMIFS('Cotizantes Mes'!$CA$2:$CA$500,'Cotizantes Mes'!$AX$2:$AX$500,Tamaño!BF3,'Cotizantes Mes'!$AY$2:$AY$500,"Independiente") -> 0 | BJ3: =SUMIFS($G$2:$G$600000,$F$2:$F$600000,BF3,$E$2:$E$600000,Visor!$Q$7) -> 0 | BP3: Explotación de minas y canteras | BQ3: =SUMIFS('Actividades Independientes'!$X$2:$X$4000,'Actividades Independientes'!$W$2:$W$4000,Tamaño!BP3,'Actividades Independientes'!$S$2:$S$4000,Visor!$Q$7) -> 535 | BR3: =SUMIFS('Actividades Independientes'!$X$2:$X$4000,'Actividades Independientes'!$W$2:$W$4000,Tamaño!BP3,'Actividades Independientes'!$S$2:$S$4000,Visor!$Q$7,'Actividades Independientes'!$T$2:$T$4000,Visor!$Q$8) -> 535 | BT3: Actividades de servicios administrativos | BU3: 96870 | BV3: 96870
A4: 66 | B4: 170 | C4: 170 | D4: 66170 | E4: RISARALDA | F4: DOSQUEBRADAS | G4: 2 | H4: 5819 | I4: J | J4: Información y comunicaciones | M4: 11 | N4: 1 | O4: 001 | P4: 11001 | Q4: BOGOTÁ, D.C. | R4: BOGOTÁ, D.C. | S4: 2 | T4: 4520 | U4: G | V4: Comercio y reparacion de vehiculos | Z4: =SUM(Z2:Z3) -> 407763 | AA4: =SUM(AA2:AA3) -> 128829 | AB4: =SUM(AB2:AB3) -> 128829 | AE4: Industrias manufactureras | AF4: C | AG4: Industrias manufactureras | AM4: Industrias manufactureras | AN4: 13630 | AP4: Industrias manufactureras | AQ4: 13630 | AR4: 261235 | AS4: =COUNTIFS($V$2:$V$600000,$AP4,$R$2:$R$600000,Visor!$Q$8) -> 13630 | AT4: =SUMIFS($G$2:$G$600000,$E$2:$E$600000,Visor!$Q$7,Tamaño!$F$2:$F$600000,Visor!$Q$8,Tamaño!$J$2:$J$600000,Tamaño!$AP4) -> 261235 | BB4: 0 | BF4: 0 | BG4: 0 | BH4: =SUMIFS('Cotizantes Mes'!$CA$2:$CA$500,'Cotizantes Mes'!$AY$2:$AY$500,"Dep_sec_priv",'Cotizantes Mes'!$AX$2:$AX$500,Tamaño!BF4) -> 0 | BI4: =SUMIFS('Cotizantes Mes'!$CA$2:$CA$500,'Cotizantes Mes'!$AX$2:$AX$500,Tamaño!BF4,'Cotizantes Mes'!$AY$2:$AY$500,"Independiente") -> 0 | BJ4: =SUMIFS($G$2:$G$600000,$F$2:$F$600000,BF4,$E$2:$E$600000,Visor!$Q$7) -> 0 | BP4: Industrias manufactureras | BQ4: =SUMIFS('Actividades Independientes'!$X$2:$X$4000,'Actividades Independientes'!$W$2:$W$4000,Tamaño!BP4,'Actividades Independientes'!$S$2:$S$4000,Visor!$Q$7) -> 21102 | BR4: =SUMIFS('Actividades Independientes'!$X$2:$X$4000,'Actividades Independientes'!$W$2:$W$4000,Tamaño!BP4,'Actividades Independientes'!$S$2:$S$4000,Visor!$Q$7,'Actividades Independientes'!$T$2:$T$4000,Visor!$Q$8) -> 21102 | BT4: Comercio y reparacion de vehiculos | BU4: 51367 | BV4: 51367
A5: 66 | B5: 682 | C5: 682 | D5: 66682 | E5: RISARALDA | F5: SANTA ROSA DE CABAL | G5: 1 | H5: 4530 | I5: G | J5: Comercio y reparacion de vehiculos | M5: 11 | N5: 1 | O5: 001 | P5: 11001 | Q5: BOGOTÁ, D.C. | R5: BOGOTÁ, D.C. | S5: 1 | T5: 9700 | U5: T | V5: Actividades de los hogares individuales | AE5: Suministro de electricidad, gas y vapor | AF5: D | AG5: Suministro de electricidad, gas y vapor | AM5: Suministro de electricidad, gas y vapor | AN5: 158 | AP5: Construcción | AQ5: 10809 | AR5: 219945 | AS5: =COUNTIFS($V$2:$V$600000,$AP5,$R$2:$R$600000,Visor!$Q$8) -> 10809 | AT5: =SUMIFS($G$2:$G$600000,$E$2:$E$600000,Visor!$Q$7,Tamaño!$F$2:$F$600000,Visor!$Q$8,Tamaño!$J$2:$J$600000,Tamaño!$AP5) -> 219945 | BB5: 0 | BF5: 0 | BG5: 0 | BH5: =SUMIFS('Cotizantes Mes'!$CA$2:$CA$500,'Cotizantes Mes'!$AY$2:$AY$500,"Dep_sec_priv",'Cotizantes Mes'!$AX$2:$AX$500,Tamaño!BF5) -> 0 | BI5: =SUMIFS('Cotizantes Mes'!$CA$2:$CA$500,'Cotizantes Mes'!$AX$2:$AX$500,Tamaño!BF5,'Cotizantes Mes'!$AY$2:$AY$500,"Independiente") -> 0 | BJ5: =SUMIFS($G$2:$G$600000,$F$2:$F$600000,BF5,$E$2:$E$600000,Visor!$Q$7) -> 0 | BP5: Suministro de electricidad, gas y vapor | BQ5: =SUMIFS('Actividades Independientes'!$X$2:$X$4000,'Actividades Independientes'!$W$2:$W$4000,Tamaño!BP5,'Actividades Independientes'!$S$2:$S$4000,Visor!$Q$7) -> 66 | BR5: =SUMIFS('Actividades Independientes'!$X$2:$X$4000,'Actividades Independientes'!$W$2:$W$4000,Tamaño!BP5,'Actividades Independientes'!$S$2:$S$4000,Visor!$Q$7,'Actividades Independientes'!$T$2:$T$4000,Visor!$Q$8) -> 66 | BT5: Act. de atención de la salud humana | BU5: 50302 | BV5: 50302
A6: 11 | B6: 1 | C6: 001 | D6: 11001 | E6: BOGOTÁ, D.C. | F6: BOGOTÁ, D.C. | G6: 1 | H6: 7490 | I6: M | J6: Act. profecionales cientificas y tecnicas | M6: 11 | N6: 1 | O6: 001 | P6: 11001 | Q6: BOGOTÁ, D.C. | R6: BOGOTÁ, D.C. | S6: 1 | T6: 9700 | U6: T | V6: Actividades de los hogares individuales | AE6: Distribución de agua; gestión de desechos | AF6: E | AG6: Distribución de agua; gestión de desechos | AM6: Distribución de agua; gestión de desechos | AN6: 472 | AP6: Actividades de servicios administrativos | AQ6: 8146 | AR6: 636284 | AS6: =COUNTIFS($V$2:$V$600000,$AP6,$R$2:$R$600000,Visor!$Q$8) -> 8146 | AT6: =SUMIFS($G$2:$G$600000,$E$2:$E$600000,Visor!$Q$7,Tamaño!$F$2:$F$600000,Visor!$Q$8,Tamaño!$J$2:$J$600000,Tamaño!$AP6) -> 636284 | BB6: 0 | BF6: 0 | BG6: 0 | BH6: =SUMIFS('Cotizantes Mes'!$CA$2:$CA$500,'Cotizantes Mes'!$AY$2:$AY$500,"Dep_sec_priv",'Cotizantes Mes'!$AX$2:$AX$500,Tamaño!BF6) -> 0 | BI6: =SUMIFS('Cotizantes Mes'!$CA$2:$CA$500,'Cotizantes Mes'!$AX$2:$AX$500,Tamaño!BF6,'Cotizantes Mes'!$AY$2:$AY$500,"Independiente") -> 0 | BJ6: =SUMIFS($G$2:$G$600000,$F$2:$F$600000,BF6,$E$2:$E$600000,Visor!$Q$7) -> 0 | BP6: Distribución de agua; gestión de desechos | BQ6: =SUMIFS('Actividades Independientes'!$X$2:$X$4000,'Actividades Independientes'!$W$2:$W$4000,Tamaño!BP6,'Actividades Independientes'!$S$2:$S$4000,Visor!$Q$7) -> 1324 | BR6: =SUMIFS('Actividades Independientes'!$X$2:$X$4000,'Actividades Independientes'!$W$2:$W$4000,Tamaño!BP6,'Actividades Independientes'!$S$2:$S$4000,Visor!$Q$7,'Actividades Independientes'!$T$2:$T$4000,Visor!$Q$8) -> 1324 | BT6: Educación | BU6: 44838 | BV6: 44838
A7: 11 | B7: 1 | C7: 001 | D7: 11001 | E7: BOGOTÁ, D.C. | F7: BOGOTÁ, D.C. | G7: 4 | H7: 4761 | I7: G | J7: Comercio y reparacion de vehiculos | M7: 11 | N7: 1 | O7: 001 | P7: 11001 | Q7: BOGOTÁ, D.C. | R7: BOGOTÁ, D.C. | S7: 2 | T7: 4632 | U7: G | V7: Comercio y reparacion de vehiculos | AE7: Construcción | AF7: F | AG7: Construcción | AM7: Construcción | AN7: 10809 | AP7: Admin. pública y defensa; planes seg. social | AQ7: 7524 | AR7: 78408 | AS7: =COUNTIFS($V$2:$V$600000,$AP7,$R$2:$R$600000,Visor!$Q$8) -> 7524 | AT7: =SUMIFS($G$2:$G$600000,$E$2:$E$600000,Visor!$Q$7,Tamaño!$F$2:$F$600000,Visor!$Q$8,Tamaño!$J$2:$J$600000,Tamaño!$AP7) -> 78408 | BB7: 0 | BF7: 0 | BG7: 0 | BH7: =SUMIFS('Cotizantes Mes'!$CA$2:$CA$500,'Cotizantes Mes'!$AY$2:$AY$500,"Dep_sec_priv",'Cotizantes Mes'!$AX$2:$AX$500,Tamaño!BF7) -> 0 | BI7: =SUMIFS('Cotizantes Mes'!$CA$2:$CA$500,'Cotizantes Mes'!$AX$2:$AX$500,Tamaño!BF7,'Cotizantes Mes'!$AY$2:$AY$500,"Independiente") -> 0 | BJ7: =SUMIFS($G$2:$G$600000,$F$2:$F$600000,BF7,$E$2:$E$600000,Visor!$Q$7) -> 0 | BP7: Construcción | BQ7: =SUMIFS('Actividades Independientes'!$X$2:$X$4000,'Actividades Independientes'!$W$2:$W$4000,Tamaño!BP7,'Actividades Independientes'!$S$2:$S$4000,Visor!$Q$7) -> 16328 | BR7: =SUMIFS('Actividades Independientes'!$X$2:$X$4000,'Actividades Independientes'!$W$2:$W$4000,Tamaño!BP7,'Actividades Independientes'!$S$2:$S$4000,Visor!$Q$7,'Actividades Independientes'!$T$2:$T$4000,Visor!$Q$8) -> 16328 | BT7: Otras actividades de servicios | BU7: 41800 | BV7: 41800
A8: 66 | B8: 1 | C8: 001 | D8: 66001 | E8: RISARALDA | F8: PEREIRA | G8: 2 | H8: 9700 | I8: T | J8: Actividades de los hogares individuales | M8: 11 | N8: 1 | O8: 001 | P8: 11001 | Q8: BOGOTÁ, D.C. | R8: BOGOTÁ, D.C. | S8: 1 | T8: 4632 | U8: G | V8: Comercio y reparacion de vehiculos | AE8: Comercio y reparacion de vehiculos | AF8: G | AG8: Comercio y reparacion de vehiculos | AM8: Comercio y reparacion de vehiculos | AN8: 23903 | AP8: Actividades de los hogares individuales | AQ8: 7497 | AR8: 19733 | AS8: =COUNTIFS($V$2:$V$600000,$AP8,$R$2:$R$600000,Visor!$Q$8) -> 7497 | AT8: =SUMIFS($G$2:$G$600000,$E$2:$E$600000,Visor!$Q$7,Tamaño!$F$2:$F$600000,Visor!$Q$8,Tamaño!$J$2:$J$600000,Tamaño!$AP8) -> 19733 | BB8: 0 | BF8: 0 | BG8: 0 | BH8: =SUMIFS('Cotizantes Mes'!$CA$2:$CA$500,'Cotizantes Mes'!$AY$2:$AY$500,"Dep_sec_priv",'Cotizantes Mes'!$AX$2:$AX$500,Tamaño!BF8) -> 0 | BI8: =SUMIFS('Cotizantes Mes'!$CA$2:$CA$500,'Cotizantes Mes'!$AX$2:$AX$500,Tamaño!BF8,'Cotizantes Mes'!$AY$2:$AY$500,"Independiente") -> 0 | BJ8: =SUMIFS($G$2:$G$600000,$F$2:$F$600000,BF8,$E$2:$E$600000,Visor!$Q$7) -> 0 | BP8: Comercio y reparacion de vehiculos | BQ8: =SUMIFS('Actividades Independientes'!$X$2:$X$4000,'Actividades Independientes'!$W$2:$W$4000,Tamaño!BP8,'Actividades Independientes'!$S$2:$S$4000,Visor!$Q$7) -> 51367 | BR8: =SUMIFS('Actividades Independientes'!$X$2:$X$4000,'Actividades Independientes'!$W$2:$W$4000,Tamaño!BP8,'Actividades Independientes'!$S$2:$S$4000,Visor!$Q$7,'Actividades Independientes'!$T$2:$T$4000,Visor!$Q$8) -> 51367 | BT8: Transporte y almacenamiento | BU8: 38650 | BV8: 38650
A9: 11 | B9: 1 | C9: 001 | D9: 11001 | E9: BOGOTÁ, D.C. | F9: BOGOTÁ, D.C. | G9: 2 | H9: 4520 | I9: G | J9: Comercio y reparacion de vehiculos | M9: 11 | N9: 1 | O9: 001 | P9: 11001 | Q9: BOGOTÁ, D.C. | R9: BOGOTÁ, D.C. | S9: 1 | T9: 4771 | U9: G | V9: Comercio y reparacion de vehiculos | AE9: Transporte y almacenamiento | AF9: H | AG9: Transporte y almacenamiento | AM9: Transporte y almacenamiento | AN9: 5239 | AP9: Información y comunicaciones | AQ9: 6369 | AR9: 164369 | AS9: =COUNTIFS($V$2:$V$600000,$AP9,$R$2:$R$600000,Visor!$Q$8) -> 6369 | AT9: =SUMIFS($G$2:$G$600000,$E$2:$E$600000,Visor!$Q$7,Tamaño!$F$2:$F$600000,Visor!$Q$8,Tamaño!$J$2:$J$600000,Tamaño!$AP9) -> 164369 | BB9: 0 | BF9: 0 | BG9: 0 | BH9: =SUMIFS('Cotizantes Mes'!$CA$2:$CA$500,'Cotizantes Mes'!$AY$2:$AY$500,"Dep_sec_priv",'Cotizantes Mes'!$AX$2:$AX$500,Tamaño!BF9) -> 0 | BI9: =SUMIFS('Cotizantes Mes'!$CA$2:$CA$500,'Cotizantes Mes'!$AX$2:$AX$500,Tamaño!BF9,'Cotizantes Mes'!$AY$2:$AY$500,"Independiente") -> 0 | BJ9: =SUMIFS($G$2:$G$600000,$F$2:$F$600000,BF9,$E$2:$E$600000,Visor!$Q$7) -> 0 | BP9: Transporte y almacenamiento | BQ9: =SUMIFS('Actividades Independientes'!$X$2:$X$4000,'Actividades Independientes'!$W$2:$W$4000,Tamaño!BP9,'Actividades Independientes'!$S$2:$S$4000,Visor!$Q$7) -> 38650 | BR9: =SUMIFS('Actividades Independientes'!$X$2:$X$4000,'Actividades Independientes'!$W$2:$W$4000,Tamaño!BP9,'Actividades Independientes'!$S$2:$S$4000,Visor!$Q$7,'Actividades Independientes'!$T$2:$T$4000,Visor!$Q$8) -> 38650 | BT9: Industrias manufactureras | BU9: 21102 | BV9: 21102
A10: 66 | B10: 1 | C10: 001 | D10: 66001 | E10: RISARALDA | F10: PEREIRA | G10: 2 | H10: 8414 | I10: O | J10: Admin. pública y defensa; planes seg. social | M10: 11 | N10: 1 | O10: 001 | P10: 11001 | Q10: BOGOTÁ, D.C. | R10: BOGOTÁ, D.C. | S10: 3 | T10: 5611 | U10: I | V10: Alojamiento y servicios de comida | Z10: Nacional | AA10: =PROPER(Visor!$Q$7) -> Bogotá, D.C. | AB10: =PROPER(Visor!$Q$8) -> Bogotá, D.C. | AE10: Alojamiento y servicios de comida | AF10: I | AG10: Alojamiento y servicios de comida | AM10: Alojamiento y servicios de comida | AN10: 2936 | AP10: Otras actividades de servicios | AQ10: 6297 | AR10: 143593 | AS10: =COUNTIFS($V$2:$V$600000,$AP10,$R$2:$R$600000,Visor!$Q$8) -> 6297 | AT10: =SUMIFS($G$2:$G$600000,$E$2:$E$600000,Visor!$Q$7,Tamaño!$F$2:$F$600000,Visor!$Q$8,Tamaño!$J$2:$J$600000,Tamaño!$AP10) -> 143593 | BB10: 0 | BF10: 0 | BG10: 0 | BH10: =SUMIFS('Cotizantes Mes'!$CA$2:$CA$500,'Cotizantes Mes'!$AY$2:$AY$500,"Dep_sec_priv",'Cotizantes Mes'!$AX$2:$AX$500,Tamaño!BF10) -> 0 | BI10: =SUMIFS('Cotizantes Mes'!$CA$2:$CA$500,'Cotizantes Mes'!$AX$2:$AX$500,Tamaño!BF10,'Cotizantes Mes'!$AY$2:$AY$500,"Independiente") -> 0 | BJ10: =SUMIFS($G$2:$G$600000,$F$2:$F$600000,BF10,$E$2:$E$600000,Visor!$Q$7) -> 0 | BP10: Alojamiento y servicios de comida | BQ10: =SUMIFS('Actividades Independientes'!$X$2:$X$4000,'Actividades Independientes'!$W$2:$W$4000,Tamaño!BP10,'Actividades Independientes'!$S$2:$S$4000,Visor!$Q$7) -> 10518 | BR10: =SUMIFS('Actividades Independientes'!$X$2:$X$4000,'Actividades Independientes'!$W$2:$W$4000,Tamaño!BP10,'Actividades Independientes'!$S$2:$S$4000,Visor!$Q$7,'Actividades Independientes'!$T$2:$T$4000,Visor!$Q$8) -> 10518 | BT10: Actividades inmobiliarias | BU10: 20573 | BV10: 20573
A11: 11 | B11: 1 | C11: 001 | D11: 11001 | E11: BOGOTÁ, D.C. | F11: BOGOTÁ, D.C. | G11: 1 | H11: 9700 | I11: T | J11: Actividades de los hogares individuales | M11: 11 | N11: 1 | O11: 001 | P11: 11001 | Q11: BOGOTÁ, D.C. | R11: BOGOTÁ, D.C. | S11: 4 | T11: 7490 | U11: M | V11: Act. profecionales cientificas y tecnicas | Y11: Micro de 1 | Z11: =Z2/Z$4 -> 0.3850937922 | AA11: =AA2/AA$4 -> 0.4389306755 | AB11: 0.4389306755 | AE11: Información y comunicaciones | AF11: J | AG11: Información y comunicaciones | AM11: Información y comunicaciones | AN11: 6369 | AP11: Transporte y almacenamiento | AQ11: 5239 | AR11: 169158 | AS11: =COUNTIFS($V$2:$V$600000,$AP11,$R$2:$R$600000,Visor!$Q$8) -> 5239 | AT11: =SUMIFS($G$2:$G$600000,$E$2:$E$600000,Visor!$Q$7,Tamaño!$F$2:$F$600000,Visor!$Q$8,Tamaño!$J$2:$J$600000,Tamaño!$AP11) -> 169158 | BB11: 0 | BF11: 0 | BG11: 0 | BH11: =SUMIFS('Cotizantes Mes'!$CA$2:$CA$500,'Cotizantes Mes'!$AY$2:$AY$500,"Dep_sec_priv",'Cotizantes Mes'!$AX$2:$AX$500,Tamaño!BF11) -> 0 | BI11: =SUMIFS('Cotizantes Mes'!$CA$2:$CA$500,'Cotizantes Mes'!$AX$2:$AX$500,Tamaño!BF11,'Cotizantes Mes'!$AY$2:$AY$500,"Independiente") -> 0 | BJ11: =SUMIFS($G$2:$G$600000,$F$2:$F$600000,BF11,$E$2:$E$600000,Visor!$Q$7) -> 0 | BP11: Información y comunicaciones | BQ11: =SUMIFS('Actividades Independientes'!$X$2:$X$4000,'Actividades Independientes'!$W$2:$W$4000,Tamaño!BP11,'Actividades Independientes'!$S$2:$S$4000,Visor!$Q$7) -> 17720 | BR11: =SUMIFS('Actividades Independientes'!$X$2:$X$4000,'Actividades Independientes'!$W$2:$W$4000,Tamaño!BP11,'Actividades Independientes'!$S$2:$S$4000,Visor!$Q$7,'Actividades Independientes'!$T$2:$T$4000,Visor!$Q$8) -> 17720 | BT11: Información y comunicaciones | BU11: 17720 | BV11: 17720
A12: 17 | B12: 877 | C12: 877 | D12: 17877 | E12: CALDAS | F12: VITERBO | G12: 2 | H12: 7490 | I12: M | J12: Act. profecionales cientificas y tecnicas | M12: 11 | N12: 1 | O12: 001 | P12: 11001 | Q12: BOGOTÁ, D.C. | R12: BOGOTÁ, D.C. | S12: 1 | T12: 7490 | U12: M | V12: Act. profecionales cientificas y tecnicas | Y12: Micro 2-10 | Z12: =Z3/Z$4 -> 0.6149062078 | AA12: =AA3/AA$4 -> 0.5610693245 | AB12: 0.5610693245 | AE12: Actividades financieras y de seguros | AF12: K | AG12: Actividades financieras y de seguros | AM12: Actividades financieras y de seguros | AN12: 3081 | AP12: Actividades inmobiliarias | AQ12: 4759 | AR12: 26901 | AS12: =COUNTIFS($V$2:$V$600000,$AP12,$R$2:$R$600000,Visor!$Q$8) -> 4759 | AT12: =SUMIFS($G$2:$G$600000,$E$2:$E$600000,Visor!$Q$7,Tamaño!$F$2:$F$600000,Visor!$Q$8,Tamaño!$J$2:$J$600000,Tamaño!$AP12) -> 26901 | BB12: 0 | BF12: 0 | BG12: 0 | BH12: =SUMIFS('Cotizantes Mes'!$CA$2:$CA$500,'Cotizantes Mes'!$AY$2:$AY$500,"Dep_sec_priv",'Cotizantes Mes'!$AX$2:$AX$500,Tamaño!BF12) -> 0 | BI12: =SUMIFS('Cotizantes Mes'!$CA$2:$CA$500,'Cotizantes Mes'!$AX$2:$AX$500,Tamaño!BF12,'Cotizantes Mes'!$AY$2:$AY$500,"Independiente") -> 0 | BJ12: =SUMIFS($G$2:$G$600000,$F$2:$F$600000,BF12,$E$2:$E$600000,Visor!$Q$7) -> 0 | BP12: Actividades financieras y de seguros | BQ12: =SUMIFS('Actividades Independientes'!$X$2:$X$4000,'Actividades Independientes'!$W$2:$W$4000,Tamaño!BP12,'Actividades Independientes'!$S$2:$S$4000,Visor!$Q$7) -> 4841 | BR12: =SUMIFS('Actividades Independientes'!$X$2:$X$4000,'Actividades Independientes'!$W$2:$W$4000,Tamaño!BP12,'Actividades Independientes'!$S$2:$S$4000,Visor!$Q$7,'Actividades Independientes'!$T$2:$T$4000,Visor!$Q$8) -> 4841 | BT12: Admin. pública y defensa; planes seg. social | BU12: 17594 | BV12: 17594
A13: 19 | B13: 1 | C13: 001 | D13: 19001 | E13: CAUCA | F13: POPAYÁN | G13: 1 | H13: 4772 | I13: G | J13: Comercio y reparacion de vehiculos | M13: 11 | N13: 1 | O13: 001 | P13: 11001 | Q13: BOGOTÁ, D.C. | R13: BOGOTÁ, D.C. | S13: 4 | T13: 4729 | U13: G | V13: Comercio y reparacion de vehiculos | Z13: =SUM(Z11:Z12) -> 1 | AA13: =SUM(AA11:AA12) -> 1 | AB13: 1 | AE13: Actividades inmobiliarias | AF13: L | AG13: Actividades inmobiliarias | AM13: Actividades inmobiliarias | AN13: 4759 | AP13: Act. de atención de la salud humana | AQ13: 4227 | AR13: 92224 | AS13: =COUNTIFS($V$2:$V$600000,$AP13,$R$2:$R$600000,Visor!$Q$8) -> 4227 | AT13: =SUMIFS($G$2:$G$600000,$E$2:$E$600000,Visor!$Q$7,Tamaño!$F$2:$F$600000,Visor!$Q$8,Tamaño!$J$2:$J$600000,Tamaño!$AP13) -> 92224 | BB13: 0 | BF13: 0 | BG13: 0 | BH13: =SUMIFS('Cotizantes Mes'!$CA$2:$CA$500,'Cotizantes Mes'!$AY$2:$AY$500,"Dep_sec_priv",'Cotizantes Mes'!$AX$2:$AX$500,Tamaño!BF13) -> 0 | BI13: =SUMIFS('Cotizantes Mes'!$CA$2:$CA$500,'Cotizantes Mes'!$AX$2:$AX$500,Tamaño!BF13,'Cotizantes Mes'!$AY$2:$AY$500,"Independiente") -> 0 | BJ13: =SUMIFS($G$2:$G$600000,$F$2:$F$600000,BF13,$E$2:$E$600000,Visor!$Q$7) -> 0 | BP13: Actividades inmobiliarias | BQ13: =SUMIFS('Actividades Independientes'!$X$2:$X$4000,'Actividades Independientes'!$W$2:$W$4000,Tamaño!BP13,'Actividades Independientes'!$S$2:$S$4000,Visor!$Q$7) -> 20573 | BR13: =SUMIFS('Actividades Independientes'!$X$2:$X$4000,'Actividades Independientes'!$W$2:$W$4000,Tamaño!BP13,'Actividades Independientes'!$S$2:$S$4000,Visor!$Q$7,'Actividades Independientes'!$T$2:$T$4000,Visor!$Q$8) -> 20573 | BT13: Construcción | BU13: 16328 | BV13: 16328
A14: 11 | B14: 1 | C14: 001 | D14: 11001 | E14: BOGOTÁ, D.C. | F14: BOGOTÁ, D.C. | G14: 1 | H14: 9700 | I14: T | J14: Actividades de los hogares individuales | M14: 11 | N14: 1 | O14: 001 | P14: 11001 | Q14: BOGOTÁ, D.C. | R14: BOGOTÁ, D.C. | S14: 3 | T14: 9601 | U14: S | V14: Otras actividades de servicios | AE14: Act. profecionales cientificas y tecnicas | AF14: M | AG14: Act. profecionales cientificas y tecnicas | AM14: Act. profecionales cientificas y tecnicas | AN14: 45365 | AP14: Actividades financieras y de seguros | AQ14: 3081 | AR14: 106143 | AS14: =COUNTIFS($V$2:$V$600000,$AP14,$R$2:$R$600000,Visor!$Q$8) -> 3081 | AT14: =SUMIFS($G$2:$G$600000,$E$2:$E$600000,Visor!$Q$7,Tamaño!$F$2:$F$600000,Visor!$Q$8,Tamaño!$J$2:$J$600000,Tamaño!$AP14) -> 106143 | BB14: 0 | BF14: 0 | BG14: 0 | BH14: =SUMIFS('Cotizantes Mes'!$CA$2:$CA$500,'Cotizantes Mes'!$AY$2:$AY$500,"Dep_sec_priv",'Cotizantes Mes'!$AX$2:$AX$500,Tamaño!BF14) -> 0 | BI14: =SUMIFS('Cotizantes Mes'!$CA$2:$CA$500,'Cotizantes Mes'!$AX$2:$AX$500,Tamaño!BF14,'Cotizantes Mes'!$AY$2:$AY$500,"Independiente") -> 0 | BJ14: =SUMIFS($G$2:$G$600000,$F$2:$F$600000,BF14,$E$2:$E$600000,Visor!$Q$7) -> 0 | BP14: Act. profecionales cientificas y tecnicas | BQ14: =SUMIFS('Actividades Independientes'!$X$2:$X$4000,'Actividades Independientes'!$W$2:$W$4000,Tamaño!BP14,'Actividades Independientes'!$S$2:$S$4000,Visor!$Q$7) -> 195960 | BR14: =SUMIFS('Actividades Independientes'!$X$2:$X$4000,'Actividades Independientes'!$W$2:$W$4000,Tamaño!BP14,'Actividades Independientes'!$S$2:$S$4000,Visor!$Q$7,'Actividades Independientes'!$T$2:$T$4000,Visor!$Q$8) -> 195960 | BT14: Act artísticas y de entretenimiento | BU14: 12477 | BV14: 12477
A15: 66 | B15: 1 | C15: 001 | D15: 66001 | E15: RISARALDA | F15: PEREIRA | G15: 1 | H15: 9499 | I15: S | J15: Otras actividades de servicios | M15: 11 | N15: 1 | O15: 001 | P15: 11001 | Q15: BOGOTÁ, D.C. | R15: BOGOTÁ, D.C. | S15: 6 | T15: 8299 | U15: N | V15: Actividades de servicios administrativos | AE15: Actividades de servicios administrativos | AF15: N | AG15: Actividades de servicios administrativos | AM15: Actividades de servicios administrativos | AN15: 8146 | AP15: Alojamiento y servicios de comida | AQ15: 2936 | AR15: 82650 | AS15: =COUNTIFS($V$2:$V$600000,$AP15,$R$2:$R$600000,Visor!$Q$8) -> 2936 | AT15: =SUMIFS($G$2:$G$600000,$E$2:$E$600000,Visor!$Q$7,Tamaño!$F$2:$F$600000,Visor!$Q$8,Tamaño!$J$2:$J$600000,Tamaño!$AP15) -> 82650 | BB15: 0 | BF15: 0 | BG15: 0 | BH15: =SUMIFS('Cotizantes Mes'!$CA$2:$CA$500,'Cotizantes Mes'!$AY$2:$AY$500,"Dep_sec_priv",'Cotizantes Mes'!$AX$2:$AX$500,Tamaño!BF15) -> 0 | BI15: =SUMIFS('Cotizantes Mes'!$CA$2:$CA$500,'Cotizantes Mes'!$AX$2:$AX$500,Tamaño!BF15,'Cotizantes Mes'!$AY$2:$AY$500,"Independiente") -> 0 | BJ15: =SUMIFS($G$2:$G$600000,$F$2:$F$600000,BF15,$E$2:$E$600000,Visor!$Q$7) -> 0 | BP15: Actividades de servicios administrativos | BQ15: =SUMIFS('Actividades Independientes'!$X$2:$X$4000,'Actividades Independientes'!$W$2:$W$4000,Tamaño!BP15,'Actividades Independientes'!$S$2:$S$4000,Visor!$Q$7) -> 96870 | BR15: =SUMIFS('Actividades Independientes'!$X$2:$X$4000,'Actividades Independientes'!$W$2:$W$4000,Tamaño!BP15,'Actividades Independientes'!$S$2:$S$4000,Visor!$Q$7,'Actividades Independientes'!$T$2:$T$4000,Visor!$Q$8) -> 96870 | BT15: Otras | BU15: 11969 | BV15: 11969
A16: 25 | B16: 183 | C16: 183 | D16: 25183 | E16: CUNDINAMARCA | F16: CHOCONTÁ | G16: 2 | H16: 4773 | I16: G | J16: Comercio y reparacion de vehiculos | M16: 11 | N16: 1 | O16: 001 | P16: 11001 | Q16: BOGOTÁ, D.C. | R16: BOGOTÁ, D.C. | S16: 1 | T16: 7111 | U16: M | V16: Act. profecionales cientificas y tecnicas | AE16: Admin. pública y defensa; planes seg. social | AF16: O | AG16: Admin. pública y defensa; planes seg. social | AM16: Admin. pública y defensa; planes seg. social | AN16: 7524 | AP16: Educación | AQ16: 2891 | AR16: 111843 | AS16: =COUNTIFS($V$2:$V$600000,$AP16,$R$2:$R$600000,Visor!$Q$8) -> 2891 | AT16: =SUMIFS($G$2:$G$600000,$E$2:$E$600000,Visor!$Q$7,Tamaño!$F$2:$F$600000,Visor!$Q$8,Tamaño!$J$2:$J$600000,Tamaño!$AP16) -> 111843 | BB16: 0 | BF16: 0 | BG16: 0 | BH16: =SUMIFS('Cotizantes Mes'!$CA$2:$CA$500,'Cotizantes Mes'!$AY$2:$AY$500,"Dep_sec_priv",'Cotizantes Mes'!$AX$2:$AX$500,Tamaño!BF16) -> 0 | BI16: =SUMIFS('Cotizantes Mes'!$CA$2:$CA$500,'Cotizantes Mes'!$AX$2:$AX$500,Tamaño!BF16,'Cotizantes Mes'!$AY$2:$AY$500,"Independiente") -> 0 | BJ16: =SUMIFS($G$2:$G$600000,$F$2:$F$600000,BF16,$E$2:$E$600000,Visor!$Q$7) -> 0 | BP16: Admin. pública y defensa; planes seg. social | BQ16: =SUMIFS('Actividades Independientes'!$X$2:$X$4000,'Actividades Independientes'!$W$2:$W$4000,Tamaño!BP16,'Actividades Independientes'!$S$2:$S$4000,Visor!$Q$7) -> 17594 | BR16: =SUMIFS('Actividades Independientes'!$X$2:$X$4000,'Actividades Independientes'!$W$2:$W$4000,Tamaño!BP16,'Actividades Independientes'!$S$2:$S$4000,Visor!$Q$7,'Actividades Independientes'!$T$2:$T$4000,Visor!$Q$8) -> 17594 | BT16: Alojamiento y servicios de comida | BU16: 10518 | BV16: 10518
A17: 66 | B17: 1 | C17: 001 | D17: 66001 | E17: RISARALDA | F17: PEREIRA | G17: 1 | H17: 7490 | I17: M | J17: Act. profecionales cientificas y tecnicas | M17: 11 | N17: 1 | O17: 001 | P17: 11001 | Q17: BOGOTÁ, D.C. | R17: BOGOTÁ, D.C. | S17: 2 | T17: 7490 | U17: M | V17: Act. profecionales cientificas y tecnicas | AE17: Educación | AF17: P | AG17: Educación | AM17: Educación | AN17: 2891 | AP17: Agricultura, ganadería, caza | AQ17: 2207 | AR17: 56184 | AS17: =COUNTIFS($V$2:$V$600000,$AP17,$R$2:$R$600000,Visor!$Q$8) -> 2207 | AT17: =SUMIFS($G$2:$G$600000,$E$2:$E$600000,Visor!$Q$7,Tamaño!$F$2:$F$600000,Visor!$Q$8,Tamaño!$J$2:$J$600000,Tamaño!$AP17) -> 56184 | BB17: 0 | BF17: 0 | BG17: 0 | BH17: =SUMIFS('Cotizantes Mes'!$CA$2:$CA$500,'Cotizantes Mes'!$AY$2:$AY$500,"Dep_sec_priv",'Cotizantes Mes'!$AX$2:$AX$500,Tamaño!BF17) -> 0 | BI17: =SUMIFS('Cotizantes Mes'!$CA$2:$CA$500,'Cotizantes Mes'!$AX$2:$AX$500,Tamaño!BF17,'Cotizantes Mes'!$AY$2:$AY$500,"Independiente") -> 0 | BJ17: =SUMIFS($G$2:$G$600000,$F$2:$F$600000,BF17,$E$2:$E$600000,Visor!$Q$7) -> 0 | BP17: Otras | BQ17: =SUMIFS('Actividades Independientes'!$X$2:$X$4000,'Actividades Independientes'!$W$2:$W$4000,Tamaño!BP17,'Actividades Independientes'!$S$2:$S$4000,Visor!$Q$7) -> 11969 | BR17: =SUMIFS('Actividades Independientes'!$X$2:$X$4000,'Actividades Independientes'!$W$2:$W$4000,Tamaño!BP17,'Actividades Independientes'!$S$2:$S$4000,Visor!$Q$7,'Actividades Independientes'!$T$2:$T$4000,Visor!$Q$8) -> 11969 | BT17: Agricultura, ganadería, caza | BU17: 6498 | BV17: 6498
A18: 76 | B18: 1 | C18: 001 | D18: 76001 | E18: VALLE DEL CAUCA | F18: CALI | G18: 1 | H18: 9609 | I18: S | J18: Otras actividades de servicios | M18: 11 | N18: 1 | O18: 001 | P18: 11001 | Q18: BOGOTÁ, D.C. | R18: BOGOTÁ, D.C. | S18: 1 | T18: 4923 | U18: H | V18: Transporte y almacenamiento | AE18: Act. de atención de la salud humana | AF18: Q | AG18: Act. de atención de la salud humana | AM18: Act. de atención de la salud humana | AN18: 4227 | AP18: Act artísticas y de entretenimiento | AQ18: 1256 | AR18: 39440 | AS18: =COUNTIFS($V$2:$V$600000,$AP18,$R$2:$R$600000,Visor!$Q$8) -> 1256 | AT18: =SUMIFS($G$2:$G$600000,$E$2:$E$600000,Visor!$Q$7,Tamaño!$F$2:$F$600000,Visor!$Q$8,Tamaño!$J$2:$J$600000,Tamaño!$AP18) -> 39440 | BB18: 0 | BF18: 0 | BG18: 0 | BH18: =SUMIFS('Cotizantes Mes'!$CA$2:$CA$500,'Cotizantes Mes'!$AY$2:$AY$500,"Dep_sec_priv",'Cotizantes Mes'!$AX$2:$AX$500,Tamaño!BF18) -> 0 | BI18: =SUMIFS('Cotizantes Mes'!$CA$2:$CA$500,'Cotizantes Mes'!$AX$2:$AX$500,Tamaño!BF18,'Cotizantes Mes'!$AY$2:$AY$500,"Independiente") -> 0 | BJ18: =SUMIFS($G$2:$G$600000,$F$2:$F$600000,BF18,$E$2:$E$600000,Visor!$Q$7) -> 0 | BP18: Educación | BQ18: =SUMIFS('Actividades Independientes'!$X$2:$X$4000,'Actividades Independientes'!$W$2:$W$4000,Tamaño!BP18,'Actividades Independientes'!$S$2:$S$4000,Visor!$Q$7) -> 44838 | BR18: =SUMIFS('Actividades Independientes'!$X$2:$X$4000,'Actividades Independientes'!$W$2:$W$4000,Tamaño!BP18,'Actividades Independientes'!$S$2:$S$4000,Visor!$Q$7,'Actividades Independientes'!$T$2:$T$4000,Visor!$Q$8) -> 44838 | BT18: Actividades financieras y de seguros | BU18: 4841 | BV18: 4841
A19: 5 | B19: 1 | C19: 001 | D19: 5001 | E19: ANTIOQUIA | F19: MEDELLÍN | G19: 1 | H19: 2013 | I19: C | J19: Industrias manufactureras | M19: 11 | N19: 1 | O19: 001 | P19: 11001 | Q19: BOGOTÁ, D.C. | R19: BOGOTÁ, D.C. | S19: 6 | T19: 8291 | U19: N | V19: Actividades de servicios administrativos | AE19: Act artísticas y de entretenimiento | AF19: R | AG19: Act artísticas y de entretenimiento | AM19: Act artísticas y de entretenimiento | AN19: 1256 | AP19: Distribución de agua; gestión de desechos | AQ19: 472 | AR19: 12688 | AS19: =COUNTIFS($V$2:$V$600000,$AP19,$R$2:$R$600000,Visor!$Q$8) -> 472 | AT19: =SUMIFS($G$2:$G$600000,$E$2:$E$600000,Visor!$Q$7,Tamaño!$F$2:$F$600000,Visor!$Q$8,Tamaño!$J$2:$J$600000,Tamaño!$AP19) -> 12688 | BB19: 0 | BF19: 0 | BG19: 0 | BH19: =SUMIFS('Cotizantes Mes'!$CA$2:$CA$500,'Cotizantes Mes'!$AY$2:$AY$500,"Dep_sec_priv",'Cotizantes Mes'!$AX$2:$AX$500,Tamaño!BF19) -> 0 | BI19: =SUMIFS('Cotizantes Mes'!$CA$2:$CA$500,'Cotizantes Mes'!$AX$2:$AX$500,Tamaño!BF19,'Cotizantes Mes'!$AY$2:$AY$500,"Independiente") -> 0 | BJ19: =SUMIFS($G$2:$G$600000,$F$2:$F$600000,BF19,$E$2:$E$600000,Visor!$Q$7) -> 0 | BP19: Act. de atención de la salud humana | BQ19: =SUMIFS('Actividades Independientes'!$X$2:$X$4000,'Actividades Independientes'!$W$2:$W$4000,Tamaño!BP19,'Actividades Independientes'!$S$2:$S$4000,Visor!$Q$7) -> 50302 | BR19: =SUMIFS('Actividades Independientes'!$X$2:$X$4000,'Actividades Independientes'!$W$2:$W$4000,Tamaño!BP19,'Actividades Independientes'!$S$2:$S$4000,Visor!$Q$7,'Actividades Independientes'!$T$2:$T$4000,Visor!$Q$8) -> 50302 | BT19: Actividades de los hogares individuales | BU19: 4549 | BV19: 4549
A20: 5 | B20: 1 | C20: 001 | D20: 5001 | E20: ANTIOQUIA | F20: MEDELLÍN | G20: 1 | H20: 9609 | I20: S | J20: Otras actividades de servicios | M20: 11 | N20: 1 | O20: 001 | P20: 11001 | Q20: BOGOTÁ, D.C. | R20: BOGOTÁ, D.C. | S20: 14 | T20: 6511 | U20: K | V20: Actividades financieras y de seguros | AE20: Otras actividades de servicios | AF20: S | AG20: Otras actividades de servicios | AM20: Otras actividades de servicios | AN20: 6297 | AP20: Explotación de minas y canteras | AQ20: 425 | AR20: 25463 | AS20: =COUNTIFS($V$2:$V$600000,$AP20,$R$2:$R$600000,Visor!$Q$8) -> 425 | AT20: =SUMIFS($G$2:$G$600000,$E$2:$E$600000,Visor!$Q$7,Tamaño!$F$2:$F$600000,Visor!$Q$8,Tamaño!$J$2:$J$600000,Tamaño!$AP20) -> 25463 | BB20: 0 | BF20: 0 | BG20: 0 | BH20: =SUMIFS('Cotizantes Mes'!$CA$2:$CA$500,'Cotizantes Mes'!$AY$2:$AY$500,"Dep_sec_priv",'Cotizantes Mes'!$AX$2:$AX$500,Tamaño!BF20) -> 0 | BI20: =SUMIFS('Cotizantes Mes'!$CA$2:$CA$500,'Cotizantes Mes'!$AX$2:$AX$500,Tamaño!BF20,'Cotizantes Mes'!$AY$2:$AY$500,"Independiente") -> 0 | BJ20: =SUMIFS($G$2:$G$600000,$F$2:$F$600000,BF20,$E$2:$E$600000,Visor!$Q$7) -> 0 | BP20: Act artísticas y de entretenimiento | BQ20: =SUMIFS('Actividades Independientes'!$X$2:$X$4000,'Actividades Independientes'!$W$2:$W$4000,Tamaño!BP20,'Actividades Independientes'!$S$2:$S$4000,Visor!$Q$7) -> 12477 | BR20: =SUMIFS('Actividades Independientes'!$X$2:$X$4000,'Actividades Independientes'!$W$2:$W$4000,Tamaño!BP20,'Actividades Independientes'!$S$2:$S$4000,Visor!$Q$7,'Actividades Independientes'!$T$2:$T$4000,Visor!$Q$8) -> 12477 | BT20: Distribución de agua; gestión de desechos | BU20: 1324 | BV20: 1324
A21: 5 | B21: 1 | C21: 001 | D21: 5001 | E21: ANTIOQUIA | F21: MEDELLÍN | G21: 1 | H21: 4771 | I21: G | J21: Comercio y reparacion de vehiculos | M21: 11 | N21: 1 | O21: 001 | P21: 11001 | Q21: BOGOTÁ, D.C. | R21: BOGOTÁ, D.C. | S21: 13 | T21: 8299 | U21: N | V21: Actividades de servicios administrativos | AE21: Actividades de los hogares individuales | AF21: T | AG21: Actividades de los hogares individuales | AM21: Actividades de los hogares individuales | AN21: 7497 | AP21: Suministro de electricidad, gas y vapor | AQ21: 158 | AR21: 4182 | AS21: =COUNTIFS($V$2:$V$600000,$AP21,$R$2:$R$600000,Visor!$Q$8) -> 158 | AT21: =SUMIFS($G$2:$G$600000,$E$2:$E$600000,Visor!$Q$7,Tamaño!$F$2:$F$600000,Visor!$Q$8,Tamaño!$J$2:$J$600000,Tamaño!$AP21) -> 4182 | BB21: 0 | BF21: 0 | BG21: 0 | BH21: =SUMIFS('Cotizantes Mes'!$CA$2:$CA$500,'Cotizantes Mes'!$AY$2:$AY$500,"Dep_sec_priv",'Cotizantes Mes'!$AX$2:$AX$500,Tamaño!BF21) -> 0 | BI21: =SUMIFS('Cotizantes Mes'!$CA$2:$CA$500,'Cotizantes Mes'!$AX$2:$AX$500,Tamaño!BF21,'Cotizantes Mes'!$AY$2:$AY$500,"Independiente") -> 0 | BJ21: =SUMIFS($G$2:$G$600000,$F$2:$F$600000,BF21,$E$2:$E$600000,Visor!$Q$7) -> 0 | BP21: Otras actividades de servicios | BQ21: =SUMIFS('Actividades Independientes'!$X$2:$X$4000,'Actividades Independientes'!$W$2:$W$4000,Tamaño!BP21,'Actividades Independientes'!$S$2:$S$4000,Visor!$Q$7) -> 41800 | BR21: =SUMIFS('Actividades Independientes'!$X$2:$X$4000,'Actividades Independientes'!$W$2:$W$4000,Tamaño!BP21,'Actividades Independientes'!$S$2:$S$4000,Visor!$Q$7,'Actividades Independientes'!$T$2:$T$4000,Visor!$Q$8) -> 41800 | BT21: Explotación de minas y canteras | BU21: 535 | BV21: 535
A22: 5 | B22: 1 | C22: 001 | D22: 5001 | E22: ANTIOQUIA | F22: MEDELLÍN | G22: 1 | H22: 4719 | I22: G | J22: Comercio y reparacion de vehiculos | M22: 11 | N22: 1 | O22: 001 | P22: 11001 | Q22: BOGOTÁ, D.C. | R22: BOGOTÁ, D.C. | S22: 1 | T22: 7490 | U22: M | V22: Act. profecionales cientificas y tecnicas | AE22: Organizaciones y entidades extraterritoriales | AF22: U | AG22: Organizaciones y entidades extraterritoriales | AM22: Organizaciones y entidades extraterritoriales | AN22: 90 | AP22: Organizaciones y entidades extraterritoriales | AQ22: 90 | AR22: 2222 | AS22: =COUNTIFS($V$2:$V$600000,$AP22,$R$2:$R$600000,Visor!$Q$8) -> 90 | AT22: =SUMIFS($G$2:$G$600000,$E$2:$E$600000,Visor!$Q$7,Tamaño!$F$2:$F$600000,Visor!$Q$8,Tamaño!$J$2:$J$600000,Tamaño!$AP22) -> 2222 | BB22: 0 | BF22: 0 | BG22: 0 | BH22: =SUMIFS('Cotizantes Mes'!$CA$2:$CA$500,'Cotizantes Mes'!$AY$2:$AY$500,"Dep_sec_priv",'Cotizantes Mes'!$AX$2:$AX$500,Tamaño!BF22) -> 0 | BI22: =SUMIFS('Cotizantes Mes'!$CA$2:$CA$500,'Cotizantes Mes'!$AX$2:$AX$500,Tamaño!BF22,'Cotizantes Mes'!$AY$2:$AY$500,"Independiente") -> 0 | BJ22: =SUMIFS($G$2:$G$600000,$F$2:$F$600000,BF22,$E$2:$E$600000,Visor!$Q$7) -> 0 | BP22: Actividades de los hogares individuales | BQ22: =SUMIFS('Actividades Independientes'!$X$2:$X$4000,'Actividades Independientes'!$W$2:$W$4000,Tamaño!BP22,'Actividades Independientes'!$S$2:$S$4000,Visor!$Q$7) -> 4549 | BR22: =SUMIFS('Actividades Independientes'!$X$2:$X$4000,'Actividades Independientes'!$W$2:$W$4000,Tamaño!BP22,'Actividades Independientes'!$S$2:$S$4000,Visor!$Q$7,'Actividades Independientes'!$T$2:$T$4000,Visor!$Q$8) -> 4549 | BT22: Organizaciones y entidades extraterritoriales | BU22: 212 | BV22: 212
A23: 5 | B23: 1 | C23: 001 | D23: 5001 | E23: ANTIOQUIA | F23: MEDELLÍN | G23: 3 | H23: 4723 | I23: G | J23: Comercio y reparacion de vehiculos | M23: 11 | N23: 1 | O23: 001 | P23: 11001 | Q23: BOGOTÁ, D.C. | R23: BOGOTÁ, D.C. | S23: 33 | T23: 5229 | U23: H | V23: Transporte y almacenamiento | AE23: Otras | AF23: Otras | AG23: Otras | AM23: Otras | AN23: 0 | AP23: Otras | AQ23: 0 | AR23: 0 | AS23: =COUNTIFS($V$2:$V$600000,$AP23,$R$2:$R$600000,Visor!$Q$8) -> 0 | AT23: =SUMIFS($G$2:$G$600000,$E$2:$E$600000,Visor!$Q$7,Tamaño!$F$2:$F$600000,Visor!$Q$8,Tamaño!$J$2:$J$600000,Tamaño!$AP23) -> 0 | BB23: 0 | BF23: 0 | BG23: 0 | BH23: =SUMIFS('Cotizantes Mes'!$CA$2:$CA$500,'Cotizantes Mes'!$AY$2:$AY$500,"Dep_sec_priv",'Cotizantes Mes'!$AX$2:$AX$500,Tamaño!BF23) -> 0 | BI23: =SUMIFS('Cotizantes Mes'!$CA$2:$CA$500,'Cotizantes Mes'!$AX$2:$AX$500,Tamaño!BF23,'Cotizantes Mes'!$AY$2:$AY$500,"Independiente") -> 0 | BJ23: =SUMIFS($G$2:$G$600000,$F$2:$F$600000,BF23,$E$2:$E$600000,Visor!$Q$7) -> 0 | BP23: Organizaciones y entidades extraterritoriales | BQ23: =SUMIFS('Actividades Independientes'!$X$2:$X$4000,'Actividades Independientes'!$W$2:$W$4000,Tamaño!BP23,'Actividades Independientes'!$S$2:$S$4000,Visor!$Q$7) -> 212 | BR23: =SUMIFS('Actividades Independientes'!$X$2:$X$4000,'Actividades Independientes'!$W$2:$W$4000,Tamaño!BP23,'Actividades Independientes'!$S$2:$S$4000,Visor!$Q$7,'Actividades Independientes'!$T$2:$T$4000,Visor!$Q$8) -> 212 | BT23: Suministro de electricidad, gas y vapor | BU23: 66 | BV23: 66
A24: 66 | B24: 1 | C24: 001 | D24: 66001 | E24: RISARALDA | F24: PEREIRA | G24: 8 | H24: 8621 | I24: Q | J24: Act. de atención de la salud humana | M24: 11 | N24: 1 | O24: 001 | P24: 11001 | Q24: BOGOTÁ, D.C. | R24: BOGOTÁ, D.C. | S24: 1 | T24: 5611 | U24: I | V24: Alojamiento y servicios de comida | AQ24: =SUM(AQ2:AQ23) -> 157281 | AR24: =SUM(AR2:AR23) -> 3255983 | AS24: =SUM(AS2:AS23) -> 157281 | AT24: =SUM(AT2:AT23) -> 3255983 | BB24: 0 | BF24: 0 | BG24: 0 | BH24: =SUMIFS('Cotizantes Mes'!$CA$2:$CA$500,'Cotizantes Mes'!$AY$2:$AY$500,"Dep_sec_priv",'Cotizantes Mes'!$AX$2:$AX$500,Tamaño!BF24) -> 0 | BI24: =SUMIFS('Cotizantes Mes'!$CA$2:$CA$500,'Cotizantes Mes'!$AX$2:$AX$500,Tamaño!BF24,'Cotizantes Mes'!$AY$2:$AY$500,"Independiente") -> 0 | BJ24: =SUMIFS($G$2:$G$600000,$F$2:$F$600000,BF24,$E$2:$E$600000,Visor!$Q$7) -> 0
A25: 5 | B25: 1 | C25: 001 | D25: 5001 | E25: ANTIOQUIA | F25: MEDELLÍN | G25: 1 | H25: 9609 | I25: S | J25: Otras actividades de servicios | M25: 11 | N25: 1 | O25: 001 | P25: 11001 | Q25: BOGOTÁ, D.C. | R25: BOGOTÁ, D.C. | S25: 1 | T25: 4751 | U25: G | V25: Comercio y reparacion de vehiculos | BB25: 0 | BF25: 0 | BG25: 0 | BH25: =SUMIFS('Cotizantes Mes'!$CA$2:$CA$500,'Cotizantes Mes'!$AY$2:$AY$500,"Dep_sec_priv",'Cotizantes Mes'!$AX$2:$AX$500,Tamaño!BF25) -> 0 | BI25: =SUMIFS('Cotizantes Mes'!$CA$2:$CA$500,'Cotizantes Mes'!$AX$2:$AX$500,Tamaño!BF25,'Cotizantes Mes'!$AY$2:$AY$500,"Independiente") -> 0 | BJ25: =SUMIFS($G$2:$G$600000,$F$2:$F$600000,BF25,$E$2:$E$600000,Visor!$Q$7) -> 0 | BU25: =SUM(BU2:BU23) -> 666093 | BV25: =SUM(BV2:BV23) -> 666093
A26: 5 | B26: 1 | C26: 001 | D26: 5001 | E26: ANTIOQUIA | F26: MEDELLÍN | G26: 3 | H26: 8299 | I26: N | J26: Actividades de servicios administrativos | M26: 11 | N26: 1 | O26: 001 | P26: 11001 | Q26: BOGOTÁ, D.C. | R26: BOGOTÁ, D.C. | S26: 1 | T26: 7490 | U26: M | V26: Act. profecionales cientificas y tecnicas | BB26: 0 | BF26: 0 | BG26: 0 | BH26: =SUMIFS('Cotizantes Mes'!$CA$2:$CA$500,'Cotizantes Mes'!$AY$2:$AY$500,"Dep_sec_priv",'Cotizantes Mes'!$AX$2:$AX$500,Tamaño!BF26) -> 0 | BI26: =SUMIFS('Cotizantes Mes'!$CA$2:$CA$500,'Cotizantes Mes'!$AX$2:$AX$500,Tamaño!BF26,'Cotizantes Mes'!$AY$2:$AY$500,"Independiente") -> 0 | BJ26: =SUMIFS($G$2:$G$600000,$F$2:$F$600000,BF26,$E$2:$E$600000,Visor!$Q$7) -> 0
A27: 5 | B27: 1 | C27: 001 | D27: 5001 | E27: ANTIOQUIA | F27: MEDELLÍN | G27: 7 | H27: 4644 | I27: G | J27: Comercio y reparacion de vehiculos | M27: 11 | N27: 1 | O27: 001 | P27: 11001 | Q27: BOGOTÁ, D.C. | R27: BOGOTÁ, D.C. | S27: 1 | T27: 7490 | U27: M | V27: Act. profecionales cientificas y tecnicas | BB27: 0 | BF27: 0 | BG27: 0 | BH27: =SUMIFS('Cotizantes Mes'!$CA$2:$CA$500,'Cotizantes Mes'!$AY$2:$AY$500,"Dep_sec_priv",'Cotizantes Mes'!$AX$2:$AX$500,Tamaño!BF27) -> 0 | BI27: =SUMIFS('Cotizantes Mes'!$CA$2:$CA$500,'Cotizantes Mes'!$AX$2:$AX$500,Tamaño!BF27,'Cotizantes Mes'!$AY$2:$AY$500,"Independiente") -> 0 | BJ27: =SUMIFS($G$2:$G$600000,$F$2:$F$600000,BF27,$E$2:$E$600000,Visor!$Q$7) -> 0
A28: 5 | B28: 266 | C28: 266 | D28: 5266 | E28: ANTIOQUIA | F28: ENVIGADO | G28: 3 | H28: 4923 | I28: H | J28: Transporte y almacenamiento | M28: 11 | N28: 1 | O28: 001 | P28: 11001 | Q28: BOGOTÁ, D.C. | R28: BOGOTÁ, D.C. | S28: 3 | T28: 4663 | U28: G | V28: Comercio y reparacion de vehiculos | BB28: 0 | BF28: 0 | BG28: 0 | BH28: =SUMIFS('Cotizantes Mes'!$CA$2:$CA$500,'Cotizantes Mes'!$AY$2:$AY$500,"Dep_sec_priv",'Cotizantes Mes'!$AX$2:$AX$500,Tamaño!BF28) -> 0 | BI28: =SUMIFS('Cotizantes Mes'!$CA$2:$CA$500,'Cotizantes Mes'!$AX$2:$AX$500,Tamaño!BF28,'Cotizantes Mes'!$AY$2:$AY$500,"Independiente") -> 0 | BJ28: =SUMIFS($G$2:$G$600000,$F$2:$F$600000,BF28,$E$2:$E$600000,Visor!$Q$7) -> 0
A29: 5 | B29: 607 | C29: 607 | D29: 5607 | E29: ANTIOQUIA | F29: RETIRO | G29: 1 | H29: 7020 | I29: M | J29: Act. profecionales cientificas y tecnicas | M29: 11 | N29: 1 | O29: 001 | P29: 11001 | Q29: BOGOTÁ, D.C. | R29: BOGOTÁ, D.C. | S29: 1 | T29: 8020 | U29: N | V29: Actividades de servicios administrativos | BB29: 0 | BF29: 0 | BG29: 0 | BH29: =SUMIFS('Cotizantes Mes'!$CA$2:$CA$500,'Cotizantes Mes'!$AY$2:$AY$500,"Dep_sec_priv",'Cotizantes Mes'!$AX$2:$AX$500,Tamaño!BF29) -> 0 | BI29: =SUMIFS('Cotizantes Mes'!$CA$2:$CA$500,'Cotizantes Mes'!$AX$2:$AX$500,Tamaño!BF29,'Cotizantes Mes'!$AY$2:$AY$500,"Independiente") -> 0 | BJ29: =SUMIFS($G$2:$G$600000,$F$2:$F$600000,BF29,$E$2:$E$600000,Visor!$Q$7) -> 0
A30: 66 | B30: 1 | C30: 001 | D30: 66001 | E30: RISARALDA | F30: PEREIRA | G30: 2 | H30: 8299 | I30: N | J30: Actividades de servicios administrativos | M30: 11 | N30: 1 | O30: 001 | P30: 11001 | Q30: BOGOTÁ, D.C. | R30: BOGOTÁ, D.C. | S30: 3 | T30: 7490 | U30: M | V30: Act. profecionales cientificas y tecnicas | BB30: 0 | BF30: 0 | BG30: 0 | BH30: =SUMIFS('Cotizantes Mes'!$CA$2:$CA$500,'Cotizantes Mes'!$AY$2:$AY$500,"Dep_sec_priv",'Cotizantes Mes'!$AX$2:$AX$500,Tamaño!BF30) -> 0 | BI30: =SUMIFS('Cotizantes Mes'!$CA$2:$CA$500,'Cotizantes Mes'!$AX$2:$AX$500,Tamaño!BF30,'Cotizantes Mes'!$AY$2:$AY$500,"Independiente") -> 0 | BJ30: =SUMIFS($G$2:$G$600000,$F$2:$F$600000,BF30,$E$2:$E$600000,Visor!$Q$7) -> 0
A31: 25 | B31: 307 | C31: 307 | D31: 25307 | E31: CUNDINAMARCA | F31: GIRARDOT | G31: 4 | H31: 9609 | I31: S | J31: Otras actividades de servicios | M31: 11 | N31: 1 | O31: 001 | P31: 11001 | Q31: BOGOTÁ, D.C. | R31: BOGOTÁ, D.C. | S31: 2 | T31: 4923 | U31: H | V31: Transporte y almacenamiento | BB31: 0 | BF31: 0 | BG31: 0 | BH31: =SUMIFS('Cotizantes Mes'!$CA$2:$CA$500,'Cotizantes Mes'!$AY$2:$AY$500,"Dep_sec_priv",'Cotizantes Mes'!$AX$2:$AX$500,Tamaño!BF31) -> 0 | BI31: =SUMIFS('Cotizantes Mes'!$CA$2:$CA$500,'Cotizantes Mes'!$AX$2:$AX$500,Tamaño!BF31,'Cotizantes Mes'!$AY$2:$AY$500,"Independiente") -> 0 | BJ31: =SUMIFS($G$2:$G$600000,$F$2:$F$600000,BF31,$E$2:$E$600000,Visor!$Q$7) -> 0
A32: 11 | B32: 1 | C32: 001 | D32: 11001 | E32: BOGOTÁ, D.C. | F32: BOGOTÁ, D.C. | G32: 2 | H32: 4632 | I32: G | J32: Comercio y reparacion de vehiculos | M32: 11 | N32: 1 | O32: 001 | P32: 11001 | Q32: BOGOTÁ, D.C. | R32: BOGOTÁ, D.C. | S32: 1 | T32: 7490 | U32: M | V32: Act. profecionales cientificas y tecnicas | BB32: 0 | BF32: 0 | BG32: 0 | BH32: =SUMIFS('Cotizantes Mes'!$CA$2:$CA$500,'Cotizantes Mes'!$AY$2:$AY$500,"Dep_sec_priv",'Cotizantes Mes'!$AX$2:$AX$500,Tamaño!BF32) -> 0 | BI32: =SUMIFS('Cotizantes Mes'!$CA$2:$CA$500,'Cotizantes Mes'!$AX$2:$AX$500,Tamaño!BF32,'Cotizantes Mes'!$AY$2:$AY$500,"Independiente") -> 0 | BJ32: =SUMIFS($G$2:$G$600000,$F$2:$F$600000,BF32,$E$2:$E$600000,Visor!$Q$7) -> 0
A33: 11 | B33: 1 | C33: 001 | D33: 11001 | E33: BOGOTÁ, D.C. | F33: BOGOTÁ, D.C. | G33: 1 | H33: 4632 | I33: G | J33: Comercio y reparacion de vehiculos | M33: 11 | N33: 1 | O33: 001 | P33: 11001 | Q33: BOGOTÁ, D.C. | R33: BOGOTÁ, D.C. | S33: 1 | T33: 8544 | U33: P | V33: Educación | BB33: 0 | BF33: 0 | BG33: 0 | BH33: =SUMIFS('Cotizantes Mes'!$CA$2:$CA$500,'Cotizantes Mes'!$AY$2:$AY$500,"Dep_sec_priv",'Cotizantes Mes'!$AX$2:$AX$500,Tamaño!BF33) -> 0 | BI33: =SUMIFS('Cotizantes Mes'!$CA$2:$CA$500,'Cotizantes Mes'!$AX$2:$AX$500,Tamaño!BF33,'Cotizantes Mes'!$AY$2:$AY$500,"Independiente") -> 0 | BJ33: =SUMIFS($G$2:$G$600000,$F$2:$F$600000,BF33,$E$2:$E$600000,Visor!$Q$7) -> 0
A34: 11 | B34: 1 | C34: 001 | D34: 11001 | E34: BOGOTÁ, D.C. | F34: BOGOTÁ, D.C. | G34: 1 | H34: 4771 | I34: G | J34: Comercio y reparacion de vehiculos | M34: 11 | N34: 1 | O34: 001 | P34: 11001 | Q34: BOGOTÁ, D.C. | R34: BOGOTÁ, D.C. | S34: 3 | T34: 4799 | U34: G | V34: Comercio y reparacion de vehiculos | BB34: 0 | BF34: 0 | BG34: 0 | BH34: =SUMIFS('Cotizantes Mes'!$CA$2:$CA$500,'Cotizantes Mes'!$AY$2:$AY$500,"Dep_sec_priv",'Cotizantes Mes'!$AX$2:$AX$500,Tamaño!BF34) -> 0 | BI34: =SUMIFS('Cotizantes Mes'!$CA$2:$CA$500,'Cotizantes Mes'!$AX$2:$AX$500,Tamaño!BF34,'Cotizantes Mes'!$AY$2:$AY$500,"Independiente") -> 0 | BJ34: =SUMIFS($G$2:$G$600000,$F$2:$F$600000,BF34,$E$2:$E$600000,Visor!$Q$7) -> 0
A35: 11 | B35: 1 | C35: 001 | D35: 11001 | E35: BOGOTÁ, D.C. | F35: BOGOTÁ, D.C. | G35: 3 | H35: 5611 | I35: I | J35: Alojamiento y servicios de comida | M35: 11 | N35: 1 | O35: 001 | P35: 11001 | Q35: BOGOTÁ, D.C. | R35: BOGOTÁ, D.C. | S35: 2 | T35: 4771 | U35: G | V35: Comercio y reparacion de vehiculos | BB35: 0 | BF35: 0 | BG35: 0 | BH35: =SUMIFS('Cotizantes Mes'!$CA$2:$CA$500,'Cotizantes Mes'!$AY$2:$AY$500,"Dep_sec_priv",'Cotizantes Mes'!$AX$2:$AX$500,Tamaño!BF35) -> 0 | BI35: =SUMIFS('Cotizantes Mes'!$CA$2:$CA$500,'Cotizantes Mes'!$AX$2:$AX$500,Tamaño!BF35,'Cotizantes Mes'!$AY$2:$AY$500,"Independiente") -> 0 | BJ35: =SUMIFS($G$2:$G$600000,$F$2:$F$600000,BF35,$E$2:$E$600000,Visor!$Q$7) -> 0
A36: 17 | B36: 1 | C36: 001 | D36: 17001 | E36: CALDAS | F36: MANIZALES | G36: 1 | H36: 8299 | I36: N | J36: Actividades de servicios administrativos | M36: 11 | N36: 1 | O36: 001 | P36: 11001 | Q36: BOGOTÁ, D.C. | R36: BOGOTÁ, D.C. | S36: 1 | T36: 1392 | U36: C | V36: Industrias manufactureras | BB36: 0 | BF36: 0 | BG36: 0 | BH36: =SUMIFS('Cotizantes Mes'!$CA$2:$CA$500,'Cotizantes Mes'!$AY$2:$AY$500,"Dep_sec_priv",'Cotizantes Mes'!$AX$2:$AX$500,Tamaño!BF36) -> 0 | BI36: =SUMIFS('Cotizantes Mes'!$CA$2:$CA$500,'Cotizantes Mes'!$AX$2:$AX$500,Tamaño!BF36,'Cotizantes Mes'!$AY$2:$AY$500,"Independiente") -> 0 | BJ36: =SUMIFS($G$2:$G$600000,$F$2:$F$600000,BF36,$E$2:$E$600000,Visor!$Q$7) -> 0
A37: 5 | B37: 1 | C37: 001 | D37: 5001 | E37: ANTIOQUIA | F37: MEDELLÍN | G37: 32 | H37: 8299 | I37: N | J37: Actividades de servicios administrativos | M37: 11 | N37: 1 | O37: 001 | P37: 11001 | Q37: BOGOTÁ, D.C. | R37: BOGOTÁ, D.C. | S37: 2 | T37: 7490 | U37: M | V37: Act. profecionales cientificas y tecnicas | BB37: 0 | BF37: 0 | BG37: 0 | BH37: =SUMIFS('Cotizantes Mes'!$CA$2:$CA$500,'Cotizantes Mes'!$AY$2:$AY$500,"Dep_sec_priv",'Cotizantes Mes'!$AX$2:$AX$500,Tamaño!BF37) -> 0 | BI37: =SUMIFS('Cotizantes Mes'!$CA$2:$CA$500,'Cotizantes Mes'!$AX$2:$AX$500,Tamaño!BF37,'Cotizantes Mes'!$AY$2:$AY$500,"Independiente") -> 0 | BJ37: =SUMIFS($G$2:$G$600000,$F$2:$F$600000,BF37,$E$2:$E$600000,Visor!$Q$7) -> 0
A38: 66 | B38: 1 | C38: 001 | D38: 66001 | E38: RISARALDA | F38: PEREIRA | G38: 5 | H38: 2599 | I38: C | J38: Industrias manufactureras | M38: 11 | N38: 1 | O38: 001 | P38: 11001 | Q38: BOGOTÁ, D.C. | R38: BOGOTÁ, D.C. | S38: 2 | T38: 7490 | U38: M | V38: Act. profecionales cientificas y tecnicas | BB38: 0 | BF38: 0 | BG38: 0 | BH38: =SUMIFS('Cotizantes Mes'!$CA$2:$CA$500,'Cotizantes Mes'!$AY$2:$AY$500,"Dep_sec_priv",'Cotizantes Mes'!$AX$2:$AX$500,Tamaño!BF38) -> 0 | BI38: =SUMIFS('Cotizantes Mes'!$CA$2:$CA$500,'Cotizantes Mes'!$AX$2:$AX$500,Tamaño!BF38,'Cotizantes Mes'!$AY$2:$AY$500,"Independiente") -> 0 | BJ38: =SUMIFS($G$2:$G$600000,$F$2:$F$600000,BF38,$E$2:$E$600000,Visor!$Q$7) -> 0
A39: 11 | B39: 1 | C39: 001 | D39: 11001 | E39: BOGOTÁ, D.C. | F39: BOGOTÁ, D.C. | G39: 4 | H39: 7490 | I39: M | J39: Act. profecionales cientificas y tecnicas | M39: 11 | N39: 1 | O39: 001 | P39: 11001 | Q39: BOGOTÁ, D.C. | R39: BOGOTÁ, D.C. | S39: 2 | T39: 8699 | U39: Q | V39: Act. de atención de la salud humana | BB39: 0 | BF39: 0 | BG39: 0 | BH39: =SUMIFS('Cotizantes Mes'!$CA$2:$CA$500,'Cotizantes Mes'!$AY$2:$AY$500,"Dep_sec_priv",'Cotizantes Mes'!$AX$2:$AX$500,Tamaño!BF39) -> 0 | BI39: =SUMIFS('Cotizantes Mes'!$CA$2:$CA$500,'Cotizantes Mes'!$AX$2:$AX$500,Tamaño!BF39,'Cotizantes Mes'!$AY$2:$AY$500,"Independiente") -> 0 | BJ39: =SUMIFS($G$2:$G$600000,$F$2:$F$600000,BF39,$E$2:$E$600000,Visor!$Q$7) -> 0
A40: 11 | B40: 1 | C40: 001 | D40: 11001 | E40: BOGOTÁ, D.C. | F40: BOGOTÁ, D.C. | G40: 1 | H40: 7490 | I40: M | J40: Act. profecionales cientificas y tecnicas | M40: 11 | N40: 1 | O40: 001 | P40: 11001 | Q40: BOGOTÁ, D.C. | R40: BOGOTÁ, D.C. | S40: 3 | T40: 5613 | U40: I | V40: Alojamiento y servicios de comida | BB40: 0 | BF40: 0 | BG40: 0 | BH40: =SUMIFS('Cotizantes Mes'!$CA$2:$CA$500,'Cotizantes Mes'!$AY$2:$AY$500,"Dep_sec_priv",'Cotizantes Mes'!$AX$2:$AX$500,Tamaño!BF40) -> 0 | BI40: =SUMIFS('Cotizantes Mes'!$CA$2:$CA$500,'Cotizantes Mes'!$AX$2:$AX$500,Tamaño!BF40,'Cotizantes Mes'!$AY$2:$AY$500,"Independiente") -> 0 | BJ40: =SUMIFS($G$2:$G$600000,$F$2:$F$600000,BF40,$E$2:$E$600000,Visor!$Q$7) -> 0
A41: 11 | B41: 1 | C41: 001 | D41: 11001 | E41: BOGOTÁ, D.C. | F41: BOGOTÁ, D.C. | G41: 4 | H41: 4729 | I41: G | J41: Comercio y reparacion de vehiculos | M41: 11 | N41: 1 | O41: 001 | P41: 11001 | Q41: BOGOTÁ, D.C. | R41: BOGOTÁ, D.C. | S41: 10 | T41: 7490 | U41: M | V41: Act. profecionales cientificas y tecnicas | BB41: 0 | BF41: 0 | BG41: 0 | BH41: =SUMIFS('Cotizantes Mes'!$CA$2:$CA$500,'Cotizantes Mes'!$AY$2:$AY$500,"Dep_sec_priv",'Cotizantes Mes'!$AX$2:$AX$500,Tamaño!BF41) -> 0 | BI41: =SUMIFS('Cotizantes Mes'!$CA$2:$CA$500,'Cotizantes Mes'!$AX$2:$AX$500,Tamaño!BF41,'Cotizantes Mes'!$AY$2:$AY$500,"Independiente") -> 0 | BJ41: =SUMIFS($G$2:$G$600000,$F$2:$F$600000,BF41,$E$2:$E$600000,Visor!$Q$7) -> 0
A42: 25 | B42: 843 | C42: 843 | D42: 25843 | E42: CUNDINAMARCA | F42: VILLA DE SAN DIEGO DE UBATE | G42: 9 | H42: 4731 | I42: G | J42: Comercio y reparacion de vehiculos | M42: 11 | N42: 1 | O42: 001 | P42: 11001 | Q42: BOGOTÁ, D.C. | R42: BOGOTÁ, D.C. | S42: 1 | T42: 4642 | U42: G | V42: Comercio y reparacion de vehiculos | BB42: 0 | BF42: 0 | BG42: 0 | BH42: =SUMIFS('Cotizantes Mes'!$CA$2:$CA$500,'Cotizantes Mes'!$AY$2:$AY$500,"Dep_sec_priv",'Cotizantes Mes'!$AX$2:$AX$500,Tamaño!BF42) -> 0 | BI42: =SUMIFS('Cotizantes Mes'!$CA$2:$CA$500,'Cotizantes Mes'!$AX$2:$AX$500,Tamaño!BF42,'Cotizantes Mes'!$AY$2:$AY$500,"Independiente") -> 0 | BJ42: =SUMIFS($G$2:$G$600000,$F$2:$F$600000,BF42,$E$2:$E$600000,Visor!$Q$7) -> 0
A43: 41 | B43: 1 | C43: 001 | D43: 41001 | E43: HUILA | F43: NEIVA | G43: 2 | H43: 7490 | I43: M | J43: Act. profecionales cientificas y tecnicas | M43: 11 | N43: 1 | O43: 001 | P43: 11001 | Q43: BOGOTÁ, D.C. | R43: BOGOTÁ, D.C. | S43: 3 | T43: 4723 | U43: G | V43: Comercio y reparacion de vehiculos | BB43: 0 | BF43: 0 | BG43: 0 | BH43: =SUMIFS('Cotizantes Mes'!$CA$2:$CA$500,'Cotizantes Mes'!$AY$2:$AY$500,"Dep_sec_priv",'Cotizantes Mes'!$AX$2:$AX$500,Tamaño!BF43) -> 0 | BI43: =SUMIFS('Cotizantes Mes'!$CA$2:$CA$500,'Cotizantes Mes'!$AX$2:$AX$500,Tamaño!BF43,'Cotizantes Mes'!$AY$2:$AY$500,"Independiente") -> 0 | BJ43: =SUMIFS($G$2:$G$600000,$F$2:$F$600000,BF43,$E$2:$E$600000,Visor!$Q$7) -> 0
A44: 5 | B44: 129 | C44: 129 | D44: 5129 | E44: ANTIOQUIA | F44: CALDAS | G44: 9 | H44: 1610 | I44: C | J44: Industrias manufactureras | M44: 11 | N44: 1 | O44: 001 | P44: 11001 | Q44: BOGOTÁ, D.C. | R44: BOGOTÁ, D.C. | S44: 2 | T44: 7490 | U44: M | V44: Act. profecionales cientificas y tecnicas | BB44: 0 | BF44: 0 | BG44: 0 | BH44: =SUMIFS('Cotizantes Mes'!$CA$2:$CA$500,'Cotizantes Mes'!$AY$2:$AY$500,"Dep_sec_priv",'Cotizantes Mes'!$AX$2:$AX$500,Tamaño!BF44) -> 0 | BI44: =SUMIFS('Cotizantes Mes'!$CA$2:$CA$500,'Cotizantes Mes'!$AX$2:$AX$500,Tamaño!BF44,'Cotizantes Mes'!$AY$2:$AY$500,"Independiente") -> 0 | BJ44: =SUMIFS($G$2:$G$600000,$F$2:$F$600000,BF44,$E$2:$E$600000,Visor!$Q$7) -> 0
A45: 5 | B45: 360 | C45: 360 | D45: 5360 | E45: ANTIOQUIA | F45: ITAGUI | G45: 4 | H45: 4711 | I45: G | J45: Comercio y reparacion de vehiculos | M45: 11 | N45: 1 | O45: 001 | P45: 11001 | Q45: BOGOTÁ, D.C. | R45: BOGOTÁ, D.C. | S45: 4 | T45: 1084 | U45: C | V45: Industrias manufactureras | BB45: 0 | BF45: 0 | BG45: 0 | BH45: =SUMIFS('Cotizantes Mes'!$CA$2:$CA$500,'Cotizantes Mes'!$AY$2:$AY$500,"Dep_sec_priv",'Cotizantes Mes'!$AX$2:$AX$500,Tamaño!BF45) -> 0 | BI45: =SUMIFS('Cotizantes Mes'!$CA$2:$CA$500,'Cotizantes Mes'!$AX$2:$AX$500,Tamaño!BF45,'Cotizantes Mes'!$AY$2:$AY$500,"Independiente") -> 0 | BJ45: =SUMIFS($G$2:$G$600000,$F$2:$F$600000,BF45,$E$2:$E$600000,Visor!$Q$7) -> 0
A46: 5 | B46: 212 | C46: 212 | D46: 5212 | E46: ANTIOQUIA | F46: COPACABANA | G46: 11 | H46: 5611 | I46: I | J46: Alojamiento y servicios de comida | M46: 11 | N46: 1 | O46: 001 | P46: 11001 | Q46: BOGOTÁ, D.C. | R46: BOGOTÁ, D.C. | S46: 21 | T46: 8129 | U46: N | V46: Actividades de servicios administrativos | BB46: 0 | BF46: 0 | BG46: 0 | BH46: =SUMIFS('Cotizantes Mes'!$CA$2:$CA$500,'Cotizantes Mes'!$AY$2:$AY$500,"Dep_sec_priv",'Cotizantes Mes'!$AX$2:$AX$500,Tamaño!BF46) -> 0 | BI46: =SUMIFS('Cotizantes Mes'!$CA$2:$CA$500,'Cotizantes Mes'!$AX$2:$AX$500,Tamaño!BF46,'Cotizantes Mes'!$AY$2:$AY$500,"Independiente") -> 0 | BJ46: =SUMIFS($G$2:$G$600000,$F$2:$F$600000,BF46,$E$2:$E$600000,Visor!$Q$7) -> 0
A47: 5 | B47: 1 | C47: 001 | D47: 5001 | E47: ANTIOQUIA | F47: MEDELLÍN | G47: 1 | H47: 9609 | I47: S | J47: Otras actividades de servicios | M47: 11 | N47: 1 | O47: 001 | P47: 11001 | Q47: BOGOTÁ, D.C. | R47: BOGOTÁ, D.C. | S47: 3 | T47: 4721 | U47: G | V47: Comercio y reparacion de vehiculos | BB47: 0 | BF47: 0 | BG47: 0 | BH47: =SUMIFS('Cotizantes Mes'!$CA$2:$CA$500,'Cotizantes Mes'!$AY$2:$AY$500,"Dep_sec_priv",'Cotizantes Mes'!$AX$2:$AX$500,Tamaño!BF47) -> 0 | BI47: =SUMIFS('Cotizantes Mes'!$CA$2:$CA$500,'Cotizantes Mes'!$AX$2:$AX$500,Tamaño!BF47,'Cotizantes Mes'!$AY$2:$AY$500,"Independiente") -> 0 | BJ47: =SUMIFS($G$2:$G$600000,$F$2:$F$600000,BF47,$E$2:$E$600000,Visor!$Q$7) -> 0
A48: 5 | B48: 1 | C48: 001 | D48: 5001 | E48: ANTIOQUIA | F48: MEDELLÍN | G48: 1 | H48: 4771 | I48: G | J48: Comercio y reparacion de vehiculos | M48: 11 | N48: 1 | O48: 001 | P48: 11001 | Q48: BOGOTÁ, D.C. | R48: BOGOTÁ, D.C. | S48: 2 | T48: 8299 | U48: N | V48: Actividades de servicios administrativos | BB48: 0 | BF48: 0 | BG48: 0 | BH48: =SUMIFS('Cotizantes Mes'!$CA$2:$CA$500,'Cotizantes Mes'!$AY$2:$AY$500,"Dep_sec_priv",'Cotizantes Mes'!$AX$2:$AX$500,Tamaño!BF48) -> 0 | BI48: =SUMIFS('Cotizantes Mes'!$CA$2:$CA$500,'Cotizantes Mes'!$AX$2:$AX$500,Tamaño!BF48,'Cotizantes Mes'!$AY$2:$AY$500,"Independiente") -> 0 | BJ48: =SUMIFS($G$2:$G$600000,$F$2:$F$600000,BF48,$E$2:$E$600000,Visor!$Q$7) -> 0
A49: 66 | B49: 1 | C49: 001 | D49: 66001 | E49: RISARALDA | F49: PEREIRA | G49: 1 | H49: 7490 | I49: M | J49: Act. profecionales cientificas y tecnicas | M49: 11 | N49: 1 | O49: 001 | P49: 11001 | Q49: BOGOTÁ, D.C. | R49: BOGOTÁ, D.C. | S49: 1 | T49: 9700 | U49: T | V49: Actividades de los hogares individuales | BB49: 0 | BF49: 0 | BG49: 0 | BH49: =SUMIFS('Cotizantes Mes'!$CA$2:$CA$500,'Cotizantes Mes'!$AY$2:$AY$500,"Dep_sec_priv",'Cotizantes Mes'!$AX$2:$AX$500,Tamaño!BF49) -> 0 | BI49: =SUMIFS('Cotizantes Mes'!$CA$2:$CA$500,'Cotizantes Mes'!$AX$2:$AX$500,Tamaño!BF49,'Cotizantes Mes'!$AY$2:$AY$500,"Independiente") -> 0 | BJ49: =SUMIFS($G$2:$G$600000,$F$2:$F$600000,BF49,$E$2:$E$600000,Visor!$Q$7) -> 0
A50: 5 | B50: 1 | C50: 001 | D50: 5001 | E50: ANTIOQUIA | F50: MEDELLÍN | G50: 2 | H50: 4773 | I50: G | J50: Comercio y reparacion de vehiculos | M50: 11 | N50: 1 | O50: 001 | P50: 11001 | Q50: BOGOTÁ, D.C. | R50: BOGOTÁ, D.C. | S50: 1 | T50: 9609 | U50: S | V50: Otras actividades de servicios | BB50: 0 | BF50: 0 | BG50: 0 | BH50: =SUMIFS('Cotizantes Mes'!$CA$2:$CA$500,'Cotizantes Mes'!$AY$2:$AY$500,"Dep_sec_priv",'Cotizantes Mes'!$AX$2:$AX$500,Tamaño!BF50) -> 0 | BI50: =SUMIFS('Cotizantes Mes'!$CA$2:$CA$500,'Cotizantes Mes'!$AX$2:$AX$500,Tamaño!BF50,'Cotizantes Mes'!$AY$2:$AY$500,"Independiente") -> 0 | BJ50: =SUMIFS($G$2:$G$600000,$F$2:$F$600000,BF50,$E$2:$E$600000,Visor!$Q$7) -> 0
A51: 5 | B51: 1 | C51: 001 | D51: 5001 | E51: ANTIOQUIA | F51: MEDELLÍN | G51: 3 | H51: 4651 | I51: G | J51: Comercio y reparacion de vehiculos | M51: 11 | N51: 1 | O51: 001 | P51: 11001 | Q51: BOGOTÁ, D.C. | R51: BOGOTÁ, D.C. | S51: 5 | T51: 4330 | U51: F | V51: Construcción | BB51: 0 | BF51: 0 | BG51: 0 | BH51: =SUMIFS('Cotizantes Mes'!$CA$2:$CA$500,'Cotizantes Mes'!$AY$2:$AY$500,"Dep_sec_priv",'Cotizantes Mes'!$AX$2:$AX$500,Tamaño!BF51) -> 0 | BI51: =SUMIFS('Cotizantes Mes'!$CA$2:$CA$500,'Cotizantes Mes'!$AX$2:$AX$500,Tamaño!BF51,'Cotizantes Mes'!$AY$2:$AY$500,"Independiente") -> 0 | BJ51: =SUMIFS($G$2:$G$600000,$F$2:$F$600000,BF51,$E$2:$E$600000,Visor!$Q$7) -> 0
A52: 5 | B52: 1 | C52: 001 | D52: 5001 | E52: ANTIOQUIA | F52: MEDELLÍN | G52: 3 | H52: 4729 | I52: G | J52: Comercio y reparacion de vehiculos | M52: 11 | N52: 1 | O52: 001 | P52: 11001 | Q52: BOGOTÁ, D.C. | R52: BOGOTÁ, D.C. | S52: 2 | T52: 4751 | U52: G | V52: Comercio y reparacion de vehiculos | BB52: 0 | BF52: 0 | BG52: 0 | BH52: =SUMIFS('Cotizantes Mes'!$CA$2:$CA$500,'Cotizantes Mes'!$AY$2:$AY$500,"Dep_sec_priv",'Cotizantes Mes'!$AX$2:$AX$500,Tamaño!BF52) -> 0 | BI52: =SUMIFS('Cotizantes Mes'!$CA$2:$CA$500,'Cotizantes Mes'!$AX$2:$AX$500,Tamaño!BF52,'Cotizantes Mes'!$AY$2:$AY$500,"Independiente") -> 0 | BJ52: =SUMIFS($G$2:$G$600000,$F$2:$F$600000,BF52,$E$2:$E$600000,Visor!$Q$7) -> 0
A53: 5 | B53: 1 | C53: 001 | D53: 5001 | E53: ANTIOQUIA | F53: MEDELLÍN | G53: 10 | H53: 5530 | I53: I | J53: Alojamiento y servicios de comida | M53: 11 | N53: 1 | O53: 001 | P53: 11001 | Q53: BOGOTÁ, D.C. | R53: BOGOTÁ, D.C. | S53: 1 | T53: 2512 | U53: C | V53: Industrias manufactureras | BB53: 0 | BF53: 0 | BG53: 0 | BH53: =SUMIFS('Cotizantes Mes'!$CA$2:$CA$500,'Cotizantes Mes'!$AY$2:$AY$500,"Dep_sec_priv",'Cotizantes Mes'!$AX$2:$AX$500,Tamaño!BF53) -> 0 | BI53: =SUMIFS('Cotizantes Mes'!$CA$2:$CA$500,'Cotizantes Mes'!$AX$2:$AX$500,Tamaño!BF53,'Cotizantes Mes'!$AY$2:$AY$500,"Independiente") -> 0 | BJ53: =SUMIFS($G$2:$G$600000,$F$2:$F$600000,BF53,$E$2:$E$600000,Visor!$Q$7) -> 0
A54: 5 | B54: 360 | C54: 360 | D54: 5360 | E54: ANTIOQUIA | F54: ITAGUI | G54: 2 | H54: 1410 | I54: C | J54: Industrias manufactureras | M54: 11 | N54: 1 | O54: 001 | P54: 11001 | Q54: BOGOTÁ, D.C. | R54: BOGOTÁ, D.C. | S54: 2 | T54: 4773 | U54: G | V54: Comercio y reparacion de vehiculos | BB54: 0 | BF54: 0 | BG54: 0 | BH54: =SUMIFS('Cotizantes Mes'!$CA$2:$CA$500,'Cotizantes Mes'!$AY$2:$AY$500,"Dep_sec_priv",'Cotizantes Mes'!$AX$2:$AX$500,Tamaño!BF54) -> 0 | BI54: =SUMIFS('Cotizantes Mes'!$CA$2:$CA$500,'Cotizantes Mes'!$AX$2:$AX$500,Tamaño!BF54,'Cotizantes Mes'!$AY$2:$AY$500,"Independiente") -> 0 | BJ54: =SUMIFS($G$2:$G$600000,$F$2:$F$600000,BF54,$E$2:$E$600000,Visor!$Q$7) -> 0
A55: 25 | B55: 269 | C55: 269 | D55: 25269 | E55: CUNDINAMARCA | F55: FACATATIVÁ | G55: 1 | H55: 4771 | I55: G | J55: Comercio y reparacion de vehiculos | M55: 11 | N55: 1 | O55: 001 | P55: 11001 | Q55: BOGOTÁ, D.C. | R55: BOGOTÁ, D.C. | S55: 2 | T55: 9700 | U55: T | V55: Actividades de los hogares individuales | BB55: 0 | BF55: 0 | BG55: 0 | BH55: =SUMIFS('Cotizantes Mes'!$CA$2:$CA$500,'Cotizantes Mes'!$AY$2:$AY$500,"Dep_sec_priv",'Cotizantes Mes'!$AX$2:$AX$500,Tamaño!BF55) -> 0 | BI55: =SUMIFS('Cotizantes Mes'!$CA$2:$CA$500,'Cotizantes Mes'!$AX$2:$AX$500,Tamaño!BF55,'Cotizantes Mes'!$AY$2:$AY$500,"Independiente") -> 0 | BJ55: =SUMIFS($G$2:$G$600000,$F$2:$F$600000,BF55,$E$2:$E$600000,Visor!$Q$7) -> 0
A56: 66 | B56: 1 | C56: 001 | D56: 66001 | E56: RISARALDA | F56: PEREIRA | G56: 2 | H56: 9609 | I56: S | J56: Otras actividades de servicios | M56: 11 | N56: 1 | O56: 001 | P56: 11001 | Q56: BOGOTÁ, D.C. | R56: BOGOTÁ, D.C. | S56: 2 | T56: 9700 | U56: T | V56: Actividades de los hogares individuales | BB56: 0 | BF56: 0 | BG56: 0 | BH56: =SUMIFS('Cotizantes Mes'!$CA$2:$CA$500,'Cotizantes Mes'!$AY$2:$AY$500,"Dep_sec_priv",'Cotizantes Mes'!$AX$2:$AX$500,Tamaño!BF56) -> 0 | BI56: =SUMIFS('Cotizantes Mes'!$CA$2:$CA$500,'Cotizantes Mes'!$AX$2:$AX$500,Tamaño!BF56,'Cotizantes Mes'!$AY$2:$AY$500,"Independiente") -> 0 | BJ56: =SUMIFS($G$2:$G$600000,$F$2:$F$600000,BF56,$E$2:$E$600000,Visor!$Q$7) -> 0
A57: 13 | B57: 1 | C57: 001 | D57: 13001 | E57: BOLÍVAR | F57: CARTAGENA | G57: 6 | H57: 4759 | I57: G | J57: Comercio y reparacion de vehiculos | M57: 11 | N57: 1 | O57: 001 | P57: 11001 | Q57: BOGOTÁ, D.C. | R57: BOGOTÁ, D.C. | S57: 3 | T57: 5920 | U57: J | V57: Información y comunicaciones | BB57: 0 | BF57: 0 | BG57: 0 | BH57: =SUMIFS('Cotizantes Mes'!$CA$2:$CA$500,'Cotizantes Mes'!$AY$2:$AY$500,"Dep_sec_priv",'Cotizantes Mes'!$AX$2:$AX$500,Tamaño!BF57) -> 0 | BI57: =SUMIFS('Cotizantes Mes'!$CA$2:$CA$500,'Cotizantes Mes'!$AX$2:$AX$500,Tamaño!BF57,'Cotizantes Mes'!$AY$2:$AY$500,"Independiente") -> 0 | BJ57: =SUMIFS($G$2:$G$600000,$F$2:$F$600000,BF57,$E$2:$E$600000,Visor!$Q$7) -> 0
A58: 11 | B58: 1 | C58: 001 | D58: 11001 | E58: BOGOTÁ, D.C. | F58: BOGOTÁ, D.C. | G58: 3 | H58: 9601 | I58: S | J58: Otras actividades de servicios | M58: 11 | N58: 1 | O58: 001 | P58: 11001 | Q58: BOGOTÁ, D.C. | R58: BOGOTÁ, D.C. | S58: 50 | T58: 4330 | U58: F | V58: Construcción | BB58: 0 | BF58: 0 | BG58: 0 | BH58: =SUMIFS('Cotizantes Mes'!$CA$2:$CA$500,'Cotizantes Mes'!$AY$2:$AY$500,"Dep_sec_priv",'Cotizantes Mes'!$AX$2:$AX$500,Tamaño!BF58) -> 0 | BI58: =SUMIFS('Cotizantes Mes'!$CA$2:$CA$500,'Cotizantes Mes'!$AX$2:$AX$500,Tamaño!BF58,'Cotizantes Mes'!$AY$2:$AY$500,"Independiente") -> 0 | BJ58: =SUMIFS($G$2:$G$600000,$F$2:$F$600000,BF58,$E$2:$E$600000,Visor!$Q$7) -> 0
A59: 73 | B59: 585 | C59: 585 | D59: 73585 | E59: TOLIMA | F59: PURIFICACIÓN | G59: 5 | H59: 4711 | I59: G | J59: Comercio y reparacion de vehiculos | M59: 11 | N59: 1 | O59: 001 | P59: 11001 | Q59: BOGOTÁ, D.C. | R59: BOGOTÁ, D.C. | S59: 4 | T59: 4711 | U59: G | V59: Comercio y reparacion de vehiculos | BB59: 0 | BF59: 0 | BG59: 0 | BH59: =SUMIFS('Cotizantes Mes'!$CA$2:$CA$500,'Cotizantes Mes'!$AY$2:$AY$500,"Dep_sec_priv",'Cotizantes Mes'!$AX$2:$AX$500,Tamaño!BF59) -> 0 | BI59: =SUMIFS('Cotizantes Mes'!$CA$2:$CA$500,'Cotizantes Mes'!$AX$2:$AX$500,Tamaño!BF59,'Cotizantes Mes'!$AY$2:$AY$500,"Independiente") -> 0 | BJ59: =SUMIFS($G$2:$G$600000,$F$2:$F$600000,BF59,$E$2:$E$600000,Visor!$Q$7) -> 0
A60: 73 | B60: 1 | C60: 001 | D60: 73001 | E60: TOLIMA | F60: IBAGUÉ | G60: 1 | H60: 7490 | I60: M | J60: Act. profecionales cientificas y tecnicas | M60: 11 | N60: 1 | O60: 001 | P60: 11001 | Q60: BOGOTÁ, D.C. | R60: BOGOTÁ, D.C. | S60: 1 | T60: 7490 | U60: M | V60: Act. profecionales cientificas y tecnicas | BB60: 0 | BF60: 0 | BG60: 0 | BH60: =SUMIFS('Cotizantes Mes'!$CA$2:$CA$500,'Cotizantes Mes'!$AY$2:$AY$500,"Dep_sec_priv",'Cotizantes Mes'!$AX$2:$AX$500,Tamaño!BF60) -> 0 | BI60: =SUMIFS('Cotizantes Mes'!$CA$2:$CA$500,'Cotizantes Mes'!$AX$2:$AX$500,Tamaño!BF60,'Cotizantes Mes'!$AY$2:$AY$500,"Independiente") -> 0 | BJ60: =SUMIFS($G$2:$G$600000,$F$2:$F$600000,BF60,$E$2:$E$600000,Visor!$Q$7) -> 0
A61: 11 | B61: 1 | C61: 001 | D61: 11001 | E61: BOGOTÁ, D.C. | F61: BOGOTÁ, D.C. | G61: 6 | H61: 8299 | I61: N | J61: Actividades de servicios administrativos | M61: 11 | N61: 1 | O61: 001 | P61: 11001 | Q61: BOGOTÁ, D.C. | R61: BOGOTÁ, D.C. | S61: 3 | T61: 4791 | U61: G | V61: Comercio y reparacion de vehiculos | BB61: 0 | BF61: 0 | BG61: 0 | BH61: =SUMIFS('Cotizantes Mes'!$CA$2:$CA$500,'Cotizantes Mes'!$AY$2:$AY$500,"Dep_sec_priv",'Cotizantes Mes'!$AX$2:$AX$500,Tamaño!BF61) -> 0 | BI61: =SUMIFS('Cotizantes Mes'!$CA$2:$CA$500,'Cotizantes Mes'!$AX$2:$AX$500,Tamaño!BF61,'Cotizantes Mes'!$AY$2:$AY$500,"Independiente") -> 0 | BJ61: =SUMIFS($G$2:$G$600000,$F$2:$F$600000,BF61,$E$2:$E$600000,Visor!$Q$7) -> 0
A62: 85 | B62: 1 | C62: 001 | D62: 85001 | E62: CASANARE | F62: YOPAL | G62: 1 | H62: 8692 | I62: Q | J62: Act. de atención de la salud humana | M62: 11 | N62: 1 | O62: 001 | P62: 11001 | Q62: BOGOTÁ, D.C. | R62: BOGOTÁ, D.C. | S62: 55 | T62: 6521 | U62: K | V62: Actividades financieras y de seguros | BB62: 0 | BF62: 0 | BG62: 0 | BH62: =SUMIFS('Cotizantes Mes'!$CA$2:$CA$500,'Cotizantes Mes'!$AY$2:$AY$500,"Dep_sec_priv",'Cotizantes Mes'!$AX$2:$AX$500,Tamaño!BF62) -> 0 | BI62: =SUMIFS('Cotizantes Mes'!$CA$2:$CA$500,'Cotizantes Mes'!$AX$2:$AX$500,Tamaño!BF62,'Cotizantes Mes'!$AY$2:$AY$500,"Independiente") -> 0 | BJ62: =SUMIFS($G$2:$G$600000,$F$2:$F$600000,BF62,$E$2:$E$600000,Visor!$Q$7) -> 0
A63: 25 | B63: 430 | C63: 430 | D63: 25430 | E63: CUNDINAMARCA | F63: MADRID | G63: 1 | H63: 8299 | I63: N | J63: Actividades de servicios administrativos | M63: 11 | N63: 1 | O63: 001 | P63: 11001 | Q63: BOGOTÁ, D.C. | R63: BOGOTÁ, D.C. | S63: 1 | T63: 7490 | U63: M | V63: Act. profecionales cientificas y tecnicas | BB63: 0 | BF63: 0 | BG63: 0 | BH63: =SUMIFS('Cotizantes Mes'!$CA$2:$CA$500,'Cotizantes Mes'!$AY$2:$AY$500,"Dep_sec_priv",'Cotizantes Mes'!$AX$2:$AX$500,Tamaño!BF63) -> 0 | BI63: =SUMIFS('Cotizantes Mes'!$CA$2:$CA$500,'Cotizantes Mes'!$AX$2:$AX$500,Tamaño!BF63,'Cotizantes Mes'!$AY$2:$AY$500,"Independiente") -> 0 | BJ63: =SUMIFS($G$2:$G$600000,$F$2:$F$600000,BF63,$E$2:$E$600000,Visor!$Q$7) -> 0
A64: 5 | B64: 1 | C64: 001 | D64: 5001 | E64: ANTIOQUIA | F64: MEDELLÍN | G64: 1 | H64: 9700 | I64: T | J64: Actividades de los hogares individuales | M64: 11 | N64: 1 | O64: 001 | P64: 11001 | Q64: BOGOTÁ, D.C. | R64: BOGOTÁ, D.C. | S64: 1 | T64: 9700 | U64: T | V64: Actividades de los hogares individuales | BB64: 0 | BF64: 0 | BG64: 0 | BH64: =SUMIFS('Cotizantes Mes'!$CA$2:$CA$500,'Cotizantes Mes'!$AY$2:$AY$500,"Dep_sec_priv",'Cotizantes Mes'!$AX$2:$AX$500,Tamaño!BF64) -> 0 | BI64: =SUMIFS('Cotizantes Mes'!$CA$2:$CA$500,'Cotizantes Mes'!$AX$2:$AX$500,Tamaño!BF64,'Cotizantes Mes'!$AY$2:$AY$500,"Independiente") -> 0 | BJ64: =SUMIFS($G$2:$G$600000,$F$2:$F$600000,BF64,$E$2:$E$600000,Visor!$Q$7) -> 0
A65: 11 | B65: 1 | C65: 001 | D65: 11001 | E65: BOGOTÁ, D.C. | F65: BOGOTÁ, D.C. | G65: 1 | H65: 7111 | I65: M | J65: Act. profecionales cientificas y tecnicas | M65: 11 | N65: 1 | O65: 001 | P65: 11001 | Q65: BOGOTÁ, D.C. | R65: BOGOTÁ, D.C. | S65: 5 | T65: 4719 | U65: G | V65: Comercio y reparacion de vehiculos | BB65: 0 | BF65: 0 | BG65: 0 | BH65: =SUMIFS('Cotizantes Mes'!$CA$2:$CA$500,'Cotizantes Mes'!$AY$2:$AY$500,"Dep_sec_priv",'Cotizantes Mes'!$AX$2:$AX$500,Tamaño!BF65) -> 0 | BI65: =SUMIFS('Cotizantes Mes'!$CA$2:$CA$500,'Cotizantes Mes'!$AX$2:$AX$500,Tamaño!BF65,'Cotizantes Mes'!$AY$2:$AY$500,"Independiente") -> 0 | BJ65: =SUMIFS($G$2:$G$600000,$F$2:$F$600000,BF65,$E$2:$E$600000,Visor!$Q$7) -> 0
A66: 66 | B66: 1 | C66: 001 | D66: 66001 | E66: RISARALDA | F66: PEREIRA | G66: 1 | H66: 9700 | I66: T | J66: Actividades de los hogares individuales | M66: 11 | N66: 1 | O66: 001 | P66: 11001 | Q66: BOGOTÁ, D.C. | R66: BOGOTÁ, D.C. | S66: 2 | T66: 4651 | U66: G | V66: Comercio y reparacion de vehiculos | BB66: 0 | BF66: 0 | BG66: 0 | BH66: =SUMIFS('Cotizantes Mes'!$CA$2:$CA$500,'Cotizantes Mes'!$AY$2:$AY$500,"Dep_sec_priv",'Cotizantes Mes'!$AX$2:$AX$500,Tamaño!BF66) -> 0 | BI66: =SUMIFS('Cotizantes Mes'!$CA$2:$CA$500,'Cotizantes Mes'!$AX$2:$AX$500,Tamaño!BF66,'Cotizantes Mes'!$AY$2:$AY$500,"Independiente") -> 0 | BJ66: =SUMIFS($G$2:$G$600000,$F$2:$F$600000,BF66,$E$2:$E$600000,Visor!$Q$7) -> 0
A67: 25 | B67: 175 | C67: 175 | D67: 25175 | E67: CUNDINAMARCA | F67: CHÍA | G67: 1 | H67: 8522 | I67: P | J67: Educación | M67: 11 | N67: 1 | O67: 001 | P67: 11001 | Q67: BOGOTÁ, D.C. | R67: BOGOTÁ, D.C. | S67: 1 | T67: 9700 | U67: T | V67: Actividades de los hogares individuales | BB67: =COUNTIFS($R$2:$R$300000,BA67) -> 0 | BF67: 0 | BG67: 0 | BH67: =SUMIFS('Cotizantes Mes'!$CA$2:$CA$500,'Cotizantes Mes'!$AY$2:$AY$500,"Dep_sec_priv",'Cotizantes Mes'!$AX$2:$AX$500,Tamaño!BF67) -> 0 | BI67: =SUMIFS('Cotizantes Mes'!$CA$2:$CA$500,'Cotizantes Mes'!$AX$2:$AX$500,Tamaño!BF67,'Cotizantes Mes'!$AY$2:$AY$500,"Independiente") -> 0 | BJ67: =SUMIFS($G$2:$G$600000,$F$2:$F$600000,BF67,$E$2:$E$600000,Visor!$Q$7) -> 0
A68: 66 | B68: 1 | C68: 001 | D68: 66001 | E68: RISARALDA | F68: PEREIRA | G68: 4 | H68: 4663 | I68: G | J68: Comercio y reparacion de vehiculos | M68: 11 | N68: 1 | O68: 001 | P68: 11001 | Q68: BOGOTÁ, D.C. | R68: BOGOTÁ, D.C. | S68: 2 | T68: 7490 | U68: M | V68: Act. profecionales cientificas y tecnicas | BB68: 0 | BF68: 0 | BG68: 0 | BH68: =SUMIFS('Cotizantes Mes'!$CA$2:$CA$500,'Cotizantes Mes'!$AY$2:$AY$500,"Dep_sec_priv",'Cotizantes Mes'!$AX$2:$AX$500,Tamaño!BF68) -> 0 | BI68: =SUMIFS('Cotizantes Mes'!$CA$2:$CA$500,'Cotizantes Mes'!$AX$2:$AX$500,Tamaño!BF68,'Cotizantes Mes'!$AY$2:$AY$500,"Independiente") -> 0 | BJ68: =SUMIFS($G$2:$G$600000,$F$2:$F$600000,BF68,$E$2:$E$600000,Visor!$Q$7) -> 0
A69: 11 | B69: 1 | C69: 001 | D69: 11001 | E69: BOGOTÁ, D.C. | F69: BOGOTÁ, D.C. | G69: 2 | H69: 7490 | I69: M | J69: Act. profecionales cientificas y tecnicas | M69: 11 | N69: 1 | O69: 001 | P69: 11001 | Q69: BOGOTÁ, D.C. | R69: BOGOTÁ, D.C. | S69: 5 | T69: 8299 | U69: N | V69: Actividades de servicios administrativos | BB69: 0 | BF69: 0 | BG69: 0 | BH69: =SUMIFS('Cotizantes Mes'!$CA$2:$CA$500,'Cotizantes Mes'!$AY$2:$AY$500,"Dep_sec_priv",'Cotizantes Mes'!$AX$2:$AX$500,Tamaño!BF69) -> 0 | BI69: =SUMIFS('Cotizantes Mes'!$CA$2:$CA$500,'Cotizantes Mes'!$AX$2:$AX$500,Tamaño!BF69,'Cotizantes Mes'!$AY$2:$AY$500,"Independiente") -> 0 | BJ69: =SUMIFS($G$2:$G$600000,$F$2:$F$600000,BF69,$E$2:$E$600000,Visor!$Q$7) -> 0
A70: 66 | B70: 1 | C70: 001 | D70: 66001 | E70: RISARALDA | F70: PEREIRA | G70: 1 | H70: 7490 | I70: M | J70: Act. profecionales cientificas y tecnicas | M70: 11 | N70: 1 | O70: 001 | P70: 11001 | Q70: BOGOTÁ, D.C. | R70: BOGOTÁ, D.C. | S70: 2 | T70: 4923 | U70: H | V70: Transporte y almacenamiento | BB70: 0 | BF70: 0 | BG70: 0 | BH70: =SUMIFS('Cotizantes Mes'!$CA$2:$CA$500,'Cotizantes Mes'!$AY$2:$AY$500,"Dep_sec_priv",'Cotizantes Mes'!$AX$2:$AX$500,Tamaño!BF70) -> 0 | BI70: =SUMIFS('Cotizantes Mes'!$CA$2:$CA$500,'Cotizantes Mes'!$AX$2:$AX$500,Tamaño!BF70,'Cotizantes Mes'!$AY$2:$AY$500,"Independiente") -> 0 | BJ70: =SUMIFS($G$2:$G$600000,$F$2:$F$600000,BF70,$E$2:$E$600000,Visor!$Q$7) -> 0
A71: 66 | B71: 170 | C71: 170 | D71: 66170 | E71: RISARALDA | F71: DOSQUEBRADAS | G71: 1 | H71: 4330 | I71: F | J71: Construcción | M71: 11 | N71: 1 | O71: 001 | P71: 11001 | Q71: BOGOTÁ, D.C. | R71: BOGOTÁ, D.C. | S71: 1 | T71: 7490 | U71: M | V71: Act. profecionales cientificas y tecnicas | BB71: 0 | BF71: 0 | BG71: 0 | BH71: =SUMIFS('Cotizantes Mes'!$CA$2:$CA$500,'Cotizantes Mes'!$AY$2:$AY$500,"Dep_sec_priv",'Cotizantes Mes'!$AX$2:$AX$500,Tamaño!BF71) -> 0 | BI71: =SUMIFS('Cotizantes Mes'!$CA$2:$CA$500,'Cotizantes Mes'!$AX$2:$AX$500,Tamaño!BF71,'Cotizantes Mes'!$AY$2:$AY$500,"Independiente") -> 0 | BJ71: =SUMIFS($G$2:$G$600000,$F$2:$F$600000,BF71,$E$2:$E$600000,Visor!$Q$7) -> 0
A72: 5 | B72: 1 | C72: 001 | D72: 5001 | E72: ANTIOQUIA | F72: MEDELLÍN | G72: 2 | H72: 4775 | I72: G | J72: Comercio y reparacion de vehiculos | M72: 11 | N72: 1 | O72: 001 | P72: 11001 | Q72: BOGOTÁ, D.C. | R72: BOGOTÁ, D.C. | S72: 1 | T72: 5612 | U72: I | V72: Alojamiento y servicios de comida | BB72: 0 | BF72: 0 | BG72: 0 | BH72: =SUMIFS('Cotizantes Mes'!$CA$2:$CA$500,'Cotizantes Mes'!$AY$2:$AY$500,"Dep_sec_priv",'Cotizantes Mes'!$AX$2:$AX$500,Tamaño!BF72) -> 0 | BI72: =SUMIFS('Cotizantes Mes'!$CA$2:$CA$500,'Cotizantes Mes'!$AX$2:$AX$500,Tamaño!BF72,'Cotizantes Mes'!$AY$2:$AY$500,"Independiente") -> 0 | BJ72: =SUMIFS($G$2:$G$600000,$F$2:$F$600000,BF72,$E$2:$E$600000,Visor!$Q$7) -> 0
A73: 5 | B73: 1 | C73: 001 | D73: 5001 | E73: ANTIOQUIA | F73: MEDELLÍN | G73: 2 | H73: 8299 | I73: N | J73: Actividades de servicios administrativos | M73: 11 | N73: 1 | O73: 001 | P73: 11001 | Q73: BOGOTÁ, D.C. | R73: BOGOTÁ, D.C. | S73: 3 | T73: 7490 | U73: M | V73: Act. profecionales cientificas y tecnicas | BB73: 0 | BF73: 0 | BG73: 0 | BH73: =SUMIFS('Cotizantes Mes'!$CA$2:$CA$500,'Cotizantes Mes'!$AY$2:$AY$500,"Dep_sec_priv",'Cotizantes Mes'!$AX$2:$AX$500,Tamaño!BF73) -> 0 | BI73: =SUMIFS('Cotizantes Mes'!$CA$2:$CA$500,'Cotizantes Mes'!$AX$2:$AX$500,Tamaño!BF73,'Cotizantes Mes'!$AY$2:$AY$500,"Independiente") -> 0 | BJ73: =SUMIFS($G$2:$G$600000,$F$2:$F$600000,BF73,$E$2:$E$600000,Visor!$Q$7) -> 0
A74: 5 | B74: 1 | C74: 001 | D74: 5001 | E74: ANTIOQUIA | F74: MEDELLÍN | G74: 3 | H74: 1089 | I74: C | J74: Industrias manufactureras | M74: 11 | N74: 1 | O74: 001 | P74: 11001 | Q74: BOGOTÁ, D.C. | R74: BOGOTÁ, D.C. | S74: 3 | T74: 1081 | U74: C | V74: Industrias manufactureras | BB74: 0 | BF74: 0 | BG74: 0 | BH74: =SUMIFS('Cotizantes Mes'!$CA$2:$CA$500,'Cotizantes Mes'!$AY$2:$AY$500,"Dep_sec_priv",'Cotizantes Mes'!$AX$2:$AX$500,Tamaño!BF74) -> 0 | BI74: =SUMIFS('Cotizantes Mes'!$CA$2:$CA$500,'Cotizantes Mes'!$AX$2:$AX$500,Tamaño!BF74,'Cotizantes Mes'!$AY$2:$AY$500,"Independiente") -> 0 | BJ74: =SUMIFS($G$2:$G$600000,$F$2:$F$600000,BF74,$E$2:$E$600000,Visor!$Q$7) -> 0
A75: 5 | B75: 1 | C75: 001 | D75: 5001 | E75: ANTIOQUIA | F75: MEDELLÍN | G75: 1 | H75: 8299 | I75: N | J75: Actividades de servicios administrativos | M75: 11 | N75: 1 | O75: 001 | P75: 11001 | Q75: BOGOTÁ, D.C. | R75: BOGOTÁ, D.C. | S75: 1 | T75: 4762 | U75: G | V75: Comercio y reparacion de vehiculos | BB75: 0 | BF75: 0 | BG75: 0 | BH75: =SUMIFS('Cotizantes Mes'!$CA$2:$CA$500,'Cotizantes Mes'!$AY$2:$AY$500,"Dep_sec_priv",'Cotizantes Mes'!$AX$2:$AX$500,Tamaño!BF75) -> 0 | BI75: =SUMIFS('Cotizantes Mes'!$CA$2:$CA$500,'Cotizantes Mes'!$AX$2:$AX$500,Tamaño!BF75,'Cotizantes Mes'!$AY$2:$AY$500,"Independiente") -> 0 | BJ75: =SUMIFS($G$2:$G$600000,$F$2:$F$600000,BF75,$E$2:$E$600000,Visor!$Q$7) -> 0
A76: 5 | B76: 1 | C76: 001 | D76: 5001 | E76: ANTIOQUIA | F76: MEDELLÍN | G76: 26 | H76: 8129 | I76: N | J76: Actividades de servicios administrativos | M76: 11 | N76: 1 | O76: 001 | P76: 11001 | Q76: BOGOTÁ, D.C. | R76: BOGOTÁ, D.C. | S76: 3 | T76: 4789 | U76: G | V76: Comercio y reparacion de vehiculos | BB76: 0 | BF76: 0 | BG76: 0 | BH76: =SUMIFS('Cotizantes Mes'!$CA$2:$CA$500,'Cotizantes Mes'!$AY$2:$AY$500,"Dep_sec_priv",'Cotizantes Mes'!$AX$2:$AX$500,Tamaño!BF76) -> 0 | BI76: =SUMIFS('Cotizantes Mes'!$CA$2:$CA$500,'Cotizantes Mes'!$AX$2:$AX$500,Tamaño!BF76,'Cotizantes Mes'!$AY$2:$AY$500,"Independiente") -> 0 | BJ76: =SUMIFS($G$2:$G$600000,$F$2:$F$600000,BF76,$E$2:$E$600000,Visor!$Q$7) -> 0
A77: 5 | B77: 1 | C77: 001 | D77: 5001 | E77: ANTIOQUIA | F77: MEDELLÍN | G77: 2 | H77: 4752 | I77: G | J77: Comercio y reparacion de vehiculos | M77: 11 | N77: 1 | O77: 001 | P77: 11001 | Q77: BOGOTÁ, D.C. | R77: BOGOTÁ, D.C. | S77: 4 | T77: 4923 | U77: H | V77: Transporte y almacenamiento | BB77: 0 | BF77: 0 | BG77: 0 | BH77: =SUMIFS('Cotizantes Mes'!$CA$2:$CA$500,'Cotizantes Mes'!$AY$2:$AY$500,"Dep_sec_priv",'Cotizantes Mes'!$AX$2:$AX$500,Tamaño!BF77) -> 0 | BI77: =SUMIFS('Cotizantes Mes'!$CA$2:$CA$500,'Cotizantes Mes'!$AX$2:$AX$500,Tamaño!BF77,'Cotizantes Mes'!$AY$2:$AY$500,"Independiente") -> 0 | BJ77: =SUMIFS($G$2:$G$600000,$F$2:$F$600000,BF77,$E$2:$E$600000,Visor!$Q$7) -> 0
A78: 5 | B78: 1 | C78: 001 | D78: 5001 | E78: ANTIOQUIA | F78: MEDELLÍN | G78: 4 | H78: 4112 | I78: F | J78: Construcción | M78: 11 | N78: 1 | O78: 001 | P78: 11001 | Q78: BOGOTÁ, D.C. | R78: BOGOTÁ, D.C. | S78: 5 | T78: 4923 | U78: H | V78: Transporte y almacenamiento | BB78: 0 | BF78: 0 | BG78: 0 | BH78: =SUMIFS('Cotizantes Mes'!$CA$2:$CA$500,'Cotizantes Mes'!$AY$2:$AY$500,"Dep_sec_priv",'Cotizantes Mes'!$AX$2:$AX$500,Tamaño!BF78) -> 0 | BI78: =SUMIFS('Cotizantes Mes'!$CA$2:$CA$500,'Cotizantes Mes'!$AX$2:$AX$500,Tamaño!BF78,'Cotizantes Mes'!$AY$2:$AY$500,"Independiente") -> 0 | BJ78: =SUMIFS($G$2:$G$600000,$F$2:$F$600000,BF78,$E$2:$E$600000,Visor!$Q$7) -> 0
A79: 11 | B79: 1 | C79: 001 | D79: 11001 | E79: BOGOTÁ, D.C. | F79: BOGOTÁ, D.C. | G79: 1 | H79: 4923 | I79: H | J79: Transporte y almacenamiento | M79: 11 | N79: 1 | O79: 001 | P79: 11001 | Q79: BOGOTÁ, D.C. | R79: BOGOTÁ, D.C. | S79: 8 | T79: 4711 | U79: G | V79: Comercio y reparacion de vehiculos | BB79: 0 | BF79: 0 | BG79: 0 | BH79: =SUMIFS('Cotizantes Mes'!$CA$2:$CA$500,'Cotizantes Mes'!$AY$2:$AY$500,"Dep_sec_priv",'Cotizantes Mes'!$AX$2:$AX$500,Tamaño!BF79) -> 0 | BI79: =SUMIFS('Cotizantes Mes'!$CA$2:$CA$500,'Cotizantes Mes'!$AX$2:$AX$500,Tamaño!BF79,'Cotizantes Mes'!$AY$2:$AY$500,"Independiente") -> 0 | BJ79: =SUMIFS($G$2:$G$600000,$F$2:$F$600000,BF79,$E$2:$E$600000,Visor!$Q$7) -> 0
A80: 11 | B80: 1 | C80: 001 | D80: 11001 | E80: BOGOTÁ, D.C. | F80: BOGOTÁ, D.C. | G80: 6 | H80: 8291 | I80: N | J80: Actividades de servicios administrativos | M80: 11 | N80: 1 | O80: 001 | P80: 11001 | Q80: BOGOTÁ, D.C. | R80: BOGOTÁ, D.C. | S80: 1 | T80: 7490 | U80: M | V80: Act. profecionales cientificas y tecnicas | BB80: 0 | BF80: 0 | BG80: 0 | BH80: =SUMIFS('Cotizantes Mes'!$CA$2:$CA$500,'Cotizantes Mes'!$AY$2:$AY$500,"Dep_sec_priv",'Cotizantes Mes'!$AX$2:$AX$500,Tamaño!BF80) -> 0 | BI80: =SUMIFS('Cotizantes Mes'!$CA$2:$CA$500,'Cotizantes Mes'!$AX$2:$AX$500,Tamaño!BF80,'Cotizantes Mes'!$AY$2:$AY$500,"Independiente") -> 0 | BJ80: =SUMIFS($G$2:$G$600000,$F$2:$F$600000,BF80,$E$2:$E$600000,Visor!$Q$7) -> 0
A81: 11 | B81: 1 | C81: 001 | D81: 11001 | E81: BOGOTÁ, D.C. | F81: BOGOTÁ, D.C. | G81: 14 | H81: 6511 | I81: K | J81: Actividades financieras y de seguros | M81: 11 | N81: 1 | O81: 001 | P81: 11001 | Q81: BOGOTÁ, D.C. | R81: BOGOTÁ, D.C. | S81: 1 | T81: 7490 | U81: M | V81: Act. profecionales cientificas y tecnicas | BB81: 0 | BF81: 0 | BG81: 0 | BH81: =SUMIFS('Cotizantes Mes'!$CA$2:$CA$500,'Cotizantes Mes'!$AY$2:$AY$500,"Dep_sec_priv",'Cotizantes Mes'!$AX$2:$AX$500,Tamaño!BF81) -> 0 | BI81: =SUMIFS('Cotizantes Mes'!$CA$2:$CA$500,'Cotizantes Mes'!$AX$2:$AX$500,Tamaño!BF81,'Cotizantes Mes'!$AY$2:$AY$500,"Independiente") -> 0 | BJ81: =SUMIFS($G$2:$G$600000,$F$2:$F$600000,BF81,$E$2:$E$600000,Visor!$Q$7) -> 0
A82: 66 | B82: 1 | C82: 001 | D82: 66001 | E82: RISARALDA | F82: PEREIRA | G82: 2 | H82: 8414 | I82: O | J82: Admin. pública y defensa; planes seg. social | M82: 11 | N82: 1 | O82: 001 | P82: 11001 | Q82: BOGOTÁ, D.C. | R82: BOGOTÁ, D.C. | S82: 1 | T82: 7490 | U82: M | V82: Act. profecionales cientificas y tecnicas | BB82: 0 | BF82: 0 | BG82: 0 | BH82: =SUMIFS('Cotizantes Mes'!$CA$2:$CA$500,'Cotizantes Mes'!$AY$2:$AY$500,"Dep_sec_priv",'Cotizantes Mes'!$AX$2:$AX$500,Tamaño!BF82) -> 0 | BI82: =SUMIFS('Cotizantes Mes'!$CA$2:$CA$500,'Cotizantes Mes'!$AX$2:$AX$500,Tamaño!BF82,'Cotizantes Mes'!$AY$2:$AY$500,"Independiente") -> 0 | BJ82: =SUMIFS($G$2:$G$600000,$F$2:$F$600000,BF82,$E$2:$E$600000,Visor!$Q$7) -> 0
A83: 11 | B83: 1 | C83: 001 | D83: 11001 | E83: BOGOTÁ, D.C. | F83: BOGOTÁ, D.C. | G83: 13 | H83: 8299 | I83: N | J83: Actividades de servicios administrativos | M83: 11 | N83: 1 | O83: 001 | P83: 11001 | Q83: BOGOTÁ, D.C. | R83: BOGOTÁ, D.C. | S83: 1 | T83: 7490 | U83: M | V83: Act. profecionales cientificas y tecnicas | BB83: 0 | BF83: 0 | BG83: 0 | BH83: =SUMIFS('Cotizantes Mes'!$CA$2:$CA$500,'Cotizantes Mes'!$AY$2:$AY$500,"Dep_sec_priv",'Cotizantes Mes'!$AX$2:$AX$500,Tamaño!BF83) -> 0 | BI83: =SUMIFS('Cotizantes Mes'!$CA$2:$CA$500,'Cotizantes Mes'!$AX$2:$AX$500,Tamaño!BF83,'Cotizantes Mes'!$AY$2:$AY$500,"Independiente") -> 0 | BJ83: =SUMIFS($G$2:$G$600000,$F$2:$F$600000,BF83,$E$2:$E$600000,Visor!$Q$7) -> 0
A84: 66 | B84: 1 | C84: 001 | D84: 66001 | E84: RISARALDA | F84: PEREIRA | G84: 9 | H84: 4290 | I84: F | J84: Construcción | M84: 11 | N84: 1 | O84: 001 | P84: 11001 | Q84: BOGOTÁ, D.C. | R84: BOGOTÁ, D.C. | S84: 4 | T84: 4330 | U84: F | V84: Construcción | BB84: 0 | BF84: 0 | BG84: 0 | BH84: =SUMIFS('Cotizantes Mes'!$CA$2:$CA$500,'Cotizantes Mes'!$AY$2:$AY$500,"Dep_sec_priv",'Cotizantes Mes'!$AX$2:$AX$500,Tamaño!BF84) -> 0 | BI84: =SUMIFS('Cotizantes Mes'!$CA$2:$CA$500,'Cotizantes Mes'!$AX$2:$AX$500,Tamaño!BF84,'Cotizantes Mes'!$AY$2:$AY$500,"Independiente") -> 0 | BJ84: =SUMIFS($G$2:$G$600000,$F$2:$F$600000,BF84,$E$2:$E$600000,Visor!$Q$7) -> 0
A85: 66 | B85: 1 | C85: 001 | D85: 66001 | E85: RISARALDA | F85: PEREIRA | G85: 1 | H85: 7010 | I85: M | J85: Act. profecionales cientificas y tecnicas | M85: 11 | N85: 1 | O85: 001 | P85: 11001 | Q85: BOGOTÁ, D.C. | R85: BOGOTÁ, D.C. | S85: 1 | T85: 7490 | U85: M | V85: Act. profecionales cientificas y tecnicas | BB85: 0 | BF85: 0 | BG85: 0 | BH85: =SUMIFS('Cotizantes Mes'!$CA$2:$CA$500,'Cotizantes Mes'!$AY$2:$AY$500,"Dep_sec_priv",'Cotizantes Mes'!$AX$2:$AX$500,Tamaño!BF85) -> 0 | BI85: =SUMIFS('Cotizantes Mes'!$CA$2:$CA$500,'Cotizantes Mes'!$AX$2:$AX$500,Tamaño!BF85,'Cotizantes Mes'!$AY$2:$AY$500,"Independiente") -> 0 | BJ85: =SUMIFS($G$2:$G$600000,$F$2:$F$600000,BF85,$E$2:$E$600000,Visor!$Q$7) -> 0
A86: 66 | B86: 1 | C86: 001 | D86: 66001 | E86: RISARALDA | F86: PEREIRA | G86: 5 | H86: 8299 | I86: N | J86: Actividades de servicios administrativos | M86: 11 | N86: 1 | O86: 001 | P86: 11001 | Q86: BOGOTÁ, D.C. | R86: BOGOTÁ, D.C. | S86: 1 | T86: 7490 | U86: M | V86: Act. profecionales cientificas y tecnicas | BB86: 0 | BF86: 0 | BG86: 0 | BH86: =SUMIFS('Cotizantes Mes'!$CA$2:$CA$500,'Cotizantes Mes'!$AY$2:$AY$500,"Dep_sec_priv",'Cotizantes Mes'!$AX$2:$AX$500,Tamaño!BF86) -> 0 | BI86: =SUMIFS('Cotizantes Mes'!$CA$2:$CA$500,'Cotizantes Mes'!$AX$2:$AX$500,Tamaño!BF86,'Cotizantes Mes'!$AY$2:$AY$500,"Independiente") -> 0 | BJ86: =SUMIFS($G$2:$G$600000,$F$2:$F$600000,BF86,$E$2:$E$600000,Visor!$Q$7) -> 0
A87: 5 | B87: 212 | C87: 212 | D87: 5212 | E87: ANTIOQUIA | F87: COPACABANA | G87: 1 | H87: 8299 | I87: N | J87: Actividades de servicios administrativos | M87: 11 | N87: 1 | O87: 001 | P87: 11001 | Q87: BOGOTÁ, D.C. | R87: BOGOTÁ, D.C. | S87: 1 | T87: 7490 | U87: M | V87: Act. profecionales cientificas y tecnicas | BB87: 0 | BF87: 0 | BG87: 0 | BH87: =SUMIFS('Cotizantes Mes'!$CA$2:$CA$500,'Cotizantes Mes'!$AY$2:$AY$500,"Dep_sec_priv",'Cotizantes Mes'!$AX$2:$AX$500,Tamaño!BF87) -> 0 | BI87: =SUMIFS('Cotizantes Mes'!$CA$2:$CA$500,'Cotizantes Mes'!$AX$2:$AX$500,Tamaño!BF87,'Cotizantes Mes'!$AY$2:$AY$500,"Independiente") -> 0 | BJ87: =SUMIFS($G$2:$G$600000,$F$2:$F$600000,BF87,$E$2:$E$600000,Visor!$Q$7) -> 0
A88: 5 | B88: 1 | C88: 001 | D88: 5001 | E88: ANTIOQUIA | F88: MEDELLÍN | G88: 6 | H88: 4642 | I88: G | J88: Comercio y reparacion de vehiculos | M88: 11 | N88: 1 | O88: 001 | P88: 11001 | Q88: BOGOTÁ, D.C. | R88: BOGOTÁ, D.C. | S88: 4 | T88: 4923 | U88: H | V88: Transporte y almacenamiento | BB88: 0 | BF88: 0 | BG88: 0 | BH88: =SUMIFS('Cotizantes Mes'!$CA$2:$CA$500,'Cotizantes Mes'!$AY$2:$AY$500,"Dep_sec_priv",'Cotizantes Mes'!$AX$2:$AX$500,Tamaño!BF88) -> 0 | BI88: =SUMIFS('Cotizantes Mes'!$CA$2:$CA$500,'Cotizantes Mes'!$AX$2:$AX$500,Tamaño!BF88,'Cotizantes Mes'!$AY$2:$AY$500,"Independiente") -> 0 | BJ88: =SUMIFS($G$2:$G$600000,$F$2:$F$600000,BF88,$E$2:$E$600000,Visor!$Q$7) -> 0
A89: 5 | B89: 1 | C89: 001 | D89: 5001 | E89: ANTIOQUIA | F89: MEDELLÍN | G89: 5 | H89: 8299 | I89: N | J89: Actividades de servicios administrativos | M89: 11 | N89: 1 | O89: 001 | P89: 11001 | Q89: BOGOTÁ, D.C. | R89: BOGOTÁ, D.C. | S89: 37 | T89: 7112 | U89: M | V89: Act. profecionales cientificas y tecnicas | BB89: 0 | BF89: 0 | BG89: 0 | BH89: =SUMIFS('Cotizantes Mes'!$CA$2:$CA$500,'Cotizantes Mes'!$AY$2:$AY$500,"Dep_sec_priv",'Cotizantes Mes'!$AX$2:$AX$500,Tamaño!BF89) -> 0 | BI89: =SUMIFS('Cotizantes Mes'!$CA$2:$CA$500,'Cotizantes Mes'!$AX$2:$AX$500,Tamaño!BF89,'Cotizantes Mes'!$AY$2:$AY$500,"Independiente") -> 0 | BJ89: =SUMIFS($G$2:$G$600000,$F$2:$F$600000,BF89,$E$2:$E$600000,Visor!$Q$7) -> 0
A90: 5 | B90: 631 | C90: 631 | D90: 5631 | E90: ANTIOQUIA | F90: SABANETA | G90: 4 | H90: 8299 | I90: N | J90: Actividades de servicios administrativos | M90: 11 | N90: 1 | O90: 001 | P90: 11001 | Q90: BOGOTÁ, D.C. | R90: BOGOTÁ, D.C. | S90: 1 | T90: 9700 | U90: T | V90: Actividades de los hogares individuales | BB90: 0 | BF90: 0 | BG90: 0 | BH90: =SUMIFS('Cotizantes Mes'!$CA$2:$CA$500,'Cotizantes Mes'!$AY$2:$AY$500,"Dep_sec_priv",'Cotizantes Mes'!$AX$2:$AX$500,Tamaño!BF90) -> 0 | BI90: =SUMIFS('Cotizantes Mes'!$CA$2:$CA$500,'Cotizantes Mes'!$AX$2:$AX$500,Tamaño!BF90,'Cotizantes Mes'!$AY$2:$AY$500,"Independiente") -> 0 | BJ90: =SUMIFS($G$2:$G$600000,$F$2:$F$600000,BF90,$E$2:$E$600000,Visor!$Q$7) -> 0
A91: 5 | B91: 1 | C91: 001 | D91: 5001 | E91: ANTIOQUIA | F91: MEDELLÍN | G91: 3 | H91: 5611 | I91: I | J91: Alojamiento y servicios de comida | M91: 11 | N91: 1 | O91: 001 | P91: 11001 | Q91: BOGOTÁ, D.C. | R91: BOGOTÁ, D.C. | S91: 1 | T91: 6910 | U91: M | V91: Act. profecionales cientificas y tecnicas | BB91: 0 | BF91: 0 | BG91: 0 | BH91: =SUMIFS('Cotizantes Mes'!$CA$2:$CA$500,'Cotizantes Mes'!$AY$2:$AY$500,"Dep_sec_priv",'Cotizantes Mes'!$AX$2:$AX$500,Tamaño!BF91) -> 0 | BI91: =SUMIFS('Cotizantes Mes'!$CA$2:$CA$500,'Cotizantes Mes'!$AX$2:$AX$500,Tamaño!BF91,'Cotizantes Mes'!$AY$2:$AY$500,"Independiente") -> 0 | BJ91: =SUMIFS($G$2:$G$600000,$F$2:$F$600000,BF91,$E$2:$E$600000,Visor!$Q$7) -> 0
A92: 5 | B92: 1 | C92: 001 | D92: 5001 | E92: ANTIOQUIA | F92: MEDELLÍN | G92: 1 | H92: 1410 | I92: C | J92: Industrias manufactureras | M92: 11 | N92: 1 | O92: 001 | P92: 11001 | Q92: BOGOTÁ, D.C. | R92: BOGOTÁ, D.C. | S92: 1 | T92: 4782 | U92: G | V92: Comercio y reparacion de vehiculos | BB92: 0 | BF92: 0 | BG92: 0 | BH92: =SUMIFS('Cotizantes Mes'!$CA$2:$CA$500,'Cotizantes Mes'!$AY$2:$AY$500,"Dep_sec_priv",'Cotizantes Mes'!$AX$2:$AX$500,Tamaño!BF92) -> 0 | BI92: =SUMIFS('Cotizantes Mes'!$CA$2:$CA$500,'Cotizantes Mes'!$AX$2:$AX$500,Tamaño!BF92,'Cotizantes Mes'!$AY$2:$AY$500,"Independiente") -> 0 | BJ92: =SUMIFS($G$2:$G$600000,$F$2:$F$600000,BF92,$E$2:$E$600000,Visor!$Q$7) -> 0
A93: 5 | B93: 1 | C93: 001 | D93: 5001 | E93: ANTIOQUIA | F93: MEDELLÍN | G93: 1 | H93: 5530 | I93: I | J93: Alojamiento y servicios de comida | M93: 11 | N93: 1 | O93: 001 | P93: 11001 | Q93: BOGOTÁ, D.C. | R93: BOGOTÁ, D.C. | S93: 2 | T93: 7490 | U93: M | V93: Act. profecionales cientificas y tecnicas | BB93: 0 | BF93: 0 | BG93: 0 | BH93: =SUMIFS('Cotizantes Mes'!$CA$2:$CA$500,'Cotizantes Mes'!$AY$2:$AY$500,"Dep_sec_priv",'Cotizantes Mes'!$AX$2:$AX$500,Tamaño!BF93) -> 0 | BI93: =SUMIFS('Cotizantes Mes'!$CA$2:$CA$500,'Cotizantes Mes'!$AX$2:$AX$500,Tamaño!BF93,'Cotizantes Mes'!$AY$2:$AY$500,"Independiente") -> 0 | BJ93: =SUMIFS($G$2:$G$600000,$F$2:$F$600000,BF93,$E$2:$E$600000,Visor!$Q$7) -> 0
A94: 5 | B94: 1 | C94: 001 | D94: 5001 | E94: ANTIOQUIA | F94: MEDELLÍN | G94: 4 | H94: 5611 | I94: I | J94: Alojamiento y servicios de comida | M94: 11 | N94: 1 | O94: 001 | P94: 11001 | Q94: BOGOTÁ, D.C. | R94: BOGOTÁ, D.C. | S94: 2 | T94: 7490 | U94: M | V94: Act. profecionales cientificas y tecnicas | BB94: 0 | BF94: 0 | BG94: 0 | BH94: =SUMIFS('Cotizantes Mes'!$CA$2:$CA$500,'Cotizantes Mes'!$AY$2:$AY$500,"Dep_sec_priv",'Cotizantes Mes'!$AX$2:$AX$500,Tamaño!BF94) -> 0 | BI94: =SUMIFS('Cotizantes Mes'!$CA$2:$CA$500,'Cotizantes Mes'!$AX$2:$AX$500,Tamaño!BF94,'Cotizantes Mes'!$AY$2:$AY$500,"Independiente") -> 0 | BJ94: =SUMIFS($G$2:$G$600000,$F$2:$F$600000,BF94,$E$2:$E$600000,Visor!$Q$7) -> 0
A95: 5 | B95: 686 | C95: 686 | D95: 5686 | E95: ANTIOQUIA | F95: SANTA ROSA DE OSOS | G95: 4 | H95: 9609 | I95: S | J95: Otras actividades de servicios | M95: 11 | N95: 1 | O95: 001 | P95: 11001 | Q95: BOGOTÁ, D.C. | R95: BOGOTÁ, D.C. | S95: 2 | T95: 7490 | U95: M | V95: Act. profecionales cientificas y tecnicas | BB95: 0 | BF95: 0 | BG95: 0 | BH95: =SUMIFS('Cotizantes Mes'!$CA$2:$CA$500,'Cotizantes Mes'!$AY$2:$AY$500,"Dep_sec_priv",'Cotizantes Mes'!$AX$2:$AX$500,Tamaño!BF95) -> 0 | BI95: =SUMIFS('Cotizantes Mes'!$CA$2:$CA$500,'Cotizantes Mes'!$AX$2:$AX$500,Tamaño!BF95,'Cotizantes Mes'!$AY$2:$AY$500,"Independiente") -> 0 | BJ95: =SUMIFS($G$2:$G$600000,$F$2:$F$600000,BF95,$E$2:$E$600000,Visor!$Q$7) -> 0
A96: 13 | B96: 836 | C96: 836 | D96: 13836 | E96: BOLÍVAR | F96: TURBACO | G96: 3 | H96: 4111 | I96: F | J96: Construcción | M96: 11 | N96: 1 | O96: 001 | P96: 11001 | Q96: BOGOTÁ, D.C. | R96: BOGOTÁ, D.C. | S96: 2 | T96: 4732 | U96: G | V96: Comercio y reparacion de vehiculos | BB96: 0 | BF96: 0 | BG96: 0 | BH96: =SUMIFS('Cotizantes Mes'!$CA$2:$CA$500,'Cotizantes Mes'!$AY$2:$AY$500,"Dep_sec_priv",'Cotizantes Mes'!$AX$2:$AX$500,Tamaño!BF96) -> 0 | BI96: =SUMIFS('Cotizantes Mes'!$CA$2:$CA$500,'Cotizantes Mes'!$AX$2:$AX$500,Tamaño!BF96,'Cotizantes Mes'!$AY$2:$AY$500,"Independiente") -> 0 | BJ96: =SUMIFS($G$2:$G$600000,$F$2:$F$600000,BF96,$E$2:$E$600000,Visor!$Q$7) -> 0
A97: 5 | B97: 360 | C97: 360 | D97: 5360 | E97: ANTIOQUIA | F97: ITAGUI | G97: 1 | H97: 4651 | I97: G | J97: Comercio y reparacion de vehiculos | M97: 11 | N97: 1 | O97: 001 | P97: 11001 | Q97: BOGOTÁ, D.C. | R97: BOGOTÁ, D.C. | S97: 1 | T97: 9700 | U97: T | V97: Actividades de los hogares individuales | BB97: 0 | BF97: 0 | BG97: 0 | BH97: =SUMIFS('Cotizantes Mes'!$CA$2:$CA$500,'Cotizantes Mes'!$AY$2:$AY$500,"Dep_sec_priv",'Cotizantes Mes'!$AX$2:$AX$500,Tamaño!BF97) -> 0 | BI97: =SUMIFS('Cotizantes Mes'!$CA$2:$CA$500,'Cotizantes Mes'!$AX$2:$AX$500,Tamaño!BF97,'Cotizantes Mes'!$AY$2:$AY$500,"Independiente") -> 0 | BJ97: =SUMIFS($G$2:$G$600000,$F$2:$F$600000,BF97,$E$2:$E$600000,Visor!$Q$7) -> 0
A98: 5 | B98: 1 | C98: 001 | D98: 5001 | E98: ANTIOQUIA | F98: MEDELLÍN | G98: 1 | H98: 8299 | I98: N | J98: Actividades de servicios administrativos | M98: 11 | N98: 1 | O98: 001 | P98: 11001 | Q98: BOGOTÁ, D.C. | R98: BOGOTÁ, D.C. | S98: 2 | T98: 4632 | U98: G | V98: Comercio y reparacion de vehiculos | BB98: 0 | BF98: 0 | BG98: 0 | BH98: =SUMIFS('Cotizantes Mes'!$CA$2:$CA$500,'Cotizantes Mes'!$AY$2:$AY$500,"Dep_sec_priv",'Cotizantes Mes'!$AX$2:$AX$500,Tamaño!BF98) -> 0 | BI98: =SUMIFS('Cotizantes Mes'!$CA$2:$CA$500,'Cotizantes Mes'!$AX$2:$AX$500,Tamaño!BF98,'Cotizantes Mes'!$AY$2:$AY$500,"Independiente") -> 0 | BJ98: =SUMIFS($G$2:$G$600000,$F$2:$F$600000,BF98,$E$2:$E$600000,Visor!$Q$7) -> 0
A99: 5 | B99: 1 | C99: 001 | D99: 5001 | E99: ANTIOQUIA | F99: MEDELLÍN | G99: 1 | H99: 1084 | I99: C | J99: Industrias manufactureras | M99: 11 | N99: 1 | O99: 001 | P99: 11001 | Q99: BOGOTÁ, D.C. | R99: BOGOTÁ, D.C. | S99: 1 | T99: 8511 | U99: P | V99: Educación | BB99: 0 | BF99: 0 | BG99: 0 | BH99: =SUMIFS('Cotizantes Mes'!$CA$2:$CA$500,'Cotizantes Mes'!$AY$2:$AY$500,"Dep_sec_priv",'Cotizantes Mes'!$AX$2:$AX$500,Tamaño!BF99) -> 0 | BI99: =SUMIFS('Cotizantes Mes'!$CA$2:$CA$500,'Cotizantes Mes'!$AX$2:$AX$500,Tamaño!BF99,'Cotizantes Mes'!$AY$2:$AY$500,"Independiente") -> 0 | BJ99: =SUMIFS($G$2:$G$600000,$F$2:$F$600000,BF99,$E$2:$E$600000,Visor!$Q$7) -> 0
A100: 5 | B100: 148 | C100: 148 | D100: 5148 | E100: ANTIOQUIA | F100: EL CARMEN DE VIBORAL | G100: 2 | H100: 8299 | I100: N | J100: Actividades de servicios administrativos | M100: 11 | N100: 1 | O100: 001 | P100: 11001 | Q100: BOGOTÁ, D.C. | R100: BOGOTÁ, D.C. | S100: 1 | T100: 9700 | U100: T | V100: Actividades de los hogares individuales | BB100: 0 | BF100: 0 | BG100: 0 | BH100: =SUMIFS('Cotizantes Mes'!$CA$2:$CA$500,'Cotizantes Mes'!$AY$2:$AY$500,"Dep_sec_priv",'Cotizantes Mes'!$AX$2:$AX$500,Tamaño!BF100) -> 0 | BI100: =SUMIFS('Cotizantes Mes'!$CA$2:$CA$500,'Cotizantes Mes'!$AX$2:$AX$500,Tamaño!BF100,'Cotizantes Mes'!$AY$2:$AY$500,"Independiente") -> 0 | BJ100: =SUMIFS($G$2:$G$600000,$F$2:$F$600000,BF100,$E$2:$E$600000,Visor!$Q$7) -> 0
